Workbook

Sheet 1-1
A1: 1. 연구개발활동 국제비교
A2: International Comparison of R&D Activities
A4: 1-1) 주요국의 연구개발 관련 주요 지표
A5: Main indicators concerning R&D activities in major countries
A7: 지표 Indicators | B7: 단위 Unit | C7: 한국 (2023) Korea | D7: 미국 (2022) United States | E7: 일본 (2022) Japan | F7: 독일 (2022) Germany | G7: 프랑스 (2022) France | H7: 영국 (2021) United Kingdom | I7: 중국 (2022) China
A8: ㅇ 연구개발비 R&D expenditure | B8: 억 달러(PPP) USD, 0.1 billions | C8: 1487.8 | D8: 9232.4 | E8: 2007.7 | F8: 1748.6 | G8: 851.7 | H8: 1026.1 | I8: 8118.6
A9: - 배율(한국을 1로 본 경우) Multiplier | B9: 배 | C9: =C8/$C$8 -> 1 | D9: =D8/$C$8 -> 6.205403952 | E9: =E8/$C$8 -> 1.349442129 | F9: 1.175292378 | G9: 0.5724559753 | H9: 0.6896760317 | I9: 5.456781826
A10: - GDP 대비 As a percent of GDP | B10: % | C10: 4.96 | D10: 3.59 | E10: 3.41 | F10: 3.13 | G10: 2.18 | H10: 2.9 | I10: 2.56
A11: - 정부 : 민간 Gov't vs Business enterprise | B11: % | C11: 24 : 76 | D11: 24 : 76 (2021) | E11: 21 : 79 (2021) | F11: 30 : 70 (2021) | G11: 37 : 63 (2021) | H11: 31 : 69 | I11: 19 : 78 (2021)
A12: ㅇ 연구원 Researchers | B12: 천 명(FTE) 1,000 Person | C12: 490.3 | D12: 1,639.3 (2021) | E12: 705.6 | F12: 484.8 | G12: 345.6 | H12: 295.8 (2017) | I12: 2637.2
A13: - 배율 Multiplier | B13: 배 | C13: =C12/$C$12 -> 1 | D13: =1639.3/$C$12 -> 3.343463186 | E13: =E12/$C$12 -> 1.439118907 | F13: 0.9887823781 | G13: 0.7048745666 | H13: =295.8/$C$12 -> 0.6033040995 | I13: 5.378747705
A14: - 인구만명당 Researchers per 10,000 population | B14: 명 Person | C14: 94.8 | D14: 49.3 | E14: 56.5 | F14: 57.9 | G14: 50.5 | H14: 44.79739552 | I14: 18.7
A15: - 연구원 1인당 연구개발비 R&D expenditure per researcher | B15: 천 달러(ppp) 1,000 USD | C15: 303.5 | D15: 501.3 | E15: 284.6 | F15: 360.7 | G15: 246.4 | H15: 210.7298269 | I15: 307.9
A16: ㅇ 특허 Patent
A17: - 삼극특허 건수(2021) Number of triadic patent families | B17: 건 Case | C17: 3663.4886 | D17: 14341.0152 | E17: 16102.4895 | F17: 4364.1469 | G17: 1990.8301 | H17: 1868.1948 | I17: 6106.3824
A18: - PCT 출원건수(2023) Number of PCT Filings | B18: 건 Case | C18: 22278 | D18: 55612 | E18: 48982 | F18: 16945 | G18: 7912 | H18: 5576 | I18: 69547
A19: ㅇ 과학기술논문발표건수(2023) Number of scientific and technical papers | B19: 천 건 1,000 Case | C19: 76.1 | D19: 432.6 | E19: 85.4 | F19: 126.6 | G19: 79.8 | H19: 147.8 | I19: 730.5
A21: 주 : 1. 연구원은 상근상당 연구원 기준임
A22: 2. 중국은 정부재원과 민간재원의 비율 합이 100.0%가 되지 않음
A23: 3. 연구개발비 하위 항목 중 '정부:민간'에서 정부는 정부재원과 공공재원을, 민간은 민간재원과 외국재원을 포함함

Sheet 1-2
A1: 1-2) 주요국의 연구개발비 및 GDP 대비 연구개발비 비율
A2: R&D expenditure and as a percentage of GDP in major countries
O4: (단위 : 백만 달러 / Unit : PPP USD, Millions)
A5: 연도별 Year | B5: 한국 Korea | D5: 미국 United States | F5: 일본 Japan | H5: 독일 Germany | J5: 프랑스 France | L5: 영국 United Kingdom | N5: 중국 China
C6: GDP 대비(%) As a percent of GDP(%) | E6: GDP 대비(%) As a percent of GDP(%) | G6: GDP 대비(%) As a percent of GDP(%) | I6: GDP 대비(%) As a percent of GDP(%) | K6: GDP 대비(%) As a percent of GDP(%) | M6: GDP 대비(%) As a percent of GDP(%) | O6: GDP 대비(%) As a percent of GDP(%)
A7: 1991 | B7: 5670.633581 | C7: 1.714954691 | D7: 161391 | E7: 2.620779786 | F7: 95940.99749 | G7: 2.629913501 | H7: 44604.77779 | I7: 2.386656577 | J7: 28906.23083 | K7: 2.27747064 | L7: 21396.25936 | M7: 1.872320461 | N7: 2995.458535 | O7: 0.7246337296
A8: 1992 | B8: 6390.69732 | C8: 1.797584715 | D8: 165838 | E8: 2.543400047 | F8: 102652.7846 | G8: 2.57876092 | H8: 48453.94446 | I8: 2.273039026 | J8: 31995.24063 | K8: 2.283088518 | L8: 21703.34203 | M8: 1.839713168 | N8: 3591.018157 | O8: 0.7281987167
A9: 1993 | B9: 7666.902311 | C9: 1.952204334 | D9: 166153 | E9: 2.422564273 | F9: 114542.1313 | G9: 2.524655489 | H9: 45691.12957 | I9: 2.205968539 | J9: 30675.24529 | K9: 2.318812289 | L9: 19781.11966 | M9: 1.863581515 | N9: 4304.266015 | O9: 0.69522779
A10: 1994 | B10: 9822.125268 | C10: 2.119432452 | D10: 169621 | E10: 2.327645214 | F10: 123541.3898 | G10: 2.471422294 | H10: 46885.30504 | I10: 2.126300029 | J10: 31621.31419 | K10: 2.268425747 | L10: 20942.20165 | M10: 1.836322256 | N10: 3553.418405 | O10: 0.6296787458
A11: 1995 | B11: 12240.58994 | C11: 2.160377108 | D11: 184086 | E11: 2.409581781 | F11: 142133.8894 | G11: 2.563019132 | H11: 55208.09581 | I11: 2.135198115 | J11: 35879.58452 | K11: 2.241079151 | L11: 22146.45524 | M11: 1.645044937 | N11: 4175.219606 | O11: 0.5684554425
A12: 1996 | B12: 13522.21839 | C12: 2.216161975 | D12: 197802 | E12: 2.450130197 | F12: 130126.6842 | G12: 2.643028325 | H12: 53557.65624 | I12: 2.144611477 | J12: 35692.94993 | K12: 2.222799402 | L12: 22366.52012 | M12: 1.573209783 | N12: 4864.944507 | O12: 0.563235933
A13: 1997 | B13: 12828.65069 | C13: 2.248296408 | D13: 212478 | E13: 2.477140331 | F13: 122273.9439 | G13: 2.721765284 | H13: 48404.94852 | I13: 2.188321291 | J13: 31193.35262 | K13: 2.146989216 | L13: 23994.32908 | M13: 1.53640854 | N13: 6141.993243 | O13: 0.6387254594
A14: 1998 | B14: 8079.212982 | C14: 2.110255795 | D14: 226227 | E14: 2.496210615 | F14: 115879.211 | G14: 2.827451354 | H14: 49618.71015 | I14: 2.216129308 | J14: 31487.36032 | K14: 2.094757636 | L14: 25594.36858 | M14: 1.546491737 | N14: 6656.876385 | O14: 0.6468886267
A15: 1999 | B15: 10023.00271 | C15: 2.015671913 | D15: 244980 | E15: 2.543615668 | F15: 131973.3268 | G15: 2.84671783 | H15: 51532.76144 | I15: 2.347792355 | J15: 31470.67459 | K15: 2.107667383 | L15: 27390.09163 | M15: 1.621284094 | N15: 8201.008667 | O15: 0.7496323059
A16: 2000 | B16: 12251.38042 | C16: 2.125194895 | D16: 268558 | E16: 2.619834724 | F16: 142015.9818 | G16: 2.858408118 | H16: 46942.81175 | I16: 2.409817362 | J16: 28589.13554 | K16: 2.093460978 | L16: 26807.63953 | M16: 1.609055318 | N16: 10819.16491 | O16: 0.8931632497
A17: 2001 | B17: 21290.52391 | C17: 2.198718995 | D17: 279061 | E17: 2.637146781 | F17: 103866.7865 | G17: 2.923484997 | H17: 56186.2635 | I17: 2.40437244 | J17: 36073.41123 | K17: 2.138042517 | L17: 26330.60342 | M17: 1.595449053 | N17: 38373.39109 | O17: 0.9403309126
A18: 2002 | B18: 22506.77568 | C18: 2.130415722 | D18: 278414 | E18: 2.54745401 | F18: 108166.2253 | G18: 2.965137192 | H18: 58637.42531 | I18: 2.436220998 | J18: 38334.72774 | K18: 2.174494514 | L18: 27871.36259 | M18: 1.613829999 | N18: 47844.65032 | O18: 1.057860257
A19: 2003 | B19: 24098.10752 | C19: 2.196572879 | D19: 292157 | E19: 2.550152971 | F19: 112362.1308 | G19: 2.993195203 | H19: 61087.84781 | I19: 2.474613872 | J19: 37177.38427 | K19: 2.119937208 | L19: 28595.81613 | M19: 1.581305122 | N19: 56858.94085 | O19: 1.120366462
A20: 2004 | B20: 27916.22102 | C20: 2.352920657 | D20: 303824 | E20: 2.486855413 | F20: 117429.96 | G20: 2.981245971 | H20: 62964.83906 | I20: 2.43518833 | J20: 38169.81806 | K20: 2.094612844 | L20: 29438.09146 | M20: 1.530888672 | N20: 69722.70381 | O20: 1.214982433
A21: 2005 | B21: 30618.32565 | C21: 2.427251636 | D21: 326231 | E21: 2.50192554 | F21: 128694.5614 | G21: 3.130918982 | H21: 64028.3314 | I21: 2.441928279 | J21: 39530.06331 | K21: 2.051505823 | L21: 30639.65144 | M21: 1.550042216 | N21: 86229.51041 | O21: 1.307915592
A22: 2006 | B22: 35411.98111 | C22: 2.615154105 | D22: 351669 | E22: 2.545451755 | F22: 138799.5905 | G22: 3.227655613 | H22: 69570.69043 | I22: 2.472315478 | J22: 42365.84266 | K22: 2.050937992 | L22: 33314.25797 | M22: 1.576256863 | N22: 104840.2319 | O22: 1.368536788
A23: 2007 | B23: 40646.62457 | C23: 2.758945599 | D23: 378524 | E23: 2.615158473 | F23: 147575.7515 | G23: 3.292571953 | H23: 73467.92172 | I23: 2.460480567 | J23: 44231.85922 | K23: 2.024512996 | L23: 35252.61744 | M23: 1.618298474 | N23: 123468.0209 | O23: 1.373694104
A24: 2008 | B24: 43906.41276 | C24: 2.86773325 | D24: 405405 | E24: 2.744812375 | F24: 148719.2346 | G24: 3.292238812 | H24: 81172.63725 | I24: 2.615133026 | J24: 46567.08548 | K24: 2.061169195 | L24: 36542.01863 | M24: 1.609011734 | N24: 145247.3089 | O24: 1.445920088
A25: 2009 | B25: 45784.09914 | C25: 3.021455912 | D25: 404200 | E25: 2.791809155 | F25: 137283.9345 | G25: 3.195898318 | H25: 82697.11207 | I25: 2.742662559 | J25: 49635.39766 | K25: 2.21206518 | L25: 36422.76059 | M25: 1.669910034 | N25: 184080.3054 | O25: 1.664795447
A26: 2010 | B26: 52146.57191 | C26: 3.179130089 | D26: 408495 | E26: 2.714438084 | F26: 140511.5072 | G26: 3.104951313 | H26: 86954.77783 | I26: 2.730237388 | J26: 50853.85228 | K26: 2.178573219 | L26: 37533.21815 | M26: 1.638864246 | N26: 212191.9282 | O26: 1.713721488
A27: 2011 | B27: 58379.65416 | C27: 3.444101844 | D27: 427125 | E27: 2.738027807 | F27: 148389.2294 | G27: 3.205366018 | H27: 95809.96574 | I27: 2.805546283 | J27: 53617.29147 | K27: 2.191614526 | L27: 38778.58662 | M27: 1.646810097 | N27: 246477.1995 | O27: 1.780343022
A28: 2012 | B28: 64862.48855 | C28: 3.685191076 | D28: 434424 | E28: 2.672725494 | F28: 152325.5676 | G28: 3.173705284 | H28: 100490.085 | I28: 2.881655551 | J28: 55097.72622 | K28: 2.227065823 | L28: 38490.16182 | M28: 1.575874635 | N28: 290892.7655 | O28: 1.912141
A29: 2013 | B29: 68234.05477 | C29: 3.774874742 | D29: 455089 | E29: 2.695915799 | F29: 164655.7643 | G29: 3.27895603 | H29: 102905.4546 | I29: 2.835986547 | J29: 58353.32634 | K29: 2.237025131 | L29: 41532.08789 | M29: 1.620957234 | N29: 327146.2769 | O29: 1.99786394
A30: 2014 | B30: 73099.81331 | C30: 3.889821059 | D30: 476971 | E30: 2.708809983 | F30: 169554.1485 | G30: 3.367875199 | H30: 109562.6834 | I30: 2.877840495 | J30: 60585.64991 | K30: 2.27591667 | L30: 60396.72431 | M30: 2.26487962 | N30: 352373.0969 | O30: 2.02243256
A31: 2015 | B31: 76922.04037 | C31: 3.789078648 | D31: 507372 | E31: 2.773279437 | F31: 168514.032 | G31: 3.240707296 | H31: 114097.5636 | I31: 2.933791744 | J31: 60541.34444 | K31: 2.227016847 | L31: 62972.8145 | M31: 2.275659018 | N31: 374714.4954 | O31: 2.05701037
A32: 2016 | B32: 80815.9607 | C32: 3.786389673 | D32: 533451 | E32: 2.836763988 | F32: 160269.3129 | G32: 3.106656458 | H32: 122472.2055 | I32: 2.940389187 | J32: 63651.42217 | K32: 2.222383891 | L32: 67116.27833 | M32: 2.320516458 | N32: 404635.427 | O32: 2.10032842
A33: 2017 | B33: 90289.88169 | C33: 4.073405361 | D33: 565529 | E33: 2.883571582 | F33: 166621.7342 | G33: 3.166356159 | H33: 133668.0031 | I33: 3.047099499 | J33: 65592.82912 | K33: 2.198880135 | L33: 70754.89898 | M33: 2.326016263 | N33: 435789.6306 | O33: 2.116029774 | S33: `
A34: 2018 | B34: 100282.5864 | C34: 4.27153981 | D34: 617722 | E34: 2.990446211 | F34: 172035.7967 | G34: 3.219196015 | H34: 142320.1851 | I34: 3.110105484 | J34: 68653.97244 | K34: 2.196660102 | L34: 84852.31019 | M34: 2.711241535 | N34: 480642.3269 | O34: 2.140578042
A35: 2019 | B35: 105064.3681 | C35: 4.363781528 | D35: 677286 | E35: 3.147035775 | F35: 173928.4265 | G35: 3.218237396 | H35: 153293.1564 | I35: 3.167009968 | J35: 75681.68193 | K35: 2.191788762 | L35: 89094.75474 | M35: 2.670803489 | N35: 545460.7854 | O35: 2.244626073
A36: 2020 | B36: 112221.208 | C36: 4.521408849 | D36: 730241 | E36: 3.424671539 | F36: 174926.4424 | G36: 3.264575825 | H36: 150788.8204 | I36: 3.131357981 | J36: 76072.64334 | K36: 2.274637313 | L36: 94639.01241 | M36: 2.938829666 | N36: 607601.4738 | O36: 2.406660076
A37: 2021 | B37: 123459.9388 | C37: 4.596725801 | D37: 821811 | E37: 3.483130966 | F37: 183467.4461 | G37: 3.27677093 | H37: 161232.4963 | I37: 3.128822181 | J37: 80917.10846 | K37: 2.218075199 | L37: 102609.1252 | M37: 2.897105573 | N37: 701114.6371 | O37: 2.432597216
A38: 2022 | B38: 138995.2065 | C38: 4.847530126 | D38: 923243 | E38: 3.586230294 | F38: 200769.8489 | G38: 3.405367707 | H38: 174857.3476 | I38: 3.132357557 | J38: 85167.16736 | K38: 2.175548408 | N38: 811861.5981 | O38: 2.555181298
A39: 2023 | B39: 148777.81 | C39: 4.958960136
A41: 자료 : 1. OECD, Main Science and Technology Indicators 2024-July, 2024

Sheet 1-3
A1: 1-3) 주요국의 연구원(FTE) 1인당 연구개발비
A2: R&D expenditure per researcher in major countries
A5: 국가별 · 연도별 Country · Year | C5: 연구개발비(억달러) R&D expenditure (PPP USD, 0.1 billions) | E5: 연구원(FTE) Researchers | F5: 연구원 1인당 연구개발비(천 달러) R&D expenditure per researcher (1,000 PPP USD)
D6: 정부·공공재원 비율(%)
A7: 한국 Korea | B7: 1991 | C7: ='[1]1-2'!B7/100 -> 56.70633581 | D7: 19.4 | E7: 76,252(73,275) | F7: 74.4(77.4)
B8: 1992 | C8: ='[1]1-2'!B8/100 -> 63.9069732 | D8: 17.2 | E8: 88,764(85,268) | F8: 72.0(75.0)
B9: 1993 | C9: ='[1]1-2'!B9/100 -> 76.66902311 | D9: 16.7 | E9: 98,764(93,680) | F9: 77.6(81.8)
B10: 1994 | C10: ='[1]1-2'!B10/100 -> 98.22125268 | D10: 23.8 | E10: 117,446(89,018) | F10: 83.7(110.4)
B11: 1995 | C11: ='[1]1-2'!B11/100 -> 122.4058994 | D11: 23.72777764 | E11: 128,315(100,456) | F11: 95.4(121.8)
B12: 1996 | C12: ='[1]1-2'!B12/100 -> 135.2221839 | D12: 25.00434361 | E12: 132,023(99,433) | F12: 102.4(136.0)
B13: 1997 | C13: ='[1]1-2'!B13/100 -> 128.2865069 | D13: 27.44845705 | E13: 138,438(102,660) | F13: 92.5(124.8)
B14: 1998 | C14: ='[1]1-2'!B14/100 -> 80.79212982 | D14: 30.7949188 | E14: 129,767(92,541) | F14: 62.3(87.4)
B15: 1999 | C15: ='[1]1-2'!B15/100 -> 100.2300271 | D15: 29.98191876 | E15: 134,568(100,210) | F15: 74.5(100.1)
B16: 2000 | C16: ='[1]1-2'!B16/100 -> 122.5138042 | D16: 27.56147398 | E16: 159,973(108,370) | F16: 76.5(113.0)
B17: 2001 | C17: ='[1]1-2'!B17/100 -> 124.8113248 | D17: 27.07256953 | E17: 178,937(136,337) | F17: 69.7(91.5)
B18: 2002 | C18: ='[1]1-2'!B18/100 -> 138.4231895 | D18: 27.35892548 | E18: 189,888(141,917) | F18: 72.9(97.6)
B19: 2003 | C19: ='[1]1-2'!B19/100 -> 160.0197011 | D19: 25.57189981 | E19: 198,171(151,254) | F19: 80.8(105.8)
B20: 2004 | C20: ='[1]1-2'!B20/100 -> 193.5473017 | D20: 24.54810063 | E20: 209,979(156,220) | F20: 92.2(124.0)
B21: 2005 | C21: ='[1]1-2'!B21/100 -> 235.8170991 | D21: 24.33063907 | E21: 234,702(179,812) | F21: 100.5(131.2)
B22: 2006 | C22: ='[1]1-2'!B22/100 -> 286.2402941 | D22: 24.25280679 | E22: 256,598(199,990) | F22: 111.6(143.2)
B23: 2007 | C23: ='[1]1-2'!B23/100 -> 336.7999914 | D23: 26.12498208 | E23: 289,098(221,928) | F23: 116.5(151.8)
B24: 2008 | C24: ='[1]1-2'!B24/100 -> 313.5827994 | D24: 26.81094225 | E24: 300,050(236,137) | F24: 104.3(132.6)
B25: 2009 | C25: ='[1]1-2'!B25/100 -> 296.9553806 | D25: 28.70913319 | E25: 323,175(244,077) | F25: 91.9(121.7)
B26: 2010 | C26: ='[1]1-2'!B26/100 -> 379.2161794 | D26: 27.97919045 | E26: 345,912(264,118) | F26: 109.7(143.6)
B27: 2011 | C27: ='[1]1-2'!B27/100 -> 450.1797362 | D27: 26.06367557 | E27: 375,176(288,901) | F27: 120.0(155.8)
B28: 2012 | C28: ='[1]1-2'!B28/100 -> 492.0996412 | D28: 24.92704932 | E28: 401,724(315,589) | F28: 122.5(156.0)
B29: 2013 | C29: ='[1]1-2'!B29/100 -> 541.5698363 | D29: 24.01604791 | E29: 410,333(321,842) | F29: 132.0(168.3)
B30: 2014 | C30: ='[1]1-2'!B30/100 -> 605.3543444 | D30: 23.96676339 | E30: 437,447(345,463) | F30: 138.4(175.2)
B31: 2015 | C31: ='[1]1-2'!B31/100 -> 583.2196465 | D31: 24.70235445 | E31: 453,262(356,447) | F31: 128.6(163.6)
B32: 2016 | C32: 597.9279217 | D32: 23.64371727 | E32: 460769 | F32: =C32*100000/E32 -> 129.7673936
B33: 2017 | C33: 902.8988169 | D33: 22.51214178 | E33: 383100.2805 | F33: =C33*100000/E33 -> 235.682108
B34: 2018 | C34: 1002.825864 | D34: 21.41990695 | E34: 408370.4603 | F34: 245.5676797
B35: 2019 | C35: 1050.643681 | D35: 21.44425263 | E35: 430690.0064 | F35: 243.9442906
B36: 2020 | C36: 1122.21208 | D36: 23.18774769 | E36: 446738.854 | F36: 251.200913
B37: 2021 | C37: 1234.599388 | D37: 23.59122419 | E37: 470728.1152 | F37: 262.2744102
B38: 2022 | C38: 1389.952065 | D38: 23.4 | E38: 488773.7625 | F38: =C38*100000/E38 -> 284.3753432
B39: 2023 | C39: 1487.7781 | D39: 23.6 | E39: 490255.9256 | F39: =C39*100000/E39 -> 303.4696823
A40: 미국 United States | B40: 2008 | C40: 4054.05 | D40: 36.32614299 | E40: 1113988 | F40: 363.9222326
B41: 2009 | C41: 4042.01 | D41: 38.95710303 | E41: 1162720 | F41: 347.6339961
B42: 2010 | C42: 4084.96 | D42: 39.14848615 | E42: 1099864 | F42: 371.4059193
B43: 2011 | C43: 4271.26 | D43: 37.48964006 | E43: 1144866 | F43: 373.0794696
B44: 2012 | C44: 4344.42 | D44: 36.39795416 | E44: 1150722 | F44: 377.5386236
B45: 2013 | C45: 4551.28 | D45: 34.44920989 | E45: 1188093 | F45: 383.074389
B46: 2014 | C46: 4770.03 | D46: 33.01907954 | E46: 1230471 | F46: 387.6588721
B47: 2015 | C47: 5074.01 | D47: 31.80245999 | E47: 1252907 | F47: 404.9789809
B48: 2016 | C48: 5334.65 | D48: 30.28614811 | E48: 1248221 | F48: 427.3802476
B49: 2017 | C49: 5655.29 | D49: 29.59244102 | E49: 1300314.024 | F49: 434.9172504
B50: 2018 | C50: 6177.22 | D50: 28.79740999 | E50: 1410375.834 | F50: 437.9839651
B51: 2019 | C51: 6772.86 | D51: 27.22424732 | E51: 1435216.614 | F51: 471.9050723
B52: 2020 | C52: 7302.41 | D52: 27.05465619 | E52: 1513964 | F52: =C52*100000/E52 -> 482.3370965
B53: 2021 | C53: 8218.11 | D53: 25.4 | E53: 1639258 | F53: 501.33109
B54: 2022 | C54: 9232.43
A55: 일본 Japan | B55: 2008 | C55: 1681.240816 | D55: 21.44899472 | E55: 656676 | F55: 256.0228812
B56: 2009 | C56: 1690.468415 | D56: 24.3077514 | E56: 655530 | F56: 257.8781161
B57: 2010 | C57: 1788.163745 | D57: 23.62216393 | E57: 656032 | F57: 272.5726405
B58: 2011 | C58: 1997.951809 | D58: 22.99726975 | E58: 656651 | F58: 304.2638798
B59: 2012 | C59: 1990.663169 | D59: 23.43821221 | E59: 646347 | F59: 307.9867577
B60: 2013 | C60: 1709.099497 | D60: 23.99719689 | E60: 660489 | F60: 258.7627496
B61: 2014 | C61: 1649.246601 | D61: 22.29254697 | E61: 682935 | F61: 241.4939345
B62: 2015 | C62: 1440.471916 | D62: 21.54838148 | E62: 662071 | F62: 217.5706103
B63: 2016 | C63: 1554.470742 | D63: 21.1814029 | E63: 665566 | F63: 233.5562126
B64: 2017 | C64: 1666.217342 | D64: 21.09041203 | E64: 676292 | F64: 246.3754329
B65: 2018 | C65: 1720.357967 | D65: 20.33033179 | E65: 678134 | F65: =C65*100000/E65 -> 253.6899739
B66: 2019 | C66: 1739.284265 | D66: 20.50293363 | E66: 681821 | F66: =C66*100000/E66 -> 255.0939712
B67: 2020 | C67: 1749.264424 | D67: 21.15557952 | E67: 689889 | F67: =C67*100000/E67 -> 253.5573728
B68: 2021 | C68: 1834.674461 | D68: 21.3 | E68: 704502 | F68: 260.4214694
B69: 2022 | C69: 2007.698489 | E69: 705551 | F69: 284.5575286
A70: 독일 Germany | B70: 2008 | C70: 979.4359214 | D70: 28.79317899 | E70: 302641 | F70: =C70*100000/E70 -> 323.629621
B71: 2009 | C71: 935.5934518 | D71: 30.07318448 | E71: 317307 | F71: 294.8543372
B72: 2010 | C72: 928.1900068 | D72: 30.60016156 | E72: 327996 | F72: 282.9882092
B73: 2011 | C73: 1051.887525 | D73: 30.23582712 | E73: 338689 | F73: 310.5762294
B74: 2012 | C74: 1016.401332 | D74: 29.60206182 | E74: 352419 | F74: 288.4070757
B75: 2013 | C75: 1058.902148 | D75: 29.40414114 | E75: 354463 | F75: 298.7341833
B76: 2014 | C76: 1119.21924 | D76: 29.01777974 | E76: 351923 | F76: 318.0295803
B77: 2015 | C77: 985.046189 | D77: 28.17472685 | E77: 387982 | F77: 253.8896622
B78: 2016 | C78: 1020.272453 | D78: 28.83125503 | E78: 399605 | F78: 255.3202421
B79: 2017 | C79: 1336.680031 | D79: 28.06597402 | E79: 419617 | F79: 318.5476354
B80: 2018 | C80: 1423.201851 | D80: 28.19441794 | E80: 433685.036 | F80: 328.1648508
B81: 2019 | C81: 1532.931564 | D81: 28.16502115 | E81: 450697.27 | F81: 340.1244395
B82: 2020 | C82: 1507.888204 | D82: 30.07664328 | E82: 450796 | F82: =C82*100000/E82 -> 334.4945837
B83: 2021 | C83: 1612.324963 | D83: 30.3 | E83: 461645 | F83: 349.2564553
B84: 2022 | C84: 1748.573476 | E84: 484823 | F84: 360.6622368
A85: 프랑스 France | B85: 2008 | C85: 603.9849042 | D85: 41.21622475 | E85: 227678.5299 | F85: 265.2796926
B86: 2009 | C86: 597.4536416 | D86: 40.69979144 | E86: 234366.0471 | F86: 254.9232916
B87: 2010 | C87: 576.2735404 | D87: 38.95965339 | E87: 243533.2276 | F87: 236.6303548
B88: 2011 | C88: 627.9320002 | D88: 37.20861375 | E88: 249246.6 | F88: 251.9320224
B89: 2012 | C89: 597.6714487 | D89: 37.07507722 | E89: 258913 | F89: 230.8387175
B90: 2013 | C90: 629.0240323 | D90: 37.04083755 | E90: 265465.8112 | F90: 236.951052
B91: 2014 | C91: 649.9938889 | D91: 37.86546429 | E91: 271772.2718 | F91: 239.1685821
B92: 2015 | C92: 543.2116752 | D92: 39.02611163 | E92: 279470 | F92: 194.3720883
B93: 2016 | C93: 549.5878776 | D93: 36.19996954 | E93: 285487.9646 | F93: 192.5082476
B94: 2017 | C94: 655.9282912 | D94: 36.1734854 | E94: 296324.277 | F94: 221.3548947
B95: 2018 | C95: 686.5397244 | D95: 35.51556675 | E95: 305438.6168 | F95: 224.7717501
B96: 2019 | C96: 756.8168193 | D96: 35.19993427 | E96: 313373.7036 | F96: 241.5061668
B97: 2020 | C97: 760.7264334 | D97: 35.7945466 | E97: 321398 | F97: =C97*100000/E97 -> 236.6929581
B98: 2021 | C98: 809.1710846 | D98: 36.9 | E98: 333800 | F98: 242.4119487
B99: 2022 | C99: 851.6716736 | E99: 345617 | F99: 246.4206545
A100: 영국 United Kingdom | B100: 2008 | C100: 471.3752514 | D100: 36.83136261 | E100: 251931.7 | F100: =C100*100000/E100 -> 187.1043824
B101: 2009 | C101: 402.9106476 | D101: 38.82328833 | E101: 256124.1127 | F101: 157.3107051
B102: 2010 | C102: 407.3370737 | D102: 38.32623928 | E102: 256584.957 | F102: 158.753295
B103: 2011 | C103: 438.6781192 | D103: 36.37914221 | E103: 251357.6 | F103: 174.5235152
B104: 2012 | C104: 426.603396 | D104: 34.54972969 | E104: 256156.4 | F104: 166.5402059
B105: 2013 | C105: 451.4125451 | D105: 35.11537622 | E105: 267698.5 | F105: 168.6272224
B106: 2014 | C106: 694.1190989 | E106: 276583.8 | F106: 250.9615888
B107: 2015 | C107: 666.2932266 | E107: 285855 | F107: 233.0878335
B108: 2016 | C108: 624.0119951 | E108: 291103 | F108: 214.3612382
B109: 2017 | C109: 707.5489898 | E109: 295842 | F109: 239.164483
B110: 2018 | C110: 848.5231019 | D110: 30.27194634
B111: 2019 | C111: 890.9475474 | D111: 29.83594363
B112: 2020 | C112: 946.3901241 | D112: 30.68080239
B113: 2021 | C113: 1026.091252 | D113: 30.8
B114: 2022
A115: 중국 China | B115: 2008 | C115: 664.3043582 | D115: 23.58937516 | E115: 1592420 | F115: 41.71665504
B116: 2009 | C116: 849.3271088 | D116: 23.40996205 | E116: 1152311 | F116: 73.70641335
B117: 2010 | C117: 1043.175242 | D117: 24.0181169 | E117: 1210840.8 | F117: 86.15296426
B118: 2011 | C118: 1344.434223 | D118: 21.67564849 | E118: 1318086 | F118: 101.998976
B119: 2012 | C119: 1631.47429 | D119: 21.57027362 | E119: 1404017 | F119: 116.2004655
B120: 2013 | C120: 1912.049817 | D120: 21.10789351 | E120: 1484039.7 | F120: 128.8408805
B121: 2014 | C121: 2118.624483 | D121: 20.25319062 | E121: 1524280.3 | F121: 138.9917906
B122: 2015 | C122: 2275.376899 | D122: 21.26478742 | E122: 1619027.7 | F122: 140.539714
B123: 2016 | C123: 2359.364936 | D123: 20.03481537 | E123: 1692175.8 | F123: 139.4278854
B124: 2017 | C124: 4357.896306 | D124: 19.8081416 | E124: 1740442.2 | F124: 250.390177
B125: 2018 | C125: 4806.423269 | D125: 20.21879927 | E125: 1866108.8 | F125: 257.5639357
B126: 2019 | C126: 5454.607854 | D126: 20.49041169 | E126: 2109459.8 | F126: 258.5784216
B127: 2020 | C127: 6076.014738 | D127: 19.78245119 | E127: 2281134 | F127: =C127*100000/E127 -> 266.3593957
B128: 2021 | C128: 7011.146371 | D128: 19 | E128: 2405509.4 | F128: 291.4620234
B129: 2022 | C129: 8118.615981 | E129: 2637193.1 | F129: 307.8506455
A131: 주 : 1. 상근상당 연구원 기준임
A132: 2. 공란은 데이터 없음
A133: 자료 : OECD, Main Science and Technology Indicators 2024-July, 2024

Sheet 1-4
A1: 1-4) 주요국의 연구원 및 인구 만명당 연구원
A2: Researchers and researchers per 10,000 population in major countries
O4: (단위 : 명 Unit : person)
A5: 연도별 Year | B5: 한국 Korea | D5: 미국 United States | F5: 일본 Japan | H5: 독일 Germany | J5: 프랑스 France | L5: 영국 United Kingdom | N5: 중국 China
C6: 인구만명당 per 10,000 population | E6: 인구만명당 per 10,000 population | G6: 인구만명당 per 10,000 population | I6: 인구만명당 per 10,000 population | K6: 인구만명당 per 10,000 population | M6: 인구만명당 per 10,000 population | O6: 인구만명당 per 10,000 population
A7: 1991 | B7: 76,252(73,275) | C7: 17.6(16.9) | D7: 746013 | E7: 29.42503846 | F7: 491102 | G7: 39.57276734 | H7: 241869 | I7: 30.24383229 | J7: 129780 | K7: 22.16642755 | L7: 128000 | M7: 22.28451052 | N7: 471400 | O7: 4.070003367
A8: 1992 | B8: 88,764(85,268) | C8: 20.3(19.5) | D8: 765328 | E8: 29.78834043 | F8: 511407 | G8: 41.05477374 | J8: 141710 | K8: 24.08395649 | L8: 129000 | M8: 22.4016671 | N8: 471900 | O8: 4.027447065
A9: 1993 | B9: 98,764(93,680) | C9: 22.3(21.2) | D9: 781100 | E9: 30.00975865 | F9: 526501 | G9: 42.14098193 | H9: 230107 | I9: 28.42722309 | J9: 145898 | K9: 24.68872155 | L9: 131000 | M9: 22.69813217 | N9: 489200 | O9: 4.127677886
A10: 1994 | B10: 117,446(89,018) | C10: 26.3(19.9) | D10: 774215 | E10: 29.38699209 | F10: 541015 | G10: 43.24107228 | J10: 149193 | K10: 25.15265953 | L10: 134000 | M10: 23.15854965 | N10: 552000 | O10: 4.605757196
A11: 1995 | B11: 128,315(100,456) | C11: 28.5(22.3) | D11: 796403 | E11: 29.87392531 | F11: 551990 | G11: 44.00570809 | H11: 231128 | I11: 28.42623112 | J11: 151248.85 | K11: 25.40716445 | L11: 145673 | M11: 25.10521327 | N11: 522000 | O11: 4.309739847
A12: 1996 | B12: 132,023(99,433) | C12: 29.0(21.8) | D12: 842662 | E12: 31.24279793 | F12: 617365 | G12: 49.1098631 | H12: 230189 | I12: 28.25583679 | J12: 154827 | K12: 25.91593854 | L12: 144735 | M12: 24.88394883 | N12: 548000 | O12: 4.477526575
A13: 1997 | B13: 138,438(102,660) | C13: 30.1(22.3) | D13: 881103 | E13: 32.27980129 | F13: 625442 | G13: 49.63392085 | H13: 235793 | I13: 28.92810698 | J13: 154742.4 | K13: 25.80975732 | L13: 145641.2 | M13: 24.9753404 | N13: 588700 | O13: 4.761943281
A14: 1998 | B14: 129,767(92,541) | C14: 28.0(20.0) | D14: 937717 | E14: 33.95630699 | F14: 652845 | G14: 51.6699776 | H14: 237712 | I14: 29.18645483 | J14: 155727.04 | K14: 25.87859612 | L14: 157662 | M14: 26.96229158 | N14: 485500 | O14: 3.891440434
A15: 1999 | B15: 134,568(100,210) | C15: 28.9(21.5) | D15: 965180 | E15: 34.55364303 | F15: 658910 | G15: 52.05194846 | H15: 254691 | I15: 31.28036649 | J15: 160424 | K15: 26.52206259 | L15: 167573.03 | M15: 28.55514791 | N15: 531100 | O15: 4.222250489
A16: 2000 | B16: 108370 | C16: 23.1 | D16: 976950 | E16: 34.59479175 | F16: 647572 | G16: 51.0578644 | H16: 257874 | I16: 31.65768442 | J16: 172070 | K16: 28.25312382 | L16: 170554.39 | M16: 28.96348708 | N16: 695062 | O16: 5.484026731
A17: 2001 | B17: 136337 | C17: 28.8 | D17: 998340.0364 | E17: 35.00184193 | F17: 653021 | G17: 51.36558852 | H17: 264385 | I17: 32.43311211 | J17: 177372 | K17: 28.91243398 | L17: 182143.84 | M17: 30.8128229 | N17: 742726 | O17: 5.819505277
A18: 2002 | B18: 141917 | C18: 29.8 | D18: 1021890.049 | E18: 35.48783834 | F18: 623035 | G18: 48.90384615 | H18: 265812 | I18: 32.58378484 | J18: 186420 | K18: 30.1670011 | L18: 198162.98 | M18: 33.37987737 | N18: 810525 | O18: 6.309895448
A19: 2003 | B19: 151254 | C19: 31.6 | D19: 1090192.275 | E19: 37.51186318 | F19: 652369 | G19: 51.11247787 | H19: 268942 | I19: 32.97919043 | J19: 192789.9118 | K19: 30.97773147 | L19: 216689.87 | M19: 36.3348039 | N19: 862108 | O19: 6.671268388
A20: 2004 | B20: 156219.6913 | C20: 32.5 | D20: 1059615.654 | E20: 36.13204759 | F20: 653747 | G20: 51.18034353 | H20: 270215 | I20: 33.17312414 | J20: 202377.2 | K20: 32.27963952 | L20: 228969.09 | M20: 38.19334279 | N20: 926252 | O20: 7.125673139
A21: 2005 | B21: 179812.4276 | C21: 37.3 | D21: 1047578.733 | E21: 35.39201039 | F21: 680631 | G21: 53.27627099 | H21: 272148 | I21: 33.45931126 | J21: 202506.79 | K21: 32.05844573 | L21: 248599.3 | M21: 41.14996772 | N21: 1118698 | O21: 8.555615039
A22: 2006 | B22: 199990.0211 | C22: 41.3 | D22: 1068870.208 | E22: 35.7699405 | F22: 684884 | G22: 53.57436756 | H22: 279822 | I22: 34.4722999 | J22: 210591.0899 | K22: 33.10660115 | L22: 254009 | M22: 41.75925165 | N22: 1223756.4 | O22: 9.309813767
A23: 2007 | B23: 221928.2309 | C23: 45.6 | D23: 1063921.323 | E23: 35.2646811 | F23: 684311 | G23: 53.47015159 | H23: 290853 | I23: 35.91132458 | J23: 221851.0428 | K23: 34.66260063 | L23: 252650.8 | M23: 41.20269411 | N23: 1423381 | O23: 10.77266157
A24: 2008 | B24: 236136.871 | C24: 48.1 | D24: 1113127.051 | E24: 36.55073507 | F24: 656676 | G24: 51.28478269 | H24: 302641 | I24: 37.47226487 | J24: 227678.5299 | K24: 35.37523188 | L24: 251931.7 | M24: 40.74982208 | N24: 1592420 | O24: 11.99093387
A25: 2009 | B25: 244076.773 | C25: 49.5 | D25: 1161844.352 | E25: 37.81553027 | F25: 655530 | G25: 51.19968133 | H25: 317307 | I25: 39.42534448 | J25: 234366.0471 | K25: 36.22797983 | L25: 256124.1127 | M25: 41.13716656 | N25: 1152311 | O25: 8.63477707
A26: 2010 | B26: 264117.936 | C26: 53.3 | D26: 1098847.885 | E26: 35.46512495 | F26: 656032 | G26: 51.23528815 | H26: 327996 | I26: 40.85446664 | J26: 243533.2276 | K26: 37.46031096 | L26: 256584.957 | M26: 40.88351769 | N26: 1210840.8 | O26: 9.029993064
A27: 2011 | B27: 288900.9624 | C27: 57.9 | D27: 1143827.205 | E27: 36.62649754 | F27: 656651 | G27: 51.36868209 | H27: 338689 | I27: 42.19109312 | J27: 249246.6 | K27: 38.15193632 | L27: 251357.6 | M27: 39.71835348 | N27: 1318086 | O27: 9.769678911
A28: 2012 | B28: 315589.1929 | C28: 62.9 | D28: 1149642.451 | E28: 36.52847569 | F28: 646347 | G28: 50.67321563 | H28: 352419 | I28: 43.81903862 | J28: 258913 | K28: 39.43778465 | L28: 256156.4 | M28: 40.20977945 | N28: 1404017 | O28: 10.32957873
A29: 2013 | B29: 321841.8477 | C29: 63.8 | D29: 1187097.456 | E29: 37.43617785 | F29: 660489 | G29: 51.87099966 | H29: 354463 | I29: 43.95295489 | J29: 265465.8112 | K29: 40.22757818 | L29: 267698.5 | M29: 41.75872773 | N29: 1484039.7 | O29: 10.8541148
A30: 2014 | B30: 345463.4268 | C30: 68.1 | D30: 1229812.121 | E30: 38.47960804 | F30: 682935 | G30: 53.66370165 | H30: 351923 | I30: 43.45640443 | J30: 271772.2718 | K30: 40.98387498 | L30: 276583.8 | M30: 42.81681812 | N30: 1524280.3 | O30: 11.07391642
A31: 2015 | B31: 356447.29 | C31: 69.9 | D31: 1252428.579 | E31: 38.88165268 | F31: 662071 | G31: 52.08646055 | H31: 387982 | I31: 47.49617442 | J31: 279470 | K31: 41.97443715 | L31: 285855 | M31: 43.90339426 | N31: 1619027.7 | O31: 11.70443517
A32: 2016 | B32: 361291.5335 | C32: 70.5 | D32: 1247962.261 | E32: 38.4450912 | F32: 665566 | G32: 52.43443391 | H32: 399605 | I32: 48.52578659 | J32: 285487.9646 | K32: 42.71789508 | L32: 291103 | M32: 44.34301121 | N32: 1692175.8 | O32: 12.1536414
A33: 2017 | B33: 383100.2805 | C33: 74.6 | D33: 1300314.024 | E33: 39.78198691 | F33: 676292 | G33: 53.37489937 | H33: 419617 | I33: 50.76605732 | J33: 296324.277 | K33: 44.15040556 | L33: 295842 | M33: 44.79739552 | N33: 1740442.2 | O33: 12.4307533
A34: 2018 | B34: 408370.4603 | C34: 79.2 | D34: 1410375.834 | E34: 42.89542492 | F34: 678134 | G34: 53.63159685 | H34: 433685.036 | I34: 52.31045232 | J34: 305438.6168 | K34: 45.28438032 | N34: 1866108.8 | O34: 13.27803844
A35: 2019 | B35: 430690.0064 | C35: 83.2 | D35: 1435216.614 | E35: 43.42390811 | F35: 681821 | G35: 54.04119464 | H35: 450697.27 | I35: 54.24010085 | J35: 313373.7036 | K35: 46.25032522 | N35: 2109459.8 | O35: 14.95985902
A36: 2020 | B36: 446738.854 | C36: 86.2 | D36: 1513964 | E36: 45.62881254 | F36: 689889 | G36: 54.88010348 | H36: 450796.4441 | I36: 54.20767476 | J36: 321398 | K36: 47.26302168 | N36: 2281134 | O36: 16.15396708
A37: 2021 | B37: 470728.1152 | C37: 91 | D37: 1639258 | E37: 49.32072077 | F37: 704502 | G37: 56.13472295 | H37: 461645 | I37: 55.48884562 | J37: 333800 | K37: 48.91845946 | N37: 2405509.4 | O37: 17.02894945
A38: 2022 | B38: 488773.7625 | C38: 94.56049885 | F38: 705551 | G38: 56.46802244 | H38: 484823 | I38: 57.85615408 | J38: 345617 | K38: 50.48156695 | N38: 2637193.1 | O38: 18.68031238
A39: 2023 | B39: 490255.9256 | C39: =9.48472451702454*10 -> 94.84724517
A41: 주 : 상근상당 연구원 기준임
A42: 자료 : OECD, Main Science and Technology Indicators 2024-July, 2024

Sheet 1-5
A1: 1-5) 주요국의 연구개발단계별 연구개발비 비율
A2: Percentage of R&D expenditure by type of R&D in major countries
V3: (단위 : % Unit : %)
A4: 연도 Year | B4: 한국 Korea | E4: 미국 United States | I4: 일본 Japan | M4: 프랑스 France | Q4: 영국 United Kingdom | T4: 중국 China
B5: 기초 Basic research | C5: 응용 Applied research | D5: 개발 Exper-imental develop-ment | E5: 기초 Basic research | F5: 응용 Applied research | G5: 개발 Exper-imental develop-ment | H5: 기타 Others | I5: 기초 Basic research | J5: 응용 Applied research | K5: 개발 Exper-imental develop-ment | L5: 기타 Others | M5: 기초 Basic research | N5: 응용 Applied research | O5: 개발 Exper-imental develop-ment | P5: 기타 Others | Q5: 기초 Basic research | R5: 응용 Applied research | S5: 개발 Exper-imental develop-ment | T5: 기초 Basic research | U5: 응용 Applied research | V5: 개발 Exper-imental develop-ment
A6: 1991 | B6: 14.83695809 | C6: 30.7327267 | D6: 54.43031521 | E6: 16.81630326 | F6: 23.93627897 | G6: 58.92831694 | H6: 0.3197204305 | I6: 12.30735183 | J6: 22.72143549 | K6: 57.3178683 | L6: 7.653335365 | M6: 20.29010595 | N6: 30.90274441 | O6: 48.80696462 | T6: 4.659475731 | U6: 24.36347673 | V6: 70.97077637
A7: 1992 | B7: 12.60038272 | C7: 26.32427018 | D7: 61.0753471 | E7: 16.64515973 | F7: 22.87533617 | G7: 60.18584402 | H7: 0.294263076 | I7: 12.81914491 | J7: 22.39961613 | K7: 56.76583575 | L7: 8.015410944 | M7: 20.8157066 | N7: 31.6811794 | O7: 47.50293197 | T7: 4.504368025 | U7: 25.35979397 | V7: 70.13078826
A8: 1993 | B8: 13.1535387 | C8: 24.33231166 | D8: 62.51414964 | E8: 17.29911588 | F8: 22.43895687 | G8: 60.00794448 | H8: 0.2539827749 | I8: 13.50429031 | J8: 21.94992712 | K8: 55.92304457 | L8: 8.622736365 | M8: 21.69242802 | N8: 29.26070916 | O8: 49.04686282 | T8: 4.79012943 | U8: 25.76912221 | V8: 69.44074836
A9: 1994 | B9: 14.3378267 | C9: 23.82374303 | D9: 61.83843027 | E9: 17.48073647 | F9: 21.58812883 | G9: 60.68706115 | H9: 0.2440735522 | I9: 13.66992455 | J9: 22.45345857 | K9: 55.26836843 | L9: 8.608247518 | M9: 22.21601248 | N9: 29.06176102 | O9: 48.72154276 | T9: 5.518187161 | U9: 27.29706785 | V9: 67.18147979
A10: 1995 | B10: 12.46550234 | C10: 25.02074233 | D10: 62.51375534 | E10: 16.08487337 | F10: 22.2374325 | G10: 61.42726769 | H10: 0.2504264311 | I10: 14.16785524 | J10: 22.47738732 | K10: 54.98863952 | L10: 8.366118249 | M10: 22.19924342 | N10: 29.55548111 | O10: 48.24497879 | T10: 5.179385701 | U10: 26.39020333 | V10: 68.42754309
A11: 1996 | B11: 13.22865427 | C11: 26.90987762 | D11: 60 | E11: 16.58173325 | F11: 21.82485516 | G11: 61.36287803 | H11: 0.2305335639 | I11: 12.15962531 | J11: 22.33292899 | K11: 59.47454309 | L11: 6.032903156 | M11: 21.97757018 | N11: 28.49913461 | O11: 49.5234928 | T11: 5.003955696 | U11: 24.50553797 | V11: 70.49050633
A12: 1997 | B12: 13.2653508 | C12: 28.48034337 | D12: 58 | E12: 17.28037726 | F12: 21.89214883 | G12: 60.55262192 | H12: 0.2748519847 | I12: 11.96692204 | J12: 22.53558328 | K12: 59.77014393 | L12: 5.727350692 | M12: 22.01727474 | N12: 29.63978354 | O12: 48.34213108 | T12: 5.389268599 | U12: 26.01539791 | V12: 68.59533349
A13: 1998 | B13: 13.98448034 | C13: 25.12617534 | D13: 61 | E13: 15.40134467 | F13: 20.44274114 | G13: 63.9486003 | H13: 0.2068718588 | I13: 12.03286069 | J13: 22.62536115 | K13: 59.42872513 | L13: 5.913072199 | M13: 25.07992794 | N13: 26.75547765 | O13: 48.16534656 | T13: 5.252939469 | U13: 22.61394978 | V13: 72.13311076
A14: 1999 | B14: 13.63454835 | C14: 25.71095939 | D14: 60.65449226 | E14: 15.62658176 | F14: 21.16621765 | G14: 62.9908564 | H14: 0.2159359948 | I14: 12.25065328 | J14: 21.5816363 | K14: 60.19038576 | L14: 5.977319223 | M14: 24.41526207 | N14: 27.52011377 | O14: 48.06483074 | T14: 4.993371631 | U14: 22.32287524 | V14: 72.6852261
A15: 2000 | B15: 12.60885897 | C15: 24.33540519 | D15: 63.05573585 | E15: 15.65136767 | F15: 21.03940303 | G15: 63.08283499 | H15: 0.2267666575 | I15: 12.37861145 | J15: 21.96140991 | K15: 59.77218526 | L15: 5.887794707 | M15: 23.60054081 | N15: 32.6075513 | O15: 43.79194666 | T15: 5.217575768 | U15: 16.96013577 | V15: 77.82228847
A16: 2001 | B16: 12.56954763 | C16: 25.29987061 | D16: 62.13058176 | E16: 16.61393029 | F16: 23.00608111 | G16: 60.19293273 | H16: 0.1870558767 | I16: 12.17355507 | J16: 21.23419383 | K16: 59.90281575 | L16: 6.689435014 | M16: 23.31010963 | N16: 33.47462567 | O16: 43.21526775 | T16: 5.333435653 | U16: 17.73175505 | V16: 76.9348093
A17: 2002 | B17: 13.69826075 | C17: 21.72343024 | D17: 64.57830901 | E17: 18.10253795 | F17: 18.15282277 | G17: 63.56397308 | H17: 0.1806662021 | I17: 12.6456895 | J17: 20.99955132 | K17: 60.97393877 | L17: 5.380820106 | M17: 23.41269238 | N17: 35.68557651 | O17: 40.90189041 | T17: 5.731593663 | U17: 19.15967692 | V17: 75.10872942
A18: 2003 | B18: 14.46676253 | C18: 20.84042308 | D18: 64.69281439 | E18: 18.76491065 | F18: 20.87336603 | G18: 60.0906362 | H18: 0.271087121 | I18: 12.61251769 | J18: 21.21903024 | K18: 60.92048392 | L18: 5.247968017 | M18: 24.08119449 | N18: 36.20999046 | O18: 39.70882084 | T18: 5.693575729 | U18: 20.22888616 | V18: 74.07753811
A19: 2004 | B19: 15.32273018 | C19: 21.23997273 | D19: 63.4372971 | E19: 18.55652798 | F19: 22.81657412 | G19: 58.2674781 | H19: 0.3597489328 | I19: 11.975472 | J19: 21.16679601 | K19: 61.55125244 | L19: 5.306479137 | M19: 23.76128879 | N19: 37.13216921 | O19: 39.106542 | T19: 5.95932524 | U19: 20.36687636 | V19: 73.6737984
A20: 2005 | B20: 15.34579047 | C20: 20.8406665 | D20: 63.81354303 | E20: 18.36091604 | F20: 21.38607306 | G20: 59.96395192 | H20: 0.2890589797 | I20: 11.99989326 | J20: 21.02896557 | K20: 61.79819733 | L20: 5.172962189 | M20: 23.94741982 | N20: 38.58579377 | O20: 37.46678641 | T20: 5.355569006 | U20: 17.69533714 | V20: 76.94908977
A21: 2006 | B21: 15.15145805 | C21: 19.85722715 | D21: 64.9913148 | E21: 17.50282226 | F21: 21.75312581 | G21: 60.52765527 | H21: 0.2163966685 | I21: 11.64191833 | J21: 20.45527559 | K21: 62.93141998 | L21: 4.971392226 | M21: 23.8940851 | N21: 39.04736889 | O21: 37.05854073 | T21: 5.186506488 | U21: 16.8001389 | V21: 78.01335129
A22: 2007 | B22: 15.71396864 | C22: 19.8420471 | D22: 64.44398426 | E22: 17.56506853 | F22: 22.10216525 | G22: 60.16527354 | H22: 0.1674926821 | I22: 11.55074597 | J22: 21.51736184 | K22: 61.9760503 | L22: 4.955830413 | M22: 24.89796094 | N22: 38.53324138 | O22: 36.56879768 | Q22: 15.73799117 | R22: 43.95316095 | S22: 40.30869986 | T22: 4.703682401 | U22: 13.28603363 | V22: 82.01028397
A23: 2008 | B23: 16.05044347 | C23: 19.63551202 | D23: 64.31404451 | E23: 17.38212405 | F23: 18.43317177 | G23: 64.0295507 | H23: 0.1549068216 | I23: 11.38526166 | J23: 21.68097629 | K23: 62.60221162 | L23: 4.331549994 | M23: 25.34532006 | N23: 39.33423014 | O23: 35.3204498 | Q23: 15.84792544 | R23: 44.05291154 | S23: 40.09912012 | T23: 4.783775068 | U23: 12.46008414 | V23: 82.7561408
A24: 2009 | B24: 18.05791386 | C24: 19.96990754 | D24: 61.9721786 | E24: 18.40148837 | F24: 17.96977246 | G24: 63.31478646 | H24: 0.3139527116 | I24: 12.46041747 | J24: 22.34014931 | K24: 60.48599371 | L24: 4.713439418 | M24: 26.08394222 | N24: 39.62377702 | O24: 34.29228076 | Q24: 16.81513788 | R24: 45.62705888 | S24: 37.55780324 | T24: 4.658407873 | U24: 12.59528005 | V24: 82.74631208
A25: 2010 | B25: 18.22152555 | C25: 19.93546337 | D25: 61.84301108 | E25: 18.69981591 | F25: 19.34339626 | G25: 61.49264619 | H25: 0.4641416317 | I25: 12.12996274 | J25: 21.24875243 | K25: 61.94157302 | L25: 4.67972444 | M25: 25.10799462 | N25: 38.19284585 | O25: 32.78510681 | P25: 3.914052717 | Q25: 17.81314013 | R25: 46.2301798 | S25: 35.95743874 | T25: 4.594526899 | U25: 12.65528149 | V25: 82.75019161
A26: 2011 | B26: 18.06601663 | C26: 20.27751826 | D26: 61.65646511 | E26: 17.22021137 | F26: 19.17256266 | G26: 63.39393996 | H26: 0.2132860093 | I26: 12.25997404 | J26: 21.03070426 | K26: 62.11749152 | L26: 4.591842701 | M26: 24.33505114 | N26: 37.04678588 | O26: 34.78410855 | P26: 3.834056645 | Q26: 16.37380979 | R26: 46.89751896 | S26: 36.72867124 | T26: 4.740576253 | U26: 11.83825025 | V26: 83.4211735
A27: 2012 | B27: 18.31071297 | C27: 19.06696209 | D27: 62.62232494 | E27: 16.99720561 | F27: 19.98471603 | G27: 62.85096745 | H27: 0.1671109147 | I27: 12.45888218 | J27: 20.75279974 | K27: 62.07716767 | L27: 4.711150671 | M27: 24.11857596 | N27: 37.29068786 | O27: 35.22925237 | P27: 3.361483814 | Q27: 16.7744205 | R27: 45.72280234 | S27: 37.50277716 | T27: 4.843530685 | U27: 11.28302537 | V27: 83.87344395
A28: 2013 | B28: 17.98582541 | C28: 19.08212842 | D28: 62.93204618 | E28: 17.38785572 | F28: 19.36993549 | G28: 63.05391011 | H28: 0.1882986764 | I28: 12.6253436 | J28: 20.87017126 | K28: 61.8336172 | L28: 4.670873827 | M28: 24.31556489 | N28: 37.77233038 | O28: 34.49886565 | P28: 3.413217967 | Q28: 16.81725778 | R28: 45.63966878 | S28: 37.54307344 | T28: 4.684477707 | U28: 10.712908 | V28: 84.60261429
A29: 2014 | B29: 17.63984403 | C29: 18.92000189 | D29: 63.44015408 | E29: 17.35188248 | F29: 19.23908235 | G29: 63.1920554 | H29: 0.2167701251 | I29: 12.25687262 | J29: 19.9316521 | K29: 63.42653243 | L29: 4.384943137 | M29: 23.90036884 | N29: 38.6069942 | O29: 34.33486228 | P29: 3.157774687 | T29: 4.713892951 | U29: 10.74499117 | V29: 84.54111588
A30: 2015 | B30: 17.2252361 | C30: 20.8385165 | D30: 61.9362474 | E30: 16.72207978 | F30: 19.49661116 | G30: 63.50322526 | H30: 0.2778867208 | I30: 11.91170478 | J30: 19.85688052 | K30: 63.68561522 | L30: 4.545799486 | M30: 23.76736913 | N30: 37.90250753 | O30: 35.24766584 | P30: 3.082457499 | T30: 5.053837626 | U30: 10.78788023 | V30: 84.15828186
A31: 2016 | B31: 15.97373093 | C31: 22.5074713 | D31: 61.51879777 | E31: 16.47249585 | F31: 20.86060004 | G31: 62.48732344 | H31: 0.179580666 | I31: 12.57150021 | J31: 18.85373779 | K31: 64.03967495 | L31: 4.535087142 | M31: 22.302959 | N31: 42.23449179 | O31: 35.46254719 | T31: 5.249123788 | U31: 10.27314394 | V31: 84.47773227
A32: 2017 | B32: 14.45769859 | C32: 21.97751017 | D32: 63.56479124 | E32: 15.99034799 | F32: 20.34948779 | G32: 63.46447228 | H32: 0.1958687255 | I32: 13.11389183 | J32: 18.66985069 | K32: 63.89120152 | L32: 4.325055211 | M32: 22.78844797 | N32: 41.96074491 | O32: 35.46012501 | T32: 5.540623455 | U32: 10.50321396 | V32: 83.95616259
A33: 2018 | B33: 14.20815263 | C33: 21.95846956 | D33: 63.83337781 | E33: 15.92791061 | F33: 19.4752664 | G33: 64.37095715 | H33: 0.225865846 | I33: 12.57412391 | J33: 18.99025256 | K33: 64.27486468 | L33: 4.160764686 | M33: 22.63575966 | N33: 41.20609742 | O33: 36.01107798 | T33: 5.541085749 | U33: 11.13365522 | V33: 83.32525903
A34: 2019 | B34: 14.66898367 | C34: 22.50511059 | D34: 62.82590574 | E34: 15.57898805 | F34: 19.46993646 | G34: 64.73245304 | H34: 0.2187699611 | I34: 12.49648703 | J34: 18.56512214 | K34: 64.79438432 | L34: 4.144006527 | M34: 22.67172096 | N34: 41.36512427 | O34: 35.96315477 | T34: 6.031415414 | U34: 11.28300394 | V34: 82.6855806
A35: 2020 | B35: 14.44918335 | C35: 21.57329415 | D35: 63.9775225 | E35: 15.4042904 | F35: 18.42785923 | G35: 65.91426604 | H35: 0.2537212681 | I35: 12.28701597 | J35: 18.56152448 | K35: 64.90532984 | L35: 4.246129709 | M35: 22.69704158 | N35: 40.88751335 | O35: 36.41544317 | T35: 6.013977922 | U35: 11.30334966 | V35: 82.6826725
A36: 2021 | B36: 14.78448644 | C36: 21.02150292 | D36: 64.19401064 | E36: 14.76179665 | F36: 18.07142068 | G36: 67.03068065 | H36: 0.1361020232 | I36: 12.66946747 | J36: 18.76099847 | K36: 64.4700668 | L36: 4.099461746 | M36: 22.99292676 | N36: 41.78214006 | O36: 35.22493318
A37: 2022 | B37: 15.01906331 | C37: 19.93499291 | D37: 65.04594379 | E37: 14.30685096 | F37: 17.72231146 | G37: 67.80760861 | H37: =100-E37-F37-G37 -> 0.1632289657 | I37: 11.95426362 | J37: 18.37156163 | K37: 65.62341176 | L37: =100-I37-J37-K37 -> 4.050762987
A38: 2023 | B38: 14.89864478 | C38: 19.71479328 | D38: 65.38656194
A40: 주 : 1. 공란은 데이터 없음
A41: 2. 프랑스는 2010년(조사대상년도)부터 '기타' 추가됨
A42: 3. 사사오입으로 인해 합계(100.0%) 수치 마지막 단위에서 차이 발생할 수도 있음
A43: 자료 : OECD, Research & Development Statistics 2024, 2024

Sheet 1-6
A1: 1-6) 주요국의 연구수행주체별 연구개발비 비율
A2: Percentage of R&D expenditure by sector of performance in major countries
F4: (단위 : % Unit : %)
A5: 국가 · 연도 Country · Year | C5: 공공연구기관 Public research institutes | E5: 대학 Higher educations | F5: 기업체 Business enterprises
C6: 국립·공립·출연(연) Government | D6: 비영리법인 Private non-profit
A7: 한국 Korea | B7: 1995 | C7: 16.95810629 | D7: 1.148485595 | E7: 8.165916468 | F7: 73.72749165
B8: 1996 | C8: 16.21583832 | D8: 1.21023529 | E8: 9.365842224 | F8: 73.20808417
B9: 1997 | C9: 15.77635359 | D9: 1.201602815 | E9: 10.43508239 | F9: 72.58696121
B10: 1998 | C10: 17.45863868 | D10: 1.060730904 | E10: 11.15918444 | F10: 70.32144598
B11: 1999 | C11: 14.45170978 | D11: 2.149658876 | E11: 12.00680068 | F11: 71.39183066
B12: 2000 | C12: 13.31462517 | D12: 1.358313077 | E12: 11.27821704 | F12: 74.04884471
B13: 2001 | C13: 12.36004099 | D13: 1.048370813 | E13: 10.4079626 | F13: 76.18362559
B14: 2002 | C14: 13.40725045 | D14: 1.326481533 | E14: 10.37279999 | F14: 74.89346803
B15: 2003 | C15: 12.59159456 | D15: 1.18153951 | E15: 10.13527365 | F15: 76.09159228
B16: 2004 | C16: 12.06139413 | D16: 1.160288557 | E16: 10.06185393 | F16: 76.71646338
B17: 2005 | C17: 11.8607284 | D17: 1.357372742 | E17: 9.928555312 | F17: 76.85334355
B18: 2006 | C18: 11.55986545 | D18: 1.22843244 | E18: 9.953570733 | F18: 77.25813138
B19: 2007 | C19: 11.6558146 | D19: 1.450208393 | E19: 10.65166731 | F19: 76.2423097
B20: 2008 | C20: 12.05731407 | D20: 1.431086235 | E20: 11.14482984 | F20: 75.36676985
B21: 2009 | C21: 13.01865539 | D21: 1.636243625 | E21: 11.0846966 | F21: 74.26040438
B22: 2010 | C22: 12.67379517 | D22: 1.705773542 | E22: 10.82083371 | F22: 74.79959757
B23: 2011 | C23: 11.72849965 | D23: 1.647437559 | E23: 10.0897459 | F23: 76.5343169
B24: 2012 | C24: 11.25369393 | D24: 1.280566076 | E24: 9.516532792 | F24: 77.9492072
B25: 2013 | C25: 10.91364587 | D25: 1.330189391 | E25: 9.24154266 | F25: 78.51462207
B26: 2014 | C26: 11.21289607 | D26: 1.516078725 | E26: 9.04846612 | F26: 78.22255909
B27: 2015 | C27: 11.74255052 | D27: 1.635501024 | E27: 9.094799301 | F27: 77.52714915
B28: 2016 | C28: 11.54450843 | D28: 1.585815206 | E28: 9.134557346 | F28: 77.73511902
B29: 2017 | C29: 10.69907722 | D29: 1.413266766 | E29: 8.481522957 | F29: 79.40613306
B30: 2018 | C30: 10.07387259 | D30: 1.40870641 | E30: 8.224099743 | F30: 80.29332125
B31: 2019 | C31: 9.992599744 | D31: 1.426939593 | E31: 8.278372787 | F31: 80.30208788
B32: 2020 | C32: 10.10799455 | D32: 1.838235735 | E32: 8.975178989 | F32: 79.07859072
B33: 2021 | C33: 9.770970243 | D33: 1.975224996 | E33: 9.135548675 | F33: 79.11826011
B34: 2022 | C34: 9.38490157 | D34: 2.083401921 | E34: 9.149123131 | F34: 79.38257338
B35: 2023 | C35: 9.606404912 | D35: 2.053318511 | E35: 9.149123131 | F35: 79.19178262
A36: 미국 United States | B36: 1991 | C36: 14.78273262 | D36: 2.88244078 | E36: 11.2806786 | F36: 71.054148
B37: 1992 | C37: 14.89405323 | D37: 3.010769546 | E37: 11.69092729 | F37: 70.40424993
B38: 1993 | C38: 15.01989131 | D38: 3.169969847 | E38: 12.33501652 | F38: 69.47512233
B39: 1994 | C39: 14.75289027 | D39: 3.300888451 | E39: 12.73839914 | F39: 69.20841169
B40: 1995 | C40: 14.02225047 | D40: 3.16536836 | E40: 12.28610541 | F40: 70.52681899
B41: 1996 | C41: 12.89370178 | D41: 3.138997583 | E41: 11.99077866 | F41: 71.97652198
B42: 1997 | C42: 12.14290421 | D42: 3.125970689 | E42: 11.59037642 | F42: 73.14121933
B43: 1998 | C43: 11.62549121 | D43: 3.201651439 | E43: 11.30855291 | F43: 73.86474647
B44: 1999 | C44: 11.16499306 | D44: 3.291289085 | E44: 11.21520124 | F44: 74.32851661
B45: 2000 | C45: 10.82671155 | D45: 3.576880972 | E45: 11.13949314 | F45: 74.45728669
B46: 2001 | C46: 11.93502496 | D46: 3.937848714 | E46: 11.73578537 | F46: 72.39169931
B47: 2002 | C47: 12.91062949 | D47: 4.280316363 | E47: 13.17606155 | F47: 69.63299259
B48: 2003 | C48: 12.98377242 | D48: 4.423306647 | E48: 13.88876529 | F48: 68.70415564
B49: 2004 | C49: 12.71163568 | D49: 4.477921428 | E49: 14.25035547 | F49: 68.55975828
B50: 2005 | C50: 12.37711928 | D50: 4.35397004 | E50: 13.94410709 | F50: 69.32480359
B51: 2006 | C51: 12.1034268 | D51: 4.000352604 | E51: 13.46976845 | F51: 70.42673651
B52: 2007 | C52: 11.91153005 | D52: 3.893808583 | E52: 13.05861716 | F52: 71.13604421
B53: 2008 | C53: 11.52230486 | D53: 3.93655727 | E53: 12.83999951 | F53: 71.70113837
B54: 2009 | C54: 12.18947999 | D54: 4.361443935 | E54: 13.58457797 | F54: 69.86449811
B55: 2010 | C55: 13.01506012 | D55: 4.472259214 | E55: 14.21898868 | F55: 68.29369198
B56: 2011 | C56: 12.87044104 | D56: 4.207891816 | E56: 14.06797994 | F56: 68.8536872
B57: 2012 | C57: 12.27735808 | D57: 4.133808426 | E57: 14.01683079 | F57: 69.57223289
B58: 2013 | C58: 11.50709251 | D58: 4.104559596 | E58: 13.52322863 | F58: 70.86533898
B59: 2014 | C59: 11.3429056 | D59: 4.154481209 | E59: 13.07140626 | F59: 71.43099729
B60: 2015 | C60: 10.77372729 | D60: 4.096759762 | E60: 12.73844553 | F60: 72.39087034
B61: 2016 | C61: 9.842820054 | D61: 4.279381028 | E61: 12.70786275 | F61: 73.16993617
B62: 2017 | C62: 9.568752928 | D62: 4.214536359 | E62: 12.57130735 | F62: 73.64540336
B63: 2018 | C63: 9.742972433 | D63: 4.062511123 | E63: 12.11488741 | F63: 74.07962904
B64: 2019 | C64: 9.559347437 | D64: 3.911305967 | E64: 11.52798205 | F64: 75.00136455
B65: 2020 | C65: 9.124791703 | D65: 3.848265645 | E65: 11.06925783 | F65: 75.95782175
B66: 2021 | C66: 8.291181408 | D66: 3.680337662 | E66: 10.4260105 | F66: 77.60247043
B67: 2022 | C67: 8.165997468 | D67: 2.976356171 | E67: 9.905409518 | F67: 78.95223684
A68: 일본 Japan | B68: 1991 | C68: 8.102017566 | D68: 4.437154071 | E68: 12.07294985 | F68: 75.38787851
B69: 1992 | C69: 8.923090579 | D69: 4.710573988 | E69: 12.82890264 | F69: 73.53744049
B70: 1993 | C70: 10.03891753 | D70: 4.853475567 | E70: 14.02550088 | F70: 71.08210603
B71: 1994 | C71: 9.712815845 | D71: 5.043203656 | E71: 14.12394326 | F71: 71.12004516
B72: 1995 | C72: 10.39813304 | D72: 4.78733207 | E72: 14.53359998 | F72: 70.28093492
B73: 1996 | C73: 9.385584997 | D73: 4.79864512 | E73: 14.75699358 | F73: 71.05876218
B74: 1997 | C74: 8.834482558 | D74: 4.846326525 | E74: 14.27420385 | F74: 72.04498707
B75: 1998 | C75: 9.248435795 | D75: 4.707353445 | E75: 14.84691055 | F75: 71.19730021
B76: 1999 | C76: 9.856745247 | D76: 4.587405023 | E76: 14.84207718 | F76: 70.71377255
B77: 2000 | C77: 9.890160511 | D77: 4.620030432 | E77: 14.52853205 | F77: 70.96128355
B78: 2001 | C78: 9.535102442 | D78: 2.326282833 | E78: 14.46465127 | F78: 73.67395059
B79: 2002 | C79: 9.537406425 | D79: 2.139110195 | E79: 13.88158181 | F79: 74.44188871
B80: 2003 | C80: 9.310090419 | D80: 2.052921805 | E80: 13.66002646 | F80: 74.97696131
B81: 2004 | C81: 9.488502727 | D81: 1.893181686 | E81: 13.42684855 | F81: 75.19146703
B82: 2005 | C82: 8.29023276 | D82: 1.85798499 | E82: 13.4041044 | F82: 76.44767785
B83: 2006 | C83: 8.281147757 | D83: 1.869215364 | E83: 12.69429021 | F83: 77.15534666
B84: 2007 | C84: 7.76839103 | D84: 1.747453486 | E84: 12.59359668 | F84: 77.8905588
B85: 2008 | C85: 8.329088312 | D85: 1.57234011 | E85: 11.6367808 | F85: 78.46179078
B86: 2009 | C86: 9.214585053 | D86: 1.612987655 | E86: 13.41032037 | F86: 75.76210692
B87: 2010 | C87: 9.024437901 | D87: 1.589012415 | E87: 12.87236456 | F87: 76.51418512
B88: 2011 | C88: 8.375466555 | D88: 1.450781803 | E88: 13.21085819 | F88: 76.96289346
B89: 2012 | C89: 8.620159722 | D89: 1.400715909 | E89: 13.35618543 | F89: 76.62293894
B90: 2013 | C90: 9.168409315 | D90: 1.275228538 | E90: 13.4658196 | F90: 76.09054255
B91: 2014 | C91: 8.325804058 | D91: 1.339353549 | E91: 12.5781188 | F91: 77.75672359
B92: 2015 | C92: 7.898760568 | D92: 1.332102015 | E92: 12.27806042 | F92: 78.49107699
B93: 2016 | C93: 7.548668844 | D93: 1.38103347 | E93: 12.31760825 | F93: 78.75268944
B94: 2017 | C94: 7.813759742 | D94: 1.378017379 | E94: 12.01258364 | F94: 78.79563924
B95: 2018 | C95: 7.752268066 | D95: 1.266180159 | E95: 11.5596818 | F95: 79.42186998
B96: 2019 | C96: 7.81121849 | D96: 1.342090908 | E96: 11.69242213 | F96: 79.15426847
B97: 2020 | C97: 8.277022579 | D97: 1.3679541 | E97: 11.70066724 | F97: 78.65435608
B98: 2021 | C98: 8.356093577 | D98: 1.211852164 | E98: 11.87214602 | F98: 78.55990824
B99: 2022 | C99: 12.10280176 | D99: 2.394202502 | E99: 18.1344333 | F99: 67.36856244
A100: 독일 Germany | B100: 1991 | C100: 14.41835149 | E100: 16.2363366 | F100: 69.34521608
B101: 1992 | C101: 14.21602922 | E101: 17.08394825 | F101: 68.70002252
B102: 1993 | C102: 15.20965661 | E102: 17.64829552 | F102: 67.14204787
B103: 1994 | C103: 15.24949243 | E103: 18.14677245 | F103: 66.60373512
B104: 1995 | C104: 15.48890321 | E104: 18.22145117 | F104: 66.28964779
B105: 1996 | C105: 15.30148136 | E105: 18.66223516 | F105: 66.03628159
B106: 1997 | C106: 14.61526201 | E106: 18.02147358 | F106: 67.36327438
B107: 1998 | C107: 14.66526081 | E107: 17.38451587 | F107: 67.95020997
B108: 1999 | C108: 13.71507878 | E108: 16.7483277 | F108: 69.53659779
B109: 2000 | C109: 13.52261811 | E109: 16.43341139 | F109: 70.0439705
B110: 2001 | C110: 13.68004141 | E110: 16.76652286 | F110: 69.55343573
B111: 2002 | C111: 13.69419926 | E111: 17.30623414 | F111: 68.9995666
B112: 2003 | C112: 13.35225899 | E112: 17.16022736 | F112: 69.48751364
B113: 2004 | C113: 13.63858544 | E113: 16.73282771 | F113: 69.62858686
B114: 2005 | C114: 14.0784832 | E114: 16.75221388 | F114: 69.16930292
B115: 2006 | C115: 13.83167063 | E115: 16.38657356 | F115: 69.78175581
B116: 2007 | C116: 13.88629137 | E116: 16.14079667 | F116: 69.97291196
B117: 2008 | C117: 14.03484672 | E117: 16.78034666 | F117: 69.18480662
B118: 2009 | C118: 14.80621379 | E118: 17.69785849 | F118: 67.49592762
B119: 2010 | C119: 14.78803954 | E119: 18.18413622 | F119: 67.02782424
B120: 2011 | C120: 14.52221079 | E120: 17.88770463 | F120: 67.59008458
B121: 2012 | C121: 14.33509394 | E121: 17.67117206 | F121: 67.99373402
B122: 2013 | C122: 14.87734633 | E122: 17.93778514 | F122: 67.18491243
B123: 2014 | C123: 14.62367113 | E123: 17.72209986 | F123: 67.65422901
B124: 2015 | C124: 14.06324757 | E124: 17.28305657 | F124: 68.65369587
B125: 2016 | C125: 13.80098756 | E125: 18.03846539 | F125: 68.16054704
B126: 2017 | C126: 13.54446934 | E126: 17.35979836 | F126: 69.09573229
B127: 2018 | C127: 13.536023 | E127: 17.57894992 | F127: 68.88502709
B128: 2019 | C128: 13.65339152 | E128: 17.42580191 | F128: 68.92080657
B129: 2020 | C129: 14.62621461 | E129: 18.72899262 | F129: 66.64479277
B130: 2021 | C130: 14.80874792 | E130: 18.25472517 | F130: 66.93652691
B131: 2022 | C131: 12.10280176 | D131: 2.394202502 | E131: 18.1344333 | F131: 67.36856244
A132: 프랑스 France | B132: 1991 | C132: 22.6514066 | D132: 0.7839732471 | E132: 15.08336077 | F132: 61.48119807
B133: 1992 | C133: 20.91306343 | D133: 1.327512729 | E133: 15.27687597 | F133: 62.48390166
B134: 1993 | C134: 21.12352565 | D134: 1.350441225 | E134: 15.82825335 | F134: 61.69783733
B135: 1994 | C135: 20.62906193 | D135: 1.34937316 | E135: 16.1805164 | F135: 61.83990932
B136: 1995 | C136: 20.9896665 | D136: 1.32350666 | E136: 16.70569605 | F136: 60.98108724
B137: 1996 | C137: 20.26858282 | D137: 1.347295551 | E137: 16.83955134 | F137: 61.54457029
B138: 1997 | C138: 18.66520932 | D138: 1.385761207 | E138: 17.41456395 | F138: 62.53446553
B139: 1998 | C139: 18.64070917 | D139: 1.490632272 | E139: 17.60765633 | F139: 62.2609484
B140: 1999 | C140: 18.14205529 | D140: 1.518377479 | E140: 17.16267342 | F140: 63.17689382
B141: 2000 | C141: 17.3208609 | D141: 1.419511785 | E141: 18.75180916 | F141: 62.50781815
B142: 2001 | C142: 16.51710064 | D142: 1.386216046 | E142: 18.90479537 | F142: 63.19188795
B143: 2002 | C143: 16.53338524 | D143: 1.355245318 | E143: 18.86084369 | F143: 63.25052575
B144: 2003 | C144: 16.6812523 | D144: 1.340576015 | E144: 19.36102159 | F144: 62.6171501
B145: 2004 | C145: 16.97857779 | D145: 1.284389451 | E145: 18.63324567 | F145: 63.10378709
B146: 2005 | C146: 17.76911581 | D146: 1.2875582 | E146: 18.8274209 | F146: 62.1159051
B147: 2006 | C147: 16.49850119 | D147: 1.217037132 | E147: 19.20326149 | F147: 63.08120019
B148: 2007 | C148: 16.35222507 | D148: 1.172549163 | E148: 19.49616144 | F148: 62.97906433
B149: 2008 | C149: 15.98470365 | D149: 1.248553474 | E149: 20.03599894 | F149: 62.73074394
B150: 2009 | C150: 16.30877686 | D150: 1.195961235 | E150: 20.80275781 | F150: 61.69250409
B151: 2010 | C151: 14.01649354 | D151: 1.245264659 | E151: 21.57903401 | F151: 63.15920779
B152: 2011 | C152: 13.85231717 | D152: 1.247087384 | E152: 20.94671662 | F152: 63.95396084
B153: 2012 | C153: 13.15525858 | D153: 1.437755379 | E153: 20.82843928 | F153: 64.57871874
B154: 2013 | C154: 13.05935871 | D154: 1.473986029 | E154: 20.87979722 | F154: 64.58687916
B155: 2014 | C155: 12.73744115 | D155: 1.510213408 | E155: 22.12130515 | F155: 63.6310353
B156: 2015 | C156: 12.96918137 | D156: 1.56844079 | E156: 20.78742672 | F156: 64.67495111
B157: 2016 | C157: 12.70955426 | D157: 1.64324639 | E157: 20.54142075 | F157: 65.1057786
B158: 2017 | C158: 12.41729009 | D158: 1.580406131 | E158: 20.63553263 | F158: 65.36677114
B159: 2018 | C159: 12.43773332 | D159: 1.57568893 | E159: 20.44909061 | F159: 65.53748714
B160: 2019 | C160: 12.32708209 | D160: 1.645772118 | E160: 20.10570899 | F160: 65.92143679
B161: 2020 | C161: 11.82559063 | D161: 1.981534501 | E161: 20.51872897 | F161: 65.6741459
B162: 2021 | C162: 11.72031307 | D162: 2.068835333 | E162: 20.48386263 | F162: 65.72698897
B163: 2022 | C163: 11.55392474 | D163: 2.020786515 | E163: 20.61982219 | F163: 65.80546481
A164: 영국 United Kingdom | B164: 1991 | C164: 14.4823607 | D164: 1.813386086 | E164: 16.65018134 | F164: 67.05407188
B165: 1992 | C165: 14.93126314 | D165: 1.812227074 | E165: 17.22060488 | F165: 66.0359049
B166: 1993 | C166: 14.62029539 | D166: 1.758256756 | E166: 17.52949383 | F166: 66.09195402
B167: 1994 | C167: 14.98808845 | D167: 1.229154792 | E167: 19.16809167 | F167: 64.61466509
B168: 1995 | C168: 14.56372252 | D168: 1.263405423 | E168: 19.21402359 | F168: 64.95884847
B169: 1996 | C169: 14.43708147 | D169: 1.236049107 | E169: 19.47614397 | F169: 64.85072545
B170: 1997 | C170: 13.7651297 | D170: 1.297026596 | E170: 19.74059468 | F170: 65.19656673
B171: 1998 | C171: 13.45013041 | D171: 1.313746838 | E171: 19.67055311 | F171: 65.56556964
B172: 1999 | C172: 12.23885623 | D172: 1.36433712 | E172: 19.63515196 | F172: 66.76165469
B173: 2000 | C173: 12.63235128 | D173: 1.819618467 | E173: 20.58817001 | F173: 64.96000202
B174: 2001 | C174: 10.02953079 | D174: 1.777315979 | E174: 22.68948923 | F174: 65.50366401
B175: 2002 | C175: 9.189298828 | D175: 1.943020002 | E175: 24.01834843 | F175: 64.84933274
B176: 2003 | C176: 10.39144441 | D176: 1.854950975 | E176: 24.04500932 | F176: 63.70859529
B177: 2004 | C177: 10.71507944 | D177: 2.006114154 | E177: 24.7154054 | F177: 62.56340101
B178: 2005 | C178: 10.55799494 | D178: 2.317214914 | E178: 25.73704408 | F178: 61.38774607
B179: 2006 | C179: 9.992199318 | D179: 2.23073641 | E179: 26.12323353 | F179: 61.65383074
B180: 2007 | C180: 9.160554993 | D180: 2.227885872 | E180: 26.08087215 | F180: 62.53068698
B181: 2008 | C181: 9.152995933 | D181: 2.355483522 | E181: 26.49736668 | F181: 61.99415347
B182: 2009 | C182: 9.163457523 | D182: 2.480706476 | E182: 27.94661223 | F182: 60.40922377
B183: 2010 | C183: 9.526803733 | D183: 2.478825582 | E183: 27.04529929 | F183: 60.94909339
B184: 2011 | C184: 8.578618466 | D184: 1.811926354 | E184: 26.02877314 | F184: 63.58068204
B185: 2012 | C185: 8.046360068 | D185: 1.906243057 | E185: 26.70332519 | F185: 63.34407169
B186: 2013 | C186: 7.899193423 | D186: 1.7942795 | E186: 26.41826349 | F186: 63.88826359
B187: 2014 | C187: 5.267911539 | D187: 1.31330348 | E187: 18.70035108 | F187: 74.7184339
B188: 2015 | C188: 4.795251937 | D188: 1.59903641 | E188: 17.5874515 | F188: 76.01826016
B189: 2016 | C189: 4.697916002 | D189: 1.562733615 | E189: 16.67588056 | F189: 77.06346983
B190: 2017 | C190: 4.553574433 | D190: 1.557179183 | E190: 16.81271673 | F190: 77.07652965
B191: 2018 | C191: 4.46237252 | D191: 1.340401438 | E191: 23.94859253 | F191: 70.24863352
B192: 2019 | C192: 4.461511232 | D192: 1.378963804 | E192: 23.45649712 | F192: 70.70302784
B193: 2020 | C193: 4.979848464 | D193: 1.451825831 | E193: 22.42670934 | F193: 71.14161637
B194: 2021 | C194: 5.085551058 | D194: 1.470345997 | E194: 22.5245715 | F194: 70.91953144
B195: 2022
A196: 중국 China | B196: 1991 | C196: 49.55474727 | E196: 8.60403863 | F196: 39.82189891
B197: 1992 | C197: 46.26066758 | E197: 9.670251982 | F197: 41.79669747
B198: 1993 | C198: 44.88931898 | E198: 11.20116124 | F198: 41.69589936
B199: 1994 | C199: 42.06883041 | E199: 12.63305688 | F199: 43.13002024
B200: 1995 | C200: 42.05454702 | E200: 12.11964782 | F200: 43.67489747
B201: 1996 | C201: 42.80310522 | E201: 11.81269778 | F201: 43.24812104
... 28 more rows

Sheet 1-7,8
A1: 1-7) 주요국의 기업 연구개발비 대비 하이테크산업 연구개발비 비율
A2: Percentage of R&D expenditure for high-technology industry to BERD in major countries
H4: (단위 : % Unit : %)
A5: 연도 국가 Year Country | B5: 2017 | C5: 2018 | D5: 2019 | E5: 2020 | F5: 2021 | G5: 2022 | H5: 2023
A6: 한국 Korea | B6: 54.08974352 | C6: 54.47621594 | D6: 53.86642287 | E6: 53.03352271 | F6: 52.80285691 | G6: 53.00314299 | H6: 54.51852606
A7: 미국 United States | B7: 42.09315909 | C7: 40.97023387 | D7: 38.64857184 | E7: 39.38442039 | F7: 36.36825233
A8: 일본 Japan | B8: 30.59954498 | C8: 29.90916141 | D8: 28.56269655 | E8: 31.13889413 | F8: 27.29723309 | G8: 25.64423089
A9: 독일 Germany | B9: 20.15139423 | C9: 21.1010065 | D9: 20.63802908 | E9: 21.38895146 | F9: 20.87217228
A10: 프랑스 France | B10: 21.86888271 | D10: 21.97992422 | E10: 21.46417339
A12: 주 : 하이테크산업은 제약(pharmaceutical industry), 항공우주(aerospace industry), 컴퓨터/전자/광학(computer, electronic and optical industry)의 합, 중국은 항공우주 데이터 결측으로 주요국 비교에서 제외
A13: 자료 : OECD, Main Science and Technology Indicators 2024-July, 2024
A15: 1-8) 주요국의 연구개발인력(FTE 기준)
A16: R&D personnel(FTE) in major countries
H17: (단위 : 명 Unit : person)
A18: 국가 Country | B18: 연구개발인력 R&D personnel | D18: 연구원 Researchers | F18: 연구보조원 Other R&D Personnel
A19: 한국(2023) Korea | B19: 610,814 (100.0) | D19: 490,256 (80.3) | F19: 120,568 (19.7) | J19: 한 국 (2016) Korea | K19: 447,408 (100.0) | M19: 361,292 (80.8) | O19: 86,117 (19.2)
A20: 미국(2021) United States | B20: 2,646,498 (100.0) | D20: 1,639,258 (61.9) | F20: 1,007,240 (38.1) | J20: 미 국 (2015) United States | M20: 1379977 | R20: 872340 | S20: 665566 | T20: =R20-S20 -> 206774 | U20: =S20/R20*100 -> 76.29662746 | V20: =T20/R20*100 -> 23.70337254
A21: 일본(2022) Japan | B21: 940,069 (100.0) | D21: 705,551 (75.1) | F21: 234,518 (24.9) | J21: 일 본 (2015) Japan | K21: 875,005 (100.0) | M21: 662,071 (75.7) | O21: 212,934 (24.3) | R21: 656727 | S21: 400821 | T21: =R21-S21 -> 255906 | U21: =S21/R21*100 -> 61.03312335 | V21: =T21/R21*100 -> 38.96687665
A22: 독일(2022) Germany | B22: 784,560 (100.0) | D22: 484,823 (61.8) | F22: 299,737 (38.2) | J22: 독 일 (2015) Germany | K22: 640,516 (100.0) | M22: 387,982 (60.6) | O22: 252,534 (39.4) | R22: .. | S22: ..
A23: 프랑스(2022) France | B23: 513,690 (100.0) | D23: 345,617 (67.3) | F23: 168,073 (32.7) | J23: 프랑스 (2015) France | K23: 428,643 (100.0) | M23: 277,631 (64.8) | O23: 151,011 (35.2) | R23: 419898 | S23: 291416 | T23: =R23-S23 -> 128482 | U23: =S23/R23*100 -> 69.40161658 | V23: =T23/R23*100 -> 30.59838342
A24: 영국(2017) United Kingdom | B24: 444,616 (100.0) | D24: 295,842 (66.5) | F24: 148,777 (33.5) | J24: 영 국 (2015) United Kingdom | K24: 416,538 (100.0) | M24: 289,330 (69.5) | O24: 127,208 (30.5) | R24: 3878056.8 | S24: 1692175.8 | T24: =R24-S24 -> 2185881 | U24: =S24/R24*100 -> 43.63463165 | V24: =T24/R24*100 -> 56.36536835
A25: 중국(2022) China | B25: 6,353,570 (100.0) | D25: 2,637,193 (41.5) | F25: 3,716,376 (58.5) | J25: 중 국 (2015) China | K25: 3,758,848 (100.0) | M25: 1,619,028 (43.1) | O25: 2,139,870 (56.9)
A27: 주 : 괄호 안의 수치는 구성비임
A28: 자료 : OECD, Main Science and Technology Indicators 2024-July, 2024

Sheet 1-9
A1: 1-9) 주요국의 정부연구개발예산
A2: Government Budget Allocations for R&D in major countries
G4: (단위 : 백만달러 / Unit : PPP USD, Millions)
A5: 연도 Year | B5: 한국 Korea | C5: 미국 United States | D5: 일본 Japan | E5: 독일 Germany | F5: 프랑스 France | G5: 영국 United Kingdom
A6: 1981 | B6: 309.531909 | C6: 33735 | E6: 7850.307367 | F6: 7507.806027 | G6: 6821.986131
A7: 1982 | B7: 314.9757067 | C7: 36115 | E7: 7956.012675 | F7: 7271.041049 | G7: 6146.769919
A8: 1983 | B8: 324.3319893 | C8: 38768 | E8: 7478.837336 | F8: 7276.984361 | G8: 5752.699989
A9: 1984 | B9: 340.0867485 | C9: 44214 | E9: 6821.502518 | F9: 7068.806808 | G9: 5392.607411
A10: 1985 | B10: 398.1517666 | C10: 49887 | E10: 7143.696226 | F10: 7649.222585 | G10: 5311.031433
A11: 1986 | B11: 478.1861827 | C11: 53249 | E11: 9846.677518 | F11: 9957.129436 | G11: 6236.946219
A12: 1987 | B12: 686.0255074 | C12: 57069 | E12: 12322.63175 | F12: 12337.97445 | G12: 7159.350707
A13: 1988 | B13: 848.9830891 | C13: 59106 | D13: 13388.40173 | E13: 12673.65496 | F13: 13130.8977 | G13: 7998.407955
A14: 1989 | B14: 1122.188479 | C14: 62115 | D14: 13157.00845 | E14: 12572.1687 | F14: 13123.53746 | G14: 7807.643662
A15: 1990 | B15: 1301.701717 | C15: 63781 | D15: 13266.37084 | E15: 15546.19793 | F15: 16966.08164 | G15: 8798.404409
A16: 1991 | B16: 1123.779112 | C16: 65897 | D16: 15015.07717 | E16: 17745.56606 | F16: 16506.59154 | G16: 8866.432105
A17: 1992 | B17: 1243.930167 | C17: 68398 | D17: 16854.74562 | E17: 19916.68984 | F17: 17006.2018 | G17: 8913.291937
A18: 1993 | B18: 1451.021032 | C18: 69884 | D18: 20380.48671 | E18: 18981.15509 | F18: 15792.0099 | G18: 8102.352131
A19: 1994 | B19: 1926.293329 | C19: 68331 | D19: 23075.28253 | E19: 19060.79564 | F19: 16115.09079 | G19: 7958.654907
A20: 1995 | B20: 2470.651157 | C20: 68791 | D20: 26574.10363 | E20: 22076.95417 | F20: 17336.97047 | G20: 8903.716142
A21: 1996 | B21: 2954.661993 | C21: 69049 | D21: 25836.33355 | E21: 21394.70822 | F21: 16804.41082 | G21: 9081.094237
A22: 1997 | B22: 3151.733359 | C22: 71653.28158 | D22: 24816.83266 | E22: 18056.90262 | F22: 14112.20384 | G22: 9862.876451
A23: 1998 | B23: 2367.901558 | C23: 73568.71422 | D23: 23163.14906 | E23: 17802.52319 | F23: 14124.55642 | G23: 9660.596465
A24: 1999 | B24: 3116.342645 | C24: 77637.10471 | D24: 27713.25207 | E24: 17395.94497 | F24: 13739.82913 | G24: 10236.11091
A25: 2000 | B25: 3713.322054 | C25: 72681 | D25: 30476.54454 | E25: 15011.5156 | F25: 12784.71975 | G25: 10118.15152
A26: 2001 | B26: 5927.47553 | C26: 78538 | D26: 23178.75064 | E26: 17704.8942 | F26: 16276.16811 | G26: 9722.279408
A27: 2002 | B27: 6701.076953 | C27: 88665 | D27: 24652.73247 | E27: 18326.57419 | F27: 17206.97454 | G27: 11493.65025
A28: 2003 | B28: 7047.699105 | C28: 98767 | D28: 25772.95941 | E28: 19087.84378 | F28: 16996.42974 | G28: 11781.45153
A29: 2004 | B29: 7675.111785 | C29: 106246 | D29: 26847.65811 | E29: 19362.79017 | F29: 17009.74812 | G29: 12291.59281
A30: 2005 | B30: 9886.474633 | C30: 111332 | D30: 27617.83877 | E30: 19731.95782 | F30: 18220.18526 | G30: 12116.12436
A31: 2006 | B31: 11537.66478 | C31: 114442 | D31: 28721.30737 | E31: 20773.94123 | F31: 16320.23651 | G31: 12889.316
A32: 2007 | B32: 12677.69763 | C32: 117691 | D32: 29182.78849 | E32: 22340.10719 | F32: 15877.64041 | G32: 13177.96759
A33: 2008 | B33: 14099.67711 | C33: 116710 | D33: 30559.8967 | E33: 24002.57567 | F33: 19222.10621 | G33: 13160.63346
A34: 2009 | B34: 15337.51478 | C34: 136599 | D34: 30931.76184 | E34: 26765.74157 | F34: 20293.50553 | G34: 13277.67039
A35: 2010 | B35: 16291.91967 | C35: 119382 | D35: 32128.03738 | E35: 28584.43241 | F35: 19139.81943 | G35: 13314.59662
A36: 2011 | B36: 17423.86962 | C36: 113386 | D36: 34105.24882 | E36: 30103.13881 | F36: 19983.78285 | G36: 12902.16521
A37: 2012 | B37: 18744.48667 | C37: 116796 | D37: 35413.16133 | E37: 30575.24114 | F37: 17925.92079 | G37: 12974.57376
A38: 2013 | B38: 19730.18819 | C38: 109608 | D38: 35633.48235 | E38: 32745.88975 | F38: 18457.13 | G38: 14362.78905
A39: 2014 | B39: 20391.91129 | C39: 112502 | D39: 35431.8044 | E39: 33186.29565 | F39: 18349.23762 | G39: 14571.54356
A40: 2015 | B40: 22029.61156 | C40: 115220 | D40: 33610.37911 | E40: 34098.52389 | F40: 17526.37908 | G40: 14663.46737
A41: 2016 | B41: 22297.37426 | C41: 126093 | D41: 33802.89501 | E41: 37667.81743 | F41: 18009.45806 | G41: 15006.91198
A42: 2017 | B42: 22348.48974 | C42: 127306 | D42: 42400.73312 | E42: 40496.0771 | F42: 19150.37673 | G42: 15999.97815
A43: 2018 | B43: 23100.8653 | C43: 144459 | D43: 45834.62953 | E43: 43184.488 | F43: 20577.94673 | G43: 17184.45783
A44: 2019 | B44: 24604.15717 | C44: 149971 | D44: 55574.50288 | E44: 47363.55646 | F44: 22921.96779 | G44: 18179.82093
A45: 2020 | B45: 29246.43658 | C45: 169901 | D45: 91421.29802 | E45: 52588.02392 | F45: 24541.90137 | G45: 21432.49785
A46: 2021 | B46: 33121.41759 | C46: 161885 | D46: 82872.47034 | E46: 57624.09991 | F46: 25748.06907 | G46: 21751.25491
A47: 2022 | B47: 36742.18558 | C47: 186876 | D47: 99971.05368 | E47: 61996.0762 | F47: 26551.8505
A48: 2023 | B48: 38305.08649 | C48: 202189 | D48: 100027.0804 | E48: 63466.89442
A50: 자료 : 1. 한국 : 한국과학기술기획평가원, 정부연구개발예산 현황분석, 각 연도
A51: 2. 그 외 국가 : OECD, Main Science and Technology Indicators 2024-July, 2024

Sheet 2-1
A1: 2. 국내 연구개발활동
A2: R&D Activities in Korea
A3: 2-1) 연구개발비 및 GDP 대비 연구개발비 비율
A4: R&D expenditure and as a percentage of GDP
A6: 연도 Year | B6: 연구개발비(백만원) R&D expenditure(Won, Millions) | E6: 정부 : 민간 Gov't : Business enterprises | F6: 국내총생산(B)(십억원) GDP(Won, Billions) | G6: 국내총생산대비(A/B) As a percent of GDP
B7: 총계(A) Total | C7: 정부·공공재원 Gov't & Other national sources | D7: 민간·외국재원 Business enterprises sector & Rest of the world
A8: 1991 | B8: 4158441 | C8: 808464 | D8: 3349977 | E8: 19 : 81 | F8: 242481.1 | G8: =B8/(F8*1000) -> 0.01714954691
A9: 1992 | B9: 4989031 | C9: 856882 | D9: 4132149 | E9: 17 : 83 | F9: 277540.8 | G9: 0.01797584715
A10: 1993 | B10: 6152983 | C10: 1026617 | D10: 5126366 | E10: 17 : 83 | F10: 315181.3 | G10: 0.01952204334
A11: 1994 | B11: 7894746 | C11: 1880222 | D11: 6014524 | E11: 24 : 76 | F11: 372493.4 | G11: 0.02119432452
A12: 1995 | B12: 9440606 | C12: 2289131 | D12: 7151475 | E12: 24 : 76 | F12: 436988.8 | G12: 0.02160377108
A13: 1996 | B13: 10878051 | C13: 2850638 | D13: 8027414 | E13: 26 : 74 | F13: 490850.9 | G13: 0.02216161975
A14: 1997 | B14: 12185807 | C14: 3344814 | D14: 8840992 | E14: 27 : 73 | F14: 542001.8 | G14: 0.02248296408
A15: 1998 | B15: 11336617 | C15: 3491103 | D15: 7845514 | E15: 31 : 69 | F15: 537215.3 | G15: 0.02110255795
A16: 1999 | B16: 11921752 | C16: 3574370 | D16: 8347382 | E16: 30 : 70 | F16: 591453 | G16: 0.02015671913
A17: 2000 | B17: 13848501 | C17: 3816850 | D17: 10031650 | E17: 28 : 72 | F17: 651634.426 | G17: 0.0212519481
A18: 2001 | B18: 16110521.98 | C18: 4361534 | D18: 11748988 | E18: 27 : 73 | F18: 707021.316 | G18: 0.02278647279
A19: 2002 | B19: 17325081.78 | C19: 4739957 | D19: 12585125 | E19: 27 : 73 | F19: 784741.2502 | G19: 0.02207744499
A20: 2003 | B20: 19068682 | C20: 4876225 | D20: 14192457 | E20: 26 : 74 | F20: 837364.9986 | G20: 0.02277224631
A21: 2004 | B21: 22185343 | C21: 5446050 | D21: 16739293 | E21: 25 : 75 | F21: 908439.1448 | G21: 0.02442138599
A22: 2005 | B22: 24155413.6 | C22: 5973784.01 | D22: 18181629.59 | E22: 24 : 76 | F22: 957447.785 | G22: 0.02522896181
A23: 2006 | B23: 27345704.1 | C23: 6786698.363 | D23: 20559005.74 | E23: 24 : 76 | F23: 1005601.505 | G23: 0.02719338024
A24: 2007 | B24: 31301377.26 | C24: 8175935.845 | D24: 23125441.41 | E24: 26 : 74 | F24: 1089660.171 | G24: 0.0287258157
A25: 2008 | B25: 34498053.84 | C25: 9248057.258 | D25: 25249996.58 | E25: 27 : 73 | F25: 1154216.49 | G25: 0.02988872031
A26: 2009 | B26: 37928502.24 | C26: 10887135.84 | D26: 27041366.4 | E26: 29 : 71 | F26: 1255305.5 | G26: 0.03021455912
A27: 2010 | B27: 43854834.28 | C27: 12270227.61 | D27: 31584606.68 | E27: 28 : 72 | F27: 1379460.2 | G27: 0.03179130089
A28: 2011 | B28: 49890418.95 | C28: 13002403.59 | D28: 36888015.36 | E28: 26 : 74 | F28: 1448575.6 | G28: 0.03444101844
A29: 2012 | B29: 55450115.65 | C29: 13822077.68 | D29: 41628037.97 | E29: 25 : 75 | F29: 1504674.1 | G29: 0.03685191076
A30: 2013 | B30: 59300949.33 | C30: 14241744.4 | D30: 45059204.93 | E30: 24 : 76 | F30: 1570938.2 | G30: 0.03774874742
A31: 2014 | B31: 63734126.79 | C31: 15275007.37 | D31: 48459119.43 | E31: 24 : 76 | F31: 1638484.8 | G31: 0.03889821059
A32: 2015 | B32: 65959371.73 | C32: 16293517.79 | D32: 49665853.93 | E32: 25 : 75 | F32: 1740776 | G32: 0.03789078648
A33: 2016 | B33: 69405529.89 | C33: 16410047.25 | D33: 52995482.63 | E33: 24 : 76 | F33: 1833026.6 | G33: 0.03786389673
A34: 2017 | B34: 78789187.37 | C34: 17737133.57 | D34: 61052053.81 | E34: 23 : 77 | F34: 1934233.9 | G34: 0.04073405361
A35: 2018 | B35: 85728714.74 | C35: 18363010.93 | D35: 67365703.81 | E35: 21 : 79 | F35: 2006974.5 | G35: 0.0427153981
A36: 2019 | B36: 89047077.12 | C36: 19095480.17 | D36: 69951596.95 | E36: 21 : 79 | F36: 2040594.3 | G36: 0.04363781528
A37: 2020 | B37: 93071686.49 | C37: 21581227.83 | D37: 71490458.66 | E37: 23 : 77 | F37: 2058466.5 | G37: 0.04521408849
A38: 2021 | B38: 102135243.5 | C38: 24094954.28 | D38: 78040289.26 | E38: 24 : 76 | F38: 2221912.9 | G38: 0.04596725801
A39: 2022 | B39: 112646008.3 | C39: 26328329.45 | D39: 86317678.83 | E39: 23 : 77 | F39: 2323781.5 | G39: 0.04847530126
A40: 2023 | B40: 119074025.1 | C40: 28127648.15 | D40: 90946376.99 | E40: 24 : 76 | F40: 2401189.4 | G40: =B40/(F40*1000) -> 0.04958960136
A41: 전년대비 증가율(%) Percent change from previous year
A42: 1992 | B42: =(B9/B8-1)*100 -> 19.97359106 | C42: 5.98888757 | D42: 23.34857821 | E42: 0 | F42: =(F9/F8-1)*100 -> 14.45873513 | G42: 0
A43: 1993 | B43: 23.33022184 | C43: 19.80844504 | D43: 24.06053122 | E43: 0 | F43: 13.56215014 | G43: 0
A44: 1994 | B44: 28.30761925 | C44: 83.14736654 | D44: 17.32529437 | E44: 0 | F44: 18.18385164 | G44: 0
A45: 1995 | B45: 19.58087062 | C45: 21.74791062 | D45: 18.90342444 | E45: 0 | F45: 17.31450812 | G45: 0
A46: 1996 | B46: 15.22619417 | C46: 24.5292646 | D46: 12.24836834 | E46: 0 | F46: 12.32573924 | G46: 0
A47: 1997 | B47: 12.02196974 | C47: 17.33562802 | D47: 10.13499491 | E47: 0 | F47: 10.42086304 | G47: 0
A48: 1998 | B48: -6.96868086 | C48: 4.373606425 | D48: -11.25979981 | E48: 0 | F48: -0.8831151483 | G48: 0
A49: 1999 | B49: 5.161460425 | C49: 2.385120118 | D49: 6.396878522 | E49: 0 | F49: 10.09608252 | G49: 0
A50: 2000 | B50: 16.16162624 | C50: 6.783852819 | D50: 20.17720047 | E50: 0 | F50: 10.17518315 | G50: 0
A51: 2001 | B51: 16.3340493 | C51: 14.27051102 | D51: 17.11919774 | E51: 0 | F51: 8.499687534 | G51: 0
A52: 2002 | B52: 7.538922702 | C52: 8.676373955 | D52: 7.116672517 | E52: 0 | F52: 10.99258712 | G52: 0
A53: 2003 | B53: 10.06402303 | C53: 2.874878401 | D53: 12.77168085 | E53: 0 | F53: 6.70587259 | G53: 0
A54: 2004 | B54: 16.34439653 | C54: 11.68578152 | D54: 17.94499712 | E54: 0 | F54: 8.487833423 | G54: 0
A55: 2005 | B55: 8.880054728 | C55: 9.690216033 | D55: 8.61647257 | E55: 0 | F55: 5.39481819 | G55: 0
A56: 2006 | B56: 13.20735199 | C56: 13.60803055 | D56: 13.07570444 | E56: 0 | F56: 5.029383429 | G56: 0
A57: 2007 | B57: 14.46542808 | C57: 20.47000482 | D57: 12.48326748 | E57: 0 | F57: 8.35904338 | G57: 0
A58: 2008 | B58: 10.21257484 | C58: 13.11313388 | D58: 9.187090222 | E58: 0 | F58: 5.924445095 | G58: 0
A59: 2009 | B59: 9.943889635 | C59: 17.7234908 | D59: 7.094534911 | E59: 0 | F59: 8.758236515 | G59: 0
A60: 2010 | B60: 15.62500941 | C60: 12.70390848 | D60: 16.80107507 | E60: 0 | F60: 9.890397198 | G60: 0
A61: 2011 | B61: 13.76264388 | C61: 5.967093689 | D61: 16.79111836 | E61: 0 | F61: 5.010322154 | G61: 0
A62: 2012 | B62: 11.14381642 | C62: 6.304019763 | D62: 12.84976316 | E62: 0 | F62: 3.872666363 | G62: 0
A63: 2013 | B63: 6.944681062 | C63: 3.036205824 | D63: 8.242442161 | E63: 0 | F63: 4.403883871 | G63: 0
A64: 2014 | B64: 7.475727646 | C64: 7.255171375 | D64: 7.545438287 | E64: 0 | F64: 4.29976176 | G64: 0
A65: 2015 | B65: 3.49144963 | C65: 6.667822822 | D65: 2.49021138 | E65: 0 | F65: 6.243036249 | G65: 0
A66: 2016 | B66: 5.224667956 | C66: 0.7151890667 | D66: 6.704060109 | E66: 0 | F66: 5.299395212 | G66: 0
A67: 2017 | B67: 13.52004301 | C67: 8.087035292 | D67: 15.20237344 | E67: 0 | F67: 5.521321949 | G67: 0
A68: 2018 | B68: 8.807715366 | C68: 3.528627448 | D68: 10.34142114 | E68: 0 | F68: 3.760693058 | G68: 0
A69: 2019 | B69: 3.870771176 | C69: 3.988829754 | D69: 3.83858995 | E69: 0 | F69: 1.675148339 | G69: 0
A70: 2020 | B70: =(B37/B36-1)*100 -> 4.519642309 | C70: 13.01746611 | D70: 2.199895042 | E70: 0 | F70: 0.8758330845 | G70: 0
A71: 2021 | B71: =(B38/B37-1)*100 -> 9.738253808 | C71: 11.6477453 | D71: 9.161824845 | E71: 0 | F71: 7.940202087 | G71: 0
A72: 2022 | B72: 10.29102626 | C72: 9.269057511 | D72: 10.60655931 | E72: 0 | F72: 4.584725171 | G72: 0
A73: 2023 | B73: 5.706386729 | C73: 6.834154457 | D73: 5.362398792 | E73: 0 | F73: 3.331117835 | G73: 0
A74: 주 : '정부 : 민간'에서 정부는 정부재원과 공공재원의 합이며, 민간은 민간재원과 외국재원의 합

Sheet 2-2
A1: 2-2) 재원별 연구개발비
A2: R&D expenditure by source of funds
I4: (단위 : 백만원 Unit : Won, Millions)
A5: 연도 Year | B5: 총계 Total | D5: 정부〮공공부문 Gov't & Other national sources | F5: 민간부문 Business enterprise | H5: 외국부문 Rest of the world
C6: 구성비(%) | E6: 구성비(%) | G6: 구성비(%) | I6: 구성비(%)
A7: 1991 | B7: 4158441 | C7: =B7/$B7*100 -> 100 | D7: 808464 | E7: =D7/$B7*100 -> 19.44151666 | F7: 3342601 | G7: =F7/$B7*100 -> 80.38110917 | H7: 7376 | I7: =H7/$B7*100 -> 0.177374165
A8: 1992 | B8: 4989031 | C8: =B8/$B8*100 -> 100 | D8: 856882 | E8: =D8/$B8*100 -> 17.17531922 | F8: 4110546 | G8: =F8/$B8*100 -> 82.39167085 | H8: 21603 | I8: 0.4330099372
A9: 1993 | B9: 6152983 | C9: 100 | D9: 1026617 | E9: 16.68486651 | F9: 5113985 | G9: 83.11391402 | H9: 12381 | I9: 0.2012194735
A10: 1994 | B10: 7894746 | C10: 100 | D10: 1880222 | E10: 23.81611771 | F10: 6011453 | G10: 76.14498301 | H10: 3071 | I10: 0.03889928821
A11: 1995 | B11: 9440606 | C11: 100 | D11: 2289131 | E11: 24.24771249 | F11: 7150144 | G11: 75.73818884 | H11: 1331 | I11: 0.01409867121
A12: 1996 | B12: 10878051 | C12: 100 | D12: 2850638 | E12: 26.20541125 | F12: 8013779 | G12: 73.6692538 | H12: 13635 | I12: 0.1253441448
A13: 1997 | B13: 12185807 | C13: 100 | D13: 3344814 | E13: 27.44844063 | F13: 8829196 | G13: 72.45475002 | H13: 11796 | I13: 0.09680113923
A14: 1998 | B14: 11336617 | C14: 100 | D14: 3491103 | E14: 30.79492762 | F14: 7837081 | G14: 69.13068511 | H14: 8433 | I14: 0.07438727091
A15: 1999 | B15: 11921752 | C15: 100 | D15: 3574370 | E15: 29.98191876 | F15: 8340040 | G15: 69.95649633 | H15: 7342 | I15: 0.06158490799
A16: 2000 | B16: 13848501 | C16: 100 | D16: 3816850 | E16: 27.56146676 | F16: 10023405 | G16: 72.37898889 | H16: 8245 | I16: 0.05953712969
A17: 2001 | B17: 16110521.98 | C17: 100 | D17: 4361534 | E17: 27.0725803 | F17: 11673266 | G17: 72.45740402 | H17: 75722 | I17: 0.4700158076
A18: 2002 | B18: 17325081.78 | C18: 100 | D18: 4739957 | E18: 27.35893002 | F18: 12508848 | G18: 72.20080205 | H18: 76277 | I18: 0.4402692061
A19: 2003 | B19: 19068682 | C19: 100 | D19: 4876225 | E19: 25.57190371 | F19: 14113599 | G19: 74.01454909 | H19: 78858 | I19: 0.4135471974
A20: 2004 | B20: 22185343 | C20: 100 | D20: 5446050 | E20: 24.54796394 | F20: 16630869 | G20: 74.963317 | H20: 108424 | I20: 0.488719061
A21: 2005 | B21: 24155413.6 | C21: 100 | D21: 5973784.01 | E21: 24.73062192 | F21: 18004157.27 | G21: 74.53466777 | H21: 177472.3151 | I21: 0.734710314
A22: 2006 | B22: 27345704.1 | C22: 100 | D22: 6786698.363 | E22: 24.81815183 | F22: 20469436.27 | G22: 74.85430324 | H22: 89569.46656 | I22: 0.3275449271
A23: 2007 | B23: 31301377.26 | C23: =B23/$B23*100 -> 100 | D23: 8175935.845 | E23: =D23/$B23*100 -> 26.12005145 | F23: 23055735.07 | G23: =F23/$B23*100 -> 73.65725437 | H23: 69706.3465 | I23: =H23/$B23*100 -> 0.2226941834
A24: 2008 | B24: 34498053.84 | C24: 100 | D24: 9248057.258 | E24: 26.80747529 | F24: 25143874.54 | G24: =F24/$B24*100 -> 72.88490723 | H24: 106122.0443 | I24: 0.3076174813
A25: 2009 | B25: 37928502.24 | C25: 100 | D25: 10887135.84 | E25: 28.7043653 | F25: 26963044.97 | G25: 71.08913713 | H25: 78321.43648 | I25: 0.2064975727
A26: 2010 | B26: 43854834.28 | C26: 100 | D26: 12270227.61 | E26: 27.97919046 | F26: 31489621.01 | G26: 71.80421844 | H26: 94985.6683 | I26: 0.2165911007
A27: 2011 | B27: 49890418.95 | C27: 100 | D27: 13002403.59 | E27: 26.06192503 | F27: 36776186.95 | G27: 73.71392688 | H27: 111828.4193 | I27: 0.2241480863
A28: 2012 | B28: 55450115.65 | C28: 100 | D28: 13822077.68 | E28: 24.92704932 | F28: 41437794.51 | G28: 74.72986129 | H28: 190243.4608 | I28: 0.3430893851
A29: 2013 | B29: 59300949.33 | C29: 100 | D29: 14241744.4 | E29: 24.01604791 | F29: 44879192.8 | G29: 75.68039519 | H29: 180012.1241 | I29: 0.3035569011
A30: 2014 | B30: 63734126.79 | C30: 100 | D30: 15275007.37 | E30: 23.96676339 | F30: 48008280.39 | G30: 75.32586199 | H30: 450839.0397 | I30: 0.7073746239
A31: 2015 | B31: 65959371.73 | C31: 100 | D31: 16293517.79 | E31: =D31/$B31*100 -> 24.70235445 | F31: 49169995.25 | G31: =F31/$B31*100 -> 74.54588175 | H31: 495858.6842 | I31: =H31/$B31*100 -> 0.7517638073
A32: 2016 | B32: 69405529.89 | C32: 100 | D32: 16410047.25 | E32: =D32/$B32*100 -> 23.64371727 | F32: 52345866.61 | G32: =F32/$B32*100 -> 75.42031117 | H32: 649616.0269 | I32: =H32/$B32*100 -> 0.9359715688
A33: 2017 | B33: 78789187.37 | C33: 100 | D33: 17737133.57 | E33: =D33/$B33*100 -> 22.51214178 | F33: 60064289.4 | G33: =F33/$B33*100 -> 76.23417806 | H33: 987764.4108 | I33: =H33/$B33*100 -> 1.253680161
A34: 2018 | B34: 85728714.74 | C34: 100 | D34: 18363010.93 | E34: =D34/$B34*100 -> 21.41990695 | F34: 65702767.63 | G34: 76.64032738 | H34: 1662936.178 | I34: 1.93976567
A35: 2019 | B35: 89047077.12 | C35: 100 | D35: 19095480.17 | E35: 21.44425263 | F35: 68521556.96 | G35: 76.94981034 | H35: 1430039.989 | I35: 1.605937034
A36: 2020 | B36: 93071686.49 | C36: 100 | D36: 21581227.83 | E36: 23.18774769 | F36: 71269260.33 | G36: 76.57458784 | H36: 221198.3323 | I36: 0.2376644721
A37: 2021 | B37: 102135243.5 | C37: 100 | D37: 24094954.28 | E37: 23.59122419 | F37: 77742094.16 | G37: 76.11681479 | H37: 298195.1023 | I37: 0.2919610234
A38: 2022 | B38: 112646008.3 | C38: =B38/$B38*100 -> 100 | D38: 26328329.45 | E38: 23.37262532 | F38: 85963730.27 | G38: 76.31316154 | H38: 353948.5571 | I38: 0.3142131377
A39: 2023 | B39: 119074025.1 | C39: =B39/$B39*100 -> 100 | D39: 28127648.15 | E39: =D39/$B39*100 -> 23.62198483 | F39: 90559792.65 | G39: =F39/$B39*100 -> 76.05335634 | H39: 386584.3441 | I39: =H39/$B39*100 -> 0.324658836

Sheet 2-3
A1: 2-3) 연구수행주체별 연구개발비
A2: R&D expenditure by sector of performance
K4: (단위 : 백만원 Unit : Won, Millions)
A5: 연도 Year | B5: 총계 Total | C5: 공공연구기관 Public research institutes | F5: 대학 Higher educations | I5: 기업체 Business enterprises
C6: 계 Sub total | D6: 국립·공립·출연(연) Government | E6: 비영리법인 Non-profit | F6: 계 Sub total | G6: 국·공립 National & Pub. | H6: 사립 Private | I6: 계 Sub total | J6: 민간기업체 Private | K6: 정부투자기관 Gov't invest
A7: 2005 | B7: 24155413.6 | C7: 3192887 | D7: 2842252 | E7: 350635 | F7: 2398283.6 | G7: 932462 | H7: 1465821.6 | I7: 18564243 | J7: 18120101 | K7: 315878
A8: 2006 | B8: 27345704.1 | C8: 3497050.1 | D8: 3140796.6 | E8: 356253.5 | F8: 2721874 | G8: 1039265 | H8: 1682609 | I8: 21126780 | J8: 20745227 | K8: 381553
A9: 2007 | B9: 31301377.26 | C9: 4102365.7 | D9: 3630947.5 | E9: 471418.2 | F9: 3334118.57 | G9: 1311716 | H9: 2022402.57 | I9: 23864892.99 | J9: 23467579.23 | K9: 221423.76
A10: 2008 | B10: 34498053.84 | C10: 4653235.6 | D10: 4159538.7 | E10: 493696.9 | F10: 3844749.4 | G10: 1519323.6 | H10: 2325425.8 | I10: 26000068.84 | J10: 25553070.84 | K10: 446998
A11: 2009 | B11: 37928502.24 | C11: 5558383.7 | D11: 4925499 | E11: 632884.7 | F11: 4204259.4 | G11: 1771080 | H11: 2433179.4 | I11: 28165859.14 | J11: 27648365.14 | K11: 329064
A12: 2010 | B12: 43854834.28 | C12: 6306136.03 | D12: 5643330.87 | E12: 662805.16 | F12: 4745458.693 | G12: 1993071.65 | H12: 2752387.043 | I12: 32803239.56 | J12: 32238691.56 | K12: 564548
A13: 2011 | B13: 49890418.95 | C13: 6673311.11 | D13: 5870369.61 | E13: 802941.5 | F13: 5033816.5 | G13: 2068282.1 | H13: 2965534.4 | I13: 38183291.34 | J13: 37560684.34 | K13: 622607
A14: 2012 | B14: 55450115.65 | C14: 6950261.67 | D14: 6240186.3 | E14: 710075.37 | F14: 5276928.439 | G14: 2261530.768 | H14: 3015397.671 | I14: 43222925.54 | J14: 42580790.54 | K14: 642135
A15: 2013 | B15: 59300949.33 | C15: 7260710.547 | D15: 6471895.61 | E15: 788814.937 | F15: 5480322.53 | G15: 2432044.25 | H15: 3048278.28 | I15: 46559916.25 | J15: 45947538.25 | K15: 612378
A16: 2014 | B16: 63734126.79 | C16: 8112700.933 | D16: 7146441.396 | E16: 966259.537 | F16: 5766960.87 | G16: 2635650.05 | H16: 3131310.82 | I16: 49854464.99 | J16: 49218203.99 | K16: 636261
A17: 2015 | B17: 65959371.73 | C17: 8824078.748 | D17: 7745312.548 | E17: 1078766.2 | F17: 5998872.479 | G17: 2715086.65 | H17: 3283785.829 | I17: 51136420.5 | J17: 50503751.5 | K17: 632669
A18: 2016 | B18: 69405529.89 | C18: 9113170.697 | D18: 8012527.25 | E18: 1100643.447 | F18: 6339887.929 | G18: 2874488.3 | H18: 3465399.629 | I18: 53952471.26 | J18: 53147044.26 | K18: 805427
A19: 2017 | B19: 78789187.37 | C19: 9543217.4 | D19: 8429716 | E19: 1113501.4 | F19: 6682523.015 | G19: 2957915.515 | H19: 3724607.5 | I19: 62563446.96 | J19: 61673311.96 | K19: 890135
A20: 2018 | B20: 85728714.74 | C20: 9843867.4 | D20: 8636201.5 | E20: 1207665.9 | F20: 7050415.008 | G20: 3088493.055 | H20: 3961921.953 | I20: 68834432.33 | J20: 67925985.33 | K20: 908447
A21: 2019 | B21: 89047077.12 | C21: 10168766 | D21: 8898118 | E21: 1270648 | F21: 7371649 | G21: 3274570 | H21: 4097079 | I21: 71506662.12 | J21: 70637773.12 | K21: 868889
A22: 2020 | B22: 93071686.49 | C22: 11118558 | D22: 9407681 | E22: 1710877 | F22: 8353350.45 | G22: 3774963.45 | H22: 4578387 | I22: 73599778.04 | J22: 72723759.04 | K22: 876019
A23: 2021 | B23: 102135243.5 | C23: 11997001 | D23: 9979636 | E23: 2017365 | F23: 9330614.888 | G23: 4216323.118 | H23: 5114291.77 | I23: 80807627.66 | J23: 79948109.66 | K23: 859518
A24: 2022 | B24: 112646008.3 | C24: 12918586.1 | D24: 10571717 | E24: 2346869.1 | F24: 10306122 | G24: 4531064 | H24: 5775058 | I24: 89421300.18 | J24: 88532529.18 | K24: 888771
A25: 2023 | B25: 119074025.1 | C25: 13883702 | D25: 11438733 | E25: 2444969 | F25: 10893480 | G25: 4831375 | H25: 6062105 | I25: 94296843.15 | J25: 93550206.15 | K25: 746637
A26: 구성비(%) Percent distribution
A27: 2005 | B27: =B7/$B7*100 -> 100 | C27: 13.21810114 | D27: 11.76652177 | E27: 1.451579368 | F27: 9.928555312 | G27: 3.860260956 | H27: 6.068294355 | I27: 76.85334355 | J27: 75.01465841 | K27: 1.307690298
A28: 2006 | B28: =B8/$B8*100 -> 100 | C28: 12.78829789 | D28: 11.48552105 | E28: 1.302776841 | F28: 9.953570733 | G28: 3.800468974 | H28: 6.153101759 | I28: 77.25813138 | J28: 75.86283726 | K28: 1.395294115
A29: 2007 | B29: =B9/$B9*100 -> 100 | C29: 13.10602299 | D29: 11.59996083 | E29: 1.506062165 | F29: 10.65166731 | G29: 4.190601548 | H29: 6.461065765 | I29: 76.2423097 | J29: 74.97299251 | K29: 0.7073930267
A30: 2008 | B30: =B10/$B10*100 -> 100 | C30: 13.48840031 | D30: 12.05731407 | E30: 1.431086235 | F30: 11.14482984 | G30: 4.404084958 | H30: 6.740744886 | I30: 75.36676985 | J30: 74.07105038 | K30: 1.295719469
A31: 2009 | B31: =B11/$B11*100 -> 100 | C31: 14.65489901 | D31: 12.98627341 | E31: 1.668625605 | F31: 11.0846966 | G31: 4.669522642 | H31: 6.415173962 | I31: 74.26040438 | J31: 72.89601093 | K31: 0.8675902832
A32: 2010 | B32: =B12/$B12*100 -> 100 | C32: 14.37956871 | D32: 12.86820703 | E32: 1.51136168 | F32: 10.82083371 | G32: 4.544702272 | H32: 6.276131441 | I32: 74.79959757 | J32: 73.51228681 | K32: 1.287310759
A33: 2011 | B33: =B13/$B13*100 -> 100 | C33: 13.3759372 | D33: 11.76652699 | E33: 1.609410217 | F33: 10.0897459 | G33: 4.145649893 | H33: 5.944096006 | I33: 76.5343169 | J33: 75.28636786 | K33: 1.247949031
A34: 2012 | B34: =B14/$B14*100 -> 100 | C34: 12.53426001 | D34: 11.25369393 | E34: 1.280566076 | F34: 9.516532792 | G34: 4.078496035 | H34: 5.438036758 | I34: 77.9492072 | J34: 76.79116633 | K34: 1.158040867
A35: 2013 | B35: =B15/$B15*100 -> 100 | C35: 12.24383527 | D35: 10.91364587 | E35: 1.330189391 | F35: 9.24154266 | G35: 4.101189403 | H35: 5.140353257 | I35: 78.51462207 | J35: 77.4819607 | K35: 1.032661377
A36: 2014 | B36: =B16/$B16*100 -> 100 | C36: 12.72897479 | D36: 11.21289607 | E36: 1.516078725 | F36: 9.04846612 | G36: 4.135382695 | H36: 4.913083426 | I36: 78.22255909 | J36: 77.22425405 | K36: 0.99830504
A37: 2015 | B37: =B17/$B17*100 -> 100 | C37: 13.37805154 | D37: 11.74255052 | E37: 1.635501024 | F37: 9.094799301 | G37: 4.116301564 | H37: 4.978497737 | I37: 77.52714915 | J37: 76.56796931 | K37: 0.9591798458
A38: 2016 | B38: =B18/$B18*100 -> 100 | C38: 13.13032364 | D38: 11.54450843 | E38: 1.585815206 | F38: 9.134557346 | G38: 4.14158397 | H38: 4.992973376 | I38: 77.73511902 | J38: 76.57465385 | K38: 1.160465169
A39: 2017 | B39: =B19/$B19*100 -> 100 | C39: 12.11234399 | D39: 10.69907722 | E39: 1.413266766 | F39: 8.481522957 | G39: 3.754215031 | H39: 4.727307926 | I39: 79.40613306 | J39: 78.27636509 | K39: 1.129767966
A40: 2018 | B40: =B20/$B20*100 -> 100 | C40: 11.48257901 | D40: 10.07387259 | E40: 1.40870641 | F40: 8.224099743 | G40: 3.602635435 | H40: 4.621464307 | I40: 80.29332125 | J40: 79.2336448 | K40: 1.059676449
A41: 2019 | B41: =B21/$B21*100 -> 100 | C41: 11.41953934 | D41: 9.992599744 | E41: 1.426939593 | F41: 8.278372787 | G41: 3.677346979 | H41: 4.601025809 | I41: 80.30208788 | J41: 79.32632424 | K41: 0.9757636389
A42: 2020 | B42: =B22/$B22*100 -> 100 | C42: 11.94623029 | D42: 10.10799455 | E42: 1.838235735 | F42: 8.975178989 | G42: 4.055974048 | H42: 4.91920494 | I42: 79.07859072 | J42: 78.13736033 | K42: 0.9412303924
A43: 2021 | B43: =B23/$B23*100 -> 100 | C43: 11.74619121 | D43: 9.771001325 | E43: 1.975189885 | F43: 9.135548675 | G43: 4.128176496 | H43: 5.007372179 | I43: 79.11826011 | J43: 78.27671123 | K43: 0.8415488818
A44: 2022 | B44: 100 | C44: 11.46830349 | D44: 9.38490157 | E44: 2.083401921 | F44: 9.149123131 | G44: 4.022391978 | H44: 5.126731154 | I44: 79.38257338 | J44: 78.59357871 | K44: 0.7889946689
A45: 2023 | B45: 100 | C45: 11.65972342 | D45: 9.606404912 | E45: 2.053318511 | F45: 9.148493961 | G45: 4.057455011 | H45: 5.09103895 | I45: 79.19178262 | J45: 78.56474662 | K45: 0.6270359964
A46: 전년대비증가율(%) Percent change from previous year
A47: 2006 | B47: =(B8/B7-1)*100 -> 13.20735199 | C47: 9.526271991 | D47: 10.50380473 | E47: 1.602378542 | F47: 13.49258278 | G47: 11.45387158 | H47: 14.78948052 | I47: 13.80361699 | J47: 14.48736958 | K47: 20.79125485
A48: 2007 | B48: =(B9/B8-1)*100 -> 14.46542808 | C48: 17.30932022 | D48: 15.60594214 | E48: 32.32661574 | F48: 22.49349419 | G48: 26.21573901 | H48: 20.19444624 | I48: 12.96038956 | J48: 13.12278834 | K48: -41.96775808
A49: 2008 | B49: =(B10/B9-1)*100 -> 10.21257484 | C49: 13.4281032 | D49: 14.55794114 | E49: 4.725888818 | F49: 15.31531706 | G49: 15.827176 | H49: 14.98332896 | I49: 8.946932429 | J49: 8.886692528 | K49: 101.8744511
A50: 2009 | B50: =(B11/B10-1)*100 -> 9.943889635 | C50: 19.45201528 | D50: 18.41454919 | E50: 28.19296617 | F50: 9.350674455 | G50: 16.57029483 | H50: 4.633714823 | I50: 8.329940637 | J50: 8.199774943 | K50: -26.38356324
A51: 2010 | B51: =(B12/B11-1)*100 -> 15.62500941 | C51: 13.45269363 | D51: 14.57378978 | E51: 4.727632063 | F51: 12.87264275 | G51: 12.53425311 | H51: 13.11895222 | I51: 16.46454453 | J51: 16.60252386 | K51: 71.56176306
A52: 2011 | B52: =(B13/B12-1)*100 -> 13.76264388 | C52: 5.82250491 | D52: 4.023133593 | E52: 21.14291627 | F52: 6.076500201 | G52: 3.773594893 | H52: 7.74409099 | I52: 16.40097701 | J52: 16.50809174 | K52: 10.28415653
A53: 2012 | B53: =(B14/B13-1)*100 -> 11.14381642 | C53: 4.150122112 | D53: 6.299717302 | E53: -11.56574047 | F53: 4.82957492 | G53: 9.343438596 | H53: 1.68142616 | I53: 13.19853272 | J53: 13.36532145 | K53: 3.136488989
A54: 2013 | B54: =(B15/B14-1)*100 -> 6.944681062 | C54: 4.466722143 | D54: 3.713179365 | E54: 11.08890272 | F54: 3.854403052 | G54: 7.539737439 | H54: 1.090423632 | I54: 7.720418437 | J54: 7.906728996 | K54: -4.634072275
A55: 2014 | B55: =(B16/B15-1)*100 -> 7.475727646 | C55: 11.73425632 | D55: 10.42269262 | E55: 22.4950862 | F55: 5.230318808 | G55: 8.371796689 | H55: 2.723916007 | I55: 7.075933555 | J55: 7.118261091 | K55: 3.900042131
A56: 2015 | B56: =(B17/B16-1)*100 -> 3.49144963 | C56: 8.768692706 | D56: 8.379991087 | E56: 11.6435242 | F56: 4.021383433 | G56: 3.013928196 | H56: 4.869366785 | I56: 2.571395582 | J56: 2.611935028 | K56: -0.5645481964
A57: 2016 | B57: =(B18/B17-1)*100 -> 5.224667956 | C57: 3.276171454 | D57: 3.450018322 | E57: 2.027987807 | F57: 5.684659093 | G57: 5.870959956 | H57: 5.53062256 | I57: 5.506937585 | J57: 5.233854281 | K57: 27.30622174
A58: 2017 | B58: =(B19/B18-1)*100 -> 13.52004301 | C58: 4.718958059 | D58: 5.206706161 | E58: 1.168221465 | F58: 5.40443443 | G58: 2.902332736 | H58: 7.479883964 | I58: 15.96029894 | J58: 16.04278811 | K58: 10.51715425
A59: 2018 | B59: =(B20/B19-1)*100 -> 8.807715366 | C59: 3.15040502 | D59: 2.449495333 | E59: 8.456612628 | F59: 5.505285842 | G59: 4.414512176 | H59: 6.371529158 | I59: 10.02340132 | J59: 10.1383778 | K59: 2.05721604
A60: 2019 | B60: =(B21/B20-1)*100 -> 3.870771176 | C60: 3.300517843 | D60: 3.032774305 | E60: 5.215192381 | F60: 4.55624231 | G60: 6.024845812 | H60: 3.411401051 | I60: 3.882112044 | J60: 3.992268607 | K60: -4.354464267
A61: 2020 | B61: =(B22/B21-1)*100 -> 4.519642309 | C61: 9.340287701 | D61: 5.726637925 | E61: 34.64602313 | F61: 13.31725711 | G61: 15.28119571 | H61: 11.74758895 | I61: 2.927162113 | J61: 2.953074297 | K61: 0.8205881304
A62: 2021 | B62: =(B23/B22-1)*100 -> 9.738253808 | C62: 7.900691798 | D62: 6.079659801 | E62: 17.91408734 | F62: 11.69907145 | G62: 11.69176003 | H62: 11.70509986 | I62: 9.793303469 | J62: 9.933962038 | K62: -1.883634944
A63: 2022 | B63: 10.29102626 | C63: 7.681795642 | D63: 5.932891741 | E63: 16.33339034 | F63: 10.45490703 | G63: 7.464818827 | H63: =(H24/H23-1)*100 -> 12.91999478 | I63: 10.65947952 | J63: 10.73748905 | K63: 3.403419126
A64: 2023 | B64: 5.706386729 | C64: 7.470754868 | D64: 8.201278941 | E64: 4.180032879 | F64: 5.699117476 | G64: 6.627825164 | H64: =(H25/H24-1)*100 -> 4.970460903 | I64: 5.452328424 | J64: 5.667608294 | K64: -15.99219596
A66: 주 : 1. 공공연구기관: '국·공립, 출연(연)'은 '국·공립 연구기관', '국·공립 병원','정부 출연(연)', '지자체 출연(연)'을 포함하며, 나머지는 모두 '비영리법인'으로 분류
A67: 2. 대학: '국·공립'은 '국·공립대학'과 '국·공립대학 부속병원', '사립'은 '사립대학'과 '사립대학 부속병원'

Sheet 2-4
A1: 2-4) 비목별 연구개발비
A2: R&D expenditure by type of costs
K4: (단위 : 백만원 Unit : Won, Millions)
A5: 연도 Year | B5: 총계 Total | C5: 경상비 Current costs | F5: 자본적지출 Capital costs
C6: 계 Sub total | D6: 인건비 Labour costs | E6: 기타 Other current costs | F6: 계 Sub total | G6: 기계·장치 Machinery | H6: 토지 Land | I6: 건물 Buildings | J6: 컴퓨터 소프트웨어 Computer software | K6: 기타 지식재산물 Other intellectual properties
A7: 1991 | B7: 4158440 | C7: =SUM(D7,E7) -> 2884882 | D7: 1376617 | E7: 1508265 | F7: =SUM(G7:K7) -> 1273559 | G7: 854651 | H7: 418908
A8: 1992 | B8: 4989031 | C8: 3593363 | D8: 1746546 | E8: 1846817 | F8: =SUM(G8:K8) -> 1395668 | G8: 858744 | H8: 536924
A9: 1993 | B9: 6152983 | C9: 4302251 | D9: 1980083 | E9: 2322168 | F9: =SUM(G9:K9) -> 1850732 | G9: 1137882 | H9: 712850
A10: 1994 | B10: 7894746 | C10: 5561911 | D10: 2471758 | E10: 3090153 | F10: =SUM(G10:K10) -> 2332835 | G10: 1618243 | H10: 714592
A11: 1995 | B11: 9440606 | C11: 7161647 | D11: 3160442 | E11: 4001205 | F11: =SUM(G11:K11) -> 2278959 | G11: 1675833 | H11: 603126
A12: 1996 | B12: 10878051 | C12: 8233354 | D12: 3621555 | E12: 4611799 | F12: 2644697 | G12: 1950540 | H12: 694157
A13: 1997 | B13: 12185807 | C13: 9427321 | D13: 4091203 | E13: 5336118 | F13: 2758486 | G13: 2156982 | H13: 601504
A14: 1998 | B14: 11336617 | C14: 8775383 | D14: 3880492 | E14: 4894891 | F14: 2561234 | G14: 2062431 | H14: 498803
A15: 1999 | B15: 11921752 | C15: 9172514 | D15: 3860804 | E15: 5311710 | F15: 2749238 | G15: 2440146 | H15: 309092
A16: 2000 | B16: 13848501 | C16: 10941530.44 | D16: 4739129.597 | E16: 6202400.838 | F16: 2906970.565 | G16: 2491452.897 | H16: 415517.668
A17: 2001 | B17: 16110521.98 | C17: 13249438.11 | D17: 5549175.864 | E17: 7700262.242 | F17: 2861083.876 | G17: 2423719.987 | H17: 437363.889
A18: 2002 | B18: 17325081.78 | C18: 14591141.16 | D18: 6526892.098 | E18: 8064249.063 | F18: 2733940.618 | G18: 2159287.609 | H18: 301084.412 | J18: 273568.5965
A19: 2003 | B19: 19068681.99 | C19: 16461997.93 | D19: 7562177.651 | E19: 8899820.282 | F19: 2606684.061 | G19: 1964562.201 | H19: 337804.48 | J19: 304317.38
A20: 2004 | B20: 22185343 | C20: 19399393 | D20: 8859601 | E20: 10539792 | F20: 2785950 | G20: 2208399 | H20: 261887 | J20: 315664
A21: 2005 | B21: 24155413.6 | C21: 21084497.5 | D21: 9953563.1 | E21: 11130934.4 | F21: 3070916.1 | G21: 2393576.6 | H21: 299853 | J21: 377486.5
A22: 2006 | B22: 27345704.1 | C22: 23467080.71 | D22: 11165778.89 | E22: 12301301.82 | F22: 3878623.392 | G22: 2979276.788 | H22: 472471.7193 | J22: 426874.8849
A23: 2007 | B23: 31301377.26 | C23: 27241543.8 | D23: 12804076.47 | E23: 14437467.33 | F23: 4059833.456 | G23: 3031128.785 | H23: 582928.093 | J23: 445776.578
A24: 2008 | B24: 34498053.84 | C24: =SUM(D24,E24) -> 30821176.47 | D24: 13987687.63 | E24: 16833488.84 | F24: 3676877.367 | G24: 2689458.015 | H24: 645218.7123 | J24: 342200.6405
A25: 2009 | B25: 37928502.24 | C25: =SUM(D25,E25) -> 34324319.88 | D25: 14523856.24 | E25: 19800463.64 | F25: 3604182.36 | G25: 2862195.73 | H25: 460855 | J25: 281131.63
A26: 2010 | B26: 43854834.28 | C26: 39578894.79 | D26: 17342032.62 | E26: 22236862.17 | F26: 4275939.49 | G26: 3418978.97 | H26: 518209.95 | J26: 338750.57
A27: 2011 | B27: 49890418.95 | C27: 44645764.71 | D27: 19649822.9 | E27: 24995941.81 | F27: 5244654.24 | G27: 3827194.43 | H27: 1033435.52 | J27: 384024.29
A28: 2012 | B28: 55450115.65 | C28: 49748360.33 | D28: 22559549.17 | E28: 27188811.16 | F28: 5701755.32 | G28: 3849541.73 | H28: 1361486.3 | J28: 490727.29
A29: 2013 | B29: 59300949.33 | C29: 53744731.42 | D29: 24728306.13 | E29: 29016425.29 | F29: 5556217.913 | G29: 4052268.166 | H29: 1086772.66 | J29: 417177.0878
A30: 2014 | B30: 63734126.79 | C30: 58044107.06 | D30: 26698757.29 | E30: 31345349.78 | F30: 5690019.728 | G30: 4277087.102 | H30: 230960.5412 | I30: 695913.0772 | J30: 486059.0082
A31: 2015 | B31: 65959371.73 | C31: 59506111.79 | D31: 28026786.17 | E31: 31479325.62 | F31: 6453259.939 | G31: 4542379.341 | H31: 319048.5907 | I31: 1182507.565 | J31: 409324.443
A32: 2016 | B32: 69405529.89 | C32: 63216052.97 | D32: 29233901.53 | E32: 33982151.45 | F32: 6189476.911 | G32: 4660267.601 | H32: 197272.6 | I32: 908450.55 | J32: 423486.16
A33: 2017 | B33: 78789187.37 | C33: 72046073.39 | D33: 33411593.43 | E33: 38634479.96 | F33: 6743113.983 | G33: 4568794.603 | H33: 282999.2 | I33: 1262408.8 | J33: 399572.03 | K33: 229339.35
A34: 2018 | B34: 85728714.74 | C34: 78131193.63 | D34: 36317218.69 | E34: 41813974.94 | F34: 7597521.105 | G34: 5458633.248 | H34: 375874.3041 | I34: 841806.3224 | J34: 505944.4103 | K34: 415262.82
A35: 2019 | B35: 89047077.12 | C35: 80748021.15 | D35: 37372667.75 | E35: 43375353.41 | F35: 8299055.964 | G35: 5696653.812 | H35: 372657.764 | I35: 1194809.278 | J35: 546748.756 | K35: 488186.354
A36: 2020 | B36: 93071686.49 | C36: 84516135.4 | D36: 40475587.14 | E36: 44040548.26 | F36: 8555551.092 | G36: 5851287.944 | H36: 600313.82 | I36: 1092484.36 | J36: 557070.363 | K36: 454394.6051
A37: 2021 | B37: 102135243.5 | C37: 92739180.02 | D37: 45771271.07 | E37: 46967908.95 | F37: 9396063.521 | G37: 6481440.161 | H37: 406188.219 | I37: 1250498.471 | J37: 710469.8836 | K37: 547466.7864
A38: 2022 | B38: 112646008.3 | C38: 102814602.8 | D38: 49132848.28 | E38: 53681754.49 | F38: 9831405.509 | G38: 7251024.539 | H38: 222275.447 | I38: 1093974.247 | J38: 815245.517 | K38: 448885.759
A39: 2023 | B39: 119074025.1 | C39: 109183692.4 | D39: 50467762.45 | E39: 58715929.99 | F39: 9890332.703 | G39: 6981294.848 | H39: 166527.164 | I39: 1266721.334 | J39: 909183.432 | K39: 566605.925
A40: 구성비(%) Percent distribution
A41: 1991 | B41: =B7/$B7*100 -> 100 | C41: 69.3741403 | D41: 33.10416887 | E41: 36.26997143 | F41: 30.62588374 | G41: 20.55220227 | H41: 10.07368148
A42: 1992 | B42: =B8/$B8*100 -> 100 | C42: 72.02526904 | D42: 35.00771994 | E42: 37.0175491 | F42: 27.97473096 | G42: 17.21264109 | H42: 10.76208987
A43: 1993 | B43: =B9/$B9*100 -> 100 | C43: 69.9213861 | D43: 32.18086252 | E43: 37.74052358 | F43: 30.0786139 | G43: 18.4931764 | H43: 11.5854375
A44: 1994 | B44: =B10/$B10*100 -> 100 | C44: 70.45079094 | D44: 31.30889835 | E44: 39.1418926 | F44: 29.54920906 | G44: 20.49772089 | H44: 9.051488167
A45: 1995 | B45: =B11/$B11*100 -> 100 | C45: 75.86003483 | D45: 33.47710941 | E45: 42.38292542 | F45: 24.13996517 | G45: 17.75132868 | H45: 6.388636492
A46: 1996 | B46: =B12/$B12*100 -> 100 | C46: 75.68776797 | D46: 33.29231496 | E46: 42.39545301 | F46: 24.31223203 | G46: 17.93096944 | H46: 6.381262599
A47: 1997 | B47: 100 | C47: 77.36312417 | D47: 33.57350892 | E47: 43.78961525 | F47: 22.63687583 | G47: 17.70077271 | H47: 4.936103124
A48: 1998 | B48: 100 | C48: 77.40742234 | D48: 34.22971774 | E48: 43.1777046 | F48: 22.59257766 | G48: 18.19264954 | H48: 4.399928127
A49: 1999 | B49: 100 | C49: 76.93931228 | D49: 32.38453543 | E49: 44.55477685 | F49: 23.06068772 | G49: 20.4680151 | H49: 2.592672621
A50: 2000 | B50: 100 | C50: 79.00877095 | D50: 34.22124602 | E50: 44.78752493 | F50: 20.99122905 | G50: 17.99077674 | H50: 3.000452309
A51: 2001 | B51: 100 | C51: 82.24089897 | D51: 34.44442005 | E51: 47.79647891 | F51: 17.75910103 | G51: 15.04432935 | H51: 2.714771684
A52: 2002 | B52: 100 | C52: 84.21975346 | D52: 37.67308104 | E52: 46.54667243 | F52: 15.78024654 | G52: 12.46336171 | H52: 1.737852761 | J52: =J18/$B18*100 -> 1.579032065
A53: 2003 | B53: 100 | C53: 86.330025 | D53: 39.65757913 | E53: 46.67244587 | F53: 13.669975 | G53: 10.30255894 | H53: 1.771514571 | J53: 1.59590149
A54: 2004 | B54: 100 | C54: 87.44238482 | D54: 39.93447836 | E54: 47.50790646 | F54: 12.55761518 | G54: 9.954315333 | H54: 1.180450534 | J54: 1.422849311
A55: 2005 | B55: 100 | C55: 87.28684116 | D55: 41.20634515 | E55: 46.08049601 | F55: 12.71315884 | G55: 9.909068996 | H55: 1.241349061 | J55: 1.562740785
A56: 2006 | B56: =B22/$B22*100 -> 100 | C56: 85.81633379 | D56: 40.83193049 | E56: 44.9844033 | F56: 14.18366621 | G56: 10.89486223 | H56: 1.7277731 | J56: 1.561030879
A57: 2007 | B57: 100 | C57: 87.02985679 | D57: 40.90579264 | E57: 46.12406416 | F57: 12.97014321 | G57: 9.683691423 | H57: 1.862308128 | J57: 1.424143654
A58: 2008 | B58: 100 | C58: 89.34178321 | D58: 40.54630936 | E58: 48.79547385 | F58: 10.65821679 | G58: 7.795970251 | H58: 1.870304671 | J58: 0.9919418703
A59: 2009 | B59: 100 | C59: 90.4974303 | D59: 38.29272284 | E59: 52.20470746 | F59: 9.502569696 | G59: 7.546292527 | H59: 1.21506248 | J59: 0.7412146892
A60: 2010 | B60: 100 | C60: 90.2497876 | D60: 39.54417547 | E60: 50.70561213 | F60: 9.750212399 | G60: 7.796127898 | H60: 1.181648405 | J60: 0.7724360964
A61: 2011 | B61: 100 | C61: 89.48765244 | D61: 39.38596491 | E61: 50.10168753 | F61: 10.51234756 | G61: 7.671201226 | H61: 2.071410787 | J61: 0.7697355486
A62: 2012 | B62: =B28/$B28*100 -> 100 | C62: 89.71732475 | D62: 40.68440418 | E62: 49.03292057 | F62: 10.28267525 | G62: 6.942351129 | H62: 2.455335366 | J62: 0.8849887584
A63: 2013 | B63: =B29/$B29*100 -> 100 | C63: 90.63047392 | D63: 41.69968004 | E63: 48.93079388 | F63: 9.369526081 | G63: 6.8333951 | H63: 1.832639565 | J63: 0.7034914155
A64: 2014 | B64: 100 | C64: 91.07225593 | D64: 41.89083405 | E64: 49.18142188 | F64: 8.927744075 | G64: 6.710827177 | H64: 0.3623812749 | I64: =I30/$B30*100 -> 1.09190023 | J64: 0.7626353928
A65: 2015 | B65: 100 | C65: 90.21631078 | D65: 42.49098412 | E65: 47.72532666 | F65: 9.783689217 | G65: 6.886632213 | H65: 0.4837047145 | I65: =I31/$B31*100 -> 1.792781729 | J65: 0.6205705608
A66: 2016 | B66: 100 | C66: 91.08215596 | D66: 42.12042121 | E66: 48.96173475 | F66: 8.917844041 | G66: 6.714547975 | H66: 0.2842318189 | I66: =I32/$B32*100 -> 1.308902261 | J66: 0.6101619867
A67: 2017 | B67: 100 | C67: 91.4415744 | D67: 42.40631811 | E67: 49.03525629 | F67: 8.558425601 | G67: 5.798758377 | H67: 0.3591853266 | I67: =I33/$B33*100 -> 1.60226148 | J67: 0.5071406919 | K67: =K33/$B33*100 -> 0.2910797251
A68: 2018 | B68: 100 | C68: 91.13771724 | D68: 42.36295715 | E68: 48.77476009 | F68: 8.862282758 | G68: 6.367333588 | H68: 0.438446214 | I68: =I34/$B34*100 -> 0.9819420774 | J68: 0.5901691305 | K68: =K34/$B34*100 -> 0.4843917482
A69: 2019 | B69: =B35/$B35*100 -> 100 | C69: 90.68014781 | D69: 41.96956145 | E69: 48.71058637 | F69: 9.319852187 | G69: 6.397350701 | H69: 0.418495223 | I69: 1.341772596 | J69: 0.6139996659 | K69: 0.5482340014
A70: 2020 | B70: =B36/$B36*100 -> 100 | C70: 90.80756843 | D70: 43.4886147 | E70: 47.31895373 | F70: 9.192431571 | G70: 6.286861413 | H70: 0.6450015495 | I70: 1.173809567 | J70: 0.598539023 | K70: 0.4882200186
A71: 2021 | B71: =B37/$B37*100 -> 100 | C71: 90.80037096 | D71: 44.81437502 | E71: 45.98599594 | F71: 9.199629036 | G71: 6.34593891 | H71: 0.3976964316 | I71: 1.224355499 | J71: 0.6956167714 | K71: 0.5360214236
A72: 2022 | B72: =B38/$B38*100 -> 100 | C72: =C38/$B38*100 -> 91.27230014 | D72: 43.61703448 | E72: 47.65526565 | F72: 8.727699862 | G72: 6.437000875 | H72: 0.1973220804 | I72: 0.9711611301 | J72: 0.7237233964 | K72: 0.3984923797
A73: 2023 | B73: =B39/$B39*100 -> 100 | C73: =C39/$B39*100 -> 91.6939629 | D73: 42.38351932 | E73: 49.31044359 | F73: 8.306037098 | G73: 5.862987196 | H73: 0.1398517971 | I73: 1.063809956 | J73: 0.7635447201 | K73: 0.4758434296
A74: 전년대비증가율(%) Percent change from previous year
A75: 1991 | B75: =(B7/B6-1)*100 -> 
A76: 1992 | B76: =(B8/B7-1)*100 -> 19.97361992 | C76: 24.55840482 | D76: 26.87232542 | E76: 22.44645338 | F76: 9.588012805 | G76: 0.4789089348 | H76: 28.17229559
A77: 1993 | B77: =(B9/B8-1)*100 -> 23.33022184 | C77: 19.72770355 | D77: 13.37136268 | E77: 25.73893353 | F77: 32.60546204 | G77: 32.50537995 | H77: 32.76553106
A78: 1994 | B78: =(B10/B9-1)*100 -> 28.30761925 | C78: 29.27909134 | D78: 24.83102981 | E78: 33.07189661 | F78: 26.04931454 | G78: 42.21536152 | H78: 0.2443711861
A79: 1995 | B79: =(B11/B10-1)*100 -> 19.58087062 | C79: 28.76234445 | D79: 27.86211271 | E79: 29.48242369 | F79: -2.309464664 | G79: 3.55879803 | H79: -15.59855134
A80: 1996 | B80: =(B12/B11-1)*100 -> 15.22619417 | C80: 14.9645326 | D80: 14.59014277 | E80: 15.26025285 | F80: 16.04846774 | G80: 16.39226582 | H80: 15.09319777
A81: 1997 | B81: 12.02196974 | C81: 14.50158708 | D81: 12.96813109 | E81: 15.70577989 | F81: 4.302534468 | G81: 10.58383832 | H81: -13.34755682
A82: 1998 | B82: -6.96868086 | C82: -6.91541107 | D82: -5.15034331 | E82: -8.268688961 | F82: -7.150734135 | G82: -4.383485815 | H82: -17.07403442
A83: 1999 | B83: 5.161460425 | C83: 4.525511878 | D83: -0.5073583453 | E83: 8.5153888 | F83: 7.340367963 | G83: 18.31406723 | H83: -38.0332516
A84: 2000 | B84: 16.16162624 | C84: 19.28605871 | D84: 22.74981058 | E84: 16.76843876 | F84: 5.737319394 | G84: 2.102615866 | H84: 34.43171224
A85: 2001 | B85: 16.33404931 | C85: 21.09309739 | D85: 17.09272243 | E85: 24.14970336 | F85: -1.578505455 | G85: -2.718610895 | H85: 5.257591346
A86: 2002 | B86: 7.538922689 | C86: 10.12649023 | D86: 17.61912503 | E86: 4.726940594 | F86: -4.443884347 | G86: -10.9101868 | H86: -31.15928873
A87: 2003 | B87: 10.064023 | C87: 12.8218674 | D87: 15.86184569 | E87: 10.36142624 | F87: -4.65469351 | G87: -9.018039431 | H87: 12.19593793 | J87: =(J19/J18-1)*100 -> 11.23988056
A88: 2004 | B88: 16.34439657 | C88: 17.84349068 | D88: 17.15674253 | E88: 18.42702061 | F88: 6.877164045 | G88: 12.41176273 | H88: -22.47379312 | J88: 3.728548136
A89: 2005 | B89: 8.880054728 | C89: 8.686377455 | D89: 12.3477581 | E89: 5.608672353 | F89: 10.2286868 | G89: 8.385151415 | H89: 14.49709226 | J89: 19.58490674
A90: 2006 | B90: =(B22/B21-1)*100 -> 13.20735199 | C90: 11.30016595 | D90: 12.17871205 | E90: 10.51454781 | F90: 26.30183521 | G90: 24.46966552 | H90: 57.56778132 | J90: 13.08348377
A91: 2007 | B91: 14.46542808 | C91: 16.084076 | D91: 14.67248816 | E91: 17.36536134 | F91: 4.672020084 | G91: 1.740422284 | H91: 23.37840958 | J91: 4.427923432
A92: 2008 | B92: 10.21257484 | C92: 13.14034437 | D92: 9.244018195 | E92: 16.59585754 | F92: -9.432802917 | G92: -11.2720638 | H92: 10.68581529 | J92: -23.23494383
A93: 2009 | B93: 9.943889635 | C93: 11.36602754 | D93: 3.833146836 | E93: 17.62543006 | F93: -1.977085447 | G93: 6.42277048 | H93: -28.57383222 | J93: -17.84596616
A94: 2010 | B94: 15.62500941 | C94: 15.30860606 | D94: 19.40377497 | E94: 12.30475496 | F94: 18.63826696 | G94: 19.45301064 | H94: 12.4453353 | J94: 20.49536013
A95: 2011 | B95: 13.76264388 | C95: 12.80194898 | D95: 13.30749589 | E95: 12.40768422 | F95: 22.6550154 | G95: 11.93968912 | H95: 99.42409828 | J95: 13.3649133
A96: 2012 | B96: 11.14381642 | C96: 11.42906982 | D96: 14.80790073 | E96: 8.772901489 | F96: 8.715561772 | G96: 0.583908145 | H96: 31.74371053 | J96: 27.78548201
A97: 2013 | B97: 6.944681062 | C97: 8.033171466 | D97: 9.613476518 | E97: 6.721934674 | F97: -2.552501789 | G97: 5.266248553 | H97: -20.17748104 | J97: -14.98799917
A98: 2014 | B98: =(B30/B29-1)*100 -> 7.475727646 | C98: 7.999622541 | D98: 7.96840328 | E98: 8.026228142 | F98: 2.408145556 | G98: 5.547977745 | H98: =((H30+I30)/H29-1)*100 -> -14.71320061 | J98: 16.5114342
A99: 2015 | B99: =(B31/B30-1)*100 -> 3.49144963 | C99: 2.518782348 | D99: 4.974122455 | E99: 0.4274185566 | F99: 13.41366546 | G99: 6.202638215 | H99: =(H31/H30-1)*100 -> 38.1398697 | I99: 69.92173356 | J99: -15.78708837
A100: 2016 | B100: =(B32/B31-1)*100 -> 5.224667956 | C100: 6.234554864 | D100: 4.307005996 | E100: 7.950697091 | F100: -4.08759341 | G100: 2.595297566 | H100: -38.16847786 | I100: -23.17592064 | J100: =(J32/J31-1)*100 -> 3.459777987
A101: 2017 | B101: 13.52004301 | C101: 13.96800338 | D101: 14.29057255 | E101: 13.69050609 | F101: 8.944811969 | G101: -1.962827165 | H101: 43.45590822 | I101: 38.96285274 | J101: =(J33/J32-1)*100 -> -5.646968487
A102: 2018 | B102: =(B34/B33-1)*100 -> 8.807715366 | C102: 8.446151129 | D102: 8.696458203 | E102: 8.229682363 | F102: 12.67080943 | G102: 19.47644232 | H102: 32.81815076 | I102: -33.3174545 | J102: 26.62157817 | K102: =(K34/K33-1)*100 -> 81.06915364
A103: 2019 | B103: =(B35/B34-1)*100 -> 3.870771176 | C103: 3.349273701 | D103: 2.90619462 | E103: 3.73410676 | F103: 9.233733601 | G103: 4.360442497 | H103: -0.8557488668 | I103: 41.93398721 | J103: 8.064985962 | K103: 17.56081462
A104: 2020 | B104: =(B36/B35-1)*100 -> 4.519642309 | C104: 4.666509705 | D104: 8.302643548 | E104: 1.533577952 | F104: 3.090654278 | G104: 2.714473044 | H104: 61.0898465 | I104: -8.564121478 | J104: 1.887815361 | K104: -6.921895431
A105: 2021 | B105: =(B37/B36-1)*100 -> 9.738253808 | C105: 9.729555885 | D105: 13.08364946 | E105: 6.646966949 | F105: 9.824176368 | G105: 10.76946174 | H105: -32.33735332 | I105: 14.46374125 | J105: 27.53683031 | K105: 20.48267747
A106: 2022 | B106: 10.29102626 | C106: 10.86425688 | D106: 7.344295064 | E106: 14.2945379 | F106: 4.633238029 | G106: 11.87366325 | H106: -45.27772185 | I106: -12.51694645 | J106: 14.74737154 | K106: -18.00675948
A107: 2023 | B107: 5.706386729 | C107: 6.194732559 | D107: 2.716948475 | E107: 9.377814769 | F107: 0.5993771078 | G107: -3.719883853 | H107: -25.08072023 | I107: 15.79078186 | J107: 11.52265337 | K107: 26.22497231
A109: 주 : 1. 2014년(조사대상년도)부터 토지와 건물을 구분
A110: 2. 2014년(조사대상년도) 전년대비 증가율은 토지와 건물을 합하여 산출
A111: 3. 2017년(조사대상년도) 기타 지식재산물 항목 신설

Sheet 2-5
A1: 2-5) 연구개발단계별 연구개발비
A2: R&D expenditure by type of R&D
K3: (단위 : 백만원 Unit : Won, Millions)
A4: 연도·연구수행주체 Year · Sector of performance | C4: 연구개발수행기관 R&D performing inst. | D4: 총계 Total | F4: 기초연구 Basic research | H4: 응용연구 Applied research | J4: 개발연구 Experimental development
E5: 구성비(%) | G5: 구성비(%) | I5: 구성비(%) | K5: 구성비(%)
A6: 1995 | B6: 계 Total | C6: =SUM(C7:C9) -> 2587 | D6: =SUM(D7:D9) -> 9440606 | E6: =D6/$D6*100 -> 100 | F6: 1176819 | G6: =F6/$D6*100 -> 12.46550274 | H6: 2362110 | I6: =H6/$D6*100 -> 25.02074549 | J6: 5901677 | K6: =J6/$D6*100 -> 62.51375177
B7: 공공연구기관 Public research institutes | C7: 178 | D7: =F7+H7+J7 -> 1766713 | E7: 100 | F7: 249948 | G7: 14.14762896 | H7: 587561 | I7: 33.25729759 | J7: 929204 | K7: 52.59507345
B8: 대학 Higher educations | C8: 257 | D8: =F8+H8+J8 -> 770912 | E8: 100 | F8: 372851 | G8: 48.36492362 | H8: 205618 | I8: 26.67204558 | J8: 192443 | K8: 24.9630308
B9: 기업체 Business enterprises | C9: 2152 | D9: =F9+H9+J9 -> 6902981 | E9: 100 | F9: 554020 | G9: 8.025807981 | H9: 1568931 | I9: 22.72831115 | J9: 4780030 | K9: 69.24588087
A10: 1996 | B10: 계 Total | C10: =SUM(C11:C13) -> 2856 | D10: =SUM(D11:D13) -> 10878051 | E10: 100 | F10: 1439020 | G10: 13.22865649 | H10: 2927270 | I10: 26.90987568 | J10: 6511761 | K10: 59.86146783
B11: 공공연구기관 Public research institutes | C11: 163 | D11: =F11+H11+J11 -> 1895618 | E11: 100 | F11: 340156 | G11: 17.94433267 | H11: 561389 | I11: 29.61509123 | J11: 994073 | K11: 52.44057611
B12: 대학 Higher educations | C12: 258 | D12: =F12+H12+J12 -> 1018822 | E12: 100 | F12: 452063 | G12: 44.37114628 | H12: 270913 | I12: 26.59080782 | J12: 295846 | K12: 29.0380459
B13: 기업체 Business enterprises | C13: 2435 | D13: =F13+H13+J13 -> 7963611 | E13: 100 | F13: 646801 | G13: 8.121956233 | H13: 2094968 | I13: 26.30675958 | J13: 5221842 | K13: 65.57128418
A14: 1997 | B14: 계 Total | C14: =SUM(C15:C17) -> 2962 | D14: =SUM(D15:D17) -> 12185807 | E14: 100 | F14: 1616490 | G14: =F14/$D14*100 -> 13.26535042 | H14: 3470560 | I14: 28.48034603 | J14: 7098757 | K14: 58.25430355
B15: 공공연구기관 Public research institutes | C15: 184 | D15: =F15+H15+J15 -> 2068900 | E15: 100 | F15: 419311 | G15: 20.26734013 | H15: 716210 | I15: 34.6179129 | J15: 933379 | K15: 45.11474697
B16: 대학 Higher educations | C16: 271 | D16: =F16+H16+J16 -> 1271600 | E16: 100 | F16: 480168 | G16: 37.76093111 | H16: 400962 | I16: 31.53208556 | J16: 390470 | K16: 30.70698333
B17: 기업체 Business enterprises | C17: 2507 | D17: =F17+H17+J17 -> 8845307 | E17: 100 | F17: 717011 | G17: 8.106117741 | H17: 2353388 | I17: 26.60606353 | J17: 5774908 | K17: 65.28781873
A18: 1998 | B18: 계 Total | C18: =SUM(C19:C21) -> 2869 | D18: =SUM(D19:D21) -> 11336617 | E18: 100 | F18: 1585367 | G18: 13.98448056 | H18: 2848458 | I18: 25.126173 | J18: 6902792 | K18: 60.88934644
B19: 공공연구기관 Public research institutes | C19: 183 | D19: =F19+H19+J19 -> 2099470 | E19: =D19/$D19*100 -> 100 | F19: 561521 | G19: 26.74584538 | H19: 741199 | I19: =H19/$D19*100 -> 35.30410056 | J19: 796750 | K19: =J19/$D19*100 -> 37.95005406
B20: 대학 Higher educations | C20: 267 | D20: =F20+H20+J20 -> 1265074 | E20: 100 | F20: 507261 | G20: =F20/$D20*100 -> 40.09733818 | H20: 427539 | I20: 33.79557243 | J20: 330274 | K20: 26.10708939
B21: 기업체 Business enterprises | C21: 2419 | D21: =F21+H21+J21 -> 7972073 | E21: 100 | F21: 516585 | G21: 6.479933137 | H21: 1679720 | I21: 21.07005292 | J21: 5775768 | K21: 72.45001394
A22: 1999 | B22: 계 Total | C22: =SUM(C23:C25) -> 3059 | D22: =SUM(D23:D25) -> 11921752 | E22: 100 | F22: 1625477 | G22: 13.63454801 | H22: 3065197 | I22: 25.71096094 | J22: 7231078 | K22: 60.65449105
B23: 공공연구기관 Public research institutes | C23: 169 | D23: =F23+H23+J23 -> 1979174 | E23: 100 | F23: 494138 | G23: 24.96688012 | H23: 756409 | I23: 38.21841839 | J23: 728627 | K23: 36.81470149
B24: 대학 Higher educations | C24: 285 | D24: =F24+H24+J24 -> 1431421 | E24: 100 | F24: 491402 | G24: 34.32966262 | H24: 479440 | I24: 33.49398954 | J24: 460579 | K24: 32.17634784
B25: 기업체 Business enterprises | C25: 2605 | D25: =F25+H25+J25 -> 8511157 | E25: 100 | F25: 639937 | G25: 7.518801498 | H25: 1829348 | I25: 21.49352902 | J25: 6041872 | K25: 70.98766948
A26: 2000 | B26: 계 Total | C26: =SUM(C27:C29) -> 4635 | D26: =SUM(D27:D29) -> 13848501 | E26: 100 | F26: 1746138 | G26: 12.60885925 | H26: 3370088.5 | I26: 24.3354028 | J26: 8732274.5 | K26: 63.05573795
B27: 공공연구기관 Public research institutes | C27: 173 | D27: =F27+H27+J27 -> 2031981 | E27: 100 | F27: 454443 | G27: 22.36452998 | H27: 672213 | I27: 33.08165775 | J27: 905325 | K27: 44.55381226
B28: 대학 Higher educations | C28: 268 | D28: =F28+H28+J28 -> 1561865 | E28: 100 | F28: 661562 | G28: 42.35718196 | H28: 475685 | I28: 30.45621741 | J28: 424618 | K28: 27.18660063
B29: 기업체 Business enterprises | C29: 4194 | D29: =F29+H29+J29 -> 10254655 | E29: 100 | F29: 630133 | G29: 6.144848364 | H29: 2222190.5 | I29: 21.67006594 | J29: 7402331.5 | K29: 72.1850857
A30: 2001 | B30: 계 Total | C30: =SUM(C31:C33) -> 6801 | D30: =SUM(D31:D33) -> 16110521.98 | E30: 100 | F30: 2025019.904 | G30: 12.56954869 | H30: 4075940.789 | I30: 25.29986796 | J30: 10009561.29 | K30: 62.13058336
B31: 공공연구기관 Public research institutes | C31: 188 | D31: =F31+H31+J31 -> 2160166.079 | E31: 100 | F31: 438260.1848 | G31: 20.28826344 | H31: 894402.6681 | I31: 41.40434742 | J31: 827503.2261 | K31: 38.30738915
B32: 대학 Higher educations | C32: 276 | D32: =F32+H32+J32 -> 1676777.181 | E32: 100 | F32: 679826.0851 | G32: 40.54361503 | H32: 498455.4529 | I32: 29.72699406 | J32: 498495.643 | K32: 29.72939092
B33: 기업체 Business enterprises | C33: 6337 | D33: =F33+H33+J33 -> 12273578.72 | E33: 100 | F33: 906933.6342 | G33: 7.389316961 | H33: 2683082.668 | I33: 21.86063844 | J33: 8683562.42 | K33: 70.7500446
A34: 2002 | B34: 계 Total | C34: =SUM(C35:C37) -> 7210 | D34: =SUM(D35:D37) -> 17325081.78 | E34: 100 | F34: 2373234.759 | G34: 13.69826007 | H34: 3763601.721 | I34: 21.72342832 | J34: 11188245.3 | K34: 64.57831162
B35: 공공연구기관 Public research institutes | C35: 163 | D35: =F35+H35+J35 -> 2552631.59 | E35: 100 | F35: 526181.77 | G35: 20.61330636 | H35: 1015664.28 | I35: 39.78890977 | J35: 1010785.54 | K35: 39.59778387
B36: 대학 Higher educations | C36: 304 | D36: =F36+H36+J36 -> 1797096.31 | E36: 100 | F36: 666130.197 | G36: 37.06702826 | H36: 596213.366 | I36: 33.17648379 | J36: 534752.747 | K36: 29.75648795
B37: 기업체 Business enterprises | C37: 6743 | D37: =F37+H37+J37 -> 12975353.88 | E37: 100 | F37: 1180922.792 | G37: 9.101276181 | H37: 2151724.075 | I37: 16.58316293 | J37: 9642707.012 | K37: 74.31556089
A38: 2003 | B38: 계 Total | C38: =SUM(C39:C41) -> 7127 | D38: =SUM(D39:D41) -> 19068681.99 | E38: 100 | F38: 2758620.607 | G38: 14.46676078 | H38: 3973994.147 | I38: 20.84042383 | J38: 12336067.24 | K38: 64.69281539
B39: 공공연구기관 Public research institutes | C39: 169 | D39: =F39+H39+J39 -> 2626355.83 | E39: 100 | F39: 525515.4 | G39: 20.00929935 | H39: 972984.43 | I39: 37.04693853 | J39: 1127856 | K39: 42.94376212
B40: 대학 Higher educations | C40: 310 | D40: =F40+H40+J40 -> 1932662.944 | E40: 100 | F40: 695637.7575 | G40: 35.99374426 | H40: 634121.9068 | I40: 32.81078621 | J40: 602903.2797 | K40: 31.19546952
B41: 기업체 Business enterprises | C41: 6648 | D41: =F41+H41+J41 -> 14509663.22 | E41: 100 | F41: 1537467.45 | G41: 10.5961622 | H41: 2366887.81 | I41: 16.31249309 | J41: 10605307.96 | K41: 73.09134471
A42: 2004 | B42: 계 Total | C42: =SUM(C43:C45) -> 7254 | D42: =SUM(D43:D45) -> 22185343 | E42: 100 | F42: 3399400 | G42: 15.32272906 | H42: 4712161 | I42: 21.23997362 | J42: 14073782 | K42: 63.43729732
B43: 공공연구기관 Public research institutes | C43: 159 | D43: =F43+H43+J43 -> 2964646 | E43: 100 | F43: 616140 | G43: 20.78291978 | H43: 1151992 | I43: 38.85765788 | J43: 1196514 | K43: 40.35942234
B44: 대학 Higher educations | C44: 293 | D44: =F44+H44+J44 -> 2200886 | E44: 100 | F44: 736761 | G44: 33.4756548 | H44: 760983 | I44: 34.57621158 | J44: 703142 | K44: 31.94813362
B45: 기업체 Business enterprises | C45: 6802 | D45: =F45+H45+J45 -> 17019811 | E45: 100 | F45: 2046499 | G45: 12.02421696 | H45: 2799186 | I45: 16.44663387 | J45: 12174126 | K45: 71.52914918
A46: 2005 | B46: 계 Total | C46: =SUM(C47:C49) -> 7761 | D46: =SUM(D47:D49) -> 24155414 | E46: 100 | F46: 3706840 | G46: 15.3457937 | H46: 5034149 | I46: 20.84066537 | J46: 15414425 | K46: 63.81354093
B47: 공공연구기관 Public research institutes | C47: 137 | D47: =F47+H47+J47 -> 3192887 | E47: 100 | F47: 684540 | G47: 21.43953106 | H47: 1158356 | I47: 36.27926701 | J47: 1349991 | K47: 42.28120193
B48: 대학 Higher educations | C48: 256 | D48: =F48+H48+J48 -> 2398284 | E48: 100 | F48: 833799 | G48: 34.76648304 | H48: 825172 | I48: 34.40676751 | J48: 739313 | K48: 30.82674946
B49: 기업체 Business enterprises | C49: 7368 | D49: =F49+H49+J49 -> 18564243 | E49: 100 | F49: 2188501 | G49: 11.78879742 | H49: 3050621 | I49: 16.43277886 | J49: 13325121 | K49: 71.77842371
A50: 2006 | B50: 계 Total | C50: =SUM(C51:C53) -> 9443 | D50: =SUM(D51:D53) -> 27345704.1 | E50: 100 | F50: 4143273.139 | G50: 15.15145898 | H50: 5430098.263 | I50: 19.85722599 | J50: 17772332.7 | K50: 64.99131503
B51: 공공연구기관 Public research institutes | C51: 139 | D51: =F51+H51+J51 -> 3497050.1 | E51: 100 | F51: 716725 | G51: 20.49513102 | H51: 1252429.6 | I51: 35.81388783 | J51: 1527895.5 | K51: 43.69098115
B52: 대학 Higher educations | C52: 268 | D52: =F52+H52+J52 -> 2721874 | E52: 100 | F52: 909221.0082 | G52: 33.40422842 | H52: 876798.079 | I52: 32.21302966 | J52: 935854.9128 | K52: 34.38274192
B53: 기업체 Business enterprises | C53: 9036 | D53: =F53+H53+J53 -> 21126780 | E53: 100 | F53: 2517327.131 | G53: 11.91533746 | H53: 3300870.584 | I53: 15.62410639 | J53: 15308582.29 | K53: 72.46055615
A54: 2007 | B54: 계 Total | C54: =SUM(C55:C57) -> 11200 | D54: =SUM(D55:D57) -> 31301377.26 | E54: 100 | F54: 4918688.629 | G54: 15.71396871 | H54: 6210834.345 | I54: 19.84204814 | J54: 20171854.29 | K54: 64.44398315
B55: 공공연구기관 Public research institutes | C55: 188 | D55: =F55+H55+J55 -> 4102365.7 | E55: 100 | F55: 995180.1 | G55: 24.2586881 | H55: 1503405.9 | I55: 36.6472911 | J55: 1603779.7 | K55: 39.0940208
B56: 대학 Higher educations | C56: 322 | D56: =F56+H56+J56 -> 3334118.57 | E56: 100 | F56: 1369545.13 | G56: 41.07667743 | H56: 873851.5 | I56: 26.20937083 | J56: 1090721.94 | K56: 32.71395174
B57: 기업체 Business enterprises | C57: 10690 | D57: =F57+H57+J57 -> 23864892.99 | E57: 100 | F57: 2553963.399 | G57: 10.70175927 | H57: 3833576.945 | I57: 16.06366702 | J57: 17477352.65 | K57: 73.2345737
A58: 2008 | B58: 계 Total | C58: =SUM(C59:C61) -> 12822 | D58: =SUM(D59:D61) -> 34498053.84 | E58: 100 | F58: 5537090.578 | G58: 16.05044332 | H58: 6773869.412 | I58: 19.63551174 | J58: 22187093.85 | K58: 64.31404494
B59: 공공연구기관 Public research institutes | C59: 228 | D59: =F59+H59+J59 -> 4653235.6 | E59: 100 | F59: 1053146.194 | G59: 22.63255688 | H59: 1510661.241 | I59: 32.46474864 | J59: 2089428.165 | K59: 44.90269448
B60: 대학 Higher educations | C60: 338 | D60: =F60+H60+J60 -> 3844749.4 | E60: 100 | F60: 1419209.395 | G60: 36.91292325 | H60: 1201965.411 | I60: 31.26251639 | J60: 1223574.593 | K60: 31.82456036
B61: 기업체 Business enterprises | C61: 12256 | D61: =F61+H61+J61 -> 26000068.84 | E61: 100 | F61: 3064734.989 | G61: 11.78741105 | H61: 4061242.76 | I61: 15.6201231 | J61: 18874091.09 | K61: 72.59246584
A62: 2009 | B62: 계 Total | C62: =SUM(C63:C65) -> 15237 | D62: =SUM(D63:D65) -> 37928502.24 | E62: 100 | F62: 6849096.196 | G62: 18.05791368 | H62: 7574286.807 | I62: 19.96990748 | J62: 23505119.24 | K62: 61.97217883
B63: 공공연구기관 Public research institutes | C63: 252 | D63: =F63+H63+J63 -> 5558383.7 | E63: 100 | F63: 1446414.5 | G63: 26.02221398 | H63: 1602959.7 | I63: 28.83859385 | J63: 2509009.5 | K63: 45.13919217
B64: 대학 Higher educations | C64: 359 | D64: =F64+H64+J64 -> 4204259.4 | E64: 100 | F64: 1523234.6 | G64: 36.23074732 | H64: 1245293.1 | I64: 29.61979701 | J64: 1435731.7 | K64: 34.14945567
B65: 기업체 Business enterprises | C65: 14626 | D65: =F65+H65+J65 -> 28165859.14 | E65: 100 | F65: 3879447.096 | G65: 13.77357984 | H65: 4726034.007 | I65: 16.77930001 | J65: 19560378.04 | K65: 69.44712015
A66: 2010 | B66: 계 Total | C66: =SUM(C67:C69) -> 16550 | D66: =SUM(D67:D69) -> 43854834.28 | E66: 100 | F66: 7991019.6 | G66: 18.22152502 | H66: 8742664.421 | I66: 19.93546336 | J66: 27121150.26 | K66: 61.84301162
B67: 공공연구기관 Public research institutes | C67: 261 | D67: =F67+H67+J67 -> 6306136.03 | E67: 100 | F67: 1763069.36 | G67: 27.9579976 | H67: 1794518.37 | I67: 28.45670251 | J67: 2748548.3 | K67: 43.58529989
B68: 대학 Higher educations | C68: 352 | D68: =F68+H68+J68 -> 4745458.693 | E68: 100 | F68: 1677091.85 | G68: 35.34098511 | H68: 1498120.1 | I68: 31.56955306 | J68: 1570246.743 | K68: 33.08946183
B69: 기업체 Business enterprises | C69: 15937 | D69: =F69+H69+J69 -> 32803239.56 | E69: 100 | F69: 4550858.39 | G69: 13.87319805 | H69: 5450025.951 | I69: 16.61429183 | J69: 22802355.22 | K69: 69.51251012
A70: 2011 | B70: 계 Total | C70: =SUM(C71:C73) -> 20372 | D70: =SUM(D71:D73) -> 49890418.95 | E70: =D70/$D70*100 -> 100 | F70: 9013211.34 | G70: =F70/$D70*100 -> 18.06601654 | H70: 10116538.75 | I70: =H70/$D70*100 -> 20.27751813 | J70: 30760668.86 | K70: =J70/$D70*100 -> 61.65646533
B71: 공공연구기관 Public research institutes | C71: 268 | D71: =F71+H71+J71 -> 6673311.11 | E71: 100 | F71: 2072824.81 | G71: 31.06141428 | H71: 1856153.05 | I71: 27.8145739 | J71: 2744333.25 | K71: 41.12401183
B72: 대학 Higher educations | C72: 350 | D72: =F72+H72+J72 -> 5033816.5 | E72: 100 | F72: 1860682.2 | G72: 36.96364776 | H72: 1662220.3 | I72: 33.02107457 | J72: 1510914 | K72: 30.01527767
B73: 기업체 Business enterprises | C73: 19754 | D73: =F73+H73+J73 -> 38183291.34 | E73: 100 | F73: 5079704.33 | G73: 13.30347425 | H73: 6598165.396 | I73: 17.28024265 | J73: 26505421.61 | K73: 69.4162831
A74: 2012 | B74: 계 Total | C74: =SUM(C75:C77) -> 23533 | D74: =SUM(D75:D77) -> 55450115.65 | E74: 100 | F74: 10153311.53 | G74: 18.31071298 | H74: 10572652.52 | I74: 19.06696207 | J74: 34724151.6 | K74: 62.62232494
B75: 공공연구기관 Public research institutes | C75: 272 | D75: =F75+H75+J75 -> 6950261.67 | E75: 100 | F75: 2372764.13 | G75: 34.13920573 | H75: 1690754.94 | I75: 24.32649331 | J75: 2886742.6 | K75: 41.53430097
B76: 대학 Higher educations | C76: 344 | D76: =F76+H76+J76 -> 5276928.439 | E76: 100 | F76: 2112598.468 | G76: 40.03462417 | H76: 1545750.967 | I76: 29.29262704 | J76: 1618579.004 | K76: 30.67274879
B77: 기업체 Business enterprises | C77: 22917 | D77: =F77+H77+J77 -> 43222925.54 | E77: 100 | F77: 5667948.928 | G77: 13.11329313 | H77: 7336146.614 | I77: 16.97281367 | J77: 30218830 | K77: 69.9138932
A78: 2013 | B78: 계 Total | C78: =SUM(C79:C81) -> 25882 | D78: =SUM(D79:D81) -> 59300949.33 | E78: =D78/$D78*100 -> 100 | F78: 10665765.32 | G78: =F78/$D78*100 -> 17.98582559 | H78: 11315883.15 | I78: =H78/$D78*100 -> 19.08212816 | J78: 37319300.86 | K78: =J78/$D78*100 -> 62.93204625
B79: 공공연구기관 Public research institutes | C79: 326 | D79: =F79+H79+J79 -> 7260710.547 | E79: 100 | F79: 2393866.71 | G79: 32.97014382 | H79: 1674619.287 | I79: 23.06412404 | J79: 3192224.55 | K79: 43.96573213
B80: 대학 Higher educations | C80: 371 | D80: =F80+H80+J80 -> 5480322.53 | E80: 100 | F80: 2187559.25 | G80: 39.91661509 | H80: 1689983.49 | I80: 30.83729983 | J80: 1602779.79 | K80: 29.24608508
B81: 기업체 Business enterprises | C81: 25185 | D81: =F81+H81+J81 -> 46559916.25 | E81: 100 | F81: 6084339.361 | G81: 13.06776268 | H81: 7951280.376 | I81: 17.07752293 | J81: 32524296.52 | K81: 69.85471439
A82: 2014 | B82: 계 Total | C82: =SUM(C83:C85) -> 30111 | D82: =SUM(D83:D85) -> 63734126.79 | E82: 100 | F82: 11242600.29 | G82: 17.63984361 | H82: 12058498.37 | I82: 18.92000248 | J82: 40433028.13 | K82: 63.44015391
B83: 공공연구기관 Public research institutes | C83: 348 | D83: =F83+H83+J83 -> 8112700.933 | E83: 100 | F83: 2530137.297 | G83: 31.18736063 | H83: 1732691.855 | I83: 21.35776814 | J83: 3849871.781 | K83: 47.45487123
B84: 대학 Higher educations | C84: 371 | D84: =F84+H84+J84 -> 5766960.87 | E84: 100 | F84: 2171150.589 | G84: 37.64808949 | H84: 1846515.494 | I84: 32.01886637 | J84: 1749294.786 | K84: 30.33304414
B85: 기업체 Business enterprises | C85: 29392 | D85: =F85+H85+J85 -> 49854464.99 | E85: 100 | F85: 6541312.408 | G85: 13.12081558 | H85: 8479291.02 | I85: 17.00808748 | J85: 34833861.56 | K85: 69.87109694
A86: 2015 | B86: 계 Total | C86: =SUM(C87:C89) -> 35379 | D86: =SUM(D87:D89) -> 65959371.73 | E86: =D86/$D86*100 -> 100 | F86: 11361657.87 | G86: =F86/$D86*100 -> 17.22523665 | H86: 13744954.17 | I86: =H86/$D86*100 -> 20.83851591 | J86: 40852759.68 | K86: =J86/$D86*100 -> 61.93624744
B87: 공공연구기관 Public research institutes | C87: 372 | D87: =F87+H87+J87 -> 8824078.748 | E87: 100 | F87: 2879746.604 | G87: 32.63509638 | H87: 1872355.147 | I87: 21.21870396 | J87: 4071976.998 | K87: 46.14619967
B88: 대학 Higher educations | C88: 365 | D88: =F88+H88+J88 -> 5998872.479 | E88: 100 | F88: 2119484.663 | G88: 35.33138386 | H88: 1983975.404 | I88: 33.07247172 | J88: 1895412.412 | K88: 31.59614442
B89: 기업체 Business enterprises | C89: 34642 | D89: =F89+H89+J89 -> 51136420.5 | E89: 100 | F89: 6362426.604 | G89: 12.44206486 | H89: 9888623.621 | I89: 19.33773136 | J89: 34885370.27 | K89: 68.22020379
A90: 2016 | B90: 계 Total | C90: =SUM(C91:C93) -> 37218 | D90: =SUM(D91:D93) -> 69405529.89 | E90: 100 | F90: 11086652.8 | G90: 15.97373122 | H90: 15621429.66 | I90: 22.50747121 | J90: 42697447.43 | K90: 61.51879757
B91: 공공연구기관 Public research institutes | C91: 372 | D91: =F91+H91+J91 -> 9113170.697 | E91: 100 | F91: 2478945.597 | G91: 27.20179046 | H91: 2323017 | I91: 25.49076581 | J91: 4311208.1 | K91: 47.30744374
B92: 대학 Higher educations | C92: 368 | D92: =F92+H92+J92 -> 6339887.929 | E92: 100 | F92: 2209088.156 | G92: 34.8442777 | H92: 2116431.534 | I92: 33.38279095 | J92: 2014368.239 | K92: 31.77293135
B93: 기업체 Business enterprises | C93: 36478 | D93: =F93+H93+J93 -> 53952471.26 | E93: 100 | F93: 6398619.043 | G93: =F93/$D93*100 -> 11.85973301 | H93: 11181981.12 | I93: =H93/$D93*100 -> 20.72561435 | J93: 36371871.09 | K93: =J93/$D93*100 -> 67.41465265
A94: 2017 | B94: 계 Total | C94: =SUM(C95:C97) -> 42368 | D94: =SUM(D95:D97) -> 78789187.37 | E94: =D94/$D94*100 -> 100 | F94: 11391103.29 | G94: 14.45769866 | H94: 17315901.47 | I94: 21.97750992 | J94: 50082182.61 | K94: 63.56479142
B95: 공공연구기관 Public research institutes | C95: 375 | D95: =F95+H95+J95 -> 9543217.4 | E95: 100 | F95: 2322231.4 | G95: 24.33384154 | H95: 2571596.6 | I95: 26.94685128 | J95: 4649389.4 | K95: 48.71930718
B96: 대학 Higher educations | C96: 364 | D96: =F96+H96+J96 -> 6682523.015 | E96: 100 | F96: 2464891.226 | G96: 36.88563767 | H96: 2060511.228 | I96: 30.83433044 | J96: 2157120.561 | K96: 32.2800319
B97: 기업체 Business enterprises | C97: 41629 | D97: =F97+H97+J97 -> 62563446.96 | E97: 100 | F97: 6603980.664 | G97: 10.55565348 | H97: 12683793.64 | I97: 20.27348917 | J97: 43275672.65 | K97: 69.17085735
A98: 2018 | B98: 계 Total | C98: 49302 | D98: 85728714.74 | E98: 100 | F98: 12180466.84 | G98: 14.20815287 | H98: 18824713.4 | I98: 21.95846917 | J98: 54723534.5 | K98: 63.83337796
B99: 공공연구기관 Public research institutes | C99: 401 | D99: 9843867.4 | E99: 100 | F99: 2353558 | G99: 23.90887549 | H99: 2568973 | I99: 26.09719225 | J99: 4921336.4 | K99: 49.99393226
B100: 대학 Higher educations | C100: 365 | D100: 7050415.008 | E100: 100 | F100: 2533533.651 | G100: 35.9345322 | H100: 2302551.572 | I100: 32.6583835 | J100: 2214329.785 | K100: 31.4070843
B101: 기업체 Business enterprises | C101: 48536 | D101: 68834432.33 | E101: 100 | F101: 7293375.19 | G101: 10.59553329 | H101: 13953188.83 | I101: 20.27065286 | J101: 47587868.31 | K101: 69.13381385
A102: 2019 | B102: 계 Total | C102: 53005 | D102: 89047077.12 | E102: 100 | F102: 13062301.51 | G102: 14.66898402 | H102: 20040143.19 | I102: 22.5051106 | J102: 55944632.42 | K102: 62.82590538
B103: 공공연구기관 Public research institutes | C103: 419 | D103: 10168766 | E103: 100 | F103: 2516381.5 | G103: 24.74618356 | H103: 2733997.5 | I103: 26.8862269 | J103: 4918387 | K103: 48.36758954
B104: 대학 Higher educations | C104: 368 | D104: 7371649 | E104: 100 | F104: 2937469.2 | G104: 39.84819679 | H104: 2166220.4 | I104: 29.38583213 | J104: 2267959.4 | K104: 30.76597109
B105: 기업체 Business enterprises | C105: 52218 | D105: 71506662.12 | E105: 100 | F105: 7608450.814 | G105: 10.64019853 | H105: 15139925.29 | I105: 21.17274788 | J105: 48758286.02 | K105: 68.18705359
A106: 2020 | B106: 계 Total | C106: 56223 | D106: 93071686.49 | E106: 100 | F106: 13448098.63 | G106: 14.44918335 | H106: 20078628.7 | I106: 21.57329415 | J106: 59544959.16 | K106: 63.9775225
B107: 공공연구기관 Public research institutes | C107: 415 | D107: 11118558 | E107: 100 | F107: 2577697 | G107: 23.1837348 | H107: 2780583 | I107: 25.00848581 | J107: 5760278 | K107: 51.80777939
B108: 대학 Higher educations | C108: 363 | D108: 8353350.45 | E108: 100 | F108: 3132144.798 | G108: 37.49567095 | H108: 2568755.766 | I108: 30.75120315 | J108: 2652449.886 | K108: 31.75312591
B109: 기업체 Business enterprises | C109: 55445 | D109: 73599778.04 | E109: 100 | F109: 7738256.831 | G109: 10.51396762 | H109: 14729289.93 | I109: 20.01268254 | J109: 51132231.28 | K109: 69.47334984
A110: 2021 | B110: 계 Total | C110: 59576 | D110: 102135243.5 | E110: 100 | F110: 15100171.23 | G110: 14.78448644 | H110: 21470363.2 | I110: 21.02150292 | J110: 65564709.11 | K110: 64.19401064
B111: 공공연구기관 Public research institutes | C111: 433 | D111: 11997001 | E111: 100 | F111: 2683404.4 | G111: 22.36729329 | H111: 2988450.9 | I111: 24.90998292 | J111: 6325145.7 | K111: 52.72272379
B112: 대학 Higher educations | C112: 366 | D112: 9330614.888 | E112: 100 | F112: 3639259.495 | G112: 39.00342623 | H112: 2906056.977 | I112: 31.14539622 | J112: 2785298.416 | K112: 29.85117755
B113: 기업체 Business enterprises | C113: 58777 | D113: 80807627.66 | E113: 100 | F113: 8777507.337 | G113: 10.86222624 | H113: 15575855.32 | I113: 19.27522905 | J113: 56454264.99 | K113: 69.8625447
A114: 2022 | B114: 계 Total | C114: 61646 | D114: 112646008.3 | E114: 100 | F114: 16918375.3 | G114: 15.01906331 | H114: 22455973.76 | I114: 19.93499291 | J114: 73271659.22 | K114: 65.04594379
B115: 공공연구기관 Public research institutes | C115: 458 | D115: 12918586.1 | E115: 100 | F115: 3051047.24 | G115: 23.6175013 | H115: 3047183.88 | I115: 23.58759586 | J115: 6820354.98 | K115: 52.79490284
B116: 대학 Higher educations | C116: 361 | D116: 10306122 | E116: 100 | F116: 4068689.025 | G116: 39.47837048 | H116: 3100503.85 | I116: 30.08409807 | J116: 3136929.125 | K116: 30.43753145
B117: 기업체 Business enterprises | C117: 60827 | D117: 89421300.18 | E117: 100 | F117: 9798639.031 | G117: 10.95783556 | H117: 16308286.03 | I117: 18.23758545 | J117: 63314375.12 | K117: 70.80457899
A118: 2023 | B118: 계 Total | C118: 58200 | D118: 119074025.1 | E118: 100 | F118: 17740416.03 | G118: =F118/$D118*100 -> 14.89864478 | H118: 23475197.91 | I118: =H118/$D118*100 -> 19.71479328 | J118: 77858411.2 | K118: =J118/$D118*100 -> 65.38656194
B119: 공공연구기관 Public research institutes | C119: 477 | D119: 13883702 | E119: 100 | F119: 3406268 | G119: =F119/$D119*100 -> 24.53429208 | H119: 3283502 | I119: 23.65004665 | J119: 7193932 | K119: 51.81566127
B120: 대학 Higher educations | C120: 379 | D120: 10893480 | E120: 100 | F120: 4121834 | G120: 37.83762397 | H120: 3347521 | I120: 30.7295832 | J120: 3424125 | K120: 31.43279283
B121: 기업체 Business enterprises | C121: 57344 | D121: 94296843.15 | E121: 100 | F121: 10212314.03 | G121: 10.82996386 | H121: 16844174.91 | I121: 17.86292558 | J121: 67240354.2 | K121: 71.30711057

Sheet 2-6
A1: 2-6) 연구원 1인당 연구개발비
A2: R&D expenditure per researcher
G3: (단위 : 백만원, 명 Unit : Won, Millions, person)
A4: 연도·연구수행주체 Year · Sector of performance | C4: 연구개발비(A) R&D expenditure | D4: 연구원(B) Researchers | F4: 연구원 1인당 연구개발비(A/B) R&D expenditure per researcher
D5: FTE | E5: HC | F5: FTE | G5: HC
A6: 1995 | B6: 계 Total | C6: =SUM(C7:C9) -> 9440606 | D6: =SUM(D7:D9) -> 100456 | E6: =SUM(E7:E9) -> 128315 | F6: =C6/D6 -> 93.9775225 | G6: =C6/E6 -> 73.57367416
B7: 공공연구기관 Public research institutes | C7: 1766713 | D7: 14363 | E7: 15007 | F7: 123.0044559 | G7: 117.7259279
B8: 대학 Higher educations | C8: 770912 | D8: 19406 | E8: 44683 | F8: 39.72544574 | G8: 17.25291498
B9: 기업체 Business enterprises | C9: 6902981 | D9: 66687 | E9: 68625 | F9: 103.5131435 | G9: 100.5898871
A10: 1996 | B10: 계 Total | C10: =SUM(C11:C13) -> 10878051 | D10: =SUM(D11:D13) -> 99433 | E10: =SUM(E11:E13) -> 132023 | F10: 109.4008126 | G10: 82.39512055
B11: 공공연구기관 Public research institutes | C11: 1895618 | D11: 13732 | E11: 15503 | F11: 138.0438392 | G11: 122.2742695
B12: 대학 Higher educations | C12: 1018822 | D12: 19483 | E12: 45327 | F12: 52.29287071 | G12: 22.4771549
B13: 기업체 Business enterprises | C13: 7963611 | D13: 66218 | E13: 71193 | F13: 120.2635386 | G13: 111.8594665
A14: 1997 | B14: 계 Total | C14: =SUM(C15:C17) -> 12185806 | D14: =SUM(D15:D17) -> 102660 | E14: =SUM(E15:E17) -> 138438 | F14: =C14/D14 -> 118.7006234 | G14: =C14/E14 -> 88.02356289
B15: 공공연구기관 Public research institutes | C15: 2068899 | D15: 13216 | E15: 15185 | F15: 156.5450212 | G15: 136.2462298
B16: 대학 Higher educations | C16: 1271600 | D16: 19573 | E16: 48588 | F16: 64.96704644 | G16: 26.17107105
B17: 기업체 Business enterprises | C17: 8845307 | D17: 69871 | E17: 74665 | F17: 126.5948247 | G17: 118.4665774
A18: 1998 | B18: 계 Total | C18: =SUM(C19:C21) -> 11336617 | D18: =SUM(D19:D21) -> 92541 | E18: =SUM(E19:E21) -> 129767 | F18: 122.5037227 | G18: 87.36132453
B19: 공공연구기관 Public research institutes | C19: 2099470 | D19: 10952 | E19: 12587 | F19: 191.6974069 | G19: 166.796695
B20: 대학 Higher educations | C20: 1265074 | D20: 21525 | E20: 51162 | F20: 58.77231127 | G20: 24.72682851
B21: 기업체 Business enterprises | C21: 7972073 | D21: 60064 | E21: 66018 | F21: 132.7263086 | G21: 120.7560514
A22: 1999 | B22: 계 Total | C22: =SUM(C23:C25) -> 11921752 | D22: =SUM(D23:D25) -> 100210 | E22: =SUM(E23:E25) -> 134568 | F22: 118.9676879 | G22: 88.59277094
B23: 공공연구기관 Public research institutes | C23: 1979174 | D23: 13013 | E23: 13986 | F23: 152.0920618 | G23: 141.5110825
B24: 대학 Higher educations | C24: 1431421 | D24: 21723 | E24: 50151 | F24: 65.89425954 | G24: 28.54222249
B25: 기업체 Business enterprises | C25: 8511157 | D25: 65474 | E25: 70431 | F25: 129.9929285 | G25: 120.843904
A26: 2000 | B26: 계 Total | C26: =SUM(C27:C29) -> 13848501 | D26: =SUM(D27:D29) -> 108370 | E26: =SUM(E27:E29) -> 159973 | F26: 127.7890652 | G26: 86.56773956
B27: 공공연구기관 Public research institutes | C27: 2031981 | D27: 12801.7 | E27: 13913 | F27: 158.7274346 | G27: 146.0490908
B28: 대학 Higher educations | C28: 1561865 | D28: 23674 | E28: 51727 | F28: 65.97385317 | G28: 30.19438591
B29: 기업체 Business enterprises | C29: 10254655 | D29: 71894.3 | E29: 94333 | F29: 142.6351602 | G29: 108.7069742
A30: 2001 | B30: 계 Total | C30: =SUM(C31:C33) -> 16110521.98 | D30: =SUM(D31:D33) -> 136337.393 | E30: =SUM(E31:E33) -> 178937 | F30: 118.1665692 | G30: 90.03460425
B31: 공공연구기관 Public research institutes | C31: 2160166.079 | D31: 13085.61 | E31: 13921 | F31: 165.0795094 | G31: 155.1731973
B32: 대학 Higher educations | C32: 1676777.181 | D32: 23082.683 | E32: 53717 | F32: 72.64221326 | G32: 31.2150191
B33: 기업체 Business enterprises | C33: 12273578.72 | D33: 100169.1 | E33: 111299 | F33: 122.5285914 | G33: 110.2757322
A34: 2002 | B34: 계 Total | C34: =SUM(C35:C37) -> 17325081.78 | D34: =SUM(D35:D37) -> 141917.23 | E34: =SUM(E35:E37) -> 189888 | F34: 122.0787763 | G34: 91.23842359
B35: 공공연구기관 Public research institutes | C35: 2552631.59 | D35: 12773.97 | E35: 14094 | F35: 199.8307175 | G35: 181.1147715
B36: 대학 Higher educations | C36: 1797096.31 | D36: 24952.59 | E36: 57634 | F36: 72.02043195 | G36: 31.18118316
B37: 기업체 Business enterprises | C37: 12975353.88 | D37: 104190.67 | E37: 118160 | F37: 124.5347005 | G37: 109.8117288
A38: 2003 | B38: 계 Total | C38: =SUM(C39:C41) -> 19068681.99 | D38: =SUM(D39:D41) -> 151254.2614 | E38: =SUM(E39:E41) -> 198171 | F38: 126.0703786 | G38: 96.22337271
B39: 공공연구기관 Public research institutes | C39: 2626355.83 | D39: 13447.225 | E39: 14395 | F39: 195.3083874 | G39: 182.4491719
B40: 대학 Higher educations | C40: 1932662.944 | D40: 26419.2164 | E40: 59746 | F40: 73.15368158 | G40: 32.34798889
B41: 기업체 Business enterprises | C41: 14509663.22 | D41: 111387.82 | E41: 124030 | F41: 130.2625657 | G41: 116.9851102
A42: 2004 | B42: 계 Total | C42: =SUM(C43:C45) -> 22185343 | D42: =SUM(D43:D45) -> 156220 | E42: =SUM(E43:E45) -> 209979 | F42: 142.0134618 | G42: 105.655056
B43: 공공연구기관 Public research institutes | C43: 2964646 | D43: 14848 | E43: 15722 | F43: 199.6663524 | G43: 188.5667218
B44: 대학 Higher educations | C44: 2200886 | D44: 25522 | E44: 59957 | F44: 86.2348562 | G44: 36.70774055
B45: 기업체 Business enterprises | C45: 17019811 | D45: 115850 | E45: 134300 | F45: 146.9124817 | G45: 126.7297915
A46: 2005 | B46: 계 Total | C46: =SUM(C47:C49) -> 24155414 | D46: =SUM(D47:D49) -> 179812.4276 | E46: =SUM(E47:E49) -> 234702 | F46: 134.3367326 | G46: 102.9195064
B47: 공공연구기관 Public research institutes | C47: 3192887 | D47: 14690.31 | E47: 15501 | F47: 217.3464685 | G47: 205.9794207
B48: 대학 Higher educations | C48: 2398284 | D48: 27415.6776 | E48: 64895 | F48: 87.47856008 | G48: 36.95637568
B49: 기업체 Business enterprises | C49: 18564243 | D49: 137706.44 | E49: 154306 | F49: 134.8102747 | G49: 120.307979
A50: 2006 | B50: 계 Total | C50: =SUM(C51:C53) -> 27345704.1 | D50: =SUM(D51:D53) -> 199990.0211 | E50: =SUM(E51:E53) -> 256598 | F50: 136.7353429 | G50: 106.5702153
B51: 공공연구기관 Public research institutes | C51: 3497050.1 | D51: 16097.8 | E51: 16771 | F51: 217.2377654 | G51: 208.5176853
B52: 대학 Higher educations | C52: 2721874 | D52: 28385.9788 | E52: 65923 | F52: 95.8879741 | G52: 41.28868528
B53: 기업체 Business enterprises | C53: 21126780 | D53: 155506.2423 | E53: 173904 | F53: 135.8580832 | G53: 121.4853022
A54: 2007 | B54: 계 Total | C54: =SUM(C55:C57) -> 31301377.26 | D54: =SUM(D55:D57) -> 221928.2309 | E54: =SUM(E55:E57) -> 289098 | F54: 141.0427918 | G54: 108.2725486
B55: 공공연구기관 Public research institutes | C55: 4102365.7 | D55: 18224.41 | E55: 20342 | F55: 225.1027989 | G55: 201.6697326
B56: 대학 Higher educations | C56: 3334118.57 | D56: 37414.7009 | E56: 83123 | F56: 89.11252769 | G56: 40.11066215
B57: 기업체 Business enterprises | C57: 23864892.99 | D57: 166289.12 | E57: 185633 | F57: 143.5144584 | G57: 128.5595395
A58: 2008 | B58: 계 Total | C58: =SUM(C59:C61) -> 34498053.84 | D58: =SUM(D59:D61) -> 236136.871 | E58: =SUM(E59:E61) -> 300050 | F58: 146.0934656 | G58: 114.9743504
B59: 공공연구기관 Public research institutes | C59: 4653235.6 | D59: 18462.22299 | E59: 20950 | F59: 252.0409163 | G59: 222.1114845
B60: 대학 Higher educations | C60: 3844749.4 | D60: 34773.32797 | E60: 82077 | F60: 110.5660466 | G60: 46.8432009
B61: 기업체 Business enterprises | C61: 26000068.84 | D61: 182901.32 | E61: 197023 | F61: 142.1535331 | G61: 131.9646378
A62: 2009 | B62: 계 Total | C62: =SUM(C63:C65) -> 37928502.24 | D62: =SUM(D63:D65) -> 244076.773 | E62: =SUM(E63:E65) -> 323175 | F62: 155.395787 | G62: 117.3621172
B63: 공공연구기관 Public research institutes | C63: 5558383.7 | D63: 21084.236 | E63: 24318 | F63: 263.6274656 | G63: 228.5707583
B64: 대학 Higher educations | C64: 4204259.4 | D64: 38163.0226 | E64: 88554 | F64: 110.1657865 | G64: 47.47678705
B65: 기업체 Business enterprises | C65: 28165859.14 | D65: 184829.5144 | E65: 210303 | F65: 152.3883198 | G65: 133.9298971
A66: 2010 | B66: 계 Total | C66: =SUM(C67:C69) -> 43854834.28 | D66: =SUM(D67:D69) -> 264117.936 | E66: =SUM(E67:E69) -> 345912 | F66: 166.0426208 | G66: 126.7803207
B67: 공공연구기관 Public research institutes | C67: 6306136.03 | D67: 22774.5826 | E67: 26235 | F67: 276.8935941 | G67: 240.3711084
B68: 대학 Higher educations | C68: 4745458.693 | D68: 39264.7499 | E68: 93509 | F68: 120.8579885 | G68: 50.74868401
B69: 기업체 Business enterprises | C69: 32803239.56 | D69: 202078.6035 | E69: 226168 | F69: 162.3291085 | G69: 145.0392609
A70: 2011 | B70: 계 Total | C70: =SUM(C71:C73) -> 49890418.95 | D70: =SUM(D71:D73) -> 288900.9624 | E70: =SUM(E71:E73) -> 375176 | F70: 172.6903868 | G70: 132.9787059
B71: 공공연구기관 Public research institutes | C71: 6673311.11 | D71: 24543.8346 | E71: 28800 | F71: 271.8935822 | G71: 231.7121913
B72: 대학 Higher educations | C72: 5033816.5 | D72: 40843.7979 | E72: 95750 | F72: 123.245554 | G72: 52.57249608
B73: 기업체 Business enterprises | C73: 38183291.34 | D73: 223513.3299 | E73: 250626 | F73: 170.8322781 | G73: 152.3516768
A74: 2012 | B74: 계 Total | C74: =SUM(C75:C77) -> 55450115.65 | D74: =SUM(D75:D77) -> 315589.1929 | E74: =SUM(E75:E77) -> 401724 | F74: 175.703468 | G74: 138.0303782
B75: 공공연구기관 Public research institutes | C75: 6950261.67 | D75: 24722.5896 | E75: 28822 | F75: 281.1300023 | G75: 241.1443227
B76: 대학 Higher educations | C76: 5276928.439 | D76: 43825.7833 | E76: 96916 | F76: 120.4069395 | G76: 54.44847537
B77: 기업체 Business enterprises | C77: 43222925.54 | D77: 247040.82 | E77: 275986 | F77: 174.9626865 | G77: 156.6127468
A78: 2013 | B78: 계 Total | C78: =SUM(C79:C81) -> 59300949.33 | D78: =SUM(D79:D81) -> 321841.8477 | E78: =SUM(E79:E81) -> 410333 | F78: =C78/D78 -> 184.2549369 | G78: =C78/E78 -> 144.5190841
B79: 공공연구기관 Public research institutes | C79: 7260710.547 | D79: 26611.7427 | E79: 31140 | F79: 272.8385972 | G79: 233.1634729
B80: 대학 Higher educations | C80: 5480322.53 | D80: 41783.5011 | E80: 97319 | F80: 131.1599647 | G80: 56.31297619
B81: 기업체 Business enterprises | C81: 46559916.25 | D81: 253446.6039 | E81: 281874 | F81: 183.7070039 | G81: 165.1798898
A82: 2014 | B82: 계 Total | C82: =SUM(C83:C85) -> 63734126.79 | D82: =SUM(D83:D85) -> 345463.4268 | E82: =SUM(E83:E85) -> 437447 | F82: 184.4887819 | G82: 145.6956541
B83: 공공연구기관 Public research institutes | C83: 8112700.933 | D83: 28887.65399 | E83: 33322 | F83: 280.8362678 | G83: 243.4638057
B84: 대학 Higher educations | C84: 5766960.87 | D84: 41938.21564 | E84: 99317 | F84: 137.5108784 | G84: 58.06620085
B85: 기업체 Business enterprises | C85: 49854464.99 | D85: 274637.5572 | E85: 304808 | F85: 181.528213 | G85: 163.5602248
A86: 2015 | B86: 계 Total | C86: =SUM(C87:C89) -> 65959371.73 | D86: =SUM(D87:D89) -> 356447.29 | E86: =SUM(E87:E89) -> 453262 | F86: 185.0466354 | G86: 145.5215123
B87: 공공연구기관 Public research institutes | C87: 8824078.748 | D87: 31444.69684 | E87: 35550 | F87: 280.62216 | G87: 248.2159985
B88: 대학 Higher educations | C88: 5998872.479 | D88: 40866.21758 | E88: 99870 | F88: 146.7929462 | G88: 60.06681165
B89: 기업체 Business enterprises | C89: 51136420.5 | D89: 284136.3756 | E89: 317842 | F89: 179.9713972 | G89: 160.886291
A90: 2016 | B90: 계 Total | C90: =SUM(C91:C93) -> 69405529.89 | D90: =SUM(D91:D93) -> 361291.5335 | E90: =SUM(E91:E93) -> 460769 | F90: 192.1039478 | G90: 150.629773
B91: 공공연구기관 Public research institutes | C91: 9113170.697 | D91: 32663.69847 | E91: 36280 | F91: 278.999964 | G91: 251.189931
B92: 대학 Higher educations | C92: 6339887.929 | D92: 40758.71671 | E92: 103166 | F92: 155.5467993 | G92: 61.4532688
B93: 기업체 Business enterprises | C93: 53952471.26 | D93: 287869.1184 | E93: 321323 | F93: 187.4201428 | G93: 167.907281
A94: 2017 | B94: 계 Total | C94: =SUM(C95:C97) -> 78789187.37 | D94: =SUM(D95:D97) -> 383100.2805 | E94: =SUM(E95:E97) -> 482796 | F94: 205.6620456 | G94: 163.193538
B95: 공공연구기관 Public research institutes | C95: 9543217.4 | D95: 32721.87166 | E95: 36552 | F95: 291.6464407 | G95: 261.0860527
B96: 대학 Higher educations | C96: 6682523.015 | D96: 38812.73328 | E96: 102877 | F96: 172.1734712 | G96: 64.95643356
B97: 기업체 Business enterprises | C97: 62563446.96 | D97: 311565.6756 | E97: 343367 | F97: 200.8033999 | G97: 182.2057651
A98: 2018 | B98: 계 Total | C98: =SUM(C99:C101) -> 85728714.74 | D98: =SUM(D99:D101) -> 408370.4603 | E98: =SUM(E99:E101) -> 514170 | F98: =C98/D98 -> 209.9287855 | G98: 166.7322379
B99: 공공연구기관 Public research institutes | C99: 9843867.4 | D99: 32824.93431 | E99: 37404 | F99: 299.8899345 | G99: 263.1768634
B100: 대학 Higher educations | C100: 7050415.008 | D100: 40735.96095 | E100: 108529 | F100: 173.0759468 | G100: 64.96341999
B101: 기업체 Business enterprises | C101: 68834432.33 | D101: 334809.565 | E101: 368237 | F101: 205.5927892 | G101: =C101/E101 -> 186.9297011
A102: 2019 | B102: 계 Total | C102: =SUM(C103:C105) -> 89047077.12 | D102: =SUM(D103:D105) -> 430690.0064 | E102: =SUM(E103:E105) -> 538136 | F102: 206.754454 | G102: 165.4731836
B103: 공공연구기관 Public research institutes | C103: 10168766 | D103: 34860.99082 | E103: 40069 | F103: 291.6946926 | G103: 253.7813771
B104: 대학 Higher educations | C104: 7371649 | D104: 41447.76561 | E104: 110619 | F104: 177.853954 | G104: 66.63998951
B105: 기업체 Business enterprises | C105: 71506662.12 | D105: 354381.25 | E105: 387448 | F105: 201.7789093 | G105: 184.5580881
A106: 2020 | B106: 계 Total | C106: =SUM(C107:C109) -> 93071686.49 | D106: =SUM(D107:D109) -> 446738.854 | E106: =SUM(E107:E109) -> 558045 | F106: 208.3357775 | G106: =C106/E106 -> 166.7816869
B107: 공공연구기관 Public research institutes | C107: 11118558 | D107: 36285.37094 | E107: 41005 | F107: 306.4198522 | G107: 271.1512742
B108: 대학 Higher educations | C108: 8353350.45 | D108: 44894.65304 | E108: 115924 | F108: 186.0655977 | G108: 72.05885279
B109: 기업체 Business enterprises | C109: 73599778.04 | D109: 365558.83 | E109: 401116 | F109: 201.3349754 | G109: 183.4875149
A110: 2021 | B110: 계 Total | C110: 102135243.5 | D110: 470728.1152 | E110: 586666 | F110: 216.9728985 | G110: 174.094363
B111: 공공연구기관 Public research institutes | C111: 11997001 | D111: 36546.34257 | E111: 42566 | F111: 328.2681702 | G111: 281.8446882
B112: 대학 Higher educations | C112: 9330614.888 | D112: 43772.56266 | E112: 114635 | F112: 213.1612663 | G112: 81.39411949
B113: 기업체 Business enterprises | C113: 80807627.66 | D113: 390409.21 | E113: 429465 | F113: 206.9818682 | G113: 188.1588201
A114: 2022 | B114: 계 Total | C114: 112646008.3 | D114: 488773.7625 | E114: 601530 | F114: =C114/D114 -> 230.4665613 | G114: 187.2658193
B115: 공공연구기관 Public research institutes | C115: 12918586.1 | D115: 37428.51694 | E115: 43406 | F115: 345.1535662 | G115: 297.6221283
B116: 대학 Higher educations | C116: 10306122 | D116: 47423.18554 | E116: 114854 | F116: 217.3224317 | G116: 89.73237327
B117: 기업체 Business enterprises | C117: 89421300.18 | D117: 403922.06 | E117: 443270 | F117: 221.3825612 | G117: 201.7309996
A118: 2023 | B118: 계 Total | C118: 119074025.1 | D118: 490255.9256 | E118: 603566 | F118: 242.8813584 | G118: =C118/E118 -> 197.2841829
B119: 공공연구기관 Public research institutes | C119: 13883702 | D119: 39019.2026 | E119: 45445 | F119: 355.8171637 | G119: 305.5056002
B120: 대학 Higher educations | C120: 10893480 | D120: 49657.205 | E120: 119447 | F120: 219.3736035 | G120: 91.19927667
B121: 기업체 Business enterprises | C121: 94296843.15 | D121: 401579.518 | E121: 438674 | F121: 234.8148721 | G121: 214.9588149

Sheet 2-7
A1: 2-7) 인구 만명당 연구개발인력 및 연구원
A2: R&D personnel and researchers per 10,000 population
A4: 연도·연구수행주체 Year · Sector of performance | C4: 연구개발수행기관 R&D performing inst. | D4: 연구개발인력(명)(A) R&D personnel(Person) | E4: 연구원(명)(B) Researchers(Person) | G4: 인구(만명)(D) Population (Ten thousand) | H4: A/D(명) (person) | I4: B/D(명) (person) | J4: C/D(명) (person)
F5: 상근상당(C) FTE
A6: 1995 | B6: 계 Total | C6: =SUM(C7:C9) -> 2585 | D6: =SUM(D7:D9) -> 201661 | E6: =SUM(E7:E9) -> 128315 | F6: =SUM(F7:F9) -> 100456 | G6: 4509.3 | H6: =D6/$G6 -> 44.72113188 | I6: =E6/$G6 -> 28.45563613 | J6: =F6/$G6 -> 22.27751536
B7: 공공연구기관 Public research institutes | C7: 178 | D7: 25621 | E7: 15007 | F7: 14363
B8: 대학 Higher educations | C8: 257 | D8: 75702 | E8: 44683 | F8: 19406
B9: 기업체 Business enterprises | C9: 2150 | D9: 100338 | E9: 68625 | F9: 66687
A10: 1996 | B10: 계 Total | C10: =SUM(C11:C13) -> 2856 | D10: =SUM(D11:D13) -> 202347 | E10: =SUM(E11:E13) -> 132023 | F10: =SUM(F11:F13) -> 99433 | G10: 4552.5 | H10: =D10/$G10 -> 44.44744646 | I10: =E10/$G10 -> 29.00010983 | J10: =F10/$G10 -> 21.84140582
B11: 공공연구기관 Public research institutes | C11: 163 | D11: 24203 | E11: 15503 | F11: 13732
B12: 대학 Higher educations | C12: 258 | D12: 77220 | E12: 45327 | F12: 19483
B13: 기업체 Business enterprises | C13: 2435 | D13: 100924 | E13: 71193 | F13: 66218
A14: 1997 | B14: 계 Total | C14: =SUM(C15:C17) -> 2962 | D14: =SUM(D15:D17) -> 212117 | E14: =SUM(E15:E17) -> 138438 | F14: =SUM(F15:F17) -> 102660 | G14: 4595.4 | H14: =D14/$G14 -> 46.15854985 | I14: =E14/$G14 -> 30.12534273 | J14: =F14/$G14 -> 22.33973104
B15: 공공연구기관 Public research institutes | C15: 184 | D15: 23382 | E15: 15185 | F15: 13216
B16: 대학 Higher educations | C16: 271 | D16: 86665 | E16: 48588 | F16: 19573
B17: 기업체 Business enterprises | C17: 2507 | D17: 102070 | E17: 74665 | F17: 69871
A18: 1998 | B18: 계 Total | C18: =SUM(C19:C21) -> 2869 | D18: =SUM(D19:D21) -> 199191 | E18: =SUM(E19:E21) -> 129767 | F18: =SUM(F19:F21) -> 92541 | G18: 4628.7 | H18: =D18/$G18 -> 43.03389721 | I18: =E18/$G18 -> 28.03530149 | J18: =F18/$G18 -> 19.99287057
B19: 공공연구기관 Public research institutes | C19: 183 | D19: 19431 | E19: 12587 | F19: 10952
B20: 대학 Higher educations | C20: 267 | D20: 92591 | E20: 51162 | F20: 21525
B21: 기업체 Business enterprises | C21: 2419 | D21: 87169 | E21: 66018 | F21: 60064
A22: 1999 | B22: 계 Total | C22: =SUM(C23:C25) -> 3059 | D22: =SUM(D23:D25) -> 212510 | E22: =SUM(E23:E25) -> 134568 | F22: =SUM(F23:F25) -> 100210 | G22: 4661.7 | H22: =D22/$G22 -> 45.58637407 | I22: =E22/$G22 -> 28.86672244 | J22: =F22/$G22 -> 21.49644979
B23: 공공연구기관 Public research institutes | C23: 169 | D23: 21020 | E23: 13986 | F23: 13013
B24: 대학 Higher educations | C24: 285 | D24: 98052 | E24: 50151 | F24: 21723
B25: 기업체 Business enterprises | C25: 2605 | D25: 93438 | E25: 70431 | F25: 65474
A26: 2000 | B26: 계 Total | C26: =SUM(C27:C29) -> 4635 | D26: =SUM(D27:D29) -> 237232 | E26: =SUM(E27:E29) -> 159973 | F26: =SUM(F27:F29) -> 108370 | G26: 4700.8 | H26: =D26/$G26 -> 50.46630361 | I26: =E26/$G26 -> 34.031016 | J26: =F26/$G26 -> 23.0535228
B27: 공공연구기관 Public research institutes | C27: 173 | D27: 21563 | E27: 13913 | F27: 12801.7
B28: 대학 Higher educations | C28: 268 | D28: 100643 | E28: 51727 | F28: 23674
B29: 기업체 Business enterprises | C29: 4194 | D29: 115026 | E29: 94333 | F29: 71894.3
A30: 2001 | B30: 계 Total | C30: =SUM(C31:C33) -> 6801 | D30: =SUM(D31:D33) -> 261802 | E30: =SUM(E31:E33) -> 178937 | F30: =SUM(F31:F33) -> 136337.393 | G30: 4737 | H30: =D30/$G30 -> 55.26746886 | I30: =E30/$G30 -> 37.77432974 | J30: =F30/$G30 -> 28.78137914
B31: 공공연구기관 Public research institutes | C31: 188 | D31: 20984 | E31: 13921 | F31: 13085.61
B32: 대학 Higher educations | C32: 276 | D32: 102501 | E32: 53717 | F32: 23082.683
B33: 기업체 Business enterprises | C33: 6337 | D33: 138317 | E33: 111299 | F33: 100169.1
A34: 2002 | B34: 계 Total | C34: =SUM(C35:C37) -> 7210 | D34: =SUM(D35:D37) -> 279806 | E34: =SUM(E35:E37) -> 189888 | F34: =SUM(F35:F37) -> 141917.23 | G34: 4764.5 | H34: =D34/$G34 -> 58.72725365 | I34: =E34/$G34 -> 39.85475916 | J34: =F34/$G34 -> 29.78638472
B35: 공공연구기관 Public research institutes | C35: 163 | D35: 21702 | E35: 14094 | F35: 12773.97
B36: 대학 Higher educations | C36: 304 | D36: 111083 | E36: 57634 | F36: 24952.59
B37: 기업체 Business enterprises | C37: 6743 | D37: 147021 | E37: 118160 | F37: 104190.67
A38: 2003 | B38: 계 Total | C38: =SUM(C39:C41) -> 7127 | D38: =SUM(D39:D41) -> 297059.8 | E38: =SUM(E39:E41) -> 198171 | F38: =SUM(F39:F41) -> 151254.2614 | G38: 4789.2 | H38: =D38/$G38 -> 62.02701913 | I38: =E38/$G38 -> 41.37872714 | J38: =F38/$G38 -> 31.58236478
B39: 공공연구기관 Public research institutes | C39: 169 | D39: 22025 | E39: 14395 | F39: 13447.225
B40: 대학 Higher educations | C40: 310 | D40: 121039 | E40: 59746 | F40: 26419.2164
B41: 기업체 Business enterprises | C41: 6648 | D41: 153995.8 | E41: 124030 | F41: 111387.82
A42: 2004 | B42: 계 Total | C42: =SUM(C43:C45) -> 7254 | D42: =SUM(D43:D45) -> 312314 | E42: =SUM(E43:E45) -> 209979 | F42: =SUM(F43:F45) -> 156220 | G42: 4808.3 | H42: =D42/$G42 -> 64.95310193 | I42: =E42/$G42 -> 43.6701121 | J42: =F42/$G42 -> 32.48965331
B43: 공공연구기관 Public research institutes | C43: 159 | D43: 24057 | E43: 15722 | F43: 14848
B44: 대학 Higher educations | C44: 293 | D44: 121968 | E44: 59957 | F44: 25522
B45: 기업체 Business enterprises | C45: 6802 | D45: 166289 | E45: 134300 | F45: 115850
A46: 2005 | B46: 계 Total | C46: =SUM(C47:C49) -> 7761 | D46: =SUM(D47:D49) -> 335428 | E46: =SUM(E47:E49) -> 234702 | F46: =SUM(F47:F49) -> 179812.4276 | G46: 4818.5 | H46: =D46/$G46 -> 69.61253502 | I46: =E46/$G46 -> 48.70851925 | J46: =F46/$G46 -> 37.31709611
B47: 공공연구기관 Public research institutes | C47: 137 | D47: 22604 | E47: 15501 | F47: 14690.31
B48: 대학 Higher educations | C48: 256 | D48: 125039 | E48: 64895 | F48: 27415.6776
B49: 기업체 Business enterprises | C49: 7368 | D49: 187785 | E49: 154306 | F49: 137706.44
A50: 2006 | B50: 계 Total | C50: =SUM(C51:C53) -> 9443 | D50: =SUM(D51:D53) -> 365794 | E50: =SUM(E51:E53) -> 256598 | F50: =SUM(F51:F53) -> 199990.0211 | G50: 4843.8 | H50: =D50/$G50 -> 75.51798175 | I50: =E50/$G50 -> 52.97452413 | J50: =F50/$G50 -> 41.28783622
B51: 공공연구기관 Public research institutes | C51: 139 | D51: 23874 | E51: 16771 | F51: 16097.8
B52: 대학 Higher educations | C52: 268 | D52: 132042 | E52: 65923 | F52: 28385.9788
B53: 기업체 Business enterprises | C53: 9036 | D53: 209878 | E53: 173904 | F53: 155506.2423
A54: 2007 | B54: 계 Total | C54: =SUM(C55:C57) -> 11200 | D54: =SUM(D55:D57) -> 421549 | E54: =SUM(E55:E57) -> 289098 | F54: =SUM(F55:F57) -> 221928.2309 | G54: 4868.4 | H54: =D54/$G54 -> 86.58881768 | I54: =E54/$G54 -> 59.38254868 | J54: =F54/$G54 -> 45.58545537
B55: 공공연구기관 Public research institutes | C55: 188 | D55: 28877 | E55: 20342 | F55: 18224.41
B56: 대학 Higher educations | C56: 322 | D56: 168547 | E56: 83123 | F56: 37414.7009
B57: 기업체 Business enterprises | C57: 10690 | D57: 224125 | E57: 185633 | F57: 166289.12
A58: 2008 | B58: 계 Total | C58: =SUM(C59:C61) -> 12822 | D58: =SUM(D59:D61) -> 436228 | E58: =SUM(E59:E61) -> 300050 | F58: =SUM(F59:F61) -> 236136.871 | G58: 4905.5 | H58: =D58/$G58 -> 88.92630721 | I58: =E58/$G58 -> 61.16603812 | J58: =F58/$G58 -> 48.13716664
B59: 공공연구기관 Public research institutes | C59: 228 | D59: 30028 | E59: 20950 | F59: 18462.22299
B60: 대학 Higher educations | C60: 338 | D60: 167789 | E60: 82077 | F60: 34773.32797
B61: 기업체 Business enterprises | C61: 12256 | D61: 238411 | E61: 197023 | F61: 182901.32
A62: 2009 | B62: 계 Total | C62: =SUM(C63:C65) -> 15237 | D62: =SUM(D63:D65) -> 466824 | E62: =SUM(E63:E65) -> 323175 | F62: =SUM(F63:F65) -> 244076.773 | G62: 4930.8 | H62: =D62/$G62 -> 94.67510343 | I62: =E62/$G62 -> 65.5421027 | J62: =F62/$G62 -> 49.5004407
B63: 공공연구기관 Public research institutes | C63: 252 | D63: 36686 | E63: 24318 | F63: 21084.236
B64: 대학 Higher educations | C64: 359 | D64: 174575 | E64: 88554 | F64: 38163.0226
B65: 기업체 Business enterprises | C65: 14626 | D65: 255563 | E65: 210303 | F65: 184829.5144
A66: 2010 | B66: 계 Total | C66: =SUM(C67:C69) -> 16550 | D66: =SUM(D67:D69) -> 500124 | E66: =SUM(E67:E69) -> 345912 | F66: =SUM(F67:F69) -> 264117.936 | G66: 4955.4 | H66: =D66/$G66 -> 100.9250515 | I66: =E66/$G66 -> 69.80506115 | J66: =F66/$G66 -> 53.29901441
B67: 공공연구기관 Public research institutes | C67: 261 | D67: 39738 | E67: 26235 | F67: 22774.5826
B68: 대학 Higher educations | C68: 352 | D68: 188211 | E68: 93509 | F68: 39264.7499
B69: 기업체 Business enterprises | C69: 15937 | D69: 272175 | E69: 226168 | F69: 202078.6035
A70: 2011 | B70: 계 Total | C70: =SUM(C71:C73) -> 20372 | D70: =SUM(D71:D73) -> 531131 | E70: =SUM(E71:E73) -> 375176 | F70: =SUM(F71:F73) -> 288900.9624 | G70: 4993.7 | H70: =D70/$G70 -> 106.3602139 | I70: =E70/$G70 -> 75.12986363 | J70: =F70/$G70 -> 57.85308737
B71: 공공연구기관 Public research institutes | C71: 268 | D71: 43457 | E71: 28800 | F71: 24543.8346
B72: 대학 Higher educations | C72: 350 | D72: 186690 | E72: 95750 | F72: 40843.7979
B73: 기업체 Business enterprises | C73: 19754 | D73: 300984 | E73: 250626 | F73: 223513.3299
A74: 2012 | B74: 계 Total | C74: =SUM(C75:C77) -> 23533 | D74: =SUM(D75:D77) -> 562601 | E74: =SUM(E75:E77) -> 401724 | F74: =SUM(F75:F77) -> 315589.1929 | G74: 5020 | H74: =D74/$G74 -> 112.0719124 | I74: =E74/$G74 -> 80.0247012 | J74: =F74/$G74 -> 62.86637309
B75: 공공연구기관 Public research institutes | C75: 272 | D75: 46500 | E75: 28822 | F75: 24722.5896
B76: 대학 Higher educations | C76: 344 | D76: 184281 | E76: 96916 | F76: 43825.7833
B77: 기업체 Business enterprises | C77: 22917 | D77: 331820 | E77: 275986 | F77: 247040.82
A78: 2013 | B78: 계 Total | C78: =SUM(C79:C81) -> 25882 | D78: =SUM(D79:D81) -> 569333 | E78: =SUM(E79:E81) -> 410333 | F78: =SUM(F79:F81) -> 321841.8477 | G78: 5042.9 | H78: =D78/$G78 -> 112.8979357 | I78: =E78/$G78 -> 81.36845862 | J78: =F78/$G78 -> 63.82078719
B79: 공공연구기관 Public research institutes | C79: 326 | D79: 49782 | E79: 31140 | F79: 26611.7427
B80: 대학 Higher educations | C80: 371 | D80: 181284 | E80: 97319 | F80: 41783.5011
B81: 기업체 Business enterprises | C81: 25185 | D81: 338267 | E81: 281874 | F81: 253446.6039
A82: 2014 | B82: 계 Total | C82: =SUM(C83:C85) -> 30111 | D82: =SUM(D83:D85) -> 605604 | E82: =SUM(E83:E85) -> 437447 | F82: =SUM(F83:F85) -> 345463.4268 | G82: 5074.7 | H82: =D82/$G82 -> 119.3378919 | I82: =E82/$G82 -> 86.20154886 | J82: =F82/$G82 -> 68.07563537
B83: 공공연구기관 Public research institutes | C83: 348 | D83: 51849 | E83: 33322 | F83: 28887.65399
B84: 대학 Higher educations | C84: 371 | D84: 187087 | E84: 99317 | F84: 41938.21564
B85: 기업체 Business enterprises | C85: 29392 | D85: 366668 | E85: 304808 | F85: 274637.5572
A86: 2015 | B86: 계 Total | C86: =SUM(C87:C89) -> 35379 | D86: =SUM(D87:D89) -> 619907 | E86: =SUM(E87:E89) -> 453262 | F86: =SUM(F87:F89) -> 356447.29 | G86: 5101.5 | H86: =D86/$G86 -> 121.5146526 | I86: =E86/$G86 -> 88.84876997 | J86: =F86/$G86 -> 69.87107517
B87: 공공연구기관 Public research institutes | C87: 372 | D87: 54178 | E87: 35550 | F87: 31444.69684
B88: 대학 Higher educations | C88: 365 | D88: 185113 | E88: 99870 | F88: 40866.21758
B89: 기업체 Business enterprises | C89: 34642 | D89: 380616 | E89: 317842 | F89: 284136.3756
A90: 2016 | B90: 계 Total | C90: =SUM(C91:C93) -> 37218 | D90: =SUM(D91:D93) -> 624910 | E90: =SUM(E91:E93) -> 460769 | F90: =SUM(F91:F93) -> 361291.5335 | G90: 5121.8 | H90: =D90/$G90 -> 122.0098403 | I90: =E90/$G90 -> 89.96231794 | J90: =F90/$G90 -> 70.53995344
B91: 공공연구기관 Public research institutes | C91: 372 | D91: 55157 | E91: 36280 | F91: 32663.69847
B92: 대학 Higher educations | C92: 368 | D92: 185737 | E92: 103166 | F92: 40758.71671
B93: 기업체 Business enterprises | C93: 36478 | D93: 384016 | E93: 321323 | F93: 287869.1184
A94: 2017 | B94: 계 Total | C94: =SUM(C95:C97) -> 42368 | D94: =SUM(D95:D97) -> 650243 | E94: =SUM(E95:E97) -> 482796 | F94: =SUM(F95:F97) -> 383100.2805 | G94: 5136.2 | H94: =D94/$G94 -> 126.6000156 | I94: =E94/$G94 -> 93.99867606 | J94: =F94/$G94 -> 74.58827159
B95: 공공연구기관 Public research institutes | C95: 375 | D95: 55816 | E95: 36552 | F95: 32721.87166 | I95: `
B96: 대학 Higher educations | C96: 364 | D96: 185660 | E96: 102877 | F96: 38812.73328
B97: 기업체 Business enterprises | C97: 41629 | D97: 408767 | E97: 343367 | F97: 311565.6756
A98: 2018 | B98: 계 Total | C98: =SUM(C99:C101) -> 49302 | D98: =SUM(D99:D101) -> 691060 | E98: =SUM(E99:E101) -> 514170 | F98: =SUM(F99:F101) -> 408370.4603 | G98: 5158.5 | H98: =D98/$G98 -> 133.9653 | I98: =E98/$G98 -> 99.67432393 | J98: =F98/$G98 -> 79.16457502
B99: 공공연구기관 Public research institutes | C99: 401 | D99: 58386 | E99: 37404 | F99: 32824.93431
B100: 대학 Higher educations | C100: 365 | D100: 192448 | E100: 108529 | F100: 40735.96095
B101: 기업체 Business enterprises | C101: 48536 | D101: 440226 | E101: 368237 | F101: 334809.565
A102: 2019 | B102: 계 Total | C102: =SUM(C103:C105) -> 53005 | D102: =SUM(D103:D105) -> 718759 | E102: =SUM(E103:E105) -> 538136 | F102: =SUM(F103:F105) -> 430690.0064 | G102: 5176.5 | H102: =D102/$G102 -> 138.8503815 | I102: =E102/$G102 -> 103.9575002 | J102: =F102/$G102 -> 83.20100578
B103: 공공연구기관 Public research institutes | C103: 419 | D103: 62412 | E103: 40069 | F103: 34860.99082
B104: 대학 Higher educations | C104: 368 | D104: 194136 | E104: 110619 | F104: 41447.76561
B105: 기업체 Business enterprises | C105: 52218 | D105: 462211 | E105: 387448 | F105: 354381.25
A106: 2020 | B106: 계 Total | C106: =SUM(C107:C109) -> 56223 | D106: =SUM(D107:D109) -> 747288 | E106: =SUM(E107:E109) -> 558045 | F106: =SUM(F107:F109) -> 446738.854 | G106: 5183.6 | H106: =D106/$G106 -> 144.1639015 | I106: =E106/$G106 -> 107.6558762 | J106: =F106/$G106 -> 86.18312639
B107: 공공연구기관 Public research institutes | C107: 415 | D107: 64134 | E107: 41005 | F107: 36285.37094
B108: 대학 Higher educations | C108: 363 | D108: 207025 | E108: 115924 | F108: 44894.65304
B109: 기업체 Business enterprises | C109: 55445 | D109: 476129 | E109: 401116 | F109: 365558.83
A110: 2021 | B110: 계 Total | C110: 59576 | D110: 785594 | E110: 586666 | F110: 470728.1152 | G110: 5174.5 | H110: =D110/$G110 -> 151.8202725 | I110: =E110/$G110 -> 113.3763649 | J110: =F110/$G110 -> 90.97074408
B111: 공공연구기관 Public research institutes | C111: 433 | D111: 66560 | E111: 42566 | F111: 36546.34257
B112: 대학 Higher educations | C112: 366 | D112: 210163 | E112: 114635 | F112: 43772.56266
B113: 기업체 Business enterprises | C113: 58777 | D113: 508871 | E113: 429465 | F113: 390409.21
A114: 2022 | B114: 계 Total | C114: 61646 | D114: 813763 | E114: 601530 | F114: 488773.7625 | G114: =51628/10 -> 5162.8 | H114: =D114/$G114 -> 157.6204773 | I114: =E114/$G114 -> 116.5123576 | J114: =F114/$G114 -> 94.67222486
B115: 공공연구기관 Public research institutes | C115: 458 | D115: 68501 | E115: 43406 | F115: 37428.51694
B116: 대학 Higher educations | C116: 361 | D116: 222280 | E116: 114854 | F116: 47423.18554
B117: 기업체 Business enterprises | C117: 60827 | D117: 522982 | E117: 443270 | F117: 403922.06
A118: 2023 | B118: 계 Total | C118: 58200 | D118: 827963 | E118: 603566 | F118: 490255.9256 | G118: =51689/10 -> 5168.9 | H118: =D118/$G118 -> 160.1816634 | I118: =E118/$G118 -> 116.7687516 | J118: =F118/$G118 -> 94.84724517
B119: 공공연구기관 Public research institutes | C119: 477 | D119: 71135 | E119: 45445 | F119: 39019.2026
B120: 대학 Higher educations | C120: 379 | D120: 233804 | E120: 119447 | F120: 49657.205
B121: 기업체 Business enterprises | C121: 57344 | D121: 523024 | E121: 438674 | F121: 401579.518
A123: 자료 : 인구(OECD, Main Science and Technology Indicators 2024-July)

Sheet 2-8
A1: 2-8) 전공별·학위별 연구원
A2: Researchers by major field of study and degree
A4: 전공·학위 Major field of study · Degree | C4: 이학 Natural sciences | H4: 공학 Engineering & technology | M4: 농업과학 Agricultural sciences | R4: 의·약·보건학 Medical & health sciences
C5: 계 Total | D5: 박사 Doctoral | E5: 석사 Master's | F5: 학사 Bachelor's | G5: 기타 Others | H5: 계 Total | I5: 박사 Doctoral | J5: 석사 Master's | K5: 학사 Bachelor's | L5: 기타 Others | M5: 계 Total | N5: 박사 Doctoral | O5: 석사 Master's | P5: 학사 Bachelor's | Q5: 기타 Others | R5: 계 Total | S5: 박사 Doctoral | T5: 석사 Master's | U5: 학사 Bachelor's | V5: 기타 Others
A6: 연구원(명) Researchers(Person) | B6: 1995 | C6: =SUM(D6:G6) -> 23383 | D6: 8707 | E6: 8479 | F6: 5954 | G6: 243 | H6: =SUM(I6:L6) -> 78936 | I6: 14748 | J6: 26875 | K6: 34631 | L6: 2682 | M6: =SUM(N6:Q6) -> 6705 | N6: 3186 | O6: 2054 | P6: 1361 | Q6: 104 | R6: =SUM(S6:V6) -> 10343 | S6: 5991 | T6: 3436 | U6: 804 | V6: 112
B7: 1996 | C7: 23483 | D7: 8688 | E7: 8958 | F7: 5455 | G7: 382 | H7: 84358 | I7: 15732 | J7: 29411 | K7: 35832 | L7: 3383 | M7: 6855 | N7: 3175 | O7: 2315 | P7: 1279 | Q7: 86 | R7: 11854 | S7: 6999 | T7: 4031 | U7: 781 | V7: 43
B8: 1997 | C8: 24539 | D8: 9170 | E8: 9587 | F8: 5511 | G8: 271 | H8: 88433 | I8: 16727 | J8: 31427 | K8: 36635 | L8: 3644 | M8: 6407 | N8: 3048 | O8: 2201 | P8: 1084 | Q8: 74 | R8: 12489 | S8: 7649 | T8: 3931 | U8: 871 | V8: 38
B9: 1998 | C9: 21548 | D9: 8449 | E9: 7947 | F9: 4858 | G9: 294 | H9: 81748 | I9: 17846 | J9: 28078 | K9: 32241 | L9: 3583 | M9: 5553 | N9: 2590 | O9: 2064 | P9: 861 | Q9: 38 | R9: 10548 | S9: 6910 | T9: 2947 | U9: 651 | V9: 40
B10: 1999 | C10: 22679 | D10: 10149 | E10: 7494 | F10: 4729 | G10: 307 | H10: 88239 | I10: 21333 | J10: 29339 | K10: 32774 | L10: 4793 | M10: 6790 | N10: 3099 | O10: 2753 | P10: 817 | Q10: 121 | R10: 11538 | S10: 6780 | T10: 3885 | U10: 732 | V10: 141
B11: 2000 | C11: 27040 | D11: 9663 | E11: 9557 | F11: 7174 | G11: 646 | H11: 109060 | I11: 22825 | J11: 34432 | K11: 44612 | L11: 7191 | M11: 7264 | N11: 3529 | O11: 2555 | P11: 1002 | Q11: 178 | R11: 12255 | S11: 7857 | T11: 3404 | U11: 867 | V11: 127
B12: 2001 | C12: 30088 | D12: 10139 | E12: 11116 | F12: 8264 | G12: 569 | H12: 118949 | I12: 22796 | J12: 37839 | K12: 51359 | L12: 6955 | M12: 6080 | N12: 3031 | O12: 2079 | P12: 834 | Q12: 136 | R12: 12487 | S12: 7067 | T12: 4546 | U12: 733 | V12: 141
B13: 2002 | C13: =SUM(D13:G13) -> 32778 | D13: 10845 | E13: 11705 | F13: 9638 | G13: 590 | H13: =SUM(I13:L13) -> 128930 | I13: 24640 | J13: 42987 | K13: 54323 | L13: 6980 | M13: =SUM(N13:Q13) -> 6040 | N13: 3010 | O13: 2240 | P13: 727 | Q13: 63 | R13: =SUM(S13:V13) -> 13096 | S13: 7642 | T13: 4677 | U13: 662 | V13: 115
B14: 2003 | C14: =SUM(D14:G14) -> 29242 | D14: 10549 | E14: 11120 | F14: 7242 | G14: 331 | H14: =SUM(I14:L14) -> 139457 | I14: 26763 | J14: 47148 | K14: 58807 | L14: 6739 | M14: =SUM(N14:Q14) -> 6247 | N14: 3437 | O14: 2070 | P14: 691 | Q14: 49 | R14: =SUM(S14:V14) -> 14080 | S14: 8367 | T14: 4989 | U14: 659 | V14: 65
B15: 2004 | C15: 30965 | D15: 11531 | E15: 11088 | F15: 7917 | G15: 429 | H15: 150628 | I15: 29813 | J15: 49179 | K15: 65919 | L15: 5717 | M15: 6219 | N15: 3555 | O15: 1941 | P15: 657 | Q15: 66 | R15: 14451 | S15: 9116 | T15: 4425 | U15: 639 | V15: 271
B16: 2005 | C16: 33248 | D16: 11619 | E16: 12635 | F16: 8442 | G16: 552 | H16: 169145 | I16: 30636 | J16: 55619 | K16: 74596 | L16: 8294 | M16: 6813 | N16: 3641 | O16: 2201 | P16: 841 | Q16: 130 | R16: 15143 | S16: 9038 | T16: 5197 | U16: 729 | V16: 179
B17: 2006 | C17: 35239 | D17: 11715 | E17: 13306 | F17: 9504 | G17: 714 | H17: 184897 | I17: 31784 | J17: 58663 | K17: 85307 | L17: 9143 | M17: 7132 | N17: 3803 | O17: 2349 | P17: 801 | Q17: 179 | R17: 17391 | S17: 9848 | T17: 5911 | U17: 1382 | V17: 250
B18: 2007 | C18: 35443 | D18: 11196 | E18: 13699 | F18: 9865 | G18: 683 | H18: 195841 | I18: 30904 | J18: 61999 | K18: 92434 | L18: 10504 | M18: 7326 | N18: 3739 | O18: 2434 | P18: 980 | Q18: 173 | R18: 16576 | S18: 9393 | T18: 5460 | U18: 1386 | V18: 337
B19: 2008 | C19: 35760 | D19: 10905 | E19: 13526 | F19: 10522 | G19: 807 | H19: 205478 | I19: 31400 | J19: 64006 | K19: 98701 | L19: 11371 | M19: 6853 | N19: 3503 | O19: 2245 | P19: 1009 | Q19: 96 | R19: 17247 | S19: 9104 | T19: 5655 | U19: 1895 | V19: 593
B20: 2009 | C20: 41687 | D20: 12210 | E20: 16113 | F20: 12121 | G20: 1243 | H20: 217911 | I20: 31990 | J20: 68321 | K20: 104986 | L20: 12614 | M20: 8713 | N20: 4193 | O20: 2982 | P20: 1363 | Q20: 175 | R20: 17227 | S20: 9031 | T20: 5902 | U20: 1582 | V20: 712
B21: 2010 | C21: 46023 | D21: 13337 | E21: 18019 | F21: 13536 | G21: 1131 | H21: 231913 | I21: 33780 | J21: 71273 | K21: 113385 | L21: 13475 | M21: 9202 | N21: 4248 | O21: 3210 | P21: 1559 | Q21: 185 | R21: 18926 | S21: 10021 | T21: 6108 | U21: 2515 | V21: 282
B22: 2011 | C22: =SUM(D22:G22) -> 48544 | D22: 13532 | E22: 19005 | F22: 14636 | G22: 1371 | H22: =SUM(I22:L22) -> 253445 | I22: 35728 | J22: 75360 | K22: 127008 | L22: 15349 | M22: =SUM(N22:Q22) -> 9841 | N22: 4435 | O22: 3334 | P22: 1814 | Q22: 258 | R22: =SUM(S22:V22) -> 20473 | S22: 10663 | T22: 7010 | U22: 2206 | V22: 594
B23: 2012 | C23: =SUM(D23:G23) -> 53654 | D23: 14573 | E23: 20668 | F23: 16716 | G23: 1697 | H23: =SUM(I23:L23) -> 273839 | I23: 37793 | J23: 80950 | K23: 137938 | L23: 17158 | M23: =SUM(N23:Q23) -> 9912 | N23: 4329 | O23: 3356 | P23: 1978 | Q23: 249 | R23: =SUM(S23:V23) -> 19945 | S23: 9836 | T23: 7004 | U23: 2603 | V23: 502
B24: 2013 | C24: 51494 | D24: 14245 | E24: 19142 | F24: 16332 | G24: 1775 | H24: 279388 | I24: 38287 | J24: 81780 | K24: 141846 | L24: 17475 | M24: 10102 | N24: 4383 | O24: 3468 | P24: 1984 | Q24: 267 | R24: 23292 | S24: 10619 | T24: 7735 | U24: 4434 | V24: 504
B25: 2014 | C25: 54772 | D25: 14621 | E25: 20595 | F25: 17817 | G25: 1739 | H25: 298436 | I25: 39333 | J25: 85908 | K25: 153951 | L25: 19244 | M25: 10662 | N25: 4729 | O25: 3775 | P25: 1959 | Q25: 199 | R25: 23522 | S25: 10961 | T25: 7301 | U25: 4137 | V25: 1123
B26: 2015 | C26: 57976 | D26: 16599 | E26: 21265 | F26: 18276 | G26: 1836 | H26: 308230 | I26: 42168 | J26: 86006 | K26: 159455 | L26: 20601 | M26: 11045 | N26: 5053 | O26: 3720 | P26: 2059 | Q26: 213 | R26: 24066 | S26: 12136 | T26: 7085 | U26: 4404 | V26: 441
B27: 2016 | C27: 56710 | D27: 16410 | E27: 20775 | F27: 17668 | G27: 1857 | H27: 312987 | I27: 43123 | J27: 88114 | K27: 160356 | L27: 21394 | M27: 11378 | N27: 5061 | O27: 3991 | P27: 2098 | Q27: 228 | R27: 26347 | S27: 13181 | T27: 8225 | U27: 4172 | V27: 769
B28: 2017 | C28: 67736 | D28: 17976 | E28: 22587 | F28: 24296 | G28: 2877 | H28: 322952 | I28: 45445 | J28: 91783 | K28: 166088 | L28: 19636 | M28: 10423 | N28: 4795 | O28: 3453 | P28: 1965 | Q28: 210 | R28: 27911 | S28: 14123 | T28: 8112 | U28: 4882 | V28: 794
B29: 2018 | C29: 72884 | D29: 18299 | E29: 23670 | F29: 27424 | G29: 3491 | H29: 344916 | I29: 46530 | J29: 96063 | K29: 180386 | L29: 21937 | M29: 10991 | N29: 4754 | O29: 3826 | P29: 2147 | Q29: 264 | R29: 29774 | S29: 14683 | T29: 8952 | U29: 5250 | V29: 889
B30: 2019 | C30: =SUM(D30:G30) -> 86248 | D30: 19586 | E30: 27263 | F30: 35824 | G30: 3575 | H30: =SUM(I30:L30) -> 350000 | I30: 48859 | J30: 96415 | K30: 183156 | L30: 21570 | M30: =SUM(N30:Q30) -> 11051 | N30: 4928 | O30: 3537 | P30: 2314 | Q30: 272 | R30: =SUM(S30:V30) -> 31848 | S30: 15846 | T30: 9913 | U30: 5152 | V30: 937
B31: 2020 | C31: 81152 | D31: 20200 | E31: 26386 | F31: 30315 | G31: 4251 | H31: 371068 | I31: 52138 | J31: 100893 | K31: 196013 | L31: 22024 | M31: 10853 | N31: 4816 | O31: 3409 | P31: 2335 | Q31: 293 | R31: 33262 | S31: 16837 | T31: 10335 | U31: 4925 | V31: 1165
B32: 2021 | C32: 88727 | D32: 21581 | E32: 28296 | F32: 34363 | G32: 4487 | H32: 386778 | I32: 54230 | J32: 104605 | K32: 205757 | L32: 22186 | M32: 11361 | N32: 4681 | O32: 3858 | P32: 2504 | Q32: 318 | R32: 35396 | S32: 17793 | T32: 10369 | U32: 6060 | V32: 1174
B33: 2022 | C33: 93889 | D33: 22853 | E33: 30175 | F33: 36350 | G33: 4511 | H33: 394529 | I33: 56673 | J33: 105503 | K33: 210598 | L33: 21755 | M33: 11388 | N33: 4620 | O33: 4065 | P33: 2418 | Q33: 285 | R33: 36765 | S33: 17985 | T33: 11016 | U33: 6651 | V33: 1113
B34: 2023 | C34: 98575 | D34: 24585 | E34: 32828 | F34: 36937 | G34: 4225 | H34: 392674 | I34: 58204 | J34: 106474 | K34: 207882 | L34: 20114 | M34: 11062 | N34: 4505 | O34: 4007 | P34: 2291 | Q34: 259 | R34: 36938 | S34: 18736 | T34: 11133 | U34: 6251 | V34: 818
A35: 전년대비 증가율(%) Percent change from previous year | B35: 1996 | C35: =(C7/C6-1)*100 -> 0.4276611213 | D35: -0.2182152291 | E35: 5.649251091 | F35: -8.38092039 | G35: 57.20164609 | H35: 6.868855782 | I35: 6.672091131 | J35: 9.43627907 | K35: 3.467991106 | L35: 26.13721104 | M35: 2.237136465 | N35: -0.3452605148 | O35: 12.70691334 | P35: -6.024981631 | Q35: -17.30769231 | R35: 14.60891424 | S35: 16.82523786 | T35: 17.31664726 | U35: -2.860696517 | V35: -61.60714286
B36: 1997 | C36: =(C8/C7-1)*100 -> 4.496870076 | D36: 5.547882136 | E36: 7.02165662 | F36: 1.026581118 | G36: -29.05759162 | H36: 4.830602907 | I36: 6.324688533 | J36: 6.854578219 | K36: 2.241013619 | L36: 7.715045817 | M36: -6.535375638 | N36: -4 | O36: -4.924406048 | P36: -15.24628616 | Q36: -13.95348837 | R36: 5.356841572 | S36: 9.287041006 | T36: -2.480774001 | U36: 11.52368758 | V36: -11.62790698
B37: 1998 | C37: =(C9/C8-1)*100 -> -12.18876075 | D37: -7.86259542 | E37: -17.10649838 | F37: -11.84902921 | G37: 8.487084871 | H37: -7.559395248 | I37: 6.689782986 | J37: -10.65644191 | K37: -11.99399481 | L37: -1.673984632 | M37: -13.32917122 | N37: -15.02624672 | O37: -6.224443435 | P37: -20.57195572 | Q37: -48.64864865 | R37: -15.54167668 | S37: -9.661393646 | T37: -25.03179852 | U37: -25.25832377 | V37: 5.263157895
B38: 1999 | C38: =(C10/C9-1)*100 -> 5.248746983 | D38: 20.12072435 | E38: -5.700264251 | F38: -2.655413751 | G38: 4.421768707 | H38: 7.940255419 | I38: 19.53939258 | J38: 4.491060617 | K38: 1.653174529 | L38: 33.77058331 | M38: 22.27624707 | N38: 19.65250965 | O38: 33.38178295 | P38: -5.110336818 | Q38: 218.4210526 | R38: 9.385665529 | S38: -1.881331404 | T38: 31.82897862 | U38: 12.44239631 | V38: 252.5
B39: 2000 | C39: =(C11/C10-1)*100 -> 19.22924291 | D39: -4.788649128 | E39: 27.52868962 | F39: 51.70226263 | G39: 110.4234528 | H39: 23.5961423 | I39: 6.993859279 | J39: 17.35914653 | K39: 36.1200952 | L39: 50.03129564 | M39: 6.980854197 | N39: 13.87544369 | O39: -7.192154014 | P39: 22.64381885 | Q39: 47.10743802 | R39: 6.21424857 | S39: 15.88495575 | T39: -12.38095238 | U39: 18.44262295 | V39: -9.929078014
B40: 2001 | C40: =(C12/C11-1)*100 -> 11.27218935 | D40: 4.926006416 | E40: 16.31265041 | F40: 15.19375523 | G40: -11.91950464 | H40: 9.067485788 | I40: -0.1270536692 | J40: 9.894865242 | K40: 15.12373352 | L40: -3.281880128 | M40: -16.29955947 | N40: -14.11164636 | O40: -18.63013699 | P40: -16.76646707 | Q40: -23.59550562 | R40: 1.893104855 | S40: -10.05472827 | T40: 33.54876616 | U40: -15.455594 | V40: 11.02362205
B41: 2002 | C41: =(C13/C12-1)*100 -> 8.940441372 | D41: 6.963211362 | E41: 5.298668586 | F41: 16.62633107 | G41: 3.690685413 | H41: 8.390991097 | I41: 8.089138445 | J41: 13.6050107 | K41: 5.771140404 | L41: 0.3594536305 | M41: -0.6578947368 | N41: -0.6928406467 | O41: 7.744107744 | P41: -12.82973621 | Q41: -53.67647059 | R41: 4.877072155 | S41: 8.13640866 | T41: 2.881654201 | U41: -9.68622101 | V41: -18.43971631
B42: 2003 | C42: =(C14/C13-1)*100 -> -10.78772347 | D42: -2.729368373 | E42: -4.997864161 | F42: -24.85992945 | G42: -43.89830508 | H42: 8.16489568 | I42: 8.616071429 | J42: 9.679670598 | K42: 8.254330578 | L42: -3.452722063 | M42: 3.427152318 | N42: 14.18604651 | O42: -7.589285714 | P42: -4.951856946 | Q42: -22.22222222 | R42: 7.513744655 | S42: 9.487045276 | T42: 6.670942912 | U42: -0.4531722054 | V42: -43.47826087
B43: 2004 | C43: =(C15/C14-1)*100 -> 5.892209835 | D43: 9.308939236 | E43: -0.2877697842 | F43: 9.32062966 | G43: 29.60725076 | H43: 8.010354446 | I43: 11.39633076 | J43: 4.307711886 | K43: 12.09379836 | L43: -15.16545482 | M43: -0.4482151433 | N43: 3.433226651 | O43: -6.231884058 | P43: -4.92040521 | Q43: 34.69387755 | R43: 2.634943182 | S43: 8.951834588 | T43: -11.30487072 | U43: -3.034901366 | V43: 316.9230769
B44: 2005 | C44: =(C16/C15-1)*100 -> 7.372840304 | D44: 0.7631601769 | E44: 13.9520202 | F44: 6.631299735 | G44: 28.67132867 | H44: 12.29319914 | I44: 2.760540704 | J44: 13.09502023 | K44: 13.16312444 | L44: 45.07608886 | M44: 9.551374819 | N44: 2.419127989 | O44: 13.39515714 | P44: 28.00608828 | Q44: 96.96969697 | R44: 4.788595945 | S44: -0.8556384379 | T44: 17.44632768 | U44: 14.08450704 | V44: -33.94833948
B45: 2006 | C45: =(C17/C16-1)*100 -> 5.988330125 | D45: 0.8262328944 | E45: 5.310645034 | F45: 12.57995736 | G45: 29.34782609 | H45: 9.312719856 | I45: 3.747225486 | J45: 5.472949891 | K45: 14.35867875 | L45: 10.23631541 | M45: 4.682225158 | N45: 4.449327108 | O45: 6.724216265 | P45: -4.756242568 | Q45: 37.69230769 | R45: 14.84514297 | S45: 8.96215977 | T45: 13.7386954 | U45: 89.57475995 | V45: 39.66480447
B46: 2007 | C46: =(C18/C17-1)*100 -> 0.5789040552 | D46: -4.43021767 | E46: 2.953554787 | F46: 3.798400673 | G46: -4.341736695 | H46: 5.918971103 | I46: -2.768688648 | J46: 5.686719056 | K46: 8.354531281 | L46: 14.88570491 | M46: 2.720134605 | N46: -1.682881935 | O46: 3.61856109 | P46: 22.34706617 | Q46: -3.351955307 | R46: -4.686332011 | S46: -4.620227457 | T46: -7.629842666 | U46: 0.2894356006 | V46: 34.8
B47: 2008 | C47: =(C19/C18-1)*100 -> 0.8943938154 | D47: -2.599142551 | E47: -1.262865903 | F47: 6.659908768 | G47: 18.15519766 | H47: 4.920828631 | I47: 1.60497023 | J47: 3.237148986 | K47: 6.779972737 | L47: 8.253998477 | M47: -6.456456456 | N47: -6.311848088 | O47: -7.764995892 | P47: 2.959183673 | Q47: -44.50867052 | R47: 4.048021236 | S47: -3.076759289 | T47: 3.571428571 | U47: 36.72438672 | V47: 75.96439169
B48: 2009 | C48: =(C20/C19-1)*100 -> 16.57438479 | D48: 11.96698762 | E48: 19.12612746 | F48: 15.19673066 | G48: 54.02726146 | H48: 6.050769425 | I48: 1.878980892 | J48: 6.741555479 | K48: 6.367716639 | L48: 10.93131651 | M48: 27.14139793 | N48: 19.69740223 | O48: 32.8285078 | P48: 35.08424182 | Q48: 82.29166667 | R48: -0.1159621963 | S48: -0.8018453427 | T48: 4.367816092 | U48: -16.5171504 | V48: 20.06745363
B49: 2010 | C49: =(C21/C20-1)*100 -> 10.40132415 | D49: 9.23013923 | E49: 11.82895798 | F49: 11.67395429 | G49: -9.010458568 | H49: 6.425559059 | I49: 5.595498593 | J49: 4.320779848 | K49: 8.000114301 | L49: 6.825749168 | M49: 5.612303455 | N49: 1.311709993 | O49: 7.645875252 | P49: 14.38004402 | Q49: 5.714285714 | R49: 9.862425263 | S49: 10.96224117 | T49: 3.490342257 | U49: 58.97597977 | V49: -60.39325843
B50: 2011 | C50: =(C22/C21-1)*100 -> 5.477695935 | D50: 1.462097923 | E50: 5.472001776 | F50: 8.126477541 | G50: 21.22015915 | H50: 9.284516176 | I50: 5.766725873 | J50: 5.734289282 | K50: 12.01481677 | L50: 13.90723562 | M50: 6.944142578 | N50: 4.402071563 | O50: 3.862928349 | P50: 16.35663887 | Q50: 39.45945946 | R50: 8.173940611 | S50: 6.406546253 | T50: 14.76751801 | U50: -12.28628231 | V50: 110.6382979
B51: 2012 | C51: =(C23/C22-1)*100 -> 10.52653263 | D51: 7.692876145 | E51: 8.750328861 | F51: 14.21153321 | G51: 23.77826404 | H51: 8.04671625 | I51: 5.779780564 | J51: 7.417728238 | K51: 8.605757118 | L51: 11.78578409 | M51: 0.7214713952 | N51: -2.390078918 | O51: 0.6598680264 | P51: 9.040793826 | Q51: -3.488372093 | R51: -2.579006496 | S51: -7.755791053 | T51: -0.08559201141 | U51: 17.99637353 | V51: -15.48821549
B52: 2013 | C52: =(C24/C23-1)*100 -> -4.025794908 | D52: -2.250737666 | E52: -7.38339462 | F52: -2.297200287 | G52: 4.596346494 | H52: 2.026373161 | I52: 1.307120366 | J52: 1.025324274 | K52: 2.833156926 | L52: 1.847534678 | M52: 1.916868442 | N52: 1.247401247 | O52: 3.337306317 | P52: 0.3033367037 | Q52: 7.228915663 | R52: 16.78114816 | S52: 7.96055307 | T52: 10.4368932 | U52: 70.34191318 | V52: 0.3984063745
B53: 2014 | C53: =(C25/C24-1)*100 -> 6.365790189 | D53: 2.63952264 | E53: 7.590638387 | F53: 9.092578986 | G53: -2.028169014 | H53: 6.817758816 | I53: 2.731997806 | J53: 5.047688921 | K53: 8.533902965 | L53: 10.1230329 | M53: 5.543456741 | N53: 7.894136436 | O53: 8.852364475 | P53: -1.260080645 | Q53: -25.46816479 | R53: 0.9874635068 | S53: 3.220642245 | T53: -5.610859729 | U53: -6.698240866 | V53: 122.8174603
B54: 2015 | C54: =(C26/C25-1)*100 -> 5.849704228 | D54: 13.52848642 | E54: 3.2532168 | F54: 2.576191278 | G54: 5.577918344 | H54: 3.281775657 | I54: 7.207688201 | J54: 0.1140755227 | K54: 3.575163526 | L54: 7.051548535 | M54: 3.592196586 | N54: 6.851342779 | O54: -1.456953642 | P54: 5.104645227 | Q54: 7.035175879 | R54: 2.312728509 | S54: 10.71982483 | T54: -2.958498836 | U54: 6.453952139 | V54: -60.730187
B55: 2016 | C55: =(C27/C26-1)*100 -> -2.183662205 | D55: -1.138622809 | E55: -2.304255819 | F55: -3.326767345 | G55: 1.14379085 | H55: 1.543328034 | I55: 2.264750522 | J55: 2.450991791 | K55: 0.5650497005 | L55: 3.849327703 | M55: 3.014938886 | N55: 0.158321789 | O55: 7.284946237 | P55: 1.894123361 | Q55: 7.042253521 | R55: 9.478101886 | S55: 8.610744891 | T55: 16.09033169 | U55: -5.267938238 | V55: 74.37641723
B56: 2017 | C56: =(C28/C27-1)*100 -> 19.44277905 | D56: 9.542961609 | E56: 8.722021661 | F56: 37.51414988 | G56: 54.9273021 | H56: 3.183838306 | I56: 5.384597547 | J56: 4.163924008 | K56: 3.574546634 | L56: -8.217257175 | M56: -8.393390754 | N56: -5.255878285 | O56: -13.48033074 | P56: -6.339370829 | Q56: -7.894736842 | R56: 5.936159715 | S56: 7.146650482 | T56: -1.373860182 | U56: 17.01821668 | V56: 3.250975293
B57: 2018 | C57: =(C29/C28-1)*100 -> 7.600094484 | D57: 1.796840231 | E57: 4.794793465 | F57: 12.87454725 | G57: 21.34167536 | H57: 6.801010677 | I57: 2.387501375 | J57: 4.663172919 | K57: 8.608689369 | L57: 11.71827256 | M57: 5.449486712 | N57: -0.8550573514 | O57: 10.80220098 | P57: 9.262086514 | Q57: 25.71428571 | R57: 6.674787718 | S57: 3.965163209 | T57: 10.35502959 | U57: 7.537894306 | V57: 11.96473552
B58: 2019 | C58: =(C30/C29-1)*100 -> 18.33598595 | D58: 7.033171212 | E58: 15.17955218 | F58: 30.63010502 | G58: 2.406187339 | H58: 1.473982071 | I58: 5.005372878 | J58: 0.3664261995 | K58: 1.535595889 | L58: -1.672972603 | M58: 0.5459011919 | N58: 3.660075726 | O58: -7.553580763 | P58: 7.778295296 | Q58: 3.03030303 | R58: 6.965809095 | S58: 7.920724648 | T58: 10.73503128 | U58: -1.866666667 | V58: 5.399325084
B59: 2020 | C59: =(C31/C30-1)*100 -> -5.908542807 | D59: 3.13489227 | E59: -3.216813997 | F59: -15.37795891 | G59: 18.90909091 | H59: 6.019428571 | I59: 6.711148407 | J59: 4.644505523 | K59: 7.019699054 | L59: 2.104775151 | M59: -1.791693059 | N59: -2.272727273 | O59: -3.618886062 | P59: 0.9075194468 | Q59: 7.720588235 | R59: 4.439839236 | S59: 6.253944213 | T59: 4.257036215 | U59: -4.406055901 | V59: 24.33297759
B60: 2021 | C60: =(C32/C31-1)*100 -> 9.334335568 | D60: 6.836633663 | E60: 7.238687183 | F60: 13.35312552 | G60: 5.551634909 | H60: 4.233725355 | I60: 4.012428555 | J60: 3.679145233 | K60: 4.971098856 | L60: 0.735561206 | M60: 4.680733438 | N60: -2.803156146 | O60: 13.17101789 | P60: 7.237687366 | Q60: 8.532423208 | R60: 6.415729661 | S60: 5.677971135 | T60: 0.3289791969 | U60: 23.04568528 | V60: 0.7725321888
B61: 2022 | C61: =(C33/C32-1)*100 -> 5.817845752 | D61: 5.894073491 | E61: 6.64051456 | F61: 5.782382213 | G61: 0.534878538 | H61: 2.003991954 | I61: 4.504886594 | J61: 0.8584675685 | K61: 2.352775361 | L61: -1.942666546 | M61: 0.237655136 | N61: -1.303140355 | O61: 5.365474339 | P61: -3.434504792 | Q61: -10.37735849 | R61: 3.867668663 | S61: 1.079076041 | T61: 6.23975311 | U61: 9.752475248 | V61: -5.195911414
B62: 2023 | C62: =(C34/C33-1)*100 -> 4.991000011 | D62: 7.578873671 | E62: 8.792046396 | F62: 1.614855571 | G62: -6.340057637 | H62: -0.4701808992 | I62: 2.701462778 | J62: 0.9203529757 | K62: -1.28966087 | L62: -7.543093542 | M62: -2.862662452 | N62: -2.489177489 | O62: -1.426814268 | P62: -5.252274607 | Q62: -9.122807018 | R62: 0.4705562356 | S62: 4.175701974 | T62: 1.062091503 | U62: -6.014133213 | V62: -26.5049416
A64: 전공·학위 Major field of study · Degree | C64: 인문학 Humanities | H64: 사회과학 Social sciences | M64: 총계 Total
C65: 계 Total | D65: 박사 Doctoral | E65: 석사 Master's | F65: 학사 Bachelor's | G65: 기타 Others | H65: 계 Total | I65: 박사 Doctoral | J65: 석사 Master's | K65: 학사 Bachelor's | L65: 기타 Others | M65: 계 Total | N65: 박사 Doctoral | O65: 석사 Master's | P65: 학사 Bachelor's | Q65: 기타 Others
A66: 연구원(명) Researchers(Person) | B66: 1995 | M66: =SUM(C6,H6,M6,R6,C66,H66) -> 119367 | N66: =SUM(D6,I6,N6,S6,D66,I66) -> 32632 | O66: =SUM(E6,J6,O6,T6,E66,J66) -> 40844 | P66: =SUM(F6,K6,P6,U6,F66,K66) -> 42750 | Q66: =SUM(G6,L6,Q6,V6,G66,L66) -> 3141
B67: 1996 | M67: 126550 | N67: 34594 | O67: 44715 | P67: 43347 | Q67: 3894
B68: 1997 | M68: 131868 | N68: 36594 | O68: 47146 | P68: 44101 | Q68: 4027
B69: 1998 | M69: 119397 | N69: 35795 | O69: 41036 | P69: 38611 | Q69: 3955
B70: 1999 | M70: 129246 | N70: 41361 | O70: 43471 | P70: 39052 | Q70: 5362
B71: 2000 | M71: 155619 | N71: 43874 | O71: 49948 | P71: 53655 | Q71: 8142
B72: 2001 | M72: 167604 | N72: 43033 | O72: 55580 | P72: 61190 | Q72: 7801
B73: 2002 | M73: 180844 | N73: 46137 | O73: 61609 | P73: 65350 | Q73: 7748
B74: 2003 | M74: 189026 | N74: 49116 | O74: 65327 | P74: 67399 | Q74: 7184
B75: 2004 | M75: 202263 | N75: 54015 | O75: 66633 | P75: 75132 | Q75: 6483
B76: 2005 | M76: 224349 | N76: 54934 | O76: 75652 | P76: 84608 | Q76: 9155
B77: 2006 | M77: 244659 | N77: 57150 | O77: 80229 | P77: 96994 | Q77: 10286
B78: 2007 | C78: =SUM(D78:G78) -> 14430 | D78: 6989 | E78: 3724 | F78: 3124 | G78: 593 | H78: =SUM(I78:L78) -> 19482 | I78: 11285 | J78: 5734 | K78: 1864 | L78: 599 | M78: 289098 | N78: 73506 | O78: 93050 | P78: 109653 | Q78: 12889
B79: 2008 | C79: 15457 | D79: 7111 | E79: 3870 | F79: 3761 | G79: 715 | H79: 19255 | I79: 11421 | J79: 5116 | K79: 1952 | L79: 766 | M79: 300050 | N79: 73444 | O79: 94418 | P79: 117840 | Q79: 14348
B80: 2009 | C80: 16372 | D80: 7205 | E80: 4209 | F80: 4053 | G80: 905 | H80: 21265 | I80: 11851 | J80: 6137 | K80: 2181 | L80: 1096 | M80: 323175 | N80: 76480 | O80: 103664 | P80: 126286 | Q80: 16745
B81: 2010 | C81: 17568 | D81: 7462 | E81: 4217 | F81: 4742 | G81: 1147 | H81: 22280 | I81: 12594 | J81: 6397 | K81: 2548 | L81: 741 | M81: 345912 | N81: 81442 | O81: 109224 | P81: 138285 | Q81: 16961
B82: 2011 | C82: 19633 | D82: 7850 | E82: 4463 | F82: 6084 | G82: 1236 | H82: 23240 | I82: 12466 | J82: 6959 | K82: 2985 | L82: 830 | M82: 375176 | N82: 84674 | O82: 116131 | P82: 154733 | Q82: 19638
B83: 2012 | C83: 20413 | D83: 7971 | E83: 4098 | F83: 6874 | G83: 1470 | H83: 23961 | I83: 13140 | J83: 6872 | K83: 3053 | L83: 896 | M83: 401724 | N83: 87642 | O83: 122948 | P83: 169162 | Q83: 21972
B84: 2013 | C84: 20834 | D84: 7843 | E84: 3835 | F84: 7501 | G84: 1655 | H84: 25223 | I84: 13611 | J84: 7146 | K84: 3448 | L84: 1018 | M84: 410333 | N84: 88988 | O84: 123106 | P84: 175545 | Q84: 22694
B85: 2014 | C85: 22870 | D85: 8046 | E85: 4136 | F85: 8701 | G85: 1987 | H85: 27185 | I85: 14465 | J85: 7694 | K85: 3850 | L85: 1176 | M85: 437447 | N85: 92155 | O85: 129409 | P85: 190415 | Q85: 25468
B86: 2015 | C86: 23996 | D86: 8030 | E86: 3684 | F86: 10226 | G86: 2056 | H86: 27949 | I86: 14592 | J86: 7504 | K86: 4599 | L86: 1254 | M86: 453262 | N86: 98578 | O86: 129264 | P86: 199019 | Q86: 26401
B87: 2016 | C87: 24734 | D87: 7751 | E87: 3826 | F87: 10838 | G87: 2319 | H87: 28613 | I87: 14454 | J87: 7664 | K87: 5057 | L87: 1438 | M87: 460769 | N87: 99980 | O87: 132595 | P87: 200189 | Q87: 28005
B88: 2017 | C88: 26576 | D88: 8017 | E88: 4846 | F88: 11684 | G88: 2029 | H88: 27198 | I88: 13226 | J88: 7215 | K88: 5837 | L88: 920 | M88: 482796 | N88: 103582 | O88: 137996 | P88: 214752 | Q88: 26466
B89: 2018 | C89: 27931 | D89: 8386 | E89: 4480 | F89: 12919 | G89: 2146 | H89: 27674 | I89: 13278 | J89: 7408 | K89: 5796 | L89: 1192 | M89: 514170 | N89: 105930 | O89: 144399 | P89: 233922 | Q89: 29919
B90: 2019 | C90: =SUM(D90:G90) -> 28854 | D90: 8640 | E90: 4403 | F90: 13761 | G90: 2050 | H90: =SUM(I90:L90) -> 30135 | I90: 14096 | J90: 7998 | K90: 7060 | L90: 981 | M90: 538136 | N90: 111955 | O90: 149529 | P90: 247267 | Q90: 29385
B91: 2020 | C91: 30213 | D91: 8618 | E91: 4716 | F91: 14695 | G91: 2184 | H91: 31497 | I91: 14175 | J91: 8139 | K91: 7981 | L91: 1202 | M91: 558045 | N91: 116784 | O91: 153878 | P91: 256264 | Q91: 31119
B92: 2021 | C92: 32267 | D92: 8415 | E92: 4827 | F92: 16674 | G92: 2351 | H92: 32137 | I92: 14315 | J92: 8018 | K92: 8542 | L92: 1262 | M92: 586666 | N92: 121015 | O92: 159973 | P92: 273900 | Q92: 31778
B93: 2022 | C93: 32542 | D93: 8525 | E93: 4558 | F93: 17216 | G93: 2243 | H93: 32417 | I93: 13634 | J93: 8131 | K93: 9436 | L93: 1216 | M93: 601530 | N93: 124290 | O93: 163448 | P93: 282669 | Q93: 31123
B94: 2023 | C94: 31503 | D94: 8370 | E94: 4478 | F94: 16606 | G94: 2049 | H94: 32814 | I94: 14303 | J94: 8294 | K94: 9096 | L94: 1121 | M94: 603566 | N94: 128703 | O94: 167214 | P94: 279063 | Q94: 28586
A95: 전년대비 증가율(%) Percent change from previous year | B95: 1996 | M95: =(M67/M66-1)*100 -> 6.017576047 | N95: 6.012503064 | O95: 9.477524239 | P95: 1.396491228 | Q95: 23.97325692
B96: 1997 | M96: 4.202291584 | N96: 5.781349367 | O96: 5.436654367 | P96: 1.739451404 | Q96: 3.415511043
B97: 1998 | M97: -9.457184457 | N97: -2.183418047 | O97: -12.95974208 | P97: -12.44869731 | Q97: -1.787931463
B98: 1999 | M98: 8.248950979 | N98: 15.54965777 | O98: 5.933814212 | P98: 1.14216156 | Q98: 35.57522124
B99: 2000 | M99: 20.40527366 | N99: 6.075771862 | O99: 14.89958823 | P99: 37.39373144 | Q99: 51.846326
B100: 2001 | M100: 7.701501745 | N100: -1.916852806 | O100: 11.27572676 | P100: 14.04342559 | Q100: -4.188160157
B101: 2002 | M101: 7.899572803 | N101: 7.21306904 | O101: 10.84742713 | P101: 6.798496486 | Q101: -0.6794000769
B102: 2003 | M102: 4.524341421 | N102: 6.456856753 | O102: 6.034832573 | P102: 3.135424637 | Q102: -7.279297883
B103: 2004 | M103: 7.002740364 | N103: 9.974346445 | O103: 1.999173389 | P103: 11.473464 | Q103: -9.7577951
B104: 2005 | M104: 10.91944646 | N104: 1.701379247 | O104: 13.53533534 | P104: 12.61246872 | Q104: 41.21548666
B105: 2006 | M105: =(M77/M76-1)*100 -> 9.052859607 | N105: 4.033931627 | O105: 6.050071379 | P105: 14.63927761 | Q105: 12.35390497
B106: 2007 | M106: 18.16364818 | N106: 28.61942257 | O106: 15.9805058 | P106: 13.05132276 | Q106: 25.30624149
B107: 2008 | C107: =(C79/C78-1)*100 -> 7.117117117 | D107: 1.745600229 | E107: 3.920515575 | F107: 20.39052497 | G107: 20.57335582 | H107: -1.165178113 | I107: 1.205139566 | J107: -10.77781653 | K107: 4.721030043 | L107: 27.87979967 | M107: 3.788334752 | N107: -0.08434685604 | O107: 1.470177324 | P107: 7.466279992 | Q107: 11.31973
B108: 2009 | C108: =(C80/C79-1)*100 -> 5.919648056 | D108: 1.321895655 | E108: 8.759689922 | F108: 7.763892582 | G108: 26.57342657 | H108: 10.43884705 | I108: 3.764994309 | J108: 19.95699765 | K108: 11.73155738 | L108: 43.08093995 | M108: 7.707048825 | N108: 4.133761778 | O108: 9.792624288 | P108: 7.167345553 | Q108: 16.70616114
B109: 2010 | C109: =(C81/C80-1)*100 -> 7.305155143 | D109: 3.566967384 | E109: 0.1900689 | F109: 16.99975327 | G109: 26.74033149 | H109: 4.77310134 | I109: 6.269513121 | J109: 4.236597686 | K109: 16.82714351 | L109: -32.39051095 | M109: 7.035507078 | N109: 6.487970711 | O109: 5.363482019 | P109: 9.501449092 | Q109: 1.289937295
B110: 2011 | C110: =(C82/C81-1)*100 -> 11.75432605 | D110: 5.19967837 | E110: 5.833530946 | F110: 28.30029523 | G110: 7.759372276 | H110: 4.308797127 | I110: -1.016356995 | J110: 8.785368141 | K110: 17.15070644 | L110: 12.01079622 | M110: 8.459955133 | N110: 3.968468358 | O110: 6.323701751 | P110: 11.89427631 | Q110: 15.7832675
B111: 2012 | C111: =(C83/C82-1)*100 -> 3.972902766 | D111: 1.541401274 | E111: -8.178355366 | F111: 12.98487837 | G111: 18.93203883 | H111: 3.102409639 | I111: 5.406706241 | J111: -1.250179624 | K111: 2.278056951 | L111: 7.951807229 | M111: 7.076145596 | N111: 3.50520821 | O111: 5.870094979 | P111: 9.325095487 | Q111: 11.88512068
B112: 2013 | C112: =(C84/C83-1)*100 -> 2.062411209 | D112: -1.605821101 | E112: -6.417764763 | F112: 9.121326738 | G112: 12.58503401 | H112: 5.266892033 | I112: 3.584474886 | J112: 3.987194412 | K112: 12.93809368 | L112: 13.61607143 | M112: 2.143013611 | N112: 1.535793341 | O112: 0.1285096138 | P112: 3.773306062 | Q112: 3.286000364
B113: 2014 | C113: =(C85/C84-1)*100 -> 9.77248728 | D113: 2.588295295 | E113: 7.848761408 | F113: 15.99786695 | G113: 20.06042296 | H113: 7.778614756 | I113: 6.274336933 | J113: 7.668625805 | K113: 11.65893271 | L113: 15.52062868 | M113: 6.607803906 | N113: 3.558906819 | O113: 5.119977905 | P113: 8.470762483 | Q113: 12.2234952
B114: 2015 | C114: =(C86/C85-1)*100 -> 4.923480542 | D114: -0.1988565747 | E114: -10.92843327 | F114: 17.52672107 | G114: 3.472571716 | H114: 2.810373368 | I114: 0.8779813343 | J114: -2.46945672 | K114: 19.45454545 | L114: 6.632653061 | M114: 3.61529511 | N114: 6.969779176 | O114: -0.1120478483 | P114: 4.518551585 | Q114: 3.663420763
B115: 2016 | C115: =(C87/C86-1)*100 -> 3.075512585 | D115: -3.474470735 | E115: 3.854505972 | F115: 5.984744768 | G115: 12.79182879 | H115: 2.375755841 | I115: -0.9457236842 | J115: 2.132196162 | K115: 9.958686671 | L115: 14.67304625 | M115: =(M87/M86-1)*100 -> 1.656216493 | N115: 1.422224026 | O115: 2.576896893 | P115: 0.5878835689 | Q115: 6.075527442
B116: 2017 | C116: =(C88/C87-1)*100 -> 7.447238619 | D116: 3.43181525 | E116: 26.65969681 | F116: 7.805868241 | G116: -12.50539025 | H116: -4.945304582 | I116: -8.495918085 | J116: -5.858559499 | K116: 15.42416452 | L116: -36.02225313 | M116: 4.780486534 | N116: 3.602720544 | O116: 4.073305932 | P116: 7.274625479 | Q116: -5.495447242
B117: 2018 | C117: =(C89/C88-1)*100 -> 5.09858519 | D117: 4.602719222 | E117: -7.552620718 | F117: 10.57001027 | G117: 5.766387383 | H117: 1.750128686 | I117: 0.3931649781 | J117: 2.674982675 | K117: -0.7024156245 | L117: 29.56521739 | M117: 6.498396838 | N117: 2.266803113 | O117: 4.639989565 | P117: 8.926575771 | Q117: 13.04692813
B118: 2019 | C118: =(C90/C89-1)*100 -> 3.304571981 | D118: 3.02885762 | E118: -1.71875 | F118: 6.517532317 | G118: -4.473438956 | H118: 8.892823589 | I118: 6.16056635 | J118: 7.964362851 | K118: 21.80814355 | L118: -17.70134228 | M118: 4.661104304 | N118: 5.687718305 | O118: 3.552656182 | P118: 5.704893084 | Q118: -1.784819011
B119: 2020 | C119: =(C91/C90-1)*100 -> 4.709918902 | D119: -0.2546296296 | E119: 7.108789462 | F119: 6.787297435 | G119: 6.536585366 | H119: 4.519661523 | I119: 0.5604426788 | J119: 1.762940735 | K119: 13.04532578 | L119: 22.52803262 | M119: 3.6996224 | N119: 4.313340181 | O119: 2.908465916 | P119: 3.638576923 | Q119: 5.900969883
B120: 2021 | C120: =(C92/C91-1)*100 -> 6.798398041 | D120: -2.355534927 | E120: 2.353689567 | F120: 13.4671657 | G120: 7.646520147 | H120: 2.03193955 | I120: 0.987654321 | J120: -1.486669124 | K120: 7.029194337 | L120: 4.991680532 | M120: 5.128797857 | N120: 3.622927798 | O120: 3.960930087 | P120: 6.881965473 | Q120: 2.117677303
B121: 2022 | C121: =(C93/C92-1)*100 -> 0.8522639229 | D121: 1.307189542 | E121: -5.572819557 | F121: 3.250569749 | G121: -4.593789877 | H121: 0.8712698758 | I121: -4.757247642 | J121: 1.40932901 | K121: 10.46593304 | L121: -3.645007924 | M121: 2.533639243 | N121: 2.706276081 | O121: 2.172241566 | P121: 3.201533406 | Q121: -2.061174397
B122: 2023 | C122: =(C94/C93-1)*100 -> -3.192797001 | D122: -1.818181818 | E122: -1.75515577 | F122: -3.543215613 | G122: -8.649130629 | H122: 1.22466607 | I122: 4.906850521 | J122: 2.004673472 | K122: -3.603221704 | L122: -7.8125 | M122: 0.3384702342 | N122: 3.550567222 | O122: 2.304096716 | P122: -1.275697017 | Q122: -8.151527809

Sheet 2-9
A1: 2-9) 연구개발수행기관 및 성별 연구원
A2: R&D performing institutes and researchers by gender
A4: 연도 Year | B4: 연구개발수행기관 R&D performing institutes | J4: 성별 연구원(명) Researchers by gender(Person)
B5: 총계 Total | C5: 공공연구기관 Public research institutes | F5: 대학 Higher educations | I5: 기업체 Business enterprises | J5: 총계 Total
C6: 계 Sub total | D6: 국립·공립·출연(연) Government | E6: 비영리법인 Non-profit | F6: 계 Sub total | G6: 국·공립 National & Pub. | H6: 사립 Private | K6: 여성 Female
A7: 1991 | B7: 2352 | C7: 188 | F7: 221 | G7: 53 | H7: 168 | I7: 1943 | J7: 76252 | K7: 4313
A8: 1992 | B8: 3106 | C8: 212 | F8: 237 | G8: 53 | H8: 184 | I8: 2657 | J8: 88764 | K8: 5764
A9: 1993 | B9: 3318 | C9: 210 | F9: 244 | G9: 51 | H9: 193 | I9: 2864 | J9: 98764 | K9: 6590
A10: 1994 | B10: 2640 | C10: 217 | F10: 244 | G10: 50 | H10: 194 | I10: 2179 | J10: 117446 | K10: 9052
A11: 1995 | B11: 2587 | C11: 178 | F11: 257 | G11: 53 | H11: 204 | I11: 2152 | J11: 128315 | K11: 10235
A12: 1996 | B12: 2856 | C12: 163 | F12: 258 | G12: 53 | H12: 205 | I12: 2435 | J12: 132023 | K12: 11166
A13: 1997 | B13: 2962 | C13: 184 | F13: 271 | G13: 48 | H13: 223 | I13: 2507 | J13: 138434 | K13: 12545
A14: 1998 | B14: 2869 | C14: 183 | F14: 267 | G14: 49 | H14: 218 | I14: 2419 | J14: 129767 | K14: 12317
A15: 1999 | B15: 3059 | C15: 169 | F15: 285 | G15: 56 | H15: 229 | I15: 2605 | J15: 134568 | K15: 13009
A16: 2000 | B16: 4635 | C16: 173 | F16: 268 | G16: 56 | H16: 212 | I16: 4194 | J16: 159973 | K16: 16385
A17: 2001 | B17: 6801 | C17: 188 | F17: 276 | G17: 62 | H17: 214 | I17: 6337 | J17: 178937 | K17: 19930
A18: 2002 | B18: 7210 | C18: 163 | F18: 304 | G18: 61 | H18: 243 | I18: 6743 | J18: 189888 | K18: 22057
A19: 2003 | B19: 7127 | C19: 169 | F19: 310 | G19: 62 | H19: 248 | I19: 6648 | J19: 198171 | K19: 22613
A20: 2004 | B20: 7254 | C20: 159 | F20: 293 | G20: 55 | H20: 238 | I20: 6802 | J20: 209979 | K20: 25198
A21: 2005 | B21: 7761 | C21: 137 | F21: 256 | G21: 51 | H21: 205 | I21: 7368 | J21: 234702 | K21: 30174
A22: 2006 | B22: 9443 | C22: 139 | F22: 268 | G22: 51 | H22: 217 | I22: 9036 | J22: 256598 | K22: 33682
A23: 2007 | B23: 11200 | C23: 188 | F23: 322 | G23: 61 | H23: 261 | I23: 10690 | J23: 289098 | K23: 42977
A24: 2008 | B24: 12822 | C24: 228 | F24: 338 | G24: 65 | H24: 273 | I24: 12256 | J24: 300050 | K24: 46677
A25: 2009 | B25: 15237 | C25: 252 | F25: 359 | G25: 67 | H25: 292 | I25: 14626 | J25: 323175 | K25: 51073
A26: 2010 | B26: 16550 | C26: 261 | D26: 151 | E26: 110 | F26: 352 | G26: 67 | H26: 285 | I26: 15937 | J26: 345912 | K26: 57662
A27: 2011 | B27: 20372 | C27: 268 | D27: 154 | E27: 114 | F27: 350 | G27: 68 | H27: 282 | I27: 19754 | J27: 375176 | K27: 65067
A28: 2012 | B28: 23533 | C28: 272 | D28: 157 | E28: 115 | F28: 344 | G28: 71 | H28: 273 | I28: 22917 | J28: 401724 | K28: 70997
A29: 2013 | B29: 25882 | C29: 326 | D29: 177 | E29: 149 | F29: 371 | G29: 74 | H29: 297 | I29: 25185 | J29: 410333 | K29: 74617
A30: 2014 | B30: 30111 | C30: 348 | D30: 187 | E30: 161 | F30: 371 | G30: 76 | H30: 295 | I30: 29392 | J30: 437447 | K30: 80904
A31: 2015 | B31: 35379 | C31: 372 | D31: 197 | E31: 175 | F31: 365 | G31: 77 | H31: 288 | I31: 34642 | J31: 453262 | K31: 85652
A32: 2016 | B32: 37218 | C32: 372 | D32: 200 | E32: 172 | F32: 368 | G32: 77 | H32: 291 | I32: 36478 | J32: 460769 | K32: 90615
A33: 2017 | B33: 42368 | C33: 375 | D33: 200 | E33: 175 | F33: 364 | G33: 78 | H33: 286 | I33: 41629 | J33: 482796 | K33: 97042
A34: 2018 | B34: 49302 | C34: 401 | D34: 216 | E34: 185 | F34: 365 | G34: 79 | H34: 286 | I34: 48536 | J34: 514170 | K34: 104728
A35: 2019 | B35: 53005 | C35: 419 | D35: 228 | E35: 191 | F35: 368 | G35: 77 | H35: 291 | I35: 52218 | J35: 538136 | K35: 113187
A36: 2020 | B36: 56223 | C36: 415 | D36: 221 | E36: 194 | F36: 363 | G36: 77 | H36: 286 | I36: 55445 | J36: 558045 | K36: 119551
A37: 2021 | B37: 59576 | C37: 433 | D37: 232 | E37: 201 | F37: 366 | G37: 78 | H37: 288 | I37: 58777 | J37: 586666 | K37: 130055
A38: 2022 | B38: 61646 | C38: 458 | D38: 239 | E38: 219 | F38: 361 | G38: 80 | H38: 281 | I38: 60827 | J38: 601530 | K38: 138286
A39: 2023 | B39: 58200 | C39: 477 | D39: 238 | E39: 239 | F39: 379 | G39: 82 | H39: 297 | I39: 57344 | J39: 603566 | K39: 143127
A40: 구성비(%) Percent distribution
A41: 1991 | B41: =B7/$B7*100 -> 100 | C41: 7.993197279 | D41: 0 | E41: 0 | F41: 9.396258503 | G41: 2.253401361 | H41: 7.142857143 | I41: 82.61054422 | J41: =J7/$J7*100 -> 100 | K41: 5.656245082
A42: 1992 | B42: =B8/$B8*100 -> 100 | C42: 6.825499034 | D42: 0 | E42: 0 | F42: 7.630392788 | G42: 1.706374759 | H42: 5.92401803 | I42: 85.54410818 | J42: 100 | K42: 6.493623541
A43: 1993 | B43: =B9/$B9*100 -> 100 | C43: 6.329113924 | D43: 0 | E43: 0 | F43: 7.353827607 | G43: 1.537070524 | H43: 5.816757083 | I43: 86.31705847 | J43: 100 | K43: 6.672471751
A44: 1994 | B44: =B10/$B10*100 -> 100 | C44: 8.21969697 | D44: 0 | E44: 0 | F44: 9.242424242 | G44: 1.893939394 | H44: 7.348484848 | I44: 82.53787879 | J44: 100 | K44: 7.707371899
A45: 1995 | B45: =B11/$B11*100 -> 100 | C45: 6.880556629 | D45: 0 | E45: 0 | F45: 9.934286819 | G45: 2.048705064 | H45: 7.885581755 | I45: 83.18515655 | J45: 100 | K45: 7.97646417
A46: 1996 | B46: =B12/$B12*100 -> 100 | C46: 5.707282913 | D46: 0 | E46: 0 | F46: 9.033613445 | G46: 1.855742297 | H46: 7.177871148 | I46: 85.25910364 | J46: 100 | K46: 8.457617233
A47: 1997 | B47: =B13/$B13*100 -> 100 | C47: 6.212018906 | D47: 0 | E47: 0 | F47: 9.149223498 | G47: 1.620526671 | H47: 7.528696826 | I47: 84.6387576 | J47: 100 | K47: 9.062080125
A48: 1998 | B48: 100 | C48: 6.378529104 | D48: 0 | E48: 0 | F48: 9.306378529 | G48: 1.707912165 | H48: 7.598466365 | I48: 84.31509237 | J48: 100 | K48: 9.491627301
A49: 1999 | B49: 100 | C49: 5.524681268 | D49: 0 | E49: 0 | F49: 9.316770186 | G49: 1.830663616 | H49: 7.486106571 | I49: 85.15854855 | J49: 100 | K49: 9.667231437
A50: 2000 | B50: 100 | C50: 3.732470334 | D50: 0 | E50: 0 | F50: 5.782092772 | G50: 1.20819849 | H50: 4.573894283 | I50: 90.48543689 | J50: 100 | K50: 10.2423534
A51: 2001 | B51: 100 | C51: 2.764299368 | D51: 0 | E51: 0 | F51: 4.058226731 | G51: 0.9116306426 | H51: 3.146596089 | I51: 93.1774739 | J51: 100 | K51: 11.13799829
A52: 2002 | B52: 100 | C52: 2.26074896 | D52: 0 | E52: 0 | F52: 4.216366158 | G52: 0.8460471567 | H52: 3.370319001 | I52: 93.52288488 | J52: 100 | K52: 11.61579457
A53: 2003 | B53: 100 | C53: 2.371264207 | D53: 0 | E53: 0 | F53: 4.349656237 | G53: 0.8699312474 | H53: 3.479724989 | I53: 93.27907956 | J53: 100 | K53: 11.41085224
A54: 2004 | B54: 100 | C54: 2.191894127 | D54: 0 | E54: 0 | F54: 4.039150813 | G54: 0.7582023711 | H54: 3.280948442 | I54: 93.76895506 | J54: 100 | K54: 12.00024764
A55: 2005 | B55: 100 | C55: 1.765236439 | D55: 0 | E55: 0 | F55: 3.298544002 | G55: 0.6571318129 | H55: 2.641412189 | I55: 94.93621956 | J55: 100 | K55: 12.85630289
A56: 2006 | B56: 100 | C56: 1.471989834 | D56: 0 | E56: 0 | F56: 2.838081118 | G56: 0.5400826009 | H56: 2.297998517 | I56: 95.68992905 | J56: 100 | K56: 13.12636887
A57: 2007 | B57: 100 | C57: 1.678571429 | D57: 0 | E57: 0 | F57: 2.875 | G57: 0.5446428571 | H57: 2.330357143 | I57: 95.44642857 | J57: 100 | K57: 14.86589323
A58: 2008 | B58: 100 | C58: 1.77819373 | D58: 0 | E58: 0 | F58: 2.636094213 | G58: 0.5069411948 | H58: 2.129153018 | I58: 95.58571206 | J58: 100 | K58: 15.55640727
A59: 2009 | B59: =B25/$B25*100 -> 100 | C59: 1.653868872 | D59: 0 | E59: 0 | F59: 2.356106845 | G59: 0.4397191048 | H59: 1.91638774 | I59: 95.99002428 | J59: 100 | K59: 15.80351203
A60: 2010 | B60: =B26/$B26*100 -> 100 | C60: 1.577039275 | D60: 0.9123867069 | E60: 0.664652568 | F60: 2.126888218 | G60: 0.4048338369 | H60: 1.722054381 | I60: 96.29607251 | J60: 100 | K60: 16.66955758
A61: 2011 | B61: =B27/$B27*100 -> 100 | C61: 1.315531121 | D61: 0.7559395248 | E61: 0.5595915963 | F61: 1.718044375 | G61: 0.3337914785 | H61: 1.384252896 | I61: 96.9664245 | J61: 100 | K61: 17.34306032
A62: 2012 | B62: =B28/$B28*100 -> 100 | C62: 1.155823737 | D62: 0.6671482599 | E62: 0.488675477 | F62: 1.461777079 | G62: 0.3017039901 | H62: 1.160073089 | I62: 97.38239918 | J62: 100 | K62: 17.67307903
A63: 2013 | B63: =B29/$B29*100 -> 100 | C63: 1.25956263 | D63: 0.6838729619 | E63: 0.5756896685 | F63: 1.433428638 | G63: 0.2859129897 | H63: 1.147515648 | I63: 97.30700873 | J63: 100 | K63: 18.18449893
A64: 2014 | B64: =B30/$B30*100 -> 100 | C64: 1.155723822 | D64: 0.621035502 | E64: 0.5346883199 | F64: 1.232107868 | G64: 0.2523994553 | H64: 0.9797084122 | I64: 97.61216831 | J64: 100 | K64: 18.49458334
A65: 2015 | B65: =B31/$B31*100 -> 100 | C65: 1.051471212 | D65: 0.5568274965 | E65: 0.4946437152 | F65: 1.031685463 | G65: 0.2176432347 | H65: 0.8140422284 | I65: 97.91684333 | J65: 100 | K65: 18.896797
A66: 2016 | B66: =B32/$B32*100 -> 100 | C66: 0.9995163631 | D66: 0.5373743887 | E66: 0.4621419743 | F66: 0.9887688753 | G66: 0.2068891397 | H66: 0.7818797356 | I66: 98.01171476 | J66: 100 | K66: 19.66603656
A67: 2017 | B67: =B33/$B33*100 -> 100 | C67: 0.8851019637 | D67: 0.4720543807 | E67: 0.4130475831 | F67: 0.8591389728 | G67: 0.1841012085 | H67: 0.6750377644 | I67: 98.25575906 | J67: 100 | K67: 20.10000083
A68: 2018 | B68: =B34/$B34*100 -> 100 | C68: 0.8133544278 | D68: 0.4381161008 | E68: 0.375238327 | F68: 0.7403350777 | G68: 0.1602369072 | H68: 0.5800981705 | I68: 98.44631049 | J68: 100 | K68: 20.36836066
A69: 2019 | B69: =B35/$B35*100 -> 100 | C69: 0.7904914631 | D69: 0.4301480992 | E69: 0.3603433638 | F69: 0.6942741251 | G69: 0.1452693142 | H69: 0.5490048109 | I69: 98.51523441 | J69: 100 | K69: 21.0331589
A70: 2020 | B70: 100 | C70: =C36/$B36*100 -> 0.7381320812 | D70: 0.3930775661 | E70: 0.3450545151 | F70: 0.6456432421 | G70: 0.1369546271 | H70: 0.508688615 | I70: 98.61622468 | J70: =J36/$J36*100 -> 100 | K70: 21.42318272
A71: 2021 | B71: =B37/$B37*100 -> 100 | C71: 0.7268027394 | D71: 0.3894185578 | E71: 0.3373841815 | F71: 0.6143413455 | G71: 0.1309252048 | H71: 0.4834161407 | I71: 98.65885592 | J71: =J37/$J37*100 -> 100 | K71: =K37/$J37*100 -> 22.1684911
A72: 2022 | B72: =B38/$B38*100 -> 100 | C72: 0.7429516919 | D72: 0.3876974986 | E72: 0.3552541933 | F72: 0.5856016611 | G72: 0.1297732213 | H72: 0.4558284398 | I72: 98.67144665 | J72: =J38/$J38*100 -> 100 | K72: 22.9890446
A73: 2023 | B73: =B39/$B39*100 -> 100 | C73: 0.8195876289 | D73: 0.4089347079 | E73: 0.410652921 | F73: 0.6512027491 | G73: 0.1408934708 | H73: 0.5103092784 | I73: 98.52920962 | J73: =J39/$J39*100 -> 100 | K73: 23.71356239
A74: 전년대비 증가율(%) Percent change from previous year
A75: 1991 | B75: =(B7/B6-1)*100 -> 
A76: 1992 | B76: =(B8/B7-1)*100 -> 32.05782313 | C76: 12.76595745 | F76: 7.239819005 | G76: 0 | H76: 9.523809524 | I76: 36.74729799 | J76: 16.40874993 | K76: 33.64247623
A77: 1993 | B77: =(B9/B8-1)*100 -> 6.825499034 | C77: -0.9433962264 | F77: 2.953586498 | G77: -3.773584906 | H77: 4.891304348 | I77: 7.790741438 | J77: 11.26582849 | K77: 14.33032616
A78: 1994 | B78: =(B10/B9-1)*100 -> -20.43399638 | C78: 3.333333333 | F78: 0 | G78: -1.960784314 | H78: 0.518134715 | I78: -23.91759777 | J78: 18.91579928 | K78: 37.35963581
A79: 1995 | B79: =(B11/B10-1)*100 -> -2.007575758 | C79: -17.97235023 | F79: 5.327868852 | G79: 6 | H79: 5.154639175 | I79: -1.239100505 | J79: 9.254465882 | K79: 13.06893504
A80: 1996 | B80: =(B12/B11-1)*100 -> 10.39814457 | C80: -8.426966292 | F80: 0.3891050584 | G80: 0 | H80: 0.4901960784 | I80: 13.15055762 | J80: 2.889763473 | K80: 9.096238398
A81: 1997 | B81: =(B13/B12-1)*100 -> 3.711484594 | C81: 12.88343558 | F81: 5.03875969 | G81: -9.433962264 | H81: 8.780487805 | I81: 2.95687885 | J81: 4.855972065 | K81: 12.34999104
A82: 1998 | B82: =(B14/B13-1)*100 -> -3.139770425 | C82: -0.5434782609 | F82: -1.47601476 | G82: 2.083333333 | H82: -2.242152466 | I82: -3.51017152 | J82: -6.260745193 | K82: -1.817457154
A83: 1999 | B83: =(B15/B14-1)*100 -> 6.622516556 | C83: -7.650273224 | F83: 6.741573034 | G83: 14.28571429 | H83: 5.04587156 | I83: 7.689127739 | J83: 3.699707938 | K83: 5.618251198
A84: 2000 | B84: =(B16/B15-1)*100 -> 51.52010461 | C84: 2.366863905 | F84: -5.964912281 | G84: 0 | H84: -7.423580786 | I84: 60.99808061 | J84: 18.8789311 | K84: 25.95126451
A85: 2001 | B85: =(B17/B16-1)*100 -> 46.73139159 | C85: 8.670520231 | F85: 2.985074627 | G85: 10.71428571 | H85: 0.9433962264 | I85: 51.09680496 | J85: 11.85450045 | K85: 21.63564236
A86: 2002 | B86: =(B18/B17-1)*100 -> 6.013821497 | C86: -13.29787234 | F86: 10.14492754 | G86: -1.612903226 | H86: 13.55140187 | I86: 6.406817106 | J86: 6.120031072 | K86: 10.67235324
A87: 2003 | B87: =(B19/B18-1)*100 -> -1.151178918 | C87: 3.680981595 | F87: 1.973684211 | G87: 1.639344262 | H87: 2.057613169 | I87: -1.408868456 | J87: 4.362044995 | K87: 2.520741715
A88: 2004 | B88: =(B20/B19-1)*100 -> 1.781955942 | C88: -5.917159763 | F88: -5.483870968 | G88: -11.29032258 | H88: -4.032258065 | I88: 2.316486161 | J88: 5.958490395 | K88: 11.43147747
A89: 2005 | B89: =(B21/B20-1)*100 -> 6.989247312 | C89: -13.83647799 | F89: -12.62798635 | G89: -7.272727273 | H89: -13.86554622 | I89: 8.321082035 | J89: 11.77403455 | K89: 19.74759902
A90: 2006 | B90: =(B22/B21-1)*100 -> 21.67246489 | C90: 1.459854015 | F90: 4.6875 | G90: 0 | H90: 5.853658537 | I90: 22.63843648 | J90: 9.329277126 | K90: 11.6259031
A91: 2007 | B91: =(B23/B22-1)*100 -> 18.60637509 | C91: 35.25179856 | F91: 20.14925373 | G91: 19.60784314 | H91: 20.2764977 | I91: 18.30455954 | J91: 12.66572616 | K91: 27.59634226
A92: 2008 | B92: =(B24/B23-1)*100 -> 14.48214286 | C92: 21.27659574 | F92: 4.968944099 | G92: 6.557377049 | H92: 4.597701149 | I92: 14.64920486 | J92: 3.788334752 | K92: 8.609256114
A93: 2009 | B93: =(B25/B24-1)*100 -> 18.83481516 | C93: 10.52631579 | F93: 6.213017751 | G93: 3.076923077 | H93: 6.95970696 | I93: 19.33746736 | J93: 7.707048825 | K93: 9.417914605
A94: 2010 | B94: =(B26/B25-1)*100 -> 8.61718186 | C94: 3.571428571 | F94: -1.949860724 | G94: 0 | H94: -2.397260274 | I94: 8.963489676 | J94: 7.035507078 | K94: 12.9011415
A95: 2011 | B95: =(B27/B26-1)*100 -> 23.09365559 | C95: 2.681992337 | D95: 1.986754967 | E95: 3.636363636 | F95: -0.5681818182 | G95: 1.492537313 | H95: -1.052631579 | I95: 23.95055531 | J95: 8.459955133 | K95: 12.84207971
A96: 2012 | B96: =(B28/B27-1)*100 -> 15.51639505 | C96: 1.492537313 | D96: 1.948051948 | E96: 0.8771929825 | F96: -1.714285714 | G96: 4.411764706 | H96: -3.191489362 | I96: 16.01194695 | J96: 7.076145596 | K96: 9.113682819
A97: 2013 | B97: =(B29/B28-1)*100 -> 9.981727787 | C97: 19.85294118 | D97: 12.7388535 | E97: 29.56521739 | F97: 7.848837209 | G97: 4.225352113 | H97: 8.791208791 | I97: 9.896583322 | J97: 2.143013611 | K97: 5.098806992
A98: 2014 | B98: =(B30/B29-1)*100 -> 16.33954099 | C98: 6.748466258 | D98: 5.649717514 | E98: 8.053691275 | F98: 0 | G98: 2.702702703 | H98: -0.6734006734 | I98: 16.70438753 | J98: 6.607803906 | K98: 8.425693877
A99: 2015 | B99: =(B31/B30-1)*100 -> 17.49526751 | C99: 6.896551724 | D99: 5.347593583 | E99: 8.695652174 | F99: -1.617250674 | G99: 1.315789474 | H99: -2.372881356 | I99: 17.86200327 | J99: 3.61529511 | K99: 5.868683872
A100: 2016 | B100: =(B32/B31-1)*100 -> 5.197998813 | C100: 0 | D100: 1.52284264 | E100: -1.714285714 | F100: 0.8219178082 | G100: 0 | H100: 1.041666667 | I100: 5.299924947 | J100: 1.656216493 | K100: 5.794377247
A101: 2017 | B101: =(B33/B32-1)*100 -> 13.83739051 | C101: =(C33/C32-1)*100 -> 0.8064516129 | D101: 0 | E101: 1.744186047 | F101: -1.086956522 | G101: 1.298701299 | H101: -1.718213058 | I101: 14.12083996 | J101: 4.780486534 | K101: 7.092644706
A102: 2018 | B102: =(B34/B33-1)*100 -> 16.36612538 | C102: =(C34/C33-1)*100 -> 6.933333333 | D102: 8 | E102: 5.714285714 | F102: 0.2747252747 | G102: 1.282051282 | H102: 0 | I102: 16.59179899 | J102: 6.498396838 | K102: 7.92028194
A103: 2019 | B103: =(B35/B34-1)*100 -> 7.510851487 | C103: =(C35/C34-1)*100 -> 4.488778055 | D103: 5.555555556 | E103: 3.243243243 | F103: 0.8219178082 | G103: -2.53164557 | H103: 1.748251748 | I103: 7.586121642 | J103: 4.661104304 | K103: 8.077114048
A104: 2020 | B104: =(B36/B35-1)*100 -> 6.071125366 | C104: =(C36/C35-1)*100 -> -0.9546539379 | D104: -3.070175439 | E104: 1.570680628 | F104: -1.358695652 | G104: 0 | H104: -1.718213058 | I104: 6.17986135 | J104: 3.6996224 | K104: 5.622553827
A105: 2021 | B105: =(B37/B36-1)*100 -> 5.96375149 | C105: =(C37/C36-1)*100 -> 4.337349398 | D105: 4.977375566 | E105: 3.608247423 | F105: 0.826446281 | G105: 1.298701299 | H105: 0.6993006993 | I105: 6.009559022 | J105: 5.128797857 | K105: 8.786208396
A106: 2022 | B106: =(B38/B37-1)*100 -> 3.474553511 | C106: =(C38/C37-1)*100 -> 5.773672055 | D106: 3.017241379 | E106: 8.955223881 | F106: -1.366120219 | G106: 2.564102564 | H106: -2.430555556 | I106: 3.487758817 | J106: 2.533639243 | K106: 6.328860867
A107: 2023 | B107: =(B39/B38-1)*100 -> -5.589981507 | C107: =(C39/C38-1)*100 -> 4.148471616 | D107: -0.4184100418 | E107: 9.132420091 | F107: 4.986149584 | G107: 2.5 | H107: 5.693950178 | I107: -5.726075591 | J107: 0.3384702342 | K107: 3.500715908
A109: 주 : 1. 공공연구기관 중 '국립·공립·출연(연)'은 '국·공립 연구기관', '국·공립 병원','정부 출연(연)', '지자체 출연(연)'을 포함하며, 나머지는 모두 '비영리법인'으로 분류
A110: 2. 대학의 '국·공립'은 국·공립대학과 국·공립대학 부속 병원을 포함하며, '사립'은 사립대학과 사립대학 부속병원을 포함

Sheet 2-10
A1: 2-10) 2023년도 연구수행주체별 연구개발비(재원, 비목, 연구개발단계)
A2: R&D expenditure(source of funds, type of costs, type of R&D) by sector of performance, 2023
S4: (단위 : 백만원 Unit : Won, Millions)
A5: 연구수행주체 Sector of performance | B5: 연구개발 수행기관 R&D performing inst. | C5: 총계 Total | D5: 재원 Source of funds | H5: 비목 Type of costs | Q5: 연구개발단계 Type of R&D
D6: 정부 Government | E6: 공공 Other national sources | F6: 민간 Business enterprise | G6: 외국 Rest of the world | H6: 경상비 Current costs | K6: 자본적 지출 Capital costs | Q6: 기초연구 Basic research | R6: 응용연구 Applied research | S6: 개발연구 Experimental development
H7: 소계 Sub total | I7: 인건비 Labour costs | J7: 기타 Other current costs | K7: 소계 Sub total | L7: 기계〮장치 Machinery | M7: 토지 Land | N7: 건물 Buildings | O7: 컴퓨터 소프트웨어 Computer software | P7: 기타지식재산물 Other intellectual properties
A8: 총계 Total | B8: 58200 | C8: 119074025.1 | D8: 27478069.21 | E8: 649578.9476 | F8: 90559792.65 | G8: 386584.3441 | H8: 109183692.4 | I8: 50467762.45 | J8: 58715929.99 | K8: 9890332.703 | L8: 6981294.848 | M8: 166527.164 | N8: 1266721.334 | O8: 909183.432 | P8: 566605.925 | Q8: 17740416.03 | R8: 23475197.91 | S8: 77858411.2
A9: 공공연구기관 Public research institutes | B9: 477 | C9: 13883702 | D9: 13150321.17 | E9: 189616.0272 | F9: 455741.949 | G9: 88022.85857 | H9: 10097759 | I9: 3630479 | J9: 6467280 | K9: 3785943 | L9: 3199090 | M9: 15234 | N9: 476840 | O9: 63217 | P9: 31562 | Q9: 3406268 | R9: 3283502 | S9: 7193932
A10: 국·공립 National & Pub. | B10: 81 | C10: 1061673 | D10: 1061670.812 | E10: 2.1875 | F10: 0 | G10: 0 | H10: 862000 | I10: 298129 | J10: 563871 | K10: 199673 | L10: 75574 | M10: 3 | N10: 121090 | O10: 1184 | P10: 1822 | Q10: 449054 | R10: 418721 | S10: 193898
A11: 정부출연 Gov't funded | B11: 75 | C11: 9988373 | D11: 9736487.799 | E11: 66118.05929 | F11: 176813.3219 | G11: 8953.819429 | H11: 6893989 | I11: 2506978 | J11: 4387011 | K11: 3094384 | L11: 2777176 | M11: 4091 | N11: 246009 | O11: 56280 | P11: 10828 | Q11: 2503808 | R11: 2344761 | S11: 5139804
A12: 지방자치단체출연 Local gov't funded | B12: 64 | C12: 362650 | D12: 354091.6811 | E12: 2142.786328 | F12: 6397.532566 | G12: 18 | H12: 229863 | I12: 94602 | J12: 135261 | K12: 132787 | L12: 74300 | M12: 0 | N12: 44389 | O12: 80 | P12: 14018 | Q12: 96920 | R12: 33326 | S12: 232404
A13: 기타비영리 Other non-profit corporation | B13: 215 | C13: 2247613 | D13: 1897653.584 | E13: 95503.35591 | F13: 223418.1867 | G13: 31037.87367 | H13: 1891510 | I13: 704102 | J13: 1187408 | K13: 356103 | L13: 269253 | M13: 11140 | N13: 65352 | O13: 5475 | P13: 4883 | Q13: 310319 | R13: 444610 | S13: 1492684
A14: 국·공립병원 National & Pub. Hospital | B14: 18 | C14: 26037 | D14: 18378 | E14: 297 | F14: 7362 | G14: 0 | H14: 25690 | I14: 9503 | J14: 16187 | K14: 347 | L14: 347 | M14: 0 | N14: 0 | O14: 0 | P14: 0 | Q14: 13567 | R14: 8069 | S14: 4401
A15: 사립병원 Private hospital | B15: 24 | C15: 197356 | D15: 82039.28849 | E15: 25552.63816 | F15: 41750.90788 | G15: 48013.16547 | H15: 194707 | I15: 17165 | J15: 177542 | K15: 2649 | L15: 2440 | M15: 0 | N15: 0 | O15: 198 | P15: 11 | Q15: 32600 | R15: 34015 | S15: 130741
A16: 대학 Higher educations | B16: 379 | C16: 10893480 | D16: 8985149.559 | E16: 411900.5265 | F16: 1412840.969 | G16: 83588.94551 | H16: 10255884 | I16: 4194221 | J16: 6061663 | K16: 637596 | L16: 598118 | M16: 8 | N16: 3496 | O16: 22493 | P16: 13481 | Q16: 4121834 | R16: 3347521 | S16: 3424125
A17: 국·공립 National & Pub. | B17: 82 | C17: 4831375 | D17: 4102727.032 | E17: 59903.45744 | F17: 619356.5291 | G17: 49387.98182 | H17: 4517550 | I17: 1861873 | J17: 2655677 | K17: 313825 | L17: 295700 | M17: 8 | N17: 2339 | O17: 10342 | P17: 5436 | Q17: 1975061 | R17: 1240730 | S17: 1615584
A18: 사립 Private | B18: 297 | C18: 6062105 | D18: 4882422.527 | E18: 351997.069 | F18: 793484.4404 | G18: 34200.96369 | H18: 5738334 | I18: 2332348 | J18: 3405986 | K18: 323771 | L18: 302418 | M18: 0 | N18: 1157 | O18: 12151 | P18: 8045 | Q18: 2146773 | R18: 2106791 | S18: 1808541
A19: 기업체 Business enterprises | B19: 57344 | C19: 94296843.15 | D19: 5342598.482 | E19: 48062.394 | F19: 88691209.73 | G19: 214972.54 | H19: 88830049.44 | I19: 42643062.45 | J19: 46186986.99 | K19: 5466793.703 | L19: 3184086.848 | M19: 151285.164 | N19: 786385.334 | O19: 823473.432 | P19: 521562.925 | Q19: 10212314.03 | R19: 16844174.91 | S19: 67240354.2
A20: 정부투자기관 Gov't investment | B20: 50 | C20: 746637 | D20: 104668 | E20: 611 | F20: 640673 | G20: 685 | H20: 654933 | I20: 314555 | J20: 340378 | K20: 91704 | L20: 48790 | M20: 339 | N20: 26068 | O20: 16010 | P20: 497 | Q20: 61250.335 | R20: 208538.575 | S20: 476848.09
A21: 민간기업 Private companies | B21: 57294 | C21: 93550206.15 | D21: 5237930.482 | E21: 47451.394 | F21: 88050536.73 | G21: 214287.54 | H21: 88175116.44 | I21: 42328507.45 | J21: 45846608.99 | K21: 5375089.703 | L21: 3135296.848 | M21: 150946.164 | N21: 760317.334 | O21: 807463.432 | P21: 521065.925 | Q21: 10151063.7 | R21: 16635636.34 | S21: 66763506.11

Sheet 2-11
A1: 2-11) 2023년도 연구수행주체별 외부로부터 받은 연구개발비 및 외부로 지출한 연구개발비
A2: R&D expenditure received and paid to outside by sector of performance, 2023
S4: (단위 : 백만원 Unit : Won, Millions)
A5: 연구수행주체 Sector of performance 재원 Source of funds | B5: 총계 Total | D5: 국·공립연구기관 (의료기관 포함) Nat'l & Pub. Research inst. | F5: 정부출연 Gov't funded | H5: 지방자치단체출연 Local gov't funded | J5: 비영리법인 Non-profit corporation | L5: 국·공립대학 Nat'l & Pub. univ. | N5: 사립대학 Private univ. | P5: 정부투자기관 Gov't investment | R5: 민간기업체 Private companies
B6: 수취 Received | C6: 지불 Paid | D6: 수취 Received | E6: 지불 Paid | F6: 수취 Received | G6: 지불 Paid | H6: 수취 Received | I6: 지불 Paid | J6: 수취 Received | K6: 지불 Paid | L6: 수취 Received | M6: 지불 Paid | N6: 수취 Received | O6: 지불 Paid | P6: 수취 Received | Q6: 지불 Paid | R6: 수취 Received | S6: 지불 Paid
A7: 총계 Total | B7: 33190074.99 | C7: 7603963.304 | D7: 1033507 | E7: 221704 | F7: 10389025 | G7: 923927 | H7: 379190 | I7: 42460 | J7: 2552491 | K7: 218630 | L7: 4696275 | M7: 89241 | N7: 5926034 | O7: 100896 | P7: 136814 | Q7: 186214 | R7: 8076738.989 | S7: 5820891.304
A8: 정부·지방자치단체 Gov't · Local gov't | B8: 27914673.48 | C8: 901143.994 | D8: 1025843 | E8: 66496 | F8: 10120839 | G8: 258295 | H8: 369376 | I8: 14731 | J8: 2142800 | K8: 35579 | L8: 3953357 | M8: 50007 | N8: 4959860 | O8: 35628 | P8: 104668 | Q8: 34950 | R8: 5237930.482 | S8: 405457.994
A9: 중앙행정기관 Central gov't | B9: 23839662.44 | C9: - | D9: 864772 | E9: - | F9: 9740072 | G9: - | H9: 192911 | I9: - | J9: 1903563 | K9: - | L9: 3442113 | M9: - | N9: 4097853 | O9: - | P9: 102170 | Q9: - | R9: 3496208.443 | S9: -
A10: 지방자치단체 Local gov't | B10: 1124199.238 | C10: - | D10: 79413 | E10: - | F10: 126663 | G10: - | H10: 173957 | I10: - | J10: 193168 | K10: - | L10: 150647 | M10: - | N10: 246534 | O10: - | P10: 414 | Q10: - | R10: 153403.238 | S10: -
A11: 국·공립대학교 Nat'l & Pub. univ. | B11: 49900.21 | C11: 430275.493 | D11: 43 | E11: 43554 | F11: 6667 | G11: 146900 | H11: 248 | I11: 2444 | J11: 2733 | K11: 18245 | L11: 9600 | M11: 9581 | N11: 17755 | O11: 18141 | P11: 163 | Q11: 10495 | R11: 12691.21 | S11: 180915.493
A12: 정부출연연구기관 Gov't funded | B12: 2600467.606 | C12: 349401.123 | D12: 7512 | E12: 18521 | F12: 212257 | G12: 91274 | H12: 1493 | I12: 347 | J12: 36224 | K12: 11156 | L12: 306507 | M12: 36516 | N12: 547018 | O12: 15408 | P12: 1522 | Q12: 18877 | R12: 1487934.606 | S12: 157302.123
A13: 지방자치단체출연연구기관 Local gov't funded | B13: 91121.861 | C13: 27103.54 | D13: 400 | E13: 0 | F13: 567 | G13: 5476 | H13: 675 | I13: 2280 | J13: 1022 | K13: 2100 | L13: 15752 | M13: 2821 | N13: 22134 | O13: 894 | P13: 399 | Q13: 301 | R13: 50172.861 | S13: 13231.54
A14: 국·공립연구기관(의료기관 포함) Nat'l & Pub. Research inst. | B14: 209322.124 | C14: 94363.838 | D14: 73703 | E14: 4421 | F14: 34613 | G14: 14645 | H14: 92 | I14: 9660 | J14: 6090 | K14: 4078 | L14: 28738 | M14: 1089 | N14: 28566 | O14: 1185 | P14: 0 | Q14: 5277 | R14: 37520.124 | S14: 54008.838
A15: 공공 Public | B15: 326014.394 | C15: 782231.726 | D15: 302 | E15: 103487 | F15: 72050 | G15: 199333 | H15: 2742 | I15: 3477 | J15: 22105 | K15: 74162 | L15: 60783 | M15: 12373 | N15: 119970 | O15: 29306 | P15: 611 | Q15: 17752 | R15: 47451.394 | S15: 342341.726
A16: 사립대학(교) Private univ. | B16: 30596.2 | C16: 510002.54 | D16: 47 | E16: 79469 | F16: 3902 | G16: 162478 | H16: 160 | I16: 2942 | J16: 2421 | K16: 37043 | L16: 2231 | M16: 10129 | N16: 12622 | O16: 26139 | P16: 28 | Q16: 9294 | R16: 9185.2 | S16: 182508.54
A17: 비영리 법인 Non-profit corporation | B17: 295418.194 | C17: 272229.186 | D17: 255 | E17: 24018 | F17: 68148 | G17: 36855 | H17: 2582 | I17: 535 | J17: 19684 | K17: 37119 | L17: 58552 | M17: 2244 | N17: 107348 | O17: 3167 | P17: 583 | Q17: 8458 | R17: 38266.194 | S17: 159833.186
A18: 민간 Business enterprises | B18: 4538146.573 | C18: 3713096.434 | D18: 7362 | E18: 51065 | F18: 185138 | G18: 460309 | H18: 7054 | I18: 23656 | J18: 287349 | K18: 87135 | L18: 631830 | M18: 24950 | N18: 811494 | O18: 32738 | P18: 30850 | Q18: 131192 | R18: 2577069.573 | S18: 2902051.434
A19: 민간기업체 Private companies | B19: 4379917.365 | C19: 3663759.269 | D19: 7362 | E19: 51005 | F19: 142494 | G19: 456183 | H19: 5260 | I19: 23656 | J19: 280388 | K19: 84399 | L19: 581800 | M19: 24675 | N19: 785631 | O19: 32541 | P19: 26622 | Q19: 92688 | R19: 2550360.365 | S19: 2898612.269
A20: 정부투자〮재투자기관 Gov't investment | B20: 158229.208 | C20: 49337.165 | D20: 0 | E20: 60 | F20: 42644 | G20: 4126 | H20: 1794 | I20: 0 | J20: 6961 | K20: 2736 | L20: 50030 | M20: 275 | N20: 25863 | O20: 197 | P20: 4228 | Q20: 38504 | R20: 26709.208 | S20: 3439.165
A21: 외국 Rest of the world | B21: 411240.54 | C21: 2207491.15 | D21: 0 | E21: 656 | F21: 10998 | G21: 5990 | H21: 18 | I21: 596 | J21: 100237 | K21: 21754 | L21: 50305 | M21: 1911 | N21: 34710 | O21: 3224 | P21: 685 | Q21: 2320 | R21: 214287.54 | S21: 2171040.15
A23: 주 : 1. 연구수행주체 중 '국·공립연구기관(의료기관 포함)'은 '국·공립연구기관'과 '국·공립병원'의 합
A24: 2. 연구수행주체 중 '비영리 법인'는 '기타 비영리'와 '사립병원'의 합

Sheet 2-12
A1: 2-12) 2023년도 연구수행주체별 연구개발인력, 연구원(전공, 학위), 연구원 1인당 연구개발비
A2: R&D personnel, researchers(major field of study, degree) and R&D expenditure per researcher by sector of performance, 2023
Q4: (단위 : 명, 백만원 Unit : Headcount, Won, Millions)
A5: 연구수행주체 Sector of performance | B5: 연구개발인력 R&D personnel | F5: 전공별 연구원 Researchers by major field of study | L5: 학위별 연구원 Researchers by degree | P5: 연구개발비 R&D expenditures
B6: 총계 Total | C6: 연구원 Researchers | D6: 연구보조원 Other R&D personnel | F6: 이학 Natural sciences | G6: 공학 Engineering & technology | H6: 의〮약보건학 Medical & health sciences | I6: 농업과학 Agricultural sciences | J6: 인문학 Humanities | K6: 사회과학 Social sciences | L6: 박사 Doctoral | M6: 석사 Master's | N6: 학사 Bachelor's | O6: 기타 Others | P6: 계 Total | Q6: 연구원1인당 (1,000 won) Per researcher
D7: 연구지원·기능 Technicians and equivalent staff | E7: 연구행정·기타 Other supporting staff
A8: 총계 Total | B8: 827963 | C8: 603566 | D8: 143899 | E8: 80498 | F8: 98575 | G8: 392674 | H8: 36938 | I8: 11062 | J8: 31503 | K8: 32814 | L8: 128703 | M8: 167214 | N8: 279063 | O8: 28586 | P8: 119074025.1 | Q8: =IFERROR(P8*1000/C8,"-") -> 197284.1829
A9: 공공연구기관 Public research institutes | B9: 71135 | C9: 45445 | D9: 13964 | E9: 11726 | F9: 8787 | G9: 23205 | H9: 3507 | I9: 2740 | J9: 1165 | K9: 6041 | L9: 23015 | M9: 15213 | N9: 6657 | O9: 560 | P9: 13883702 | Q9: =IFERROR(P9*1000/C9,"-") -> 305505.6002
A10: 국·공립 National & Pub. | B10: 13168 | C10: 6160 | D10: 4967 | E10: 2041 | F10: 1828 | G10: 1051 | H10: 467 | I10: 2189 | J10: 356 | K10: 269 | L10: 3133 | M10: 2241 | N10: 764 | O10: 22 | P10: 1061673 | Q10: 172349.513
A11: 정부출연 Gov't funded | B11: 35691 | C11: 23569 | D11: 5558 | E11: 6564 | F11: 4471 | G11: 14460 | H11: 546 | I11: 219 | J11: 216 | K11: 3657 | L11: 14993 | M11: 7094 | N11: 1393 | O11: 89 | P11: 9988373 | Q11: 423792.8211
A12: 지방자치단체출연 Local gov't funded | B12: 3452 | C12: 2344 | D12: 456 | E12: 652 | F12: 507 | G12: 942 | H12: 79 | I12: 90 | J12: 190 | K12: 536 | L12: 872 | M12: 851 | N12: 585 | O12: 36 | P12: 362650 | Q12: 154714.1638
A13: 기타비영리 Other non-profit corporation | B13: 16244 | C13: 11854 | D13: 2125 | E13: 2265 | F13: 1740 | G13: 6663 | H13: 1346 | I13: 215 | J13: 390 | K13: 1500 | L13: 3424 | M13: 4561 | N13: 3494 | O13: 375 | P13: 2247613 | Q13: 189607.9804
A14: 국·공립병원 National & Pub. hospital | B14: 637 | C14: 606 | D14: 7 | E14: 24 | F14: 17 | G14: 23 | H14: 511 | I14: 2 | J14: 6 | K14: 47 | L14: 187 | M14: 244 | N14: 162 | O14: 13 | P14: 26037 | Q14: 42965.34653
A15: 사립병원 Private hospital | B15: 1943 | C15: 912 | D15: 851 | E15: 180 | F15: 224 | G15: 66 | H15: 558 | I15: 25 | J15: 7 | K15: 32 | L15: 406 | M15: 222 | N15: 259 | O15: 25 | P15: 197356 | Q15: 216399.1228
A16: 대학 Higher educations | B16: 233804 | C16: 119447 | D16: 63105 | E16: 51252 | F16: 18921 | G16: 43723 | H16: 25857 | I16: 4582 | J16: 10728 | K16: 15636 | L16: 70141 | M16: 41424 | N16: 7317 | O16: 565 | P16: 10893480 | Q16: 91199.27667
A17: 국·공립 National & Pub. | B17: 94763 | C17: 47225 | D17: 25062 | E17: 22476 | F17: 9244 | G17: 18031 | H17: 8194 | I17: 3492 | J17: 3325 | K17: 4939 | L17: 23297 | M17: 20116 | N17: 3562 | O17: 250 | P17: 4831375 | Q17: 102305.4526
A18: 사립 Private | B18: 139041 | C18: 72222 | D18: 38043 | E18: 28776 | F18: 9677 | G18: 25692 | H18: 17663 | I18: 1090 | J18: 7403 | K18: 10697 | L18: 46844 | M18: 21308 | N18: 3755 | O18: 315 | P18: 6062105 | Q18: 83937.09673
A19: 기업체 Business enterprises | B19: 523024 | C19: 438674 | D19: 66830 | E19: 17520 | F19: 70867 | G19: 325746 | H19: 7574 | I19: 3740 | J19: 19610 | K19: 11137 | L19: 35547 | M19: 110577 | N19: 265089 | O19: 27461 | P19: 94296843.15 | Q19: 214958.8149
A20: 정부투자기관 Gov't investment | B20: 3779 | C20: 2795 | D20: 399 | E20: 585 | F20: 225 | G20: 2330 | H20: 44 | I20: 29 | J20: 44 | K20: 123 | L20: 896 | M20: 1209 | N20: 680 | O20: 10 | P20: 746637 | Q20: 267133.0948
A21: 민간기업 Private companies | B21: 519245 | C21: 435879 | D21: 66431 | E21: 16935 | F21: 70642 | G21: 323416 | H21: 7530 | I21: 3711 | J21: 19566 | K21: 11014 | L21: 34651 | M21: 109368 | N21: 264409 | O21: 27451 | P21: 93550206.15 | Q21: 214624.2561

Sheet 2-13
A1: 2-13) 2023년도 전공별 연구원(학위·성)
A2: Researchers(degree & gender) by major field of study, 2023
A5: 전공 Major field of study | B5: 계 Total | E5: 박사 Doctoral | H5: 석사 Master's | K5: 학사 Bachelor's | N5: 기타 Others
C6: 남성 Male | D6: 여성 Female | F6: 남성 Male | G6: 여성 Female | I6: 남성 Male | J6: 여성 Female | L6: 남성 Male | M6: 여성 Female | O6: 남성 Male | P6: 여성 Female
A7: 총계 Total | B7: 603566 | C7: 460439 | D7: 143127 | E7: 128703 | F7: 97406 | G7: 31297 | H7: 167214 | I7: 121159 | J7: 46055 | K7: 279063 | L7: 218059 | M7: 61004 | N7: 28586 | O7: 23815 | P7: 4771
A8: 이학 Natural sciences | B8: 98575 | C8: 67870 | D8: 30705 | E8: 24585 | F8: 18408 | G8: 6177 | H8: 32828 | I8: 20105 | J8: 12723 | K8: 36937 | L8: 25892 | M8: 11045 | N8: 4225 | O8: 3465 | P8: 760
A9: 공학 Engineering & technology | B9: 392674 | C9: 335120 | D9: 57554 | E9: 58204 | F9: 51473 | G9: 6731 | H9: 106474 | I9: 88370 | J9: 18104 | K9: 207882 | L9: 176945 | M9: 30937 | N9: 20114 | O9: 18332 | P9: 1782
A10: 의〮약〮보건학 Medical & health sciences | B10: 36938 | C10: 17803 | D10: 19135 | E10: 18736 | F10: 10551 | G10: 8185 | H10: 11133 | I10: 4499 | J10: 6634 | K10: 6251 | L10: 2390 | M10: 3861 | N10: 818 | O10: 363 | P10: 455
A11: 농업과학 Agricultural sciences | B11: 11062 | C11: 7210 | D11: 3852 | E11: 4505 | F11: 3334 | G11: 1171 | H11: 4007 | I11: 2218 | J11: 1789 | K11: 2291 | L11: 1468 | M11: 823 | N11: 259 | O11: 190 | P11: 69
A12: 인문학 Humanities | B12: 31503 | C12: 13801 | D12: 17702 | E12: 8370 | F12: 4618 | G12: 3752 | H12: 4478 | I12: 2015 | J12: 2463 | K12: 16606 | L12: 6317 | M12: 10289 | N12: 2049 | O12: 851 | P12: 1198
A13: 사회과학 Social sciences | B13: 32814 | C13: 18635 | D13: 14179 | E13: 14303 | F13: 9022 | G13: 5281 | H13: 8294 | I13: 3952 | J13: 4342 | K13: 9096 | L13: 5047 | M13: 4049 | N13: 1121 | O13: 614 | P13: 507
A14: 공공연구기관 Public research institutes | B14: 45445 | C14: 31461 | D14: 13984 | E14: 23015 | F14: 17851 | G14: 5164 | H14: 15213 | I14: 9615 | J14: 5598 | K14: 6657 | L14: 3669 | M14: 2988 | N14: 560 | O14: 326 | P14: 234
A15: 이학 Natural sciences | B15: 8787 | C15: 5717 | D15: 3070 | E15: 5330 | F15: 3930 | G15: 1400 | H15: 2485 | I15: 1297 | J15: 1188 | K15: 922 | L15: 452 | M15: 470 | N15: 50 | O15: 38 | P15: 12
A16: 공학 Engineering & technology | B16: 23205 | C16: 18970 | D16: 4235 | E16: 11624 | F16: 10223 | G16: 1401 | H16: 8083 | I16: 6296 | J16: 1787 | K16: 3179 | L16: 2220 | M16: 959 | N16: 319 | O16: 231 | P16: 88
A17: 의〮약〮보건학 Medical & health sciences | B17: 3507 | C17: 1367 | D17: 2140 | E17: 1525 | F17: 754 | G17: 771 | H17: 1101 | I17: 412 | J17: 689 | K17: 797 | L17: 183 | M17: 614 | N17: 84 | O17: 18 | P17: 66
A18: 농업과학 Agricultural sciences | B18: 2740 | C18: 1730 | D18: 1010 | E18: 1490 | F18: 1046 | G18: 444 | H18: 838 | I18: 439 | J18: 399 | K18: 409 | L18: 244 | M18: 165 | N18: 3 | O18: 1 | P18: 2
A19: 인문학 Humanities | B19: 1165 | C19: 481 | D19: 684 | E19: 206 | F19: 117 | G19: 89 | H19: 418 | I19: 168 | J19: 250 | K19: 495 | L19: 184 | M19: 311 | N19: 46 | O19: 12 | P19: 34
A20: 사회과학 Social sciences | B20: 6041 | C20: 3196 | D20: 2845 | E20: 2840 | F20: 1781 | G20: 1059 | H20: 2288 | I20: 1003 | J20: 1285 | K20: 855 | L20: 386 | M20: 469 | N20: 58 | O20: 26 | P20: 32
A21: 대학 Higher educations | B21: 119447 | C21: 77389 | D21: 42058 | E21: 70141 | F21: 49051 | G21: 21090 | H21: 41424 | I21: 24780 | J21: 16644 | K21: 7317 | L21: 3351 | M21: 3966 | N21: 565 | O21: 207 | P21: 358
A22: 이학 Natural sciences | B22: 18921 | C22: 12656 | D22: 6265 | E22: 10200 | F22: 7547 | G22: 2653 | H22: 7504 | I22: 4493 | J22: 3011 | K22: 1172 | L22: 598 | M22: 574 | N22: 45 | O22: 18 | P22: 27
A23: 공학 Engineering & technology | B23: 43723 | C23: 34800 | D23: 8923 | E23: 22654 | F23: 19345 | G23: 3309 | H23: 18663 | I23: 13992 | J23: 4671 | K23: 2297 | L23: 1399 | M23: 898 | N23: 109 | O23: 64 | P23: 45
A24: 의〮약〮보건학 Medical & health sciences | B24: 25857 | C24: 12746 | D24: 13111 | E24: 15898 | F24: 8988 | G24: 6910 | H24: 6915 | I24: 2649 | J24: 4266 | K24: 2807 | L24: 1050 | M24: 1757 | N24: 237 | O24: 59 | P24: 178
A25: 농업과학 Agricultural sciences | B25: 4582 | C25: 2945 | D25: 1637 | E25: 2505 | F25: 1894 | G25: 611 | H25: 1947 | I25: 1010 | J25: 937 | K25: 106 | L25: 33 | M25: 73 | N25: 24 | O25: 8 | P25: 16
A26: 인문학 Humanities | B26: 10728 | C26: 5573 | D26: 5155 | E26: 7855 | F26: 4345 | G26: 3510 | H26: 2459 | I26: 1100 | J26: 1359 | K26: 342 | L26: 104 | M26: 238 | N26: 72 | O26: 24 | P26: 48
A27: 사회과학 Social sciences | B27: 15636 | C27: 8669 | D27: 6967 | E27: 11029 | F27: 6932 | G27: 4097 | H27: 3936 | I27: 1536 | J27: 2400 | K27: 593 | L27: 167 | M27: 426 | N27: 78 | O27: 34 | P27: 44
A28: 기업체 Business enterprises | B28: 438674 | C28: 351589 | D28: 87085 | E28: 35547 | F28: 30504 | G28: 5043 | H28: 110577 | I28: 86764 | J28: 23813 | K28: 265089 | L28: 211039 | M28: 54050 | N28: 27461 | O28: 23282 | P28: 4179
A29: 이학 Natural sciences | B29: 70867 | C29: 49497 | D29: 21370 | E29: 9055 | F29: 6931 | G29: 2124 | H29: 22839 | I29: 14315 | J29: 8524 | K29: 34843 | L29: 24842 | M29: 10001 | N29: 4130 | O29: 3409 | P29: 721
A30: 공학 Engineering & technology | B30: 325746 | C30: 281350 | D30: 44396 | E30: 23926 | F30: 21905 | G30: 2021 | H30: 79728 | I30: 68082 | J30: 11646 | K30: 202406 | L30: 173326 | M30: 29080 | N30: 19686 | O30: 18037 | P30: 1649
A31: 의〮약〮보건학 Medical & health sciences | B31: 7574 | C31: 3690 | D31: 3884 | E31: 1313 | F31: 809 | G31: 504 | H31: 3117 | I31: 1438 | J31: 1679 | K31: 2647 | L31: 1157 | M31: 1490 | N31: 497 | O31: 286 | P31: 211
A32: 농업과학 Agricultural sciences | B32: 3740 | C32: 2535 | D32: 1205 | E32: 510 | F32: 394 | G32: 116 | H32: 1222 | I32: 769 | J32: 453 | K32: 1776 | L32: 1191 | M32: 585 | N32: 232 | O32: 181 | P32: 51
A33: 인문학 Humanities | B33: 19610 | C33: 7747 | D33: 11863 | E33: 309 | F33: 156 | G33: 153 | H33: 1601 | I33: 747 | J33: 854 | K33: 15769 | L33: 6029 | M33: 9740 | N33: 1931 | O33: 815 | P33: 1116
A34: 사회과학 Social sciences | B34: 11137 | C34: 6770 | D34: 4367 | E34: 434 | F34: 309 | G34: 125 | H34: 2070 | I34: 1413 | J34: 657 | K34: 7648 | L34: 4494 | M34: 3154 | N34: 985 | O34: 554 | P34: 431

Sheet 2-14
A1: 2-14) 2023년도 연구수행주체별 연구원(연령·성)
A2: Researchers(age & gender) by sector of performance, 2023
M4: (단위 : 명 Unit : Headcount)
A5: 연구수행주체 Sector of performance | B5: 계 Total | D5: 29세이하 ~ 29years | F5: 30∼39세 30∼39 years | H5: 40∼49세 40∼49 years | J5: 50∼59세 50∼59 years | L5: 60세이상 60~ years
C6: 여성 Female | E6: 여성 Female | G6: 여성 Female | I6: 여성 Female | K6: 여성 Female | M6: 여성 Female
A7: 총계 Total | B7: 603566 | C7: 143127 | D7: 93938 | E7: 39886 | F7: 220201 | G7: 59743 | H7: 175951 | I7: 30397 | J7: 88499 | K7: 11081 | L7: 24977 | M7: 2020
A8: 공공연구기관 Public research institutes | B8: 45445 | C8: 13984 | D8: 4257 | E8: 2477 | F8: 15834 | G8: 6017 | H8: 13989 | I8: 3970 | J8: 9145 | K8: 1382 | L8: 2220 | M8: 138
A9: 국·공립 National & Pub. | B9: 6160 | C9: 2729 | D9: 494 | E9: 345 | F9: 2010 | G9: 1069 | H9: 2030 | I9: 881 | J9: 1589 | K9: 427 | L9: 37 | M9: 7
A10: 정부출연 Gov't funded | B10: 23569 | C10: 5774 | D10: 1738 | E10: 928 | F10: 7708 | G10: 2440 | H10: 7085 | I10: 1710 | J10: 5310 | K10: 606 | L10: 1728 | M10: 90
A11: 지방자치단체출연 Local gov't funded | B11: 2344 | C11: 832 | D11: 276 | E11: 173 | F11: 866 | G11: 369 | H11: 772 | I11: 213 | J11: 384 | K11: 70 | L11: 46 | M11: 7
A12: 기타비영리 Other non-profit corporation | B12: 11854 | C12: 3777 | D12: 1607 | E12: 912 | F12: 4732 | G12: 1769 | H12: 3538 | I12: 877 | J12: 1619 | K12: 198 | L12: 358 | M12: 21
A13: 국·공립병원 National & Pub. hospital | B13: 606 | C13: 375 | D13: 55 | E13: 47 | F13: 208 | G13: 155 | H13: 233 | I13: 134 | J13: 90 | K13: 35 | L13: 20 | M13: 4
A14: 사립병원 Private hospital | B14: 912 | C14: 497 | D14: 87 | E14: 72 | F14: 310 | G14: 215 | H14: 331 | I14: 155 | J14: 153 | K14: 46 | L14: 31 | M14: 9
A15: 대학 Higher educations | B15: 119447 | C15: 42058 | D15: 22618 | E15: 9687 | F15: 37916 | G15: 14056 | H15: 26560 | I15: 10769 | J15: 21976 | K15: 6079 | L15: 10377 | M15: 1467
A16: 국·공립 National & Pub. | B16: 47225 | C16: 15694 | D16: 11050 | E16: 4324 | F16: 15523 | G16: 5509 | H16: 9777 | I16: 3614 | J16: 7297 | K16: 1851 | L16: 3578 | M16: 396
A17: 사립 Private | B17: 72222 | C17: 26364 | D17: 11568 | E17: 5363 | F17: 22393 | G17: 8547 | H17: 16783 | I17: 7155 | J17: 14679 | K17: 4228 | L17: 6799 | M17: 1071
A18: 기업체 Business enterprises | B18: 438674 | C18: 87085 | D18: 67063 | E18: 27722 | F18: 166451 | G18: 39670 | H18: 135402 | I18: 15658 | J18: 57378 | K18: 3620 | L18: 12380 | M18: 415
A19: 정부투자기관 Gov't investment | B19: 2795 | C19: 443 | D19: 147 | E19: 74 | F19: 836 | G19: 187 | H19: 934 | I19: 112 | J19: 850 | K19: 68 | L19: 28 | M19: 2
A20: 민간기업 Private companies | B20: 435879 | C20: 86642 | D20: 66916 | E20: 27648 | F20: 165615 | G20: 39483 | H20: 134468 | I20: 15546 | J20: 56528 | K20: 3552 | L20: 12352 | M20: 413

Sheet 2-15
A1: 2-15) 2023년도 연구수행주체별 연구개발인력(총수, 상근상당)
A2: R&D personnel(Headcount, FTE) by sector of performance, 2023
J4: (단위 : 명 Unit : Headcount, FTE)
A5: 연구수행주체 Sector of performance | B5: 연구원 Researchers | E5: 연구보조원 Other R&D personnel
E6: 연구지원·기능 Technicians and equivalent staff | H6: 연구행정·기타 Other supporting staff
B7: 총수(A) Headcount(A) | C7: 상근상당(B) FTE(B) | D7: B/A | E7: 총수(A) Headcount(A) | F7: 상근상당(B) FTE(B) | G7: B/A | H7: 총수(A) Headcount(A) | I7: 상근상당(B) FTE(B) | J7: B/A
A8: 총계 Total | B8: 603566 | C8: 490255.9256 | D8: 0.8122656438 | E8: 143899 | F8: 85663.37759 | G8: 0.5953021049 | H8: 80498 | I8: 34905.08387 | J8: 0.4336142994
A9: 공공연구기관 Public research institutes | B9: 45445 | C9: 39019.2026 | D9: 0.8586027638 | E9: 13964 | F9: 10222.2326 | G9: 0.7320418648 | H9: 11726 | I9: 5726.4362 | J9: 0.4883537609
A10: 국·공립 National & Pub. | B10: 6160 | C10: 4790.123 | D10: 0.7776173701 | E10: 4967 | F10: 3327.57 | G10: 0.6699355748 | H10: 2041 | I10: 608.436 | J10: 0.2981068104
A11: 정부출연 Gov't funded | B11: 23569 | C11: 22576.2556 | D11: 0.9578792312 | E11: 5558 | F11: 4594.731 | G11: 0.8266878374 | H11: 6564 | I11: 3749.8166 | J11: 0.5712700488
A12: 지방자치단체출연 Local gov't funded | B12: 2344 | C12: 1758.4264 | D12: 0.7501819113 | E12: 456 | F12: 272.084 | G12: 0.5966754386 | H12: 652 | I12: 172.2216 | J12: 0.2641435583
A13: 기타비영리 Other non-profit corporation | B13: 11854 | C13: 9034.6974 | D13: 0.7621644508 | E13: 2125 | F13: 1572.9144 | G13: 0.7401950118 | H13: 2265 | I13: 1052.172 | J13: 0.4645350993
A14: 국·공립병원 National & Pub. hospital | B14: 606 | C14: 174.2802 | D14: 0.2875910891 | E14: 7 | F14: 4.4332 | G14: 0.6333142857 | H14: 24 | I14: 18.45 | J14: 0.76875
A15: 사립병원 Private hospital | B15: 912 | C15: 685.42 | D15: 0.7515570175 | E15: 851 | F15: 450.5 | G15: 0.5293772033 | H15: 180 | I15: 125.34 | J15: 0.6963333333
A16: 대학 Higher educations | B16: 119447 | C16: 49657.205 | D16: 0.4157258449 | E16: 63105 | F16: 25486.56556 | G16: 0.4038755338 | H16: 51252 | I16: 21307.61044 | J16: 0.4157420284
A17: 국·공립 National & Pub. | B17: 47225 | C17: 18232.3549 | D17: 0.386074217 | E17: 25062 | F17: 8589.5827 | G17: 0.3427333293 | H17: 22476 | I17: 8028.446 | J17: 0.3572008364
A18: 사립 Private | B18: 72222 | C18: 31424.8501 | D18: 0.4351146479 | E18: 38043 | F18: 16896.98286 | G18: 0.4441548474 | H18: 28776 | I18: 13279.16444 | J18: 0.4614666541
A19: 기업체 Business enterprises | B19: 438674 | C19: 401579.518 | D19: 0.9154395245 | E19: 66830 | F19: 49954.57943 | G19: 0.7474873474 | H19: 17520 | I19: 7871.037234 | J19: 0.4492601161
A20: 정부투자기관 Gov't investment | B20: 2795 | C20: 2148.99 | D20: 0.7688694097 | E20: 399 | F20: 195.67 | G20: 0.4904010025 | H20: 585 | I20: 210.465 | J20: 0.3597692308
A21: 민간기업 Private companies | B21: 435879 | C21: 399430.528 | D21: 0.9163793804 | E21: 66431 | F21: 49758.90943 | G21: 0.7490314676 | H21: 16935 | I21: 7660.572234 | J21: 0.4523514753

Sheet 2-16
A1: 2-16) 2023년도 연구수행주체별 연구개발비(지입, 부담, 지출, 사용)
A2: R&D expenditure(internal and external funds) by sector of performance, 2023
G4: (단위 : 백만원 Unit : Won, Millions)
A5: 연구수행주체 Sector of performance | B5: 연구개발 수행기관 R&D performing inst. | C5: 외부로부터 받은 연구개발비(A) Received outside | D5: 자체부담 연구개발비(B) Financed by own funds | E5: 외부로 지출한 연구개발비(C) Paid outside | F5: 자체사용 연구개발비 (D=A+B-C) Intramural expenditure | G5: 자체부담대비 자체사용비율 D/B(%)
A6: 총계 Total | B6: 58200 | C6: 33190074.99 | D6: 93487913.46 | E6: 7603963.304 | F6: 119074025.1 | G6: 127.3683632
A7: 공공연구기관 Public research institutes | B7: 477 | C7: 14354213 | D7: 936210 | E7: 1406721 | F7: 13883702 | G7: 1482.968778
A8: 국·공립 National & Pub. | B8: 81 | C8: 1009441 | D8: 273329 | E8: 221097 | F8: 1061673 | G8: 388.4231091
A9: 정부출연 Gov't funded | B9: 75 | C9: 10389025 | D9: 523275 | E9: 923927 | F9: 9988373 | G9: 1908.819072
A10: 지방자치단체출연 Local gov't funded | B10: 64 | C10: 379190 | D10: 25920 | E10: 42460 | F10: 362650 | G10: 1399.112654
A11: 기타비영리 Other non-profit corporation | B11: 215 | C11: 2358032 | D11: 87227 | E11: 197646 | F11: 2247613 | G11: 2576.74
A12: 국·공립병원 National & Pub. hospital | B12: 18 | C12: 24066 | D12: 2578 | E12: 607 | F12: 26037 | G12: 1009.968968
A13: 사립병원 Private hospital | B13: 24 | C13: 194459 | D13: 23881 | E13: 20984 | F13: 197356 | G13: 826.4143043
A14: 대학 Higher educations | B14: 379 | C14: 10622309 | D14: 461308 | E14: 190137 | F14: 10893480 | G14: 2361.433142
A15: 국·공립 National & Pub. | B15: 82 | C15: 4696275 | D15: 224341 | E15: 89241 | F15: 4831375 | G15: 2153.58539
A16: 사립 Private | B16: 297 | C16: 5926034 | D16: 236967 | E16: 100896 | F16: 6062105 | G16: 2558.206417
A17: 기업체 Business enterprises | B17: 57344 | C17: 8213552.989 | D17: 92090395.46 | E17: 6007105.304 | F17: 94296843.15 | G17: 102.3959585
A18: 정부투자기관 Gov't investment | B18: 50 | C18: 136814 | D18: 796037 | E18: 186214 | F18: 746637 | G18: 93.79425831
A19: 민간기업 Private companies | B19: 57294 | C19: 8076738.989 | D19: 91294358.46 | E19: 5820891.304 | F19: 93550206.15 | G19: 102.4709607

Sheet 2-17-1
A1: 2-17-1) 2023년도 연구수행주체별 연구개발비(경제사회목적)
A2: R&D expenditure(socio-economic objectives) by sector of performance, 2023
O4: (단위 : 백만원 Unit : Won, Millions)
A5: 연구수행주체 Sector of performance | B5: 연구개발비 R&D expenditure | C5: 경제사회목적 Socio-economic objectives
C7: 지구개발 및 탐사 Exploration and exploitation of the Earth | D7: 환경 Environment | E7: 우주개발 및 탐사 Exploration and exploitation of space | F7: 교통, 전기통신 등 기반시설 Transport, telecommunication and other infrastructures | G7: 에너지 Energy | H7: 산업생산 및 기술 Industrial production and technology | I7: 건강 Health | J7: 농업 Agriculture | K7: 교육 Education | L7: 문화, 휴양, 종교 및 매스미디어 Culture, recreation religion and mass media | M7: 정치·사회시스템, 조직 및 과정 Political and social systems, structures and processes | N7: 지식의 전반적 진보 General advancement of knowledge | O7: 국방 Defence
A9: 총계 Total | B9: 119074025.1 | C9: 709457.9659 | D9: 2913287.41 | E9: 1256935.907 | F9: 7642552.507 | G9: 6764374.095 | H9: 74455379.13 | I9: 10399692.36 | J9: 1978846.427 | K9: 1248424.744 | L9: 1448930.558 | M9: 941800.087 | N9: 3607248.556 | O9: 5707095.396
A10: 공공연구기관 Public research institutes | B10: 13883702 | C10: 434269.7758 | D10: 621954.3756 | E10: 781760.101 | F10: 731614.1113 | G10: 1031979.729 | H10: 3547411.14 | I10: 1342277.522 | J10: 898694.2252 | K10: 336044.521 | L10: 69636.108 | M10: 416233.9369 | N10: 708180.6133 | O10: 2963645.84
A11: 국·공립 National & Pub. | B11: 1061673 | C11: 47120.257 | D11: 121586.014 | E11: 3108.664 | F11: 1076.712 | G11: 2563.63 | H11: 11286.085 | I11: 83734.711 | J11: 715042.36 | K11: 11000.5 | L11: 28804.205 | M11: 14689.582 | N11: 21660.28 | O11: 0
A12: 정부출연 Gov't funded | B12: 9988373 | C12: 378595.8504 | D12: 379674.0282 | E12: 762161.0029 | F12: 624095.9161 | G12: 881111.5211 | H12: 2021745.533 | I12: 611141.6194 | J12: 127833.3535 | K12: 284739.422 | L12: 8771.801 | M12: 303375.141 | N12: 651589.426 | O12: 2953538.385
A13: 지방자치단체출연 Local gov't funded | B13: 362650 | C13: 404 | D13: 17696.7863 | E13: 572.6 | F13: 35879.3297 | G13: 34336.6824 | H13: 139253.414 | I13: 60152.471 | J13: 30581.7987 | K13: 2163.5338 | L13: 5698.326 | M13: 27488.3321 | N13: 8193.686 | O13: 229.04
A14: 기타비영리 Other non-profit corporation | B14: 2247613 | C14: 8149.6684 | D14: 102997.5471 | E14: 15917.8341 | F14: 70562.1535 | G14: 113967.8957 | H14: 1374970.068 | I14: 364117.061 | J14: 25236.713 | K14: 38141.0652 | L14: 26361.776 | M14: 70679.3818 | N14: 26637.2213 | O14: 9874.6152
A15: 국·공립병원 National & Pub. hospital | B15: 26037 | C15: 0 | D15: 0 | E15: 0 | F15: 0 | G15: 0 | H15: 70.6 | I15: 25961.1 | J15: 0 | K15: 0 | L15: 0 | M15: 1.5 | N15: 0 | O15: 3.8
A16: 사립병원 Private hospital | B16: 197356 | C16: 0 | D16: 0 | E16: 0 | F16: 0 | G16: 0 | H16: 85.44 | I16: 197170.56 | J16: 0 | K16: 0 | L16: 0 | M16: 0 | N16: 100 | O16: 0
A17: 대학 Higher educations | B17: 10893480 | C17: 156439.2672 | D17: 447467.0425 | E17: 153103.9307 | F17: 781272.8439 | G17: 731189.2752 | H17: 2499324.19 | I17: 3024788.863 | J17: 445683.5159 | K17: 534467.8513 | L17: 312722.1781 | M17: 355746.4985 | N17: 1314291.54 | O17: 136983.0038
A18: 국·공립 National & Pub. | B18: 4831375 | C18: 101506.8443 | D18: 259462.6763 | E18: 105951.0675 | F18: 280263.3121 | G18: 499646.5624 | H18: 1025419.551 | I18: 1183734.104 | J18: 340743.4801 | K18: 261809.7418 | L18: 116360.2305 | M18: 83352.99543 | N18: 509178.1567 | O18: 63946.27784
A19: 사립 Private | B19: 6062105 | C19: 54932.4229 | D19: 188004.3662 | E19: 47152.8632 | F19: 501009.5318 | G19: 231542.7128 | H19: 1473904.639 | I19: 1841054.759 | J19: 104940.0358 | K19: 272658.1095 | L19: 196361.9476 | M19: 272393.503 | N19: 805113.3833 | O19: 73036.726
A20: 기업체 Business enterprises | B20: 94296843.15 | C20: 118748.923 | D20: 1843865.992 | E20: 322071.8751 | F20: 6129665.552 | G20: 5001205.09 | H20: 68408643.8 | I20: 6032625.976 | J20: 634468.6855 | K20: 377912.3713 | L20: 1066572.272 | M20: 169819.6517 | N20: 1584776.403 | O20: 2606466.552
A21: 정부투자기관 Gov't investment | B21: 746637 | C21: 3313 | D21: 53609.67 | E21: 0 | F21: 99298.63 | G21: 430928.135 | H21: 21633.4 | I21: 97131.475 | J21: 10955.4 | K21: 0 | L21: 3461.8 | M21: 21392.17 | N21: 3659.77 | O21: 1253.55
A22: 민간기업 Private companies | B22: 93550206.15 | C22: 115435.923 | D22: 1790256.322 | E22: 322071.8751 | F22: 6030366.922 | G22: 4570276.955 | H22: 68387010.4 | I22: 5935494.501 | J22: 623513.2855 | K22: 377912.3713 | L22: 1063110.472 | M22: 148427.4817 | N22: 1581116.633 | O22: 2605213.002

Sheet 2-17-2
A1: 2-17-2) 2023년도 연구수행주체별 연구개발비 비율(경제사회목적)
A2: R&D expenditure rate(socio-economic objectives) by sector of performance, 2023
O4: (단위 : % Unit : %)
A5: 연구수행주체 Sector of performance | B5: 연구개발비 (백만원) R&D expenditure (Won, Millions) | C5: 경제사회목적 Socio-economic objectives
C7: 지구개발 및 탐사 Exploration and exploitation of the Earth | D7: 환경 Environment | E7: 우주개발 및 탐사 Exploration and exploitation of space | F7: 교통, 전기통신 등 기반시설 Transport, telecommunication and other infrastructures | G7: 에너지 Energy | H7: 산업생산 및 기술 Industrial production and technology | I7: 건강 Health | J7: 농업 Agriculture | K7: 교육 Education | L7: 문화, 휴양, 종교 및 매스미디어 Culture, recreation religion and mass media | M7: 정치·사회시스템, 조직 및 과정 Political and social systems, structures and processes | N7: 지식의 전반적 진보 General advancement of knowledge | O7: 국방 Defence
A9: 총계 Total | B9: 119074025.1 | C9: 0.5958125335 | D9: 2.446618737 | E9: 1.05559202 | F9: 6.418320451 | G9: 5.680814171 | H9: 62.52864892 | I9: 8.733804327 | J9: 1.661862379 | K9: 1.048444228 | L9: 1.216831762 | M9: 0.7909366345 | N9: 3.029416829 | O9: 4.792897014
A10: 공공연구기관 Public research institutes | B10: 13883702 | C10: 3.127910523 | D10: 4.479744492 | E10: 5.630775574 | F10: 5.269589561 | G10: 7.43302996 | H10: 25.55090235 | I10: 9.668008737 | J10: 6.473015808 | K10: 2.420424473 | L10: 0.5015672909 | M10: 2.998003968 | N10: 5.100805342 | O10: 21.34622192
A11: 국·공립 National & Pub. | B11: 1061673 | C11: 4.438302283 | D11: 11.45230349 | E11: 0.2928080492 | F11: 0.1014165379 | G11: 0.241470773 | H11: 1.063047191 | I11: 7.887052887 | J11: 67.35052695 | K11: 1.036147665 | L11: 2.713095746 | M11: 1.383625843 | N11: 2.040202586 | O11: 0
A12: 정부출연 Gov't funded | B12: 9988373 | C12: 3.790365562 | D12: 3.801159891 | E12: 7.63048199 | F12: 6.248223971 | G12: 8.82137182 | H12: 20.24098953 | I12: 6.118530209 | J12: 1.279821584 | K12: 2.850708739 | L12: 0.08782011845 | M12: 3.037282859 | N12: 6.523479109 | O12: 29.56976462
A13: 지방자치단체출연 Local gov't funded | B13: 362650 | C13: 0.1114021784 | D13: 4.879852833 | E13: 0.1578932855 | F13: 9.893652199 | G13: 9.468270343 | H13: 38.39884572 | I13: 16.58692155 | J13: 8.432868799 | K13: 0.5965900455 | L13: 1.571301806 | M13: 7.579851675 | N13: 2.259392251 | O13: 0.06315731421
A14: 기타비영리 Other non-profit corporation | B14: 2247613 | C14: 0.3625921544 | D14: 4.582530315 | E14: 0.7082106261 | F14: 3.139426294 | G14: 5.070619172 | H14: 61.17468033 | I14: 16.20016707 | J14: 1.122822879 | K14: 1.696958738 | L14: 1.172878783 | M14: 3.144641974 | N14: 1.185133797 | O14: 0.4393378753
A15: 국·공립병원 National & Pub. hospital | B15: 26037 | C15: 0 | D15: 0 | E15: 0 | F15: 0 | G15: 0 | H15: 0.2711525905 | I15: 99.70849176 | J15: 0 | K15: 0 | L15: 0 | M15: 0.005761032377 | N15: 0 | O15: 0.01459461536
A16: 사립병원 Private hospital | B16: 197356 | C16: 0 | D16: 0 | E16: 0 | F16: 0 | G16: 0 | H16: 0.04329232453 | I16: 99.90603782 | J16: 0 | K16: 0 | L16: 0 | M16: 0 | N16: 0.05066985549 | O16: 0
A17: 대학 Higher educations | B17: 10893480 | C17: 1.436081648 | D17: 4.107659284 | E17: 1.405463917 | F17: 7.171930768 | G17: 6.712173476 | H17: 22.94330361 | I17: 27.76696577 | J17: 4.09128686 | K17: 4.906309566 | L17: 2.870727978 | M17: 3.265682761 | N17: 12.06493738 | O17: 1.257476985
A18: 국·공립 National & Pub. | B18: 4831375 | C18: 2.10099287 | D18: 5.370369229 | E18: 2.192979587 | F18: 5.80090165 | G18: 10.34170526 | H18: 21.22417637 | I18: 24.50097755 | J18: 7.052722674 | K18: 5.418948887 | L18: 2.408428875 | M18: 1.725243754 | N18: 10.53899059 | O18: 1.323562709
A19: 사립 Private | B19: 6062105 | C19: 0.9061608616 | D19: 3.101305012 | E19: 0.777829866 | F19: 8.264613229 | G19: 3.819510101 | H19: 24.31341323 | I19: 30.36989229 | J19: 1.731082451 | K19: 4.497746401 | L19: 3.239171007 | M19: 4.493381475 | N19: 13.28108608 | O19: 1.204808
A20: 기업체 Business enterprises | B20: 94296843.15 | C20: 0.1259309633 | D20: 1.955384645 | E20: 0.3415510683 | F20: 6.500393171 | G20: 5.303682418 | H20: 72.54605936 | I20: 6.397484555 | J20: 0.6728419153 | K20: 0.4007688472 | L20: 1.131079511 | M20: 0.1800904951 | N20: 1.680625088 | O20: 2.764107964
A21: 정부투자기관 Gov't investment | B21: 746637 | C21: 0.4437229872 | D21: 7.180151801 | E21: 0 | F21: 13.29945208 | G21: 57.71588268 | H21: 2.897445479 | I21: 13.00919657 | J21: 1.46729937 | K21: 0 | L21: 0.4636523505 | M21: 2.865136606 | N21: 0.4901672433 | O21: 0.1678928315
A22: 민간기업 Private companies | B22: 93550206.15 | C22: 0.1233946217 | D22: 1.913685063 | E22: 0.3442770341 | F22: 6.446128951 | G22: 4.885373473 | H22: 73.10193448 | I22: 6.344715576 | J22: 0.6665012416 | K22: 0.4039674383 | L22: 1.136406338 | M22: 0.1586607745 | N22: 1.690126295 | O22: 2.784828713

Sheet 2-18-1
A1: 2-18-1) 2023년도 연구수행주체별 연구개발비(지역)
A2: R&D expenditure(region) by sector of performance, 2023
S4: (단위 : 백만원 Unit : Won, Millions)
A5: 연구수행주체 Sector of performance | B5: 연구개발비 R&D expenditure | C5: 지역 Region
C6: 서울 Seoul | D6: 부산 Busan | E6: 대구 Daegu | F6: 인천 Incheon | G6: 광주 Gwangju | H6: 대전 Daejeon | I6: 울산 Ulsan | J6: 세종 Sejong | K6: 경기 Gyeonggi | L6: 강원 Gangwon | M6: 충북 Chungbuk | N6: 충남 Chungnam | O6: 전북 Jeonbuk | P6: 전남 Jeonnam | Q6: 경북 Gyeongbuk | R6: 경남 Gyeongnam | S6: 제주 Jeju
A7: 총계 Total | B7: 119074025.1 | C7: 18871242.1 | D7: 2002374.737 | E7: 1589075.072 | F7: 3603117.813 | G7: 1101611.928 | H7: 11085166 | I7: 974693.587 | J7: 744996.684 | K7: 61098109.22 | L7: 794487.4 | M7: 2425901.999 | N7: 4979398.172 | O7: 1475655.979 | P7: 897716.712 | Q7: 3841238.638 | R7: 3341548.437 | S7: 247690.668
A8: 공공연구기관 Public research institutes | B8: 13883702 | C8: 1330499 | D8: 547244 | E8: 286816 | F8: 309478 | G8: 215816 | H8: 6084797 | I8: 135195 | J8: 339051 | K8: 1145702 | L8: 190637 | M8: 716772 | N8: 389803 | O8: 505845 | P8: 237603 | Q8: 447982 | R8: 891038 | S8: 109424
A9: 국·공립 National & Pub. | B9: 1061673 | C9: 49427 | D9: 124842 | E9: 13342 | F9: 82175 | G9: 13243 | H9: 20817 | I9: 13747 | J9: 1725 | K9: 67932 | L9: 60194 | M9: 105241 | N9: 80005 | O9: 175788 | P9: 42704 | Q9: 68156 | R9: 71089 | S9: 71246
A10: 정부출연 Gov't funded | B10: 9988373 | C10: 697994 | D10: 334092 | E10: 70760 | F10: 157848 | G10: 93618 | H10: 6032487 | I10: 96003 | J10: 334031 | K10: 415145 | L10: 58657 | M10: 459448 | N10: 105324 | O10: 187691 | P10: 94008 | Q10: 58386 | R10: 765058 | S10: 27823
A11: 지방자치단체출연 Local gov't funded | B11: 362650 | C11: 0 | D11: 4500 | E11: 0 | F11: 15553 | G11: 518 | H11: 774 | I11: 6370 | J11: 0 | K11: 23341 | L11: 32296 | M11: 58635 | N11: 1822 | O11: 42562 | P11: 40338 | Q11: 101713 | R11: 26773 | S11: 7455
A12: 기타비영리 Other non-profit corporation | B12: 2247613 | C12: 395761 | D12: 83726 | E12: 201776 | F12: 53720 | G12: 108437 | H12: 30719 | I12: 19075 | J12: 3295 | K12: 606990 | L12: 38481 | M12: 93429 | N12: 202464 | O12: 99804 | P12: 60307 | Q12: 219508 | R12: 27221 | S12: 2900
A13: 국·공립병원 National & Pub. hospital | B13: 26037 | C13: 24549 | D13: 10 | E13: 0 | F13: 40 | G13: 0 | H13: 0 | I13: 0 | J13: 0 | K13: 329 | L13: 0 | M13: 19 | N13: 188 | O13: 0 | P13: 196 | Q13: 0 | R13: 706 | S13: 0
A14: 사립병원 Private hospital | B14: 197356 | C14: 162768 | D14: 74 | E14: 938 | F14: 142 | G14: 0 | H14: 0 | I14: 0 | J14: 0 | K14: 31965 | L14: 1009 | M14: 0 | N14: 0 | O14: 0 | P14: 50 | Q14: 219 | R14: 191 | S14: 0
A15: 대학 Higher educations | B15: 10893480 | C15: 3943249 | D15: 525610 | E15: 491410 | F15: 292341 | G15: 454806 | H15: 862492 | I15: 221750 | J15: 71463 | K15: 1651073 | L15: 318023 | M15: 263730 | N15: 272212 | O15: 414020 | P15: 206485 | Q15: 512840 | R15: 311566 | S15: 80410
A16: 국·공립 National & Pub. | B16: 4831375 | C16: 1243136 | D16: 361477 | E16: 427668 | F16: 1193 | G16: 350215 | H16: 772423 | I16: 180533 | J16: 4084 | K16: 122235 | L16: 191001 | M16: 198115 | N16: 68125 | O16: 318741 | P16: 180568 | Q16: 61764 | R16: 270058 | S16: 80039
A17: 사립 Private | B17: 6062105 | C17: 2700113 | D17: 164133 | E17: 63742 | F17: 291148 | G17: 104591 | H17: 90069 | I17: 41217 | J17: 67379 | K17: 1528838 | L17: 127022 | M17: 65615 | N17: 204087 | O17: 95279 | P17: 25917 | Q17: 451076 | R17: 41508 | S17: 371
A18: 기업체 Business enterprises | B18: 94296843.15 | C18: 13597494.1 | D18: 929520.737 | E18: 810849.072 | F18: 3001298.813 | G18: 430989.928 | H18: 4137877.002 | I18: 617748.587 | J18: 334482.684 | K18: 58301334.22 | L18: 285827.4 | M18: 1445399.999 | N18: 4317383.172 | O18: 555790.979 | P18: 453628.712 | Q18: 2880416.638 | R18: 2138944.437 | S18: 57856.668
A19: 정부투자기관 Gov't investment | B19: 746637 | C19: 19215 | D19: 2609 | E19: 5494 | F19: 18657 | G19: 3 | H19: 490428 | I19: 3410 | J19: 0 | K19: 94499 | L19: 10726 | M19: 9620 | N19: 2675 | O19: 15453 | P19: 30063 | Q19: 39727 | R19: 1890 | S19: 2168
A20: 민간기업 Private companies | B20: 93550206.15 | C20: 13578279.1 | D20: 926911.737 | E20: 805355.072 | F20: 2982641.813 | G20: 430986.928 | H20: 3647449.002 | I20: 614338.587 | J20: 334482.684 | K20: 58206835.22 | L20: 275101.4 | M20: 1435779.999 | N20: 4314708.172 | O20: 540337.979 | P20: 423565.712 | Q20: 2840689.638 | R20: 2137054.437 | S20: 55688.668

Sheet 2-18-2
A1: 2-18-2) 2023년도 연구수행주체별 연구개발비 비율(지역)
A2: R&D expenditure rate(region) by sector of performance, 2023
S4: (단위 : % Unit : %)
A5: 연구수행주체 Sector of performance | B5: 연구개발비 (백만원) R&D expenditure (Won, Millions) | C5: 지역 Region
C6: 서울 Seoul | D6: 부산 Busan | E6: 대구 Daegu | F6: 인천 Incheon | G6: 광주 Gwangju | H6: 대전 Daejeon | I6: 울산 Ulsan | J6: 세종 Sejong | K6: 경기 Gyeonggi | L6: 강원 Gangwon | M6: 충북 Chungbuk | N6: 충남 Chungnam | O6: 전북 Jeonbuk | P6: 전남 Jeonnam | Q6: 경북 Gyeongbuk | R6: 경남 Gyeongnam | S6: 제주 Jeju
A7: 총계 Total | B7: ='2-18-1'!B7 -> 119074025.1 | C7: ='2-18-1'!C7/'2-18-2'!$B7*100 -> 15.84832802 | D7: ='2-18-1'!D7/'2-18-2'!$B7*100 -> 1.681621776 | E7: ='2-18-1'!E7/'2-18-2'!$B7*100 -> 1.334527047 | F7: ='2-18-1'!F7/'2-18-2'!$B7*100 -> 3.025947774 | G7: ='2-18-1'!G7/'2-18-2'!$B7*100 -> 0.9251488111 | H7: ='2-18-1'!H7/'2-18-2'!$B7*100 -> 9.309474496 | I7: ='2-18-1'!I7/'2-18-2'!$B7*100 -> 0.8185610471 | J7: ='2-18-1'!J7/'2-18-2'!$B7*100 -> 0.6256584365 | K7: ='2-18-1'!K7/'2-18-2'!$B7*100 -> 51.31103038 | L7: ='2-18-1'!L7/'2-18-2'!$B7*100 -> 0.6672214188 | M7: ='2-18-1'!M7/'2-18-2'!$B7*100 -> 2.037305782 | N7: ='2-18-1'!N7/'2-18-2'!$B7*100 -> 4.181766902 | O7: ='2-18-1'!O7/'2-18-2'!$B7*100 -> 1.239276137 | P7: ='2-18-1'!P7/'2-18-2'!$B7*100 -> 0.7539148113 | Q7: ='2-18-1'!Q7/'2-18-2'!$B7*100 -> 3.22592491 | R7: ='2-18-1'!R7/'2-18-2'!$B7*100 -> 2.806278223 | S7: ='2-18-1'!S7/'2-18-2'!$B7*100 -> 0.2080140213
A8: 공공연구기관 Public research institutes | B8: ='2-18-1'!B8 -> 13883702 | C8: ='2-18-1'!C8/'2-18-2'!$B8*100 -> 9.583171693 | D8: ='2-18-1'!D8/'2-18-2'!$B8*100 -> 3.941628825 | E8: ='2-18-1'!E8/'2-18-2'!$B8*100 -> 2.065846703 | F8: ='2-18-1'!F8/'2-18-2'!$B8*100 -> 2.229074061 | G8: ='2-18-1'!G8/'2-18-2'!$B8*100 -> 1.554455721 | H8: ='2-18-1'!H8/'2-18-2'!$B8*100 -> 43.82690582 | I8: ='2-18-1'!I8/'2-18-2'!$B8*100 -> 0.9737676594 | J8: ='2-18-1'!J8/'2-18-2'!$B8*100 -> 2.442079209 | K8: ='2-18-1'!K8/'2-18-2'!$B8*100 -> 8.25213621 | L8: ='2-18-1'!L8/'2-18-2'!$B8*100 -> 1.373099192 | M8: ='2-18-1'!M8/'2-18-2'!$B8*100 -> 5.162686436 | N8: ='2-18-1'!N8/'2-18-2'!$B8*100 -> 2.807630126 | O8: ='2-18-1'!O8/'2-18-2'!$B8*100 -> 3.643444666 | P8: ='2-18-1'!P8/'2-18-2'!$B8*100 -> 1.711380725 | Q8: ='2-18-1'!Q8/'2-18-2'!$B8*100 -> 3.226675421 | R8: ='2-18-1'!R8/'2-18-2'!$B8*100 -> 6.417870392 | S8: ='2-18-1'!S8/'2-18-2'!$B8*100 -> 0.7881471383
A9: 국·공립 National & Pub. | B9: ='2-18-1'!B9 -> 1061673 | C9: ='2-18-1'!C9/'2-18-2'!$B9*100 -> 4.655576623 | D9: ='2-18-1'!D9/'2-18-2'!$B9*100 -> 11.75898794 | E9: ='2-18-1'!E9/'2-18-2'!$B9*100 -> 1.2566958 | F9: ='2-18-1'!F9/'2-18-2'!$B9*100 -> 7.74014221 | G9: ='2-18-1'!G9/'2-18-2'!$B9*100 -> 1.247370895 | H9: ='2-18-1'!H9/'2-18-2'!$B9*100 -> 1.960773232 | I9: ='2-18-1'!I9/'2-18-2'!$B9*100 -> 1.294843139 | J9: ='2-18-1'!J9/'2-18-2'!$B9*100 -> 0.1624794075 | K9: ='2-18-1'!K9/'2-18-2'!$B9*100 -> 6.398580354 | L9: ='2-18-1'!L9/'2-18-2'!$B9*100 -> 5.669730699 | M9: ='2-18-1'!M9/'2-18-2'!$B9*100 -> 9.912750913 | N9: ='2-18-1'!N9/'2-18-2'!$B9*100 -> 7.535747824 | O9: ='2-18-1'!O9/'2-18-2'!$B9*100 -> 16.55764063 | P9: ='2-18-1'!P9/'2-18-2'!$B9*100 -> 4.022330793 | Q9: ='2-18-1'!Q9/'2-18-2'!$B9*100 -> 6.419679129 | R9: ='2-18-1'!R9/'2-18-2'!$B9*100 -> 6.695941217 | S9: ='2-18-1'!S9/'2-18-2'!$B9*100 -> 6.710729198
A10: 정부출연 Gov't funded | B10: ='2-18-1'!B10 -> 9988373 | C10: ='2-18-1'!C10/'2-18-2'!$B10*100 -> 6.988065023 | D10: ='2-18-1'!D10/'2-18-2'!$B10*100 -> 3.344809009 | E10: ='2-18-1'!E10/'2-18-2'!$B10*100 -> 0.7084236842 | F10: ='2-18-1'!F10/'2-18-2'!$B10*100 -> 1.580317435 | G10: ='2-18-1'!G10/'2-18-2'!$B10*100 -> 0.9372697636 | H10: ='2-18-1'!H10/'2-18-2'!$B10*100 -> 60.39509137 | I10: ='2-18-1'!I10/'2-18-2'!$B10*100 -> 0.9611475262 | J10: ='2-18-1'!J10/'2-18-2'!$B10*100 -> 3.344198299 | K10: ='2-18-1'!K10/'2-18-2'!$B10*100 -> 4.15628251 | L10: ='2-18-1'!L10/'2-18-2'!$B10*100 -> 0.5872527988 | M10: ='2-18-1'!M10/'2-18-2'!$B10*100 -> 4.59982822 | N10: ='2-18-1'!N10/'2-18-2'!$B10*100 -> 1.054466028 | O10: ='2-18-1'!O10/'2-18-2'!$B10*100 -> 1.879094824 | P10: ='2-18-1'!P10/'2-18-2'!$B10*100 -> 0.9411743034 | Q10: ='2-18-1'!Q10/'2-18-2'!$B10*100 -> 0.5845396442 | R10: ='2-18-1'!R10/'2-18-2'!$B10*100 -> 7.659485684 | S10: ='2-18-1'!S10/'2-18-2'!$B10*100 -> 0.2785538746
A11: 지방자치단체출연 Local gov't funded | B11: ='2-18-1'!B11 -> 362650 | C11: ='2-18-1'!C11/'2-18-2'!$B11*100 -> 0 | D11: ='2-18-1'!D11/'2-18-2'!$B11*100 -> 1.240865849 | E11: ='2-18-1'!E11/'2-18-2'!$B11*100 -> 0 | F11: ='2-18-1'!F11/'2-18-2'!$B11*100 -> 4.288708121 | G11: ='2-18-1'!G11/'2-18-2'!$B11*100 -> 0.1428374466 | H11: ='2-18-1'!H11/'2-18-2'!$B11*100 -> 0.213428926 | I11: ='2-18-1'!I11/'2-18-2'!$B11*100 -> 1.756514546 | J11: ='2-18-1'!J11/'2-18-2'!$B11*100 -> 0 | K11: ='2-18-1'!K11/'2-18-2'!$B11*100 -> 6.436233283 | L11: ='2-18-1'!L11/'2-18-2'!$B11*100 -> 8.905556322 | M11: ='2-18-1'!M11/'2-18-2'!$B11*100 -> 16.16848201 | N11: ='2-18-1'!N11/'2-18-2'!$B11*100 -> 0.5024127947 | O11: ='2-18-1'!O11/'2-18-2'!$B11*100 -> 11.73638494 | P11: ='2-18-1'!P11/'2-18-2'!$B11*100 -> 11.12312147 | Q11: ='2-18-1'!Q11/'2-18-2'!$B11*100 -> 28.0471529 | R11: ='2-18-1'!R11/'2-18-2'!$B11*100 -> 7.382600303 | S11: ='2-18-1'!S11/'2-18-2'!$B11*100 -> 2.055701089
A12: 기타비영리 Other non-profit corporation | B12: ='2-18-1'!B12 -> 2247613 | C12: ='2-18-1'!C12/'2-18-2'!$B12*100 -> 17.60805797 | D12: ='2-18-1'!D12/'2-18-2'!$B12*100 -> 3.725107481 | E12: ='2-18-1'!E12/'2-18-2'!$B12*100 -> 8.977346189 | F12: ='2-18-1'!F12/'2-18-2'!$B12*100 -> 2.390091177 | G12: ='2-18-1'!G12/'2-18-2'!$B12*100 -> 4.824540524 | H12: ='2-18-1'!H12/'2-18-2'!$B12*100 -> 1.366738847 | I12: ='2-18-1'!I12/'2-18-2'!$B12*100 -> 0.848678131 | J12: ='2-18-1'!J12/'2-18-2'!$B12*100 -> 0.1465999707 | K12: ='2-18-1'!K12/'2-18-2'!$B12*100 -> 27.00598368 | L12: ='2-18-1'!L12/'2-18-2'!$B12*100 -> 1.712082996 | M12: ='2-18-1'!M12/'2-18-2'!$B12*100 -> 4.156809913 | N12: ='2-18-1'!N12/'2-18-2'!$B12*100 -> 9.007956441 | O12: ='2-18-1'!O12/'2-18-2'!$B12*100 -> 4.440444151 | P12: ='2-18-1'!P12/'2-18-2'!$B12*100 -> 2.683157643 | Q12: ='2-18-1'!Q12/'2-18-2'!$B12*100 -> 9.766272041 | R12: ='2-18-1'!R12/'2-18-2'!$B12*100 -> 1.211107072 | S12: ='2-18-1'!S12/'2-18-2'!$B12*100 -> 0.1290257709
A13: 국·공립병원 National & Pub.hospital | B13: ='2-18-1'!B13 -> 26037 | C13: ='2-18-1'!C13/'2-18-2'!$B13*100 -> 94.28505588 | D13: ='2-18-1'!D13/'2-18-2'!$B13*100 -> 0.03840688251 | E13: ='2-18-1'!E13/'2-18-2'!$B13*100 -> 0 | F13: ='2-18-1'!F13/'2-18-2'!$B13*100 -> 0.1536275301 | G13: ='2-18-1'!G13/'2-18-2'!$B13*100 -> 0 | H13: ='2-18-1'!H13/'2-18-2'!$B13*100 -> 0 | I13: ='2-18-1'!I13/'2-18-2'!$B13*100 -> 0 | J13: ='2-18-1'!J13/'2-18-2'!$B13*100 -> 0 | K13: ='2-18-1'!K13/'2-18-2'!$B13*100 -> 1.263586435 | L13: ='2-18-1'!L13/'2-18-2'!$B13*100 -> 0 | M13: ='2-18-1'!M13/'2-18-2'!$B13*100 -> 0.07297307678 | N13: ='2-18-1'!N13/'2-18-2'!$B13*100 -> 0.7220493913 | O13: ='2-18-1'!O13/'2-18-2'!$B13*100 -> 0 | P13: ='2-18-1'!P13/'2-18-2'!$B13*100 -> 0.7527748973 | Q13: ='2-18-1'!Q13/'2-18-2'!$B13*100 -> 0 | R13: ='2-18-1'!R13/'2-18-2'!$B13*100 -> 2.711525905 | S13: ='2-18-1'!S13/'2-18-2'!$B13*100 -> 0
A14: 사립병원 Private hospital | B14: ='2-18-1'!B14 -> 197356 | C14: ='2-18-1'!C14/'2-18-2'!$B14*100 -> 82.47431038 | D14: ='2-18-1'!D14/'2-18-2'!$B14*100 -> 0.03749569306 | E14: ='2-18-1'!E14/'2-18-2'!$B14*100 -> 0.4752832445 | F14: ='2-18-1'!F14/'2-18-2'!$B14*100 -> 0.0719511948 | G14: ='2-18-1'!G14/'2-18-2'!$B14*100 -> 0 | H14: ='2-18-1'!H14/'2-18-2'!$B14*100 -> 0 | I14: ='2-18-1'!I14/'2-18-2'!$B14*100 -> 0 | J14: ='2-18-1'!J14/'2-18-2'!$B14*100 -> 0 | K14: ='2-18-1'!K14/'2-18-2'!$B14*100 -> 16.19661931 | L14: ='2-18-1'!L14/'2-18-2'!$B14*100 -> 0.5112588419 | M14: ='2-18-1'!M14/'2-18-2'!$B14*100 -> 0 | N14: ='2-18-1'!N14/'2-18-2'!$B14*100 -> 0 | O14: ='2-18-1'!O14/'2-18-2'!$B14*100 -> 0 | P14: ='2-18-1'!P14/'2-18-2'!$B14*100 -> 0.02533492774 | Q14: ='2-18-1'!Q14/'2-18-2'!$B14*100 -> 0.1109669835 | R14: ='2-18-1'!R14/'2-18-2'!$B14*100 -> 0.09677942399 | S14: ='2-18-1'!S14/'2-18-2'!$B14*100 -> 0
A15: 대학 Higher educations | B15: ='2-18-1'!B15 -> 10893480 | C15: ='2-18-1'!C15/'2-18-2'!$B15*100 -> 36.19824886 | D15: ='2-18-1'!D15/'2-18-2'!$B15*100 -> 4.824996236 | E15: ='2-18-1'!E15/'2-18-2'!$B15*100 -> 4.511046975 | F15: ='2-18-1'!F15/'2-18-2'!$B15*100 -> 2.683632779 | G15: ='2-18-1'!G15/'2-18-2'!$B15*100 -> 4.175029467 | H15: ='2-18-1'!H15/'2-18-2'!$B15*100 -> 7.917506619 | I15: ='2-18-1'!I15/'2-18-2'!$B15*100 -> 2.035621307 | J15: ='2-18-1'!J15/'2-18-2'!$B15*100 -> 0.6560162593 | K15: ='2-18-1'!K15/'2-18-2'!$B15*100 -> 15.15652482 | L15: ='2-18-1'!L15/'2-18-2'!$B15*100 -> 2.919388478 | M15: ='2-18-1'!M15/'2-18-2'!$B15*100 -> 2.420989436 | N15: ='2-18-1'!N15/'2-18-2'!$B15*100 -> 2.498852525 | O15: ='2-18-1'!O15/'2-18-2'!$B15*100 -> 3.800622023 | P15: ='2-18-1'!P15/'2-18-2'!$B15*100 -> 1.895491615 | Q15: ='2-18-1'!Q15/'2-18-2'!$B15*100 -> 4.707770152 | R15: ='2-18-1'!R15/'2-18-2'!$B15*100 -> 2.860114491 | S15: ='2-18-1'!S15/'2-18-2'!$B15*100 -> 0.7381479564
A16: 국·공립 National & Pub. | B16: ='2-18-1'!B16 -> 4831375 | C16: ='2-18-1'!C16/'2-18-2'!$B16*100 -> 25.73048045 | D16: ='2-18-1'!D16/'2-18-2'!$B16*100 -> 7.481865928 | E16: ='2-18-1'!E16/'2-18-2'!$B16*100 -> 8.85188999 | F16: ='2-18-1'!F16/'2-18-2'!$B16*100 -> 0.02469276345 | G16: ='2-18-1'!G16/'2-18-2'!$B16*100 -> 7.248764586 | H16: ='2-18-1'!H16/'2-18-2'!$B16*100 -> 15.98764327 | I16: ='2-18-1'!I16/'2-18-2'!$B16*100 -> 3.736679517 | J16: ='2-18-1'!J16/'2-18-2'!$B16*100 -> 0.08453080127 | K16: ='2-18-1'!K16/'2-18-2'!$B16*100 -> 2.530025096 | L16: ='2-18-1'!L16/'2-18-2'!$B16*100 -> 3.953346615 | M16: ='2-18-1'!M16/'2-18-2'!$B16*100 -> 4.100592481 | N16: ='2-18-1'!N16/'2-18-2'!$B16*100 -> 1.410054074 | O16: ='2-18-1'!O16/'2-18-2'!$B16*100 -> 6.597314429 | P16: ='2-18-1'!P16/'2-18-2'!$B16*100 -> 3.737403948 | Q16: ='2-18-1'!Q16/'2-18-2'!$B16*100 -> 1.278393832 | R16: ='2-18-1'!R16/'2-18-2'!$B16*100 -> 5.589671677 | S16: ='2-18-1'!S16/'2-18-2'!$B16*100 -> 1.656650539
A17: 사립 Private | B17: ='2-18-1'!B17 -> 6062105 | C17: ='2-18-1'!C17/'2-18-2'!$B17*100 -> 44.54084843 | D17: ='2-18-1'!D17/'2-18-2'!$B17*100 -> 2.707524861 | E17: ='2-18-1'!E17/'2-18-2'!$B17*100 -> 1.051482942 | F17: ='2-18-1'!F17/'2-18-2'!$B17*100 -> 4.802754159 | G17: ='2-18-1'!G17/'2-18-2'!$B17*100 -> 1.725324784 | H17: ='2-18-1'!H17/'2-18-2'!$B17*100 -> 1.485771032 | I17: ='2-18-1'!I17/'2-18-2'!$B17*100 -> 0.6799123407 | J17: ='2-18-1'!J17/'2-18-2'!$B17*100 -> 1.111478604 | K17: ='2-18-1'!K17/'2-18-2'!$B17*100 -> 25.21958957 | L17: ='2-18-1'!L17/'2-18-2'!$B17*100 -> 2.095344769 | M17: ='2-18-1'!M17/'2-18-2'!$B17*100 -> 1.0823798 | N17: ='2-18-1'!N17/'2-18-2'!$B17*100 -> 3.366602855 | O17: ='2-18-1'!O17/'2-18-2'!$B17*100 -> 1.571714776 | P17: ='2-18-1'!P17/'2-18-2'!$B17*100 -> 0.4275247624 | Q17: ='2-18-1'!Q17/'2-18-2'!$B17*100 -> 7.440913676 | R17: ='2-18-1'!R17/'2-18-2'!$B17*100 -> 0.6847126534 | S17: ='2-18-1'!S17/'2-18-2'!$B17*100 -> 0.006119986374
A18: 기업체 Business enterprises | B18: ='2-18-1'!B18 -> 94296843.15 | C18: ='2-18-1'!C18/'2-18-2'!$B18*100 -> 14.41988262 | D18: ='2-18-1'!D18/'2-18-2'!$B18*100 -> 0.985738977 | E18: ='2-18-1'!E18/'2-18-2'!$B18*100 -> 0.8598899443 | F18: ='2-18-1'!F18/'2-18-2'!$B18*100 -> 3.182820032 | G18: ='2-18-1'!G18/'2-18-2'!$B18*100 -> 0.4570565818 | H18: ='2-18-1'!H18/'2-18-2'!$B18*100 -> 4.388139479 | I18: ='2-18-1'!I18/'2-18-2'!$B18*100 -> 0.6551105704 | J18: ='2-18-1'!J18/'2-18-2'!$B18*100 -> 0.3547124939 | K18: ='2-18-1'!K18/'2-18-2'!$B18*100 -> 61.82745072 | L18: ='2-18-1'!L18/'2-18-2'!$B18*100 -> 0.3031144951 | M18: ='2-18-1'!M18/'2-18-2'!$B18*100 -> 1.532819075 | N18: ='2-18-1'!N18/'2-18-2'!$B18*100 -> 4.578502342 | O18: ='2-18-1'!O18/'2-18-2'!$B18*100 -> 0.5894057112 | P18: ='2-18-1'!P18/'2-18-2'!$B18*100 -> 0.4810645795 | Q18: ='2-18-1'!Q18/'2-18-2'!$B18*100 -> 3.054626795 | R18: ='2-18-1'!R18/'2-18-2'!$B18*100 -> 2.268309697 | S18: ='2-18-1'!S18/'2-18-2'!$B18*100 -> 0.06135589068
A19: 정부투자기관 Gov't investment | B19: ='2-18-1'!B19 -> 746637 | C19: ='2-18-1'!C19/'2-18-2'!$B19*100 -> 2.573539752 | D19: ='2-18-1'!D19/'2-18-2'!$B19*100 -> 0.3494335266 | E19: ='2-18-1'!E19/'2-18-2'!$B19*100 -> 0.7358328076 | F19: ='2-18-1'!F19/'2-18-2'!$B19*100 -> 2.49880464 | G19: ='2-18-1'!G19/'2-18-2'!$B19*100 -> 0.0004018016787 | H19: ='2-18-1'!H19/'2-18-2'!$B19*100 -> 65.68493123 | I19: ='2-18-1'!I19/'2-18-2'!$B19*100 -> 0.4567145748 | J19: ='2-18-1'!J19/'2-18-2'!$B19*100 -> 0 | K19: ='2-18-1'!K19/'2-18-2'!$B19*100 -> 12.65661895 | L19: ='2-18-1'!L19/'2-18-2'!$B19*100 -> 1.436574935 | M19: ='2-18-1'!M19/'2-18-2'!$B19*100 -> 1.28844405 | N19: ='2-18-1'!N19/'2-18-2'!$B19*100 -> 0.3582731635 | O19: ='2-18-1'!O19/'2-18-2'!$B19*100 -> 2.069680447 | P19: ='2-18-1'!P19/'2-18-2'!$B19*100 -> 4.026454623 | Q19: ='2-18-1'!Q19/'2-18-2'!$B19*100 -> 5.320791764 | R19: ='2-18-1'!R19/'2-18-2'!$B19*100 -> 0.2531350576 | S19: ='2-18-1'!S19/'2-18-2'!$B19*100 -> 0.2903686798
A20: 민간기업 Private companies | B20: ='2-18-1'!B20 -> 93550206.15 | C20: ='2-18-1'!C20/'2-18-2'!$B20*100 -> 14.5144299 | D20: ='2-18-1'!D20/'2-18-2'!$B20*100 -> 0.9908174179 | E20: ='2-18-1'!E20/'2-18-2'!$B20*100 -> 0.8608800613 | F20: ='2-18-1'!F20/'2-18-2'!$B20*100 -> 3.188279252 | G20: ='2-18-1'!G20/'2-18-2'!$B20*100 -> 0.4607012061 | H20: ='2-18-1'!H20/'2-18-2'!$B20*100 -> 3.898921394 | I20: ='2-18-1'!I20/'2-18-2'!$B20*100 -> 0.656693996 | J20: ='2-18-1'!J20/'2-18-2'!$B20*100 -> 0.3575435029 | K20: ='2-18-1'!K20/'2-18-2'!$B20*100 -> 62.21988985 | L20: ='2-18-1'!L20/'2-18-2'!$B20*100 -> 0.2940681922 | M20: ='2-18-1'!M20/'2-18-2'!$B20*100 -> 1.534769466 | N20: ='2-18-1'!N20/'2-18-2'!$B20*100 -> 4.612184569 | O20: ='2-18-1'!O20/'2-18-2'!$B20*100 -> 0.5775914359 | P20: ='2-18-1'!P20/'2-18-2'!$B20*100 -> 0.4527683363 | Q20: ='2-18-1'!Q20/'2-18-2'!$B20*100 -> 3.036540223 | R20: ='2-18-1'!R20/'2-18-2'!$B20*100 -> 2.284393082 | S20: ='2-18-1'!S20/'2-18-2'!$B20*100 -> 0.05952810827

Sheet 2-19-1
A1: 2-19-1) 2023년도 연구수행주체별 연구개발인력(지역)
A2: R&D personnel(region) by sector of performance, 2023
S4: (단위 : 명 Unit : Headcount)
A5: 연구수행주체 Sector of performance | B5: 연구개발 인력 R&D personnel | C5: 지역 Region
C6: 서울 Seoul | D6: 부산 Busan | E6: 대구 Daegu | F6: 인천 Incheon | G6: 광주 Gwangju | H6: 대전 Daejeon | I6: 울산 Ulsan | J6: 세종 Sejong | K6: 경기 Gyeonggi | L6: 강원 Gangwon | M6: 충북 Chungbuk | N6: 충남 Chungnam | O6: 전북 Jeonbuk | P6: 전남 Jeonnam | Q6: 경북 Gyeongbuk | R6: 경남 Gyeongnam | S6: 제주 Jeju
A7: 총계 Total | B7: 827963 | C7: 221294 | D7: 25997 | E7: 21297 | F7: 30843 | G7: 15034 | H7: 57267 | I7: 11007 | J7: 7808 | K7: 277533 | L7: 12612 | M7: 23881 | N7: 29116 | O7: 18358 | P7: 10357 | Q7: 28768 | R7: 32715 | S7: 4076
A8: 공공연구기관 Public research institutes | B8: 71135 | C8: 9198 | D8: 2717 | E8: 1747 | F8: 2310 | G8: 1195 | H8: 17041 | I8: 1119 | J8: 3582 | K8: 8558 | L8: 1787 | M8: 4801 | N8: 2614 | O8: 4365 | P8: 1984 | Q8: 2760 | R8: 4428 | S8: 929
A9: 국·공립 National & Pub. | B9: 13168 | C9: 412 | D9: 437 | E9: 165 | F9: 1047 | G9: 202 | H9: 433 | I9: 230 | J9: 18 | K9: 852 | L9: 932 | M9: 1470 | N9: 1134 | O9: 2573 | P9: 903 | Q9: 846 | R9: 943 | S9: 571
A10: 정부출연 Gov't funded | B10: 35691 | C10: 3423 | D10: 1253 | E10: 470 | F10: 533 | G10: 360 | H10: 16321 | I10: 482 | J10: 3471 | K10: 1978 | L10: 251 | M10: 2209 | N10: 633 | O10: 1038 | P10: 415 | Q10: 267 | R10: 2472 | S10: 115
A11: 지방자치단체출연 Local gov't funded | B11: 3452 | C11: 0 | D11: 73 | E11: 0 | F11: 138 | G11: 109 | H11: 5 | I11: 105 | J11: 0 | K11: 459 | L11: 297 | M11: 307 | N11: 128 | O11: 364 | P11: 310 | Q11: 503 | R11: 444 | S11: 210
A12: 기타비영리 Other non-profit corporation | B12: 16244 | C12: 3314 | D12: 924 | E12: 1097 | F12: 571 | G12: 524 | H12: 282 | I12: 302 | J12: 93 | K12: 4982 | L12: 222 | M12: 799 | N12: 706 | O12: 390 | P12: 315 | Q12: 1137 | R12: 553 | S12: 33
A13: 국·공립병원 National & Pub. hospital | B13: 637 | C13: 514 | D13: 7 | E13: 0 | F13: 8 | G13: 0 | H13: 0 | I13: 0 | J13: 0 | K13: 43 | L13: 0 | M13: 16 | N13: 13 | O13: 0 | P13: 26 | Q13: 0 | R13: 10 | S13: 0
A14: 사립병원 Private hospital | B14: 1943 | C14: 1535 | D14: 23 | E14: 15 | F14: 13 | G14: 0 | H14: 0 | I14: 0 | J14: 0 | K14: 244 | L14: 85 | M14: 0 | N14: 0 | O14: 0 | P14: 15 | Q14: 7 | R14: 6 | S14: 0
A15: 대학 Higher educations | B15: 233804 | C15: 85577 | D15: 12041 | E15: 9991 | F15: 6187 | G15: 9130 | H15: 16380 | I15: 4116 | J15: 1744 | K15: 29795 | L15: 7616 | M15: 7537 | N15: 8046 | O15: 7931 | P15: 4074 | Q15: 11634 | R15: 9676 | S15: 2329
A16: 국·공립 National & Pub. | B16: 94763 | C16: 19438 | D16: 7042 | E16: 8066 | F16: 21 | G16: 6591 | H16: 14131 | I16: 3005 | J16: 185 | K16: 1841 | L16: 4450 | M16: 5820 | N16: 2182 | O16: 5497 | P16: 3576 | Q16: 2317 | R16: 8317 | S16: 2284
A17: 사립 Private | B17: 139041 | C17: 66139 | D17: 4999 | E17: 1925 | F17: 6166 | G17: 2539 | H17: 2249 | I17: 1111 | J17: 1559 | K17: 27954 | L17: 3166 | M17: 1717 | N17: 5864 | O17: 2434 | P17: 498 | Q17: 9317 | R17: 1359 | S17: 45
A18: 기업체 Business enterprises | B18: 523024 | C18: 126519 | D18: 11239 | E18: 9559 | F18: 22346 | G18: 4709 | H18: 23846 | I18: 5772 | J18: 2482 | K18: 239180 | L18: 3209 | M18: 11543 | N18: 18456 | O18: 6062 | P18: 4299 | Q18: 14374 | R18: 18611 | S18: 818
A19: 정부투자기관 Gov't investment | B19: 3779 | C19: 303 | D19: 21 | E19: 49 | F19: 143 | G19: 1 | H19: 1857 | I19: 17 | J19: 0 | K19: 491 | L19: 68 | M19: 55 | N19: 19 | O19: 101 | P19: 206 | Q19: 408 | R19: 21 | S19: 19
A20: 민간기업 Private companies | B20: 519245 | C20: 126216 | D20: 11218 | E20: 9510 | F20: 22203 | G20: 4708 | H20: 21989 | I20: 5755 | J20: 2482 | K20: 238689 | L20: 3141 | M20: 11488 | N20: 18437 | O20: 5961 | P20: 4093 | Q20: 13966 | R20: 18590 | S20: 799

Sheet 2-19-2
A1: 2-19-2) 2023년도 연구수행주체별 연구개발인력 비율(지역)
A2: R&D personnel rate(region) by sector of performance, 2023
S4: (단위 : % Unit : %)
A5: 연구수행주체 Sector of performance | B5: 연구개발 인력(명) R&D personnel (headcount) | C5: 지역 Region
C6: 서울 Seoul | D6: 부산 Busan | E6: 대구 Daegu | F6: 인천 Incheon | G6: 광주 Gwangju | H6: 대전 Daejeon | I6: 울산 Ulsan | J6: 세종 Sejong | K6: 경기 Gyeonggi | L6: 강원 Gangwon | M6: 충북 Chungbuk | N6: 충남 Chungnam | O6: 전북 Jeonbuk | P6: 전남 Jeonnam | Q6: 경북 Gyeongbuk | R6: 경남 Gyeongnam | S6: 제주 Jeju
A7: 총계 Total | B7: ='2-19-1'!B7 -> 827963 | C7: ='2-19-1'!C7/'2-19-1'!$B7*100 -> 26.72752285 | D7: ='2-19-1'!D7/'2-19-1'!$B7*100 -> 3.139874608 | E7: ='2-19-1'!E7/'2-19-1'!$B7*100 -> 2.572216391 | F7: ='2-19-1'!F7/'2-19-1'!$B7*100 -> 3.725166463 | G7: ='2-19-1'!G7/'2-19-1'!$B7*100 -> 1.815781623 | H7: ='2-19-1'!H7/'2-19-1'!$B7*100 -> 6.916613424 | I7: ='2-19-1'!I7/'2-19-1'!$B7*100 -> 1.329407232 | J7: ='2-19-1'!J7/'2-19-1'!$B7*100 -> 0.9430373096 | K7: ='2-19-1'!K7/'2-19-1'!$B7*100 -> 33.51997613 | L7: ='2-19-1'!L7/'2-19-1'!$B7*100 -> 1.523256474 | M7: ='2-19-1'!M7/'2-19-1'!$B7*100 -> 2.884307632 | N7: ='2-19-1'!N7/'2-19-1'!$B7*100 -> 3.516582263 | O7: ='2-19-1'!O7/'2-19-1'!$B7*100 -> 2.217248838 | P7: ='2-19-1'!P7/'2-19-1'!$B7*100 -> 1.250901308 | Q7: ='2-19-1'!Q7/'2-19-1'!$B7*100 -> 3.474551399 | R7: ='2-19-1'!R7/'2-19-1'!$B7*100 -> 3.951263523 | S7: ='2-19-1'!S7/'2-19-1'!$B7*100 -> 0.49229253
A8: 공공연구기관 Public research institutes | B8: ='2-19-1'!B8 -> 71135 | C8: ='2-19-1'!C8/'2-19-1'!$B8*100 -> 12.93034371 | D8: ='2-19-1'!D8/'2-19-1'!$B8*100 -> 3.819498137 | E8: ='2-19-1'!E8/'2-19-1'!$B8*100 -> 2.455893723 | F8: ='2-19-1'!F8/'2-19-1'!$B8*100 -> 3.247346595 | G8: ='2-19-1'!G8/'2-19-1'!$B8*100 -> 1.679904407 | H8: ='2-19-1'!H8/'2-19-1'!$B8*100 -> 23.95585858 | I8: ='2-19-1'!I8/'2-19-1'!$B8*100 -> 1.573065298 | J8: ='2-19-1'!J8/'2-19-1'!$B8*100 -> 5.035495888 | K8: ='2-19-1'!K8/'2-19-1'!$B8*100 -> 12.03064595 | L8: ='2-19-1'!L8/'2-19-1'!$B8*100 -> 2.512124833 | M8: ='2-19-1'!M8/'2-19-1'!$B8*100 -> 6.749138961 | N8: ='2-19-1'!N8/'2-19-1'!$B8*100 -> 3.674703029 | O8: ='2-19-1'!O8/'2-19-1'!$B8*100 -> 6.136219864 | P8: ='2-19-1'!P8/'2-19-1'!$B8*100 -> 2.789063049 | Q8: ='2-19-1'!Q8/'2-19-1'!$B8*100 -> 3.87994658 | R8: ='2-19-1'!R8/'2-19-1'!$B8*100 -> 6.224783862 | S8: ='2-19-1'!S8/'2-19-1'!$B8*100 -> 1.305967527
A9: 국·공립 National & Pub. | B9: ='2-19-1'!B9 -> 13168 | C9: ='2-19-1'!C9/'2-19-1'!$B9*100 -> 3.128797084 | D9: ='2-19-1'!D9/'2-19-1'!$B9*100 -> 3.318651276 | E9: ='2-19-1'!E9/'2-19-1'!$B9*100 -> 1.253037667 | F9: ='2-19-1'!F9/'2-19-1'!$B9*100 -> 7.95109356 | G9: ='2-19-1'!G9/'2-19-1'!$B9*100 -> 1.534021871 | H9: ='2-19-1'!H9/'2-19-1'!$B9*100 -> 3.288274605 | I9: ='2-19-1'!I9/'2-19-1'!$B9*100 -> 1.746658566 | J9: ='2-19-1'!J9/'2-19-1'!$B9*100 -> 0.1366950182 | K9: ='2-19-1'!K9/'2-19-1'!$B9*100 -> 6.470230863 | L9: ='2-19-1'!L9/'2-19-1'!$B9*100 -> 7.077764277 | M9: ='2-19-1'!M9/'2-19-1'!$B9*100 -> 11.16342649 | N9: ='2-19-1'!N9/'2-19-1'!$B9*100 -> 8.611786148 | O9: ='2-19-1'!O9/'2-19-1'!$B9*100 -> 19.53979344 | P9: ='2-19-1'!P9/'2-19-1'!$B9*100 -> 6.857533414 | Q9: ='2-19-1'!Q9/'2-19-1'!$B9*100 -> 6.424665857 | R9: ='2-19-1'!R9/'2-19-1'!$B9*100 -> 7.161300122 | S9: ='2-19-1'!S9/'2-19-1'!$B9*100 -> 4.336269745
A10: 정부출연 Gov't funded | B10: ='2-19-1'!B10 -> 35691 | C10: ='2-19-1'!C10/'2-19-1'!$B10*100 -> 9.590653106 | D10: ='2-19-1'!D10/'2-19-1'!$B10*100 -> 3.510688969 | E10: ='2-19-1'!E10/'2-19-1'!$B10*100 -> 1.316858592 | F10: ='2-19-1'!F10/'2-19-1'!$B10*100 -> 1.49337368 | G10: ='2-19-1'!G10/'2-19-1'!$B10*100 -> 1.008657645 | H10: ='2-19-1'!H10/'2-19-1'!$B10*100 -> 45.72861506 | I10: ='2-19-1'!I10/'2-19-1'!$B10*100 -> 1.350480513 | J10: ='2-19-1'!J10/'2-19-1'!$B10*100 -> 9.725140792 | K10: ='2-19-1'!K10/'2-19-1'!$B10*100 -> 5.542013393 | L10: ='2-19-1'!L10/'2-19-1'!$B10*100 -> 0.7032585246 | M10: ='2-19-1'!M10/'2-19-1'!$B10*100 -> 6.189235381 | N10: ='2-19-1'!N10/'2-19-1'!$B10*100 -> 1.773556359 | O10: ='2-19-1'!O10/'2-19-1'!$B10*100 -> 2.908296209 | P10: ='2-19-1'!P10/'2-19-1'!$B10*100 -> 1.162758118 | Q10: ='2-19-1'!Q10/'2-19-1'!$B10*100 -> 0.7480877532 | R10: ='2-19-1'!R10/'2-19-1'!$B10*100 -> 6.926115828 | S10: ='2-19-1'!S10/'2-19-1'!$B10*100 -> 0.322210081
A11: 지방자치단체출연 Local gov't funded | B11: ='2-19-1'!B11 -> 3452 | C11: ='2-19-1'!C11/'2-19-1'!$B11*100 -> 0 | D11: ='2-19-1'!D11/'2-19-1'!$B11*100 -> 2.114716107 | E11: ='2-19-1'!E11/'2-19-1'!$B11*100 -> 0 | F11: ='2-19-1'!F11/'2-19-1'!$B11*100 -> 3.997682503 | G11: ='2-19-1'!G11/'2-19-1'!$B11*100 -> 3.157589803 | H11: ='2-19-1'!H11/'2-19-1'!$B11*100 -> 0.1448435689 | I11: ='2-19-1'!I11/'2-19-1'!$B11*100 -> 3.041714948 | J11: ='2-19-1'!J11/'2-19-1'!$B11*100 -> 0 | K11: ='2-19-1'!K11/'2-19-1'!$B11*100 -> 13.29663963 | L11: ='2-19-1'!L11/'2-19-1'!$B11*100 -> 8.603707995 | M11: ='2-19-1'!M11/'2-19-1'!$B11*100 -> 8.893395133 | N11: ='2-19-1'!N11/'2-19-1'!$B11*100 -> 3.707995365 | O11: ='2-19-1'!O11/'2-19-1'!$B11*100 -> 10.54461182 | P11: ='2-19-1'!P11/'2-19-1'!$B11*100 -> 8.980301275 | Q11: ='2-19-1'!Q11/'2-19-1'!$B11*100 -> 14.57126304 | R11: ='2-19-1'!R11/'2-19-1'!$B11*100 -> 12.86210892 | S11: ='2-19-1'!S11/'2-19-1'!$B11*100 -> 6.083429896
A12: 기타비영리 Other non-profit corporation | B12: ='2-19-1'!B12 -> 16244 | C12: ='2-19-1'!C12/'2-19-1'!$B12*100 -> 20.40137897 | D12: ='2-19-1'!D12/'2-19-1'!$B12*100 -> 5.688254125 | E12: ='2-19-1'!E12/'2-19-1'!$B12*100 -> 6.753262743 | F12: ='2-19-1'!F12/'2-19-1'!$B12*100 -> 3.515144053 | G12: ='2-19-1'!G12/'2-19-1'!$B12*100 -> 3.225806452 | H12: ='2-19-1'!H12/'2-19-1'!$B12*100 -> 1.736025609 | I12: ='2-19-1'!I12/'2-19-1'!$B12*100 -> 1.859147993 | J12: ='2-19-1'!J12/'2-19-1'!$B12*100 -> 0.572519084 | K12: ='2-19-1'!K12/'2-19-1'!$B12*100 -> 30.66978577 | L12: ='2-19-1'!L12/'2-19-1'!$B12*100 -> 1.366658459 | M12: ='2-19-1'!M12/'2-19-1'!$B12*100 -> 4.918739227 | N12: ='2-19-1'!N12/'2-19-1'!$B12*100 -> 4.346220143 | O12: ='2-19-1'!O12/'2-19-1'!$B12*100 -> 2.400886481 | P12: ='2-19-1'!P12/'2-19-1'!$B12*100 -> 1.939177542 | Q12: ='2-19-1'!Q12/'2-19-1'!$B12*100 -> 6.99950751 | R12: ='2-19-1'!R12/'2-19-1'!$B12*100 -> 3.404333908 | S12: ='2-19-1'!S12/'2-19-1'!$B12*100 -> 0.203151933
A13: 국·공립병원 National & Pub. hospital | B13: ='2-19-1'!B13 -> 637 | C13: ='2-19-1'!C13/'2-19-1'!$B13*100 -> 80.69073783 | D13: ='2-19-1'!D13/'2-19-1'!$B13*100 -> 1.098901099 | E13: ='2-19-1'!E13/'2-19-1'!$B13*100 -> 0 | F13: ='2-19-1'!F13/'2-19-1'!$B13*100 -> 1.25588697 | G13: ='2-19-1'!G13/'2-19-1'!$B13*100 -> 0 | H13: ='2-19-1'!H13/'2-19-1'!$B13*100 -> 0 | I13: ='2-19-1'!I13/'2-19-1'!$B13*100 -> 0 | J13: ='2-19-1'!J13/'2-19-1'!$B13*100 -> 0 | K13: ='2-19-1'!K13/'2-19-1'!$B13*100 -> 6.750392465 | L13: ='2-19-1'!L13/'2-19-1'!$B13*100 -> 0 | M13: ='2-19-1'!M13/'2-19-1'!$B13*100 -> 2.51177394 | N13: ='2-19-1'!N13/'2-19-1'!$B13*100 -> 2.040816327 | O13: ='2-19-1'!O13/'2-19-1'!$B13*100 -> 0 | P13: ='2-19-1'!P13/'2-19-1'!$B13*100 -> 4.081632653 | Q13: ='2-19-1'!Q13/'2-19-1'!$B13*100 -> 0 | R13: ='2-19-1'!R13/'2-19-1'!$B13*100 -> 1.569858713 | S13: ='2-19-1'!S13/'2-19-1'!$B13*100 -> 0
A14: 사립병원 Private hospital | B14: ='2-19-1'!B14 -> 1943 | C14: ='2-19-1'!C14/'2-19-1'!$B14*100 -> 79.001544 | D14: ='2-19-1'!D14/'2-19-1'!$B14*100 -> 1.18373649 | E14: ='2-19-1'!E14/'2-19-1'!$B14*100 -> 0.7720020587 | F14: ='2-19-1'!F14/'2-19-1'!$B14*100 -> 0.6690684508 | G14: ='2-19-1'!G14/'2-19-1'!$B14*100 -> 0 | H14: ='2-19-1'!H14/'2-19-1'!$B14*100 -> 0 | I14: ='2-19-1'!I14/'2-19-1'!$B14*100 -> 0 | J14: ='2-19-1'!J14/'2-19-1'!$B14*100 -> 0 | K14: ='2-19-1'!K14/'2-19-1'!$B14*100 -> 12.55790015 | L14: ='2-19-1'!L14/'2-19-1'!$B14*100 -> 4.374678332 | M14: ='2-19-1'!M14/'2-19-1'!$B14*100 -> 0 | N14: ='2-19-1'!N14/'2-19-1'!$B14*100 -> 0 | O14: ='2-19-1'!O14/'2-19-1'!$B14*100 -> 0 | P14: ='2-19-1'!P14/'2-19-1'!$B14*100 -> 0.7720020587 | Q14: ='2-19-1'!Q14/'2-19-1'!$B14*100 -> 0.3602676274 | R14: ='2-19-1'!R14/'2-19-1'!$B14*100 -> 0.3088008235 | S14: ='2-19-1'!S14/'2-19-1'!$B14*100 -> 0
A15: 대학 Higher educations | B15: ='2-19-1'!B15 -> 233804 | C15: ='2-19-1'!C15/'2-19-1'!$B15*100 -> 36.60202563 | D15: ='2-19-1'!D15/'2-19-1'!$B15*100 -> 5.150040205 | E15: ='2-19-1'!E15/'2-19-1'!$B15*100 -> 4.273237413 | F15: ='2-19-1'!F15/'2-19-1'!$B15*100 -> 2.646233597 | G15: ='2-19-1'!G15/'2-19-1'!$B15*100 -> 3.90498024 | H15: ='2-19-1'!H15/'2-19-1'!$B15*100 -> 7.005868163 | I15: ='2-19-1'!I15/'2-19-1'!$B15*100 -> 1.760448923 | J15: ='2-19-1'!J15/'2-19-1'!$B15*100 -> 0.7459239363 | K15: ='2-19-1'!K15/'2-19-1'!$B15*100 -> 12.74358009 | L15: ='2-19-1'!L15/'2-19-1'!$B15*100 -> 3.2574293 | M15: ='2-19-1'!M15/'2-19-1'!$B15*100 -> 3.223640314 | N15: ='2-19-1'!N15/'2-19-1'!$B15*100 -> 3.441344032 | O15: ='2-19-1'!O15/'2-19-1'!$B15*100 -> 3.392157534 | P15: ='2-19-1'!P15/'2-19-1'!$B15*100 -> 1.742485159 | Q15: ='2-19-1'!Q15/'2-19-1'!$B15*100 -> 4.975962772 | R15: ='2-19-1'!R15/'2-19-1'!$B15*100 -> 4.138509179 | S15: ='2-19-1'!S15/'2-19-1'!$B15*100 -> 0.9961335135
A16: 국·공립 National & Pub. | B16: ='2-19-1'!B16 -> 94763 | C16: ='2-19-1'!C16/'2-19-1'!$B16*100 -> 20.51222524 | D16: ='2-19-1'!D16/'2-19-1'!$B16*100 -> 7.431170394 | E16: ='2-19-1'!E16/'2-19-1'!$B16*100 -> 8.511760919 | F16: ='2-19-1'!F16/'2-19-1'!$B16*100 -> 0.02216054789 | G16: ='2-19-1'!G16/'2-19-1'!$B16*100 -> 6.955246246 | H16: ='2-19-1'!H16/'2-19-1'!$B16*100 -> 14.9119382 | I16: ='2-19-1'!I16/'2-19-1'!$B16*100 -> 3.171068877 | J16: ='2-19-1'!J16/'2-19-1'!$B16*100 -> 0.1952238743 | K16: ='2-19-1'!K16/'2-19-1'!$B16*100 -> 1.942741365 | L16: ='2-19-1'!L16/'2-19-1'!$B16*100 -> 4.695925625 | M16: ='2-19-1'!M16/'2-19-1'!$B16*100 -> 6.141637559 | N16: ='2-19-1'!N16/'2-19-1'!$B16*100 -> 2.302586453 | O16: ='2-19-1'!O16/'2-19-1'!$B16*100 -> 5.800787227 | P16: ='2-19-1'!P16/'2-19-1'!$B16*100 -> 3.773624727 | Q16: ='2-19-1'!Q16/'2-19-1'!$B16*100 -> 2.445047118 | R16: ='2-19-1'!R16/'2-19-1'!$B16*100 -> 8.77663223 | S16: ='2-19-1'!S16/'2-19-1'!$B16*100 -> 2.410223399
A17: 사립 Private | B17: ='2-19-1'!B17 -> 139041 | C17: ='2-19-1'!C17/'2-19-1'!$B17*100 -> 47.56798354 | D17: ='2-19-1'!D17/'2-19-1'!$B17*100 -> 3.595342381 | E17: ='2-19-1'!E17/'2-19-1'!$B17*100 -> 1.384483713 | F17: ='2-19-1'!F17/'2-19-1'!$B17*100 -> 4.434663157 | G17: ='2-19-1'!G17/'2-19-1'!$B17*100 -> 1.826080077 | H17: ='2-19-1'!H17/'2-19-1'!$B17*100 -> 1.617508505 | I17: ='2-19-1'!I17/'2-19-1'!$B17*100 -> 0.799044886 | J17: ='2-19-1'!J17/'2-19-1'!$B17*100 -> 1.121252005 | K17: ='2-19-1'!K17/'2-19-1'!$B17*100 -> 20.10486116 | L17: ='2-19-1'!L17/'2-19-1'!$B17*100 -> 2.277026201 | M17: ='2-19-1'!M17/'2-19-1'!$B17*100 -> 1.234887551 | N17: ='2-19-1'!N17/'2-19-1'!$B17*100 -> 4.217461037 | O17: ='2-19-1'!O17/'2-19-1'!$B17*100 -> 1.750562784 | P17: ='2-19-1'!P17/'2-19-1'!$B17*100 -> 0.3581677347 | Q17: ='2-19-1'!Q17/'2-19-1'!$B17*100 -> 6.700901173 | R17: ='2-19-1'!R17/'2-19-1'!$B17*100 -> 0.9774095411 | S17: ='2-19-1'!S17/'2-19-1'!$B17*100 -> 0.03236455434
A18: 기업체 Business enterprises | B18: ='2-19-1'!B18 -> 523024 | C18: ='2-19-1'!C18/'2-19-1'!$B18*100 -> 24.18990333 | D18: ='2-19-1'!D18/'2-19-1'!$B18*100 -> 2.148849766 | E18: ='2-19-1'!E18/'2-19-1'!$B18*100 -> 1.827640797 | F18: ='2-19-1'!F18/'2-19-1'!$B18*100 -> 4.272461684 | G18: ='2-19-1'!G18/'2-19-1'!$B18*100 -> 0.9003410933 | H18: ='2-19-1'!H18/'2-19-1'!$B18*100 -> 4.559255407 | I18: ='2-19-1'!I18/'2-19-1'!$B18*100 -> 1.103582245 | J18: ='2-19-1'!J18/'2-19-1'!$B18*100 -> 0.4745480131 | K18: ='2-19-1'!K18/'2-19-1'!$B18*100 -> 45.73021506 | L18: ='2-19-1'!L18/'2-19-1'!$B18*100 -> 0.6135473707 | M18: ='2-19-1'!M18/'2-19-1'!$B18*100 -> 2.206973294 | N18: ='2-19-1'!N18/'2-19-1'!$B18*100 -> 3.528709964 | O18: ='2-19-1'!O18/'2-19-1'!$B18*100 -> 1.159029031 | P18: ='2-19-1'!P18/'2-19-1'!$B18*100 -> 0.8219508091 | Q18: ='2-19-1'!Q18/'2-19-1'!$B18*100 -> 2.748248646 | R18: ='2-19-1'!R18/'2-19-1'!$B18*100 -> 3.558345315 | S18: ='2-19-1'!S18/'2-19-1'!$B18*100 -> 0.1563981768
A19: 정부투자기관 Gov't investment | B19: ='2-19-1'!B19 -> 3779 | C19: ='2-19-1'!C19/'2-19-1'!$B19*100 -> 8.017994178 | D19: ='2-19-1'!D19/'2-19-1'!$B19*100 -> 0.5557025668 | E19: ='2-19-1'!E19/'2-19-1'!$B19*100 -> 1.296639323 | F19: ='2-19-1'!F19/'2-19-1'!$B19*100 -> 3.78406986 | G19: ='2-19-1'!G19/'2-19-1'!$B19*100 -> 0.02646202699 | H19: ='2-19-1'!H19/'2-19-1'!$B19*100 -> 49.13998412 | I19: ='2-19-1'!I19/'2-19-1'!$B19*100 -> 0.4498544589 | J19: ='2-19-1'!J19/'2-19-1'!$B19*100 -> 0 | K19: ='2-19-1'!K19/'2-19-1'!$B19*100 -> 12.99285525 | L19: ='2-19-1'!L19/'2-19-1'!$B19*100 -> 1.799417835 | M19: ='2-19-1'!M19/'2-19-1'!$B19*100 -> 1.455411485 | N19: ='2-19-1'!N19/'2-19-1'!$B19*100 -> 0.5027785128 | O19: ='2-19-1'!O19/'2-19-1'!$B19*100 -> 2.672664726 | P19: ='2-19-1'!P19/'2-19-1'!$B19*100 -> 5.45117756 | Q19: ='2-19-1'!Q19/'2-19-1'!$B19*100 -> 10.79650701 | R19: ='2-19-1'!R19/'2-19-1'!$B19*100 -> 0.5557025668 | S19: ='2-19-1'!S19/'2-19-1'!$B19*100 -> 0.5027785128
A20: 민간기업 Private companies | B20: ='2-19-1'!B20 -> 519245 | C20: ='2-19-1'!C20/'2-19-1'!$B20*100 -> 24.30760046 | D20: ='2-19-1'!D20/'2-19-1'!$B20*100 -> 2.160444492 | E20: ='2-19-1'!E20/'2-19-1'!$B20*100 -> 1.831505359 | F20: ='2-19-1'!F20/'2-19-1'!$B20*100 -> 4.276016139 | G20: ='2-19-1'!G20/'2-19-1'!$B20*100 -> 0.9067010756 | H20: ='2-19-1'!H20/'2-19-1'!$B20*100 -> 4.234802454 | I20: ='2-19-1'!I20/'2-19-1'!$B20*100 -> 1.108339994 | J20: ='2-19-1'!J20/'2-19-1'!$B20*100 -> 0.478001714 | K20: ='2-19-1'!K20/'2-19-1'!$B20*100 -> 45.96847346 | L20: ='2-19-1'!L20/'2-19-1'!$B20*100 -> 0.6049167541 | M20: ='2-19-1'!M20/'2-19-1'!$B20*100 -> 2.212443066 | N20: ='2-19-1'!N20/'2-19-1'!$B20*100 -> 3.550732313 | O20: ='2-19-1'!O20/'2-19-1'!$B20*100 -> 1.14801298 | P20: ='2-19-1'!P20/'2-19-1'!$B20*100 -> 0.7882598773 | Q20: ='2-19-1'!Q20/'2-19-1'!$B20*100 -> 2.689674431 | R20: ='2-19-1'!R20/'2-19-1'!$B20*100 -> 3.580198172 | S20: ='2-19-1'!S20/'2-19-1'!$B20*100 -> 0.1538772641

Sheet 2-19-3
A1: 2-19-3) 2023년도 연구수행주체별 연구원(지역)
A2: Researchers(region) by sector of performance, 2023
S4: (단위 : 명 Unit : Headcount)
A5: 연구수행주체 Sector of performance | B5: 연구원 Researchers | C5: 지역 Region
C6: 서울 Seoul | D6: 부산 Busan | E6: 대구 Daegu | F6: 인천 Incheon | G6: 광주 Gwangju | H6: 대전 Daejeon | I6: 울산 Ulsan | J6: 세종 Sejong | K6: 경기 Gyeonggi | L6: 강원 Gangwon | M6: 충북 Chungbuk | N6: 충남 Chungnam | O6: 전북 Jeonbuk | P6: 전남 Jeonnam | Q6: 경북 Gyeongbuk | R6: 경남 Gyeongnam | S6: 제주 Jeju
A7: 총계 Total | B7: 603566 | C7: 158706 | D7: 17192 | E7: 14453 | F7: 22179 | G7: 8944 | H7: 40024 | I7: 8362 | J7: 5359 | K7: 223253 | L7: 6898 | M7: 15481 | N7: 20388 | O7: 10941 | P7: 6464 | Q7: 20272 | R7: 22310 | S7: 2340
A8: 공공연구기관 Public research institutes | B8: 45445 | C8: 6421 | D8: 1848 | E8: 1261 | F8: 1238 | G8: 836 | H8: 11406 | I8: 769 | J8: 2582 | K8: 6004 | L8: 1122 | M8: 2741 | N8: 1509 | O8: 1925 | P8: 1178 | Q8: 1653 | R8: 2467 | S8: 485
A9: 국·공립 National & Pub. | B9: 6160 | C9: 236 | D9: 194 | E9: 54 | F9: 408 | G9: 121 | H9: 299 | I9: 162 | J9: 4 | K9: 273 | L9: 540 | M9: 924 | N9: 613 | O9: 833 | P9: 416 | Q9: 482 | R9: 353 | S9: 248
A10: 정부출연 Gov't funded | B10: 23569 | C10: 2695 | D10: 808 | E10: 376 | F10: 271 | G10: 274 | H10: 10885 | I10: 298 | J10: 2490 | K10: 1540 | L10: 164 | M10: 978 | N10: 290 | O10: 549 | P10: 264 | Q10: 142 | R10: 1465 | S10: 80
A11: 지방자치단체출연 Local gov't funded | B11: 2344 | C11: 0 | D11: 55 | E11: 0 | F11: 50 | G11: 87 | H11: 3 | I11: 48 | J11: 0 | K11: 341 | L11: 217 | M11: 195 | N11: 65 | O11: 255 | P11: 216 | Q11: 354 | R11: 311 | S11: 147
A12: 기타비영리 Other non-profit corporation | B12: 11854 | C12: 2380 | D12: 765 | E12: 816 | F12: 492 | G12: 354 | H12: 219 | I12: 261 | J12: 88 | K12: 3636 | L12: 131 | M12: 640 | N12: 528 | O12: 288 | P12: 249 | Q12: 669 | R12: 328 | S12: 10
A13: 국·공립병원 National & Pub. hospital | B13: 606 | C13: 509 | D13: 7 | E13: 0 | F13: 7 | G13: 0 | H13: 0 | I13: 0 | J13: 0 | K13: 35 | L13: 0 | M13: 4 | N13: 13 | O13: 0 | P13: 24 | Q13: 0 | R13: 7 | S13: 0
A14: 사립병원 Private hospital | B14: 912 | C14: 601 | D14: 19 | E14: 15 | F14: 10 | G14: 0 | H14: 0 | I14: 0 | J14: 0 | K14: 179 | L14: 70 | M14: 0 | N14: 0 | O14: 0 | P14: 9 | Q14: 6 | R14: 3 | S14: 0
A15: 대학 Higher educations | B15: 119447 | C15: 45325 | D15: 5858 | E15: 5187 | F15: 2951 | G15: 4229 | H15: 9119 | I15: 2701 | J15: 775 | K15: 15901 | L15: 3016 | M15: 3465 | N15: 3636 | O15: 3954 | P15: 1750 | Q15: 6682 | R15: 3729 | S15: 1169
A16: 국·공립 National & Pub. | B16: 47225 | C16: 11122 | D16: 3457 | E16: 4049 | F16: 15 | G16: 2855 | H16: 7892 | I16: 1963 | J16: 160 | K16: 1309 | L16: 1380 | M16: 2638 | N16: 818 | O16: 2801 | P16: 1566 | Q16: 956 | R16: 3095 | S16: 1149
A17: 사립 Private | B17: 72222 | C17: 34203 | D17: 2401 | E17: 1138 | F17: 2936 | G17: 1374 | H17: 1227 | I17: 738 | J17: 615 | K17: 14592 | L17: 1636 | M17: 827 | N17: 2818 | O17: 1153 | P17: 184 | Q17: 5726 | R17: 634 | S17: 20
A18: 기업체 Business enterprises | B18: 438674 | C18: 106960 | D18: 9486 | E18: 8005 | F18: 17990 | G18: 3879 | H18: 19499 | I18: 4892 | J18: 2002 | K18: 201348 | L18: 2760 | M18: 9275 | N18: 15243 | O18: 5062 | P18: 3536 | Q18: 11937 | R18: 16114 | S18: 686
A19: 정부투자기관 Gov't investment | B19: 2795 | C19: 193 | D19: 14 | E19: 48 | F19: 76 | G19: 1 | H19: 1372 | I19: 17 | J19: 0 | K19: 309 | L19: 54 | M19: 30 | N19: 19 | O19: 72 | P19: 186 | Q19: 366 | R19: 21 | S19: 17
A20: 민간기업 Private companies | B20: 435879 | C20: 106767 | D20: 9472 | E20: 7957 | F20: 17914 | G20: 3878 | H20: 18127 | I20: 4875 | J20: 2002 | K20: 201039 | L20: 2706 | M20: 9245 | N20: 15224 | O20: 4990 | P20: 3350 | Q20: 11571 | R20: 16093 | S20: 669

Sheet 2-19-4
A1: 2-19-4) 2023년도 연구수행주체별 연구원 비율(지역)
A2: Researchers rate(region) by sector of performance, 2023
S4: (단위 : % Unit : %)
A5: 연구수행주체 Sector of performance | B5: 연구원(명) Researchers (headcount) | C5: 지역 Region
C6: 서울 Seoul | D6: 부산 Busan | E6: 대구 Daegu | F6: 인천 Incheon | G6: 광주 Gwangju | H6: 대전 Daejeon | I6: 울산 Ulsan | J6: 세종 Sejong | K6: 경기 Gyeonggi | L6: 강원 Gangwon | M6: 충북 Chungbuk | N6: 충남 Chungnam | O6: 전북 Jeonbuk | P6: 전남 Jeonnam | Q6: 경북 Gyeongbuk | R6: 경남 Gyeongnam | S6: 제주 Jeju
A7: 총계 Total | B7: ='2-19-3'!B7 -> 603566 | C7: ='2-19-3'!C7/'2-19-3'!$B7*100 -> 26.2947217 | D7: ='2-19-3'!D7/'2-19-3'!$B7*100 -> 2.848404317 | E7: ='2-19-3'!E7/'2-19-3'!$B7*100 -> 2.394601419 | F7: ='2-19-3'!F7/'2-19-3'!$B7*100 -> 3.674660269 | G7: ='2-19-3'!G7/'2-19-3'!$B7*100 -> 1.481859482 | H7: ='2-19-3'!H7/'2-19-3'!$B7*100 -> 6.631254908 | I7: ='2-19-3'!I7/'2-19-3'!$B7*100 -> 1.385432579 | J7: ='2-19-3'!J7/'2-19-3'!$B7*100 -> 0.8878896426 | K7: ='2-19-3'!K7/'2-19-3'!$B7*100 -> 36.9889954 | L7: ='2-19-3'!L7/'2-19-3'!$B7*100 -> 1.142874184 | M7: ='2-19-3'!M7/'2-19-3'!$B7*100 -> 2.564922477 | N7: ='2-19-3'!N7/'2-19-3'!$B7*100 -> 3.377923872 | O7: ='2-19-3'!O7/'2-19-3'!$B7*100 -> 1.812726363 | P7: ='2-19-3'!P7/'2-19-3'!$B7*100 -> 1.070968212 | Q7: ='2-19-3'!Q7/'2-19-3'!$B7*100 -> 3.358704765 | R7: ='2-19-3'!R7/'2-19-3'!$B7*100 -> 3.696364606 | S7: ='2-19-3'!S7/'2-19-3'!$B7*100 -> 0.3876957947
A8: 공공연구기관 Public research institutes | B8: ='2-19-3'!B8 -> 45445 | C8: ='2-19-3'!C8/'2-19-3'!$B8*100 -> 14.12916713 | D8: ='2-19-3'!D8/'2-19-3'!$B8*100 -> 4.066453955 | E8: ='2-19-3'!E8/'2-19-3'!$B8*100 -> 2.774782704 | F8: ='2-19-3'!F8/'2-19-3'!$B8*100 -> 2.724172076 | G8: ='2-19-3'!G8/'2-19-3'!$B8*100 -> 1.839586313 | H8: ='2-19-3'!H8/'2-19-3'!$B8*100 -> 25.09847068 | I8: ='2-19-3'!I8/'2-19-3'!$B8*100 -> 1.692155353 | J8: ='2-19-3'!J8/'2-19-3'!$B8*100 -> 5.681593135 | K8: ='2-19-3'!K8/'2-19-3'!$B8*100 -> 13.21157443 | L8: ='2-19-3'!L8/'2-19-3'!$B8*100 -> 2.468918473 | M8: ='2-19-3'!M8/'2-19-3'!$B8*100 -> 6.031466608 | N8: ='2-19-3'!N8/'2-19-3'!$B8*100 -> 3.320497304 | O8: ='2-19-3'!O8/'2-19-3'!$B8*100 -> 4.235889537 | P8: ='2-19-3'!P8/'2-19-3'!$B8*100 -> 2.59214435 | Q8: ='2-19-3'!Q8/'2-19-3'!$B8*100 -> 3.637363846 | R8: ='2-19-3'!R8/'2-19-3'!$B8*100 -> 5.428539993 | S8: ='2-19-3'!S8/'2-19-3'!$B8*100 -> 1.067224117
A9: 국·공립 National & Pub. | B9: ='2-19-3'!B9 -> 6160 | C9: ='2-19-3'!C9/'2-19-3'!$B9*100 -> 3.831168831 | D9: ='2-19-3'!D9/'2-19-3'!$B9*100 -> 3.149350649 | E9: ='2-19-3'!E9/'2-19-3'!$B9*100 -> 0.8766233766 | F9: ='2-19-3'!F9/'2-19-3'!$B9*100 -> 6.623376623 | G9: ='2-19-3'!G9/'2-19-3'!$B9*100 -> 1.964285714 | H9: ='2-19-3'!H9/'2-19-3'!$B9*100 -> 4.853896104 | I9: ='2-19-3'!I9/'2-19-3'!$B9*100 -> 2.62987013 | J9: ='2-19-3'!J9/'2-19-3'!$B9*100 -> 0.06493506494 | K9: ='2-19-3'!K9/'2-19-3'!$B9*100 -> 4.431818182 | L9: ='2-19-3'!L9/'2-19-3'!$B9*100 -> 8.766233766 | M9: ='2-19-3'!M9/'2-19-3'!$B9*100 -> 15 | N9: ='2-19-3'!N9/'2-19-3'!$B9*100 -> 9.951298701 | O9: ='2-19-3'!O9/'2-19-3'!$B9*100 -> 13.52272727 | P9: ='2-19-3'!P9/'2-19-3'!$B9*100 -> 6.753246753 | Q9: ='2-19-3'!Q9/'2-19-3'!$B9*100 -> 7.824675325 | R9: ='2-19-3'!R9/'2-19-3'!$B9*100 -> 5.730519481 | S9: ='2-19-3'!S9/'2-19-3'!$B9*100 -> 4.025974026
A10: 정부출연 Gov't funded | B10: ='2-19-3'!B10 -> 23569 | C10: ='2-19-3'!C10/'2-19-3'!$B10*100 -> 11.43451143 | D10: ='2-19-3'!D10/'2-19-3'!$B10*100 -> 3.428232 | E10: ='2-19-3'!E10/'2-19-3'!$B10*100 -> 1.595315881 | F10: ='2-19-3'!F10/'2-19-3'!$B10*100 -> 1.149815436 | G10: ='2-19-3'!G10/'2-19-3'!$B10*100 -> 1.16254402 | H10: ='2-19-3'!H10/'2-19-3'!$B10*100 -> 46.18354618 | I10: ='2-19-3'!I10/'2-19-3'!$B10*100 -> 1.264372693 | J10: ='2-19-3'!J10/'2-19-3'!$B10*100 -> 10.56472485 | K10: ='2-19-3'!K10/'2-19-3'!$B10*100 -> 6.534006534 | L10: ='2-19-3'!L10/'2-19-3'!$B10*100 -> 0.6958292673 | M10: ='2-19-3'!M10/'2-19-3'!$B10*100 -> 4.149518435 | N10: ='2-19-3'!N10/'2-19-3'!$B10*100 -> 1.230429802 | O10: ='2-19-3'!O10/'2-19-3'!$B10*100 -> 2.329330901 | P10: ='2-19-3'!P10/'2-19-3'!$B10*100 -> 1.120115406 | Q10: ='2-19-3'!Q10/'2-19-3'!$B10*100 -> 0.6024863168 | R10: ='2-19-3'!R10/'2-19-3'!$B10*100 -> 6.21579193 | S10: ='2-19-3'!S10/'2-19-3'!$B10*100 -> 0.3394289109
A11: 지방자치단체출연 Local gov't funded | B11: ='2-19-3'!B11 -> 2344 | C11: ='2-19-3'!C11/'2-19-3'!$B11*100 -> 0 | D11: ='2-19-3'!D11/'2-19-3'!$B11*100 -> 2.346416382 | E11: ='2-19-3'!E11/'2-19-3'!$B11*100 -> 0 | F11: ='2-19-3'!F11/'2-19-3'!$B11*100 -> 2.133105802 | G11: ='2-19-3'!G11/'2-19-3'!$B11*100 -> 3.711604096 | H11: ='2-19-3'!H11/'2-19-3'!$B11*100 -> 0.1279863481 | I11: ='2-19-3'!I11/'2-19-3'!$B11*100 -> 2.04778157 | J11: ='2-19-3'!J11/'2-19-3'!$B11*100 -> 0 | K11: ='2-19-3'!K11/'2-19-3'!$B11*100 -> 14.54778157 | L11: ='2-19-3'!L11/'2-19-3'!$B11*100 -> 9.257679181 | M11: ='2-19-3'!M11/'2-19-3'!$B11*100 -> 8.319112628 | N11: ='2-19-3'!N11/'2-19-3'!$B11*100 -> 2.773037543 | O11: ='2-19-3'!O11/'2-19-3'!$B11*100 -> 10.87883959 | P11: ='2-19-3'!P11/'2-19-3'!$B11*100 -> 9.215017065 | Q11: ='2-19-3'!Q11/'2-19-3'!$B11*100 -> 15.10238908 | R11: ='2-19-3'!R11/'2-19-3'!$B11*100 -> 13.26791809 | S11: ='2-19-3'!S11/'2-19-3'!$B11*100 -> 6.271331058
A12: 기타비영리 Other non-profit corporation | B12: ='2-19-3'!B12 -> 11854 | C12: ='2-19-3'!C12/'2-19-3'!$B12*100 -> 20.07761093 | D12: ='2-19-3'!D12/'2-19-3'!$B12*100 -> 6.4535178 | E12: ='2-19-3'!E12/'2-19-3'!$B12*100 -> 6.88375232 | F12: ='2-19-3'!F12/'2-19-3'!$B12*100 -> 4.150497722 | G12: ='2-19-3'!G12/'2-19-3'!$B12*100 -> 2.986333727 | H12: ='2-19-3'!H12/'2-19-3'!$B12*100 -> 1.847477645 | I12: ='2-19-3'!I12/'2-19-3'!$B12*100 -> 2.201788426 | J12: ='2-19-3'!J12/'2-19-3'!$B12*100 -> 0.7423654463 | K12: ='2-19-3'!K12/'2-19-3'!$B12*100 -> 30.67319048 | L12: ='2-19-3'!L12/'2-19-3'!$B12*100 -> 1.105112198 | M12: ='2-19-3'!M12/'2-19-3'!$B12*100 -> 5.399021427 | N12: ='2-19-3'!N12/'2-19-3'!$B12*100 -> 4.454192678 | O12: ='2-19-3'!O12/'2-19-3'!$B12*100 -> 2.429559642 | P12: ='2-19-3'!P12/'2-19-3'!$B12*100 -> 2.100556774 | Q12: ='2-19-3'!Q12/'2-19-3'!$B12*100 -> 5.643664586 | R12: ='2-19-3'!R12/'2-19-3'!$B12*100 -> 2.766998482 | S12: ='2-19-3'!S12/'2-19-3'!$B12*100 -> 0.0843597098
A13: 국·공립병원 National & Pub. hospital | B13: ='2-19-3'!B13 -> 606 | C13: ='2-19-3'!C13/'2-19-3'!$B13*100 -> 83.99339934 | D13: ='2-19-3'!D13/'2-19-3'!$B13*100 -> 1.155115512 | E13: ='2-19-3'!E13/'2-19-3'!$B13*100 -> 0 | F13: ='2-19-3'!F13/'2-19-3'!$B13*100 -> 1.155115512 | G13: ='2-19-3'!G13/'2-19-3'!$B13*100 -> 0 | H13: ='2-19-3'!H13/'2-19-3'!$B13*100 -> 0 | I13: ='2-19-3'!I13/'2-19-3'!$B13*100 -> 0 | J13: ='2-19-3'!J13/'2-19-3'!$B13*100 -> 0 | K13: ='2-19-3'!K13/'2-19-3'!$B13*100 -> 5.775577558 | L13: ='2-19-3'!L13/'2-19-3'!$B13*100 -> 0 | M13: ='2-19-3'!M13/'2-19-3'!$B13*100 -> 0.6600660066 | N13: ='2-19-3'!N13/'2-19-3'!$B13*100 -> 2.145214521 | O13: ='2-19-3'!O13/'2-19-3'!$B13*100 -> 0 | P13: ='2-19-3'!P13/'2-19-3'!$B13*100 -> 3.96039604 | Q13: ='2-19-3'!Q13/'2-19-3'!$B13*100 -> 0 | R13: ='2-19-3'!R13/'2-19-3'!$B13*100 -> 1.155115512 | S13: ='2-19-3'!S13/'2-19-3'!$B13*100 -> 0
A14: 사립병원 Private hospital | B14: ='2-19-3'!B14 -> 912 | C14: ='2-19-3'!C14/'2-19-3'!$B14*100 -> 65.89912281 | D14: ='2-19-3'!D14/'2-19-3'!$B14*100 -> 2.083333333 | E14: ='2-19-3'!E14/'2-19-3'!$B14*100 -> 1.644736842 | F14: ='2-19-3'!F14/'2-19-3'!$B14*100 -> 1.096491228 | G14: ='2-19-3'!G14/'2-19-3'!$B14*100 -> 0 | H14: ='2-19-3'!H14/'2-19-3'!$B14*100 -> 0 | I14: ='2-19-3'!I14/'2-19-3'!$B14*100 -> 0 | J14: ='2-19-3'!J14/'2-19-3'!$B14*100 -> 0 | K14: ='2-19-3'!K14/'2-19-3'!$B14*100 -> 19.62719298 | L14: ='2-19-3'!L14/'2-19-3'!$B14*100 -> 7.675438596 | M14: ='2-19-3'!M14/'2-19-3'!$B14*100 -> 0 | N14: ='2-19-3'!N14/'2-19-3'!$B14*100 -> 0 | O14: ='2-19-3'!O14/'2-19-3'!$B14*100 -> 0 | P14: ='2-19-3'!P14/'2-19-3'!$B14*100 -> 0.9868421053 | Q14: ='2-19-3'!Q14/'2-19-3'!$B14*100 -> 0.6578947368 | R14: ='2-19-3'!R14/'2-19-3'!$B14*100 -> 0.3289473684 | S14: ='2-19-3'!S14/'2-19-3'!$B14*100 -> 0
A15: 대학 Higher educations | B15: ='2-19-3'!B15 -> 119447 | C15: ='2-19-3'!C15/'2-19-3'!$B15*100 -> 37.94569977 | D15: ='2-19-3'!D15/'2-19-3'!$B15*100 -> 4.904267165 | E15: ='2-19-3'!E15/'2-19-3'!$B15*100 -> 4.342511742 | F15: ='2-19-3'!F15/'2-19-3'!$B15*100 -> 2.470551793 | G15: ='2-19-3'!G15/'2-19-3'!$B15*100 -> 3.54048239 | H15: ='2-19-3'!H15/'2-19-3'!$B15*100 -> 7.634348288 | I15: ='2-19-3'!I15/'2-19-3'!$B15*100 -> 2.261253945 | J15: ='2-19-3'!J15/'2-19-3'!$B15*100 -> 0.6488233275 | K15: ='2-19-3'!K15/'2-19-3'!$B15*100 -> 13.3121803 | L15: ='2-19-3'!L15/'2-19-3'!$B15*100 -> 2.524969233 | M15: ='2-19-3'!M15/'2-19-3'!$B15*100 -> 2.900868167 | N15: ='2-19-3'!N15/'2-19-3'!$B15*100 -> 3.044027895 | O15: ='2-19-3'!O15/'2-19-3'!$B15*100 -> 3.310254757 | P15: ='2-19-3'!P15/'2-19-3'!$B15*100 -> 1.465084933 | Q15: ='2-19-3'!Q15/'2-19-3'!$B15*100 -> 5.59411287 | R15: ='2-19-3'!R15/'2-19-3'!$B15*100 -> 3.121886695 | S15: ='2-19-3'!S15/'2-19-3'!$B15*100 -> 0.9786767353
